Workbook

Sheet Main
G2: CQG S&P 500 Index Internal Performance | U2: Ribbon | W2: =RTD("cqg.rtd", ,"SystemInfo", "Linetime") -> 44669.36606
B5: Lookback Period: | D5: 52 | E5: Time Frame: | G5: W | H5: Number of Stocks Making New Highs: | L5: =Ranked!U2 -> 20 | M5: New Lows: | N5: =Ranked!V2 -> 21 | P5: Symbol | Q5: Description | U5: Last: | V5: NC | W5: %NC | X5: Open | Y5: High | Z5: Low
B6: ="New "&$D$5&"-Bar High Symbols, Descriptions and Net % Daily Change" -> New 52-Bar High Symbols, Descriptions and Net % Daily Change | I6: ="New "&$D$5&"-Bar Low Symbols, Descriptions and Net % Daily Change" -> New 52-Bar Low Symbols, Descriptions and Net % Daily Change | P6: DJI | Q6: =IF(P6="","",RTD("cqg.rtd", ,"ContractData",P6, "LongDescription",, "T")) -> DJ Industrial Average | U6: =IF(P6="","",TEXT(RTD("cqg.rtd",,"ContractData",P6,"LastTradeToday",,"T"),AB6)) -> 34577.3 | V6: =IF(P6="","",TEXT(RTD("cqg.rtd", ,"ContractData", P6, "NetLastTradeToday",, "T"),AB6)) -> 126.1 | W6: =IFERROR(IF(P6="","",RTD("cqg.rtd", ,"ContractData", P6, "PerCentNetLastTrade",, "T")/100),"") -> 0.003660249861 | X6: =IF(P6="","",TEXT(RTD("cqg.rtd", ,"ContractData", P6, "OPen",, "T"),AB6)) -> 34411.4 | Y6: =IF(P6="","",TEXT(RTD("cqg.rtd", ,"ContractData", P6, "HIgh",, "T"),AB6)) -> 34613.1 | Z6: =IF(P6="","",TEXT(RTD("cqg.rtd", ,"ContractData", P6, "LOw",, "T"),AB6)) -> 34387.9 | AA6: =IF(P6="","",IF(LEN(RTD("cqg.rtd",,"ContractData",P6,"TickSize",,"T"))=1,0,LEN(RTD("cqg.rtd",,"ContractData",P6,"TickSize",,"T"))-2)) -> 1 | AB6: =IF(AA6=0,"#",IF(AA6=1,"#.0",IF(AA6=2,"#.00",IF(AA6=3,"#.000",IF(AA6=4,"#.0000",IF(AA6=5,"#.00000",IF(AA6=6,"#.000000",IF(AA6=7,"#.0000000")))))))) -> #.0
A7: =IF(OR(B7<>"",I7<>""),1,0) -> 1 | B7: =Ranked!G2 -> S.US.CTRA | C7: =IF(B7="","",RTD("cqg.rtd", ,"ContractData",B7, "LongDescription",, "T")) -> Cottera Energy, Inc | G7: =IFERROR(RTD("cqg.rtd", ,"ContractData",B7, "PerCentNetLastTrade",, "T")/100,"") -> 0.03399048266 | I7: =Ranked!Q2 -> S.US.CEG | J7: =IF(I7="","",RTD("cqg.rtd", ,"ContractData",I7, "LongDescription",, "T")) -> Constellation Energy Corporation | N7: =IFERROR(RTD("cqg.rtd", ,"ContractData",I7, "PerCentNetLastTrade",, "T")/100,"") -> 0.01438848921 | P7: SPY | Q7: =IF(P7="","",RTD("cqg.rtd", ,"ContractData",P7, "LongDescription",, "T")) -> SPDR S&P 500 | U7: =IF(P7="","",TEXT(RTD("cqg.rtd",,"ContractData",P7,"LastTradeToday",,"T"),AB7)) -> 438.49 | V7: =IF(P7="","",TEXT(RTD("cqg.rtd", ,"ContractData", P7, "NetLastTradeToday",, "T"),AB7)) -> .70 | W7: =IFERROR(IF(P7="","",RTD("cqg.rtd", ,"ContractData", P7, "PerCentNetLastTrade",, "T")/100),"") -> 0.001598940131 | X7: =IF(P7="","",TEXT(RTD("cqg.rtd", ,"ContractData", P7, "OPen",, "T"),AB7)) -> 436.81 | Y7: =IF(P7="","",TEXT(RTD("cqg.rtd", ,"ContractData", P7, "HIgh",, "T"),AB7)) -> 439.46 | Z7: =IF(P7="","",TEXT(RTD("cqg.rtd", ,"ContractData", P7, "LOw",, "T"),AB7)) -> 436.73 | AA7: =IF(P7="","",IF(LEN(RTD("cqg.rtd",,"ContractData",P7,"TickSize",,"T"))=1,0,LEN(RTD("cqg.rtd",,"ContractData",P7,"TickSize",,"T"))-2)) -> 2 | AB7: =IF(AA7=0,"#",IF(AA7=1,"#.0",IF(AA7=2,"#.00",IF(AA7=3,"#.000",IF(AA7=4,"#.0000",IF(AA7=5,"#.00000",IF(AA7=6,"#.000000",IF(AA7=7,"#.0000000")))))))) -> #.00
A8: 1 | B8: =Ranked!G3 -> S.US.HAL | C8: =IF(B8="","",RTD("cqg.rtd", ,"ContractData",B8, "LongDescription",, "T")) -> Halliburton Company | G8: =IFERROR(RTD("cqg.rtd", ,"ContractData",B8, "PerCentNetLastTrade",, "T")/100,"") -> 0.02649656526 | I8: =Ranked!Q3 -> S.US.ITW | J8: =IF(I8="","",RTD("cqg.rtd", ,"ContractData",I8, "LongDescription",, "T")) -> Illinois Tools Works Inc | N8: =IFERROR(RTD("cqg.rtd", ,"ContractData",I8, "PerCentNetLastTrade",, "T")/100,"") -> 0.00810108524 | P8: RSP | Q8: =IF(P8="","",RTD("cqg.rtd", ,"ContractData",P8, "LongDescription",, "T")) -> Invesco S&P 500 Equal Weight ETF | U8: =IF(P8="","",TEXT(RTD("cqg.rtd",,"ContractData",P8,"LastTradeToday",,"T"),AB8)) -> 155.77 | V8: =IF(P8="","",TEXT(RTD("cqg.rtd", ,"ContractData", P8, "NetLastTradeToday",, "T"),AB8)) -> .24 | W8: =IFERROR(IF(P8="","",RTD("cqg.rtd", ,"ContractData", P8, "PerCentNetLastTrade",, "T")/100),"") -> 0.001543110654 | X8: =IF(P8="","",TEXT(RTD("cqg.rtd", ,"ContractData", P8, "OPen",, "T"),AB8)) -> 155.20 | Y8: =IF(P8="","",TEXT(RTD("cqg.rtd", ,"ContractData", P8, "HIgh",, "T"),AB8)) -> 156.04 | Z8: =IF(P8="","",TEXT(RTD("cqg.rtd", ,"ContractData", P8, "LOw",, "T"),AB8)) -> 155.19 | AA8: =IF(P8="","",IF(LEN(RTD("cqg.rtd",,"ContractData",P8,"TickSize",,"T"))=1,0,LEN(RTD("cqg.rtd",,"ContractData",P8,"TickSize",,"T"))-2)) -> 2 | AB8: #.00
A9: 1 | B9: =Ranked!G4 -> S.US.APA | C9: =IF(B9="","",RTD("cqg.rtd", ,"ContractData",B9, "LongDescription",, "T")) -> APA Corporation | G9: =IFERROR(RTD("cqg.rtd", ,"ContractData",B9, "PerCentNetLastTrade",, "T")/100,"") -> 0.024496337 | I9: =Ranked!Q4 -> S.US.TEL | J9: =IF(I9="","",RTD("cqg.rtd", ,"ContractData",I9, "LongDescription",, "T")) -> TE Connectivity Ltd. | N9: =IFERROR(RTD("cqg.rtd", ,"ContractData",I9, "PerCentNetLastTrade",, "T")/100,"") -> 0.008024487095 | P9: NDX | Q9: =IF(P9="","",RTD("cqg.rtd", ,"ContractData",P9, "LongDescription",, "T")) -> NASDAQ-100 Index | U9: =IF(P9="","",TEXT(RTD("cqg.rtd",,"ContractData",P9,"LastTradeToday",,"T"),AB9)) -> 13866.65 | V9: =IF(P9="","",TEXT(RTD("cqg.rtd", ,"ContractData", P9, "NetLastTradeToday",, "T"),AB9)) -> -26.56 | W9: =IFERROR(IF(P9="","",RTD("cqg.rtd", ,"ContractData", P9, "PerCentNetLastTrade",, "T")/100),"") -> -0.001911725224 | X9: =IF(P9="","",TEXT(RTD("cqg.rtd", ,"ContractData", P9, "OPen",, "T"),AB9)) -> 13859.47 | Y9: =IF(P9="","",TEXT(RTD("cqg.rtd", ,"ContractData", P9, "HIgh",, "T"),AB9)) -> 13925.70 | Z9: =IF(P9="","",TEXT(RTD("cqg.rtd", ,"ContractData", P9, "LOw",, "T"),AB9)) -> 13859.47 | AA9: =IF(P9="","",IF(LEN(RTD("cqg.rtd",,"ContractData",P9,"TickSize",,"T"))=1,0,LEN(RTD("cqg.rtd",,"ContractData",P9,"TickSize",,"T"))-2)) -> 2 | AB9: #.00
A10: 1 | B10: =Ranked!G5 -> S.US.MPC | C10: =IF(B10="","",RTD("cqg.rtd", ,"ContractData",B10, "LongDescription",, "T")) -> Marathon Petroleum Corporation | G10: =IFERROR(RTD("cqg.rtd", ,"ContractData",B10, "PerCentNetLastTrade",, "T")/100,"") -> 0.0244266055 | I10: =Ranked!Q5 -> S.US.CARR | J10: =IF(I10="","",RTD("cqg.rtd", ,"ContractData",I10, "LongDescription",, "T")) -> Carrier Global Corporation | N10: =IFERROR(RTD("cqg.rtd", ,"ContractData",I10, "PerCentNetLastTrade",, "T")/100,"") -> 0.006782945736 | P10: S.MSFT | Q10: =IF(P10="","",RTD("cqg.rtd", ,"ContractData",P10, "LongDescription",, "T")) -> Microsoft Corporation | U10: =IF(P10="","",TEXT(RTD("cqg.rtd",,"ContractData",P10,"LastTradeToday",,"T"),AB10)) -> 279.04 | V10: =IF(P10="","",TEXT(RTD("cqg.rtd", ,"ContractData", P10, "NetLastTradeToday",, "T"),AB10)) -> -.79 | W10: =IFERROR(IF(P10="","",RTD("cqg.rtd", ,"ContractData", P10, "PerCentNetLastTrade",, "T")/100),"") -> -0.002823142622 | X10: =IF(P10="","",TEXT(RTD("cqg.rtd", ,"ContractData", P10, "OPen",, "T"),AB10)) -> 278.91 | Y10: =IF(P10="","",TEXT(RTD("cqg.rtd", ,"ContractData", P10, "HIgh",, "T"),AB10)) -> 281.90 | Z10: =IF(P10="","",TEXT(RTD("cqg.rtd", ,"ContractData", P10, "LOw",, "T"),AB10)) -> 278.91 | AA10: =IF(P10="","",IF(LEN(RTD("cqg.rtd",,"ContractData",P10,"TickSize",,"T"))=1,0,LEN(RTD("cqg.rtd",,"ContractData",P10,"TickSize",,"T"))-2)) -> 2 | AB10: #.00
A11: 1 | B11: =Ranked!G6 -> S.US.VLO | C11: =IF(B11="","",RTD("cqg.rtd", ,"ContractData",B11, "LongDescription",, "T")) -> Valero Energy Corp New | G11: =IFERROR(RTD("cqg.rtd", ,"ContractData",B11, "PerCentNetLastTrade",, "T")/100,"") -> 0.02250619874 | I11: =Ranked!Q6 -> S.US.MAS | J11: =IF(I11="","",RTD("cqg.rtd", ,"ContractData",I11, "LongDescription",, "T")) -> Masco Corporation | N11: =IFERROR(RTD("cqg.rtd", ,"ContractData",I11, "PerCentNetLastTrade",, "T")/100,"") -> 0.003846932577 | P11: S.AMZN | Q11: =IF(P11="","",RTD("cqg.rtd", ,"ContractData",P11, "LongDescription",, "T")) -> Amazon.com Inc | U11: =IF(P11="","",TEXT(RTD("cqg.rtd",,"ContractData",P11,"LastTradeToday",,"T"),AB11)) -> 3031.91 | V11: =IF(P11="","",TEXT(RTD("cqg.rtd", ,"ContractData", P11, "NetLastTradeToday",, "T"),AB11)) -> -2.22 | W11: =IFERROR(IF(P11="","",RTD("cqg.rtd", ,"ContractData", P11, "PerCentNetLastTrade",, "T")/100),"") -> -0.0007316759664 | X11: =IF(P11="","",TEXT(RTD("cqg.rtd", ,"ContractData", P11, "OPen",, "T"),AB11)) -> 3030.47 | Y11: =IF(P11="","",TEXT(RTD("cqg.rtd", ,"ContractData", P11, "HIgh",, "T"),AB11)) -> 3069.00 | Z11: =IF(P11="","",TEXT(RTD("cqg.rtd", ,"ContractData", P11, "LOw",, "T"),AB11)) -> 3030.47 | AA11: =IF(P11="","",IF(LEN(RTD("cqg.rtd",,"ContractData",P11,"TickSize",,"T"))=1,0,LEN(RTD("cqg.rtd",,"ContractData",P11,"TickSize",,"T"))-2)) -> 2 | AB11: #.00
A12: 1 | B12: =Ranked!G7 -> S.US.MRO | C12: =IF(B12="","",RTD("cqg.rtd", ,"ContractData",B12, "LongDescription",, "T")) -> Marathon Oil Corporation | G12: =IFERROR(RTD("cqg.rtd", ,"ContractData",B12, "PerCentNetLastTrade",, "T")/100,"") -> 0.02217211575 | I12: =Ranked!Q7 -> S.US.AMAT | J12: =IF(I12="","",RTD("cqg.rtd", ,"ContractData",I12, "LongDescription",, "T")) -> Applied Materials Inc | N12: =IFERROR(RTD("cqg.rtd", ,"ContractData",I12, "PerCentNetLastTrade",, "T")/100,"") -> 0.003616796048 | P12: S.AAPL | Q12: =IF(P12="","",RTD("cqg.rtd", ,"ContractData",P12, "LongDescription",, "T")) -> Apple Inc | U12: =IF(P12="","",TEXT(RTD("cqg.rtd",,"ContractData",P12,"LastTradeToday",,"T"),AB12)) -> 164.93 | V12: =IF(P12="","",TEXT(RTD("cqg.rtd", ,"ContractData", P12, "NetLastTradeToday",, "T"),AB12)) -> -.36 | W12: =IFERROR(IF(P12="","",RTD("cqg.rtd", ,"ContractData", P12, "PerCentNetLastTrade",, "T")/100),"") -> -0.002177990199 | X12: =IF(P12="","",TEXT(RTD("cqg.rtd", ,"ContractData", P12, "OPen",, "T"),AB12)) -> 163.92 | Y12: =IF(P12="","",TEXT(RTD("cqg.rtd", ,"ContractData", P12, "HIgh",, "T"),AB12)) -> 165.73 | Z12: =IF(P12="","",TEXT(RTD("cqg.rtd", ,"ContractData", P12, "LOw",, "T"),AB12)) -> 163.57 | AA12: =IF(P12="","",IF(LEN(RTD("cqg.rtd",,"ContractData",P12,"TickSize",,"T"))=1,0,LEN(RTD("cqg.rtd",,"ContractData",P12,"TickSize",,"T"))-2)) -> 2 | AB12: #.00
A13: 1 | B13: =Ranked!G8 -> S.US.OKE | C13: =IF(B13="","",RTD("cqg.rtd", ,"ContractData",B13, "LongDescription",, "T")) -> ONEOK Inc New | G13: =IFERROR(RTD("cqg.rtd", ,"ContractData",B13, "PerCentNetLastTrade",, "T")/100,"") -> 0.01823281907 | I13: =Ranked!Q8 -> S.US.SWKS | J13: =IF(I13="","",RTD("cqg.rtd", ,"ContractData",I13, "LongDescription",, "T")) -> Skyworks Solutions Inc | N13: =IFERROR(RTD("cqg.rtd", ,"ContractData",I13, "PerCentNetLastTrade",, "T")/100,"") -> 0.002293383165 | P13: S.GOOG | Q13: =IF(P13="","",RTD("cqg.rtd", ,"ContractData",P13, "LongDescription",, "T")) -> Alphabet, Inc. Class C | U13: =IF(P13="","",TEXT(RTD("cqg.rtd",,"ContractData",P13,"LastTradeToday",,"T"),AB13)) -> 2549.47 | V13: =IF(P13="","",TEXT(RTD("cqg.rtd", ,"ContractData", P13, "NetLastTradeToday",, "T"),AB13)) -> 4.41 | W13: =IFERROR(IF(P13="","",RTD("cqg.rtd", ,"ContractData", P13, "PerCentNetLastTrade",, "T")/100),"") -> 0.001732768579 | X13: =IF(P13="","",TEXT(RTD("cqg.rtd", ,"ContractData", P13, "OPen",, "T"),AB13)) -> 2548.20 | Y13: =IF(P13="","",TEXT(RTD("cqg.rtd", ,"ContractData", P13, "HIgh",, "T"),AB13)) -> 2566.59 | Z13: =IF(P13="","",TEXT(RTD("cqg.rtd", ,"ContractData", P13, "LOw",, "T"),AB13)) -> 2544.10 | AA13: =IF(P13="","",IF(LEN(RTD("cqg.rtd",,"ContractData",P13,"TickSize",,"T"))=1,0,LEN(RTD("cqg.rtd",,"ContractData",P13,"TickSize",,"T"))-2)) -> 2 | AB13: #.00
A14: 1 | B14: =Ranked!G9 -> S.US.HES | C14: =IF(B14="","",RTD("cqg.rtd", ,"ContractData",B14, "LongDescription",, "T")) -> Hess Corporation | G14: =IFERROR(RTD("cqg.rtd", ,"ContractData",B14, "PerCentNetLastTrade",, "T")/100,"") -> 0.01725941423 | I14: =Ranked!Q9 -> S.US.FBHS | J14: =IF(I14="","",RTD("cqg.rtd", ,"ContractData",I14, "LongDescription",, "T")) -> Fortune Brands Home & Security, Inc. | N14: =IFERROR(RTD("cqg.rtd", ,"ContractData",I14, "PerCentNetLastTrade",, "T")/100,"") -> 0.001723147616 | P14: CLE | Q14: =IF(P14="","",RTD("cqg.rtd", ,"ContractData",P14, "LongDescription",, "T")) -> Crude Light (Globex), Jun 22 | U14: =IF(P14="","",TEXT(RTD("cqg.rtd",,"ContractData",P14,"LastTradeToday",,"T"),AB14)) -> 107.91 | V14: =IF(P14="","",TEXT(RTD("cqg.rtd", ,"ContractData", P14, "NetLastTradeToday",, "T"),AB14)) -> 1.53 | W14: =IFERROR(IF(P14="","",RTD("cqg.rtd", ,"ContractData", P14, "PerCentNetLastTrade",, "T")/100),"") -> 0.01438240271 | X14: =IF(P14="","",TEXT(RTD("cqg.rtd", ,"ContractData", P14, "OPen",, "T"),AB14)) -> 106.46 | Y14: =IF(P14="","",TEXT(RTD("cqg.rtd", ,"ContractData", P14, "HIgh",, "T"),AB14)) -> 108.07 | Z14: =IF(P14="","",TEXT(RTD("cqg.rtd", ,"ContractData", P14, "LOw",, "T"),AB14)) -> 105.43 | AA14: =IF(P14="","",IF(LEN(RTD("cqg.rtd",,"ContractData",P14,"TickSize",,"T"))=1,0,LEN(RTD("cqg.rtd",,"ContractData",P14,"TickSize",,"T"))-2)) -> 2 | AB14: #.00
A15: 1 | B15: =Ranked!G10 -> S.US.DE | C15: =IF(B15="","",RTD("cqg.rtd", ,"ContractData",B15, "LongDescription",, "T")) -> Deere & Company | G15: =IFERROR(RTD("cqg.rtd", ,"ContractData",B15, "PerCentNetLastTrade",, "T")/100,"") -> 0.01708070979 | I15: =Ranked!Q10 -> S.US.BEN | J15: =IF(I15="","",RTD("cqg.rtd", ,"ContractData",I15, "LongDescription",, "T")) -> Franklin Resources Inc | N15: =IFERROR(RTD("cqg.rtd", ,"ContractData",I15, "PerCentNetLastTrade",, "T")/100,"") -> 0.001564333203 | P15: GCE | Q15: =IF(P15="","",RTD("cqg.rtd", ,"ContractData",P15, "LongDescription",, "T")) -> Gold (Globex), Jun 22 | U15: =IF(P15="","",TEXT(RTD("cqg.rtd",,"ContractData",P15,"LastTradeToday",,"T"),AB15)) -> 1994.1 | V15: =IF(P15="","",TEXT(RTD("cqg.rtd", ,"ContractData", P15, "NetLastTradeToday",, "T"),AB15)) -> 19.2 | W15: =IFERROR(IF(P15="","",RTD("cqg.rtd", ,"ContractData", P15, "PerCentNetLastTrade",, "T")/100),"") -> 0.009722011241 | X15: =IF(P15="","",TEXT(RTD("cqg.rtd", ,"ContractData", P15, "OPen",, "T"),AB15)) -> 1978.5 | Y15: =IF(P15="","",TEXT(RTD("cqg.rtd", ,"ContractData", P15, "HIgh",, "T"),AB15)) -> 2003.0 | Z15: =IF(P15="","",TEXT(RTD("cqg.rtd", ,"ContractData", P15, "LOw",, "T"),AB15)) -> 1974.4 | AA15: =IF(P15="","",IF(LEN(RTD("cqg.rtd",,"ContractData",P15,"TickSize",,"T"))=1,0,LEN(RTD("cqg.rtd",,"ContractData",P15,"TickSize",,"T"))-2)) -> 1 | AB15: #.0
A16: 1 | B16: =Ranked!G11 -> S.US.NUE | C16: =IF(B16="","",RTD("cqg.rtd", ,"ContractData",B16, "LongDescription",, "T")) -> Nucor Corp | G16: =IFERROR(RTD("cqg.rtd", ,"ContractData",B16, "PerCentNetLastTrade",, "T")/100,"") -> 0.01645293975 | I16: =Ranked!Q11 -> S.US.LRCX | J16: =IF(I16="","",RTD("cqg.rtd", ,"ContractData",I16, "LongDescription",, "T")) -> LAM Research Corporation | N16: =IFERROR(RTD("cqg.rtd", ,"ContractData",I16, "PerCentNetLastTrade",, "T")/100,"") -> -0.003354086286 | P16: EU6 | Q16: =IF(P16="","",RTD("cqg.rtd", ,"ContractData",P16, "LongDescription",, "T")) -> Euro FX (Globex), Jun 22 | U16: =IF(P16="","",TEXT(RTD("cqg.rtd",,"ContractData",P16,"LastTradeToday",,"T"),AB16)) -> 1.08245 | V16: =IF(P16="","",TEXT(RTD("cqg.rtd", ,"ContractData", P16, "NetLastTradeToday",, "T"),AB16)) -> -.00295 | W16: =IFERROR(IF(P16="","",RTD("cqg.rtd", ,"ContractData", P16, "PerCentNetLastTrade",, "T")/100),"") -> -0.002717892021 | X16: =IF(P16="","",TEXT(RTD("cqg.rtd", ,"ContractData", P16, "OPen",, "T"),AB16)) -> 1.08315 | Y16: =IF(P16="","",TEXT(RTD("cqg.rtd", ,"ContractData", P16, "HIgh",, "T"),AB16)) -> 1.08465 | Z16: =IF(P16="","",TEXT(RTD("cqg.rtd", ,"ContractData", P16, "LOw",, "T"),AB16)) -> 1.08075 | AA16: =IF(P16="","",IF(LEN(RTD("cqg.rtd",,"ContractData",P16,"TickSize",,"T"))=1,0,LEN(RTD("cqg.rtd",,"ContractData",P16,"TickSize",,"T"))-2)) -> 5 | AB16: #.00000
A17: 1 | B17: =Ranked!G12 -> S.US.MOS | C17: =IF(B17="","",RTD("cqg.rtd", ,"ContractData",B17, "LongDescription",, "T")) -> Mosaic Company | G17: =IFERROR(RTD("cqg.rtd", ,"ContractData",B17, "PerCentNetLastTrade",, "T")/100,"") -> 0.01367521368 | I17: =Ranked!Q12 -> S.US.PNR | J17: =IF(I17="","",RTD("cqg.rtd", ,"ContractData",I17, "LongDescription",, "T")) -> Pentair Ltd. | N17: =IFERROR(RTD("cqg.rtd", ,"ContractData",I17, "PerCentNetLastTrade",, "T")/100,"") -> -0.005721914934 | P17: S.RYT | Q17: =IF(P17="","",RTD("cqg.rtd", ,"ContractData",P17, "LongDescription",, "T")) -> Invesco S&P 500 Eq Wt Technology ETF | U17: =IF(P17="","",TEXT(RTD("cqg.rtd",,"ContractData",P17,"LastTradeToday",,"T"),AB17)) -> 270.08 | V17: =IF(P17="","",TEXT(RTD("cqg.rtd", ,"ContractData", P17, "NetLastTradeToday",, "T"),AB17)) -> -.17 | W17: =IFERROR(IF(P17="","",RTD("cqg.rtd", ,"ContractData", P17, "PerCentNetLastTrade",, "T")/100),"") -> -0.0006290471785 | X17: =IF(P17="","",TEXT(RTD("cqg.rtd", ,"ContractData", P17, "OPen",, "T"),AB17)) -> 269.35 | Y17: =IF(P17="","",TEXT(RTD("cqg.rtd", ,"ContractData", P17, "HIgh",, "T"),AB17)) -> 270.08 | Z17: =IF(P17="","",TEXT(RTD("cqg.rtd", ,"ContractData", P17, "LOw",, "T"),AB17)) -> 268.95 | AA17: =IF(P17="","",IF(LEN(RTD("cqg.rtd",,"ContractData",P17,"TickSize",,"T"))=1,0,LEN(RTD("cqg.rtd",,"ContractData",P17,"TickSize",,"T"))-2)) -> 2 | AB17: #.00
A18: 1 | B18: =Ranked!G13 -> S.US.NEM | C18: =IF(B18="","",RTD("cqg.rtd", ,"ContractData",B18, "LongDescription",, "T")) -> Newmont Goldcorp Corporation | G18: =IFERROR(RTD("cqg.rtd", ,"ContractData",B18, "PerCentNetLastTrade",, "T")/100,"") -> 0.01085289607 | I18: =Ranked!Q13 -> S.US.OGN | J18: =IF(I18="","",RTD("cqg.rtd", ,"ContractData",I18, "LongDescription",, "T")) -> Organon & Co. | N18: =IFERROR(RTD("cqg.rtd", ,"ContractData",I18, "PerCentNetLastTrade",, "T")/100,"") -> -0.008022922636 | P18: S.IBM | Q18: =IF(P18="","",RTD("cqg.rtd", ,"ContractData",P18, "LongDescription",, "T")) -> International Business Machines | U18: =IF(P18="","",TEXT(RTD("cqg.rtd",,"ContractData",P18,"LastTradeToday",,"T"),AB18)) -> 127.02 | V18: =IF(P18="","",TEXT(RTD("cqg.rtd", ,"ContractData", P18, "NetLastTradeToday",, "T"),AB18)) -> .46 | W18: =IFERROR(IF(P18="","",RTD("cqg.rtd", ,"ContractData", P18, "PerCentNetLastTrade",, "T")/100),"") -> 0.003634639697 | X18: =IF(P18="","",TEXT(RTD("cqg.rtd", ,"ContractData", P18, "OPen",, "T"),AB18)) -> 126.60 | Y18: =IF(P18="","",TEXT(RTD("cqg.rtd", ,"ContractData", P18, "HIgh",, "T"),AB18)) -> 127.38 | Z18: =IF(P18="","",TEXT(RTD("cqg.rtd", ,"ContractData", P18, "LOw",, "T"),AB18)) -> 126.56 | AA18: =IF(P18="","",IF(LEN(RTD("cqg.rtd",,"ContractData",P18,"TickSize",,"T"))=1,0,LEN(RTD("cqg.rtd",,"ContractData",P18,"TickSize",,"T"))-2)) -> 2 | AB18: #.00
A19: 1 | B19: =Ranked!G14 -> S.US.RTX | C19: =IF(B19="","",RTD("cqg.rtd", ,"ContractData",B19, "LongDescription",, "T")) -> Raytheon Technologies Corporation | G19: =IFERROR(RTD("cqg.rtd", ,"ContractData",B19, "PerCentNetLastTrade",, "T")/100,"") -> 0.01035772514 | I19: =Ranked!Q14 -> S.US.KMX | J19: =IF(I19="","",RTD("cqg.rtd", ,"ContractData",I19, "LongDescription",, "T")) -> Carmax Inc | N19: =IFERROR(RTD("cqg.rtd", ,"ContractData",I19, "PerCentNetLastTrade",, "T")/100,"") -> -0.008279769038 | P19: S.INTC | Q19: =IF(P19="","",RTD("cqg.rtd", ,"ContractData",P19, "LongDescription",, "T")) -> Intel Corporation | U19: =IF(P19="","",TEXT(RTD("cqg.rtd",,"ContractData",P19,"LastTradeToday",,"T"),AB19)) -> 45.94 | V19: =IF(P19="","",TEXT(RTD("cqg.rtd", ,"ContractData", P19, "NetLastTradeToday",, "T"),AB19)) -> .28 | W19: =IFERROR(IF(P19="","",RTD("cqg.rtd", ,"ContractData", P19, "PerCentNetLastTrade",, "T")/100),"") -> 0.006130939347 | X19: =IF(P19="","",TEXT(RTD("cqg.rtd", ,"ContractData", P19, "OPen",, "T"),AB19)) -> 45.53 | Y19: =IF(P19="","",TEXT(RTD("cqg.rtd", ,"ContractData", P19, "HIgh",, "T"),AB19)) -> 46.08 | Z19: =IF(P19="","",TEXT(RTD("cqg.rtd", ,"ContractData", P19, "LOw",, "T"),AB19)) -> 45.52 | AA19: =IF(P19="","",IF(LEN(RTD("cqg.rtd",,"ContractData",P19,"TickSize",,"T"))=1,0,LEN(RTD("cqg.rtd",,"ContractData",P19,"TickSize",,"T"))-2)) -> 2 | AB19: #.00
A20: 1 | B20: =Ranked!G15 -> S.US.PEG | C20: =IF(B20="","",RTD("cqg.rtd", ,"ContractData",B20, "LongDescription",, "T")) -> Pub Svc Entrpr Grp Inc | G20: =IFERROR(RTD("cqg.rtd", ,"ContractData",B20, "PerCentNetLastTrade",, "T")/100,"") -> 0.007417582418 | I20: =Ranked!Q15 -> S.US.IPGP | J20: =IF(I20="","",RTD("cqg.rtd", ,"ContractData",I20, "LongDescription",, "T")) -> IPG Photonics Corporation | N20: =IFERROR(RTD("cqg.rtd", ,"ContractData",I20, "PerCentNetLastTrade",, "T")/100,"") -> -0.01130640354 | P20: S.JNJ | Q20: =IF(P20="","",RTD("cqg.rtd", ,"ContractData",P20, "LongDescription",, "T")) -> Johnson & Johnson | U20: =IF(P20="","",TEXT(RTD("cqg.rtd",,"ContractData",P20,"LastTradeToday",,"T"),AB20)) -> 180.12 | V20: =IF(P20="","",TEXT(RTD("cqg.rtd", ,"ContractData", P20, "NetLastTradeToday",, "T"),AB20)) -> .22 | W20: =IFERROR(IF(P20="","",RTD("cqg.rtd", ,"ContractData", P20, "PerCentNetLastTrade",, "T")/100),"") -> 0.001222901612 | X20: =IF(P20="","",TEXT(RTD("cqg.rtd", ,"ContractData", P20, "OPen",, "T"),AB20)) -> 179.73 | Y20: =IF(P20="","",TEXT(RTD("cqg.rtd", ,"ContractData", P20, "HIgh",, "T"),AB20)) -> 180.39 | Z20: =IF(P20="","",TEXT(RTD("cqg.rtd", ,"ContractData", P20, "LOw",, "T"),AB20)) -> 179.46 | AA20: =IF(P20="","",IF(LEN(RTD("cqg.rtd",,"ContractData",P20,"TickSize",,"T"))=1,0,LEN(RTD("cqg.rtd",,"ContractData",P20,"TickSize",,"T"))-2)) -> 2 | AB20: #.00
A21: 1 | B21: =Ranked!G16 -> S.US.PKG | C21: =IF(B21="","",RTD("cqg.rtd", ,"ContractData",B21, "LongDescription",, "T")) -> Packaging Corp of America | G21: =IFERROR(RTD("cqg.rtd", ,"ContractData",B21, "PerCentNetLastTrade",, "T")/100,"") -> 0.006931664826 | I21: =Ranked!Q16 -> S.US.WBD | J21: =IF(I21="","",RTD("cqg.rtd", ,"ContractData",I21, "LongDescription",, "T")) -> Warner Bros. Discovery, Inc. Series A | N21: =IFERROR(RTD("cqg.rtd", ,"ContractData",I21, "PerCentNetLastTrade",, "T")/100,"") -> -0.01245980707 | P21: S.JPM | Q21: =IF(P21="","",RTD("cqg.rtd", ,"ContractData",P21, "LongDescription",, "T")) -> JPMorgan Chase & Co. | U21: =IF(P21="","",TEXT(RTD("cqg.rtd",,"ContractData",P21,"LastTradeToday",,"T"),AB21)) -> 127.86 | V21: =IF(P21="","",TEXT(RTD("cqg.rtd", ,"ContractData", P21, "NetLastTradeToday",, "T"),AB21)) -> 1.76 | W21: =IFERROR(IF(P21="","",RTD("cqg.rtd", ,"ContractData", P21, "PerCentNetLastTrade",, "T")/100),"") -> 0.01395496353 | X21: =IF(P21="","",TEXT(RTD("cqg.rtd", ,"ContractData", P21, "OPen",, "T"),AB21)) -> 125.67 | Y21: =IF(P21="","",TEXT(RTD("cqg.rtd", ,"ContractData", P21, "HIgh",, "T"),AB21)) -> 128.18 | Z21: =IF(P21="","",TEXT(RTD("cqg.rtd", ,"ContractData", P21, "LOw",, "T"),AB21)) -> 125.54 | AA21: =IF(P21="","",IF(LEN(RTD("cqg.rtd",,"ContractData",P21,"TickSize",,"T"))=1,0,LEN(RTD("cqg.rtd",,"ContractData",P21,"TickSize",,"T"))-2)) -> 2 | AB21: #.00
A22: 1 | B22: =Ranked!G17 -> S.US.SRE | C22: =IF(B22="","",RTD("cqg.rtd", ,"ContractData",B22, "LongDescription",, "T")) -> Sempra | G22: =IFERROR(RTD("cqg.rtd", ,"ContractData",B22, "PerCentNetLastTrade",, "T")/100,"") -> 0.006890510949 | I22: =Ranked!Q17 -> S.US.GNRC | J22: =IF(I22="","",RTD("cqg.rtd", ,"ContractData",I22, "LongDescription",, "T")) -> Generac Holdings Inc. | N22: =IFERROR(RTD("cqg.rtd", ,"ContractData",I22, "PerCentNetLastTrade",, "T")/100,"") -> -0.01281898165 | P22: S.SPLV | Q22: =IF(P22="","",RTD("cqg.rtd", ,"ContractData",P22, "LongDescription",, "T")) -> PowerShares Exchange-Traded Fund Trust II | U22: =IF(P22="","",TEXT(RTD("cqg.rtd",,"ContractData",P22,"LastTradeToday",,"T"),AB22)) -> 68.35 | V22: =IF(P22="","",TEXT(RTD("cqg.rtd", ,"ContractData", P22, "NetLastTradeToday",, "T"),AB22)) -> .09 | W22: =IFERROR(IF(P22="","",RTD("cqg.rtd", ,"ContractData", P22, "PerCentNetLastTrade",, "T")/100),"") -> 0.001318488134 | X22: =IF(P22="","",TEXT(RTD("cqg.rtd", ,"ContractData", P22, "OPen",, "T"),AB22)) -> 68.08 | Y22: =IF(P22="","",TEXT(RTD("cqg.rtd", ,"ContractData", P22, "HIgh",, "T"),AB22)) -> 68.39 | Z22: =IF(P22="","",TEXT(RTD("cqg.rtd", ,"ContractData", P22, "LOw",, "T"),AB22)) -> 68.07 | AA22: =IF(P22="","",IF(LEN(RTD("cqg.rtd",,"ContractData",P22,"TickSize",,"T"))=1,0,LEN(RTD("cqg.rtd",,"ContractData",P22,"TickSize",,"T"))-2)) -> 2 | AB22: #.00
A23: 1 | B23: =Ranked!G18 -> S.US.WMB | C23: =IF(B23="","",RTD("cqg.rtd", ,"ContractData",B23, "LongDescription",, "T")) -> Williams Companies Inc | G23: =IFERROR(RTD("cqg.rtd", ,"ContractData",B23, "PerCentNetLastTrade",, "T")/100,"") -> 0.006193693694 | I23: =Ranked!Q18 -> S.US.PTC | J23: =IF(I23="","",RTD("cqg.rtd", ,"ContractData",I23, "LongDescription",, "T")) -> PTC Inc | N23: =IFERROR(RTD("cqg.rtd", ,"ContractData",I23, "PerCentNetLastTrade",, "T")/100,"") -> -0.01712085908 | P23: S.TSLA | Q23: =IF(P23="","",RTD("cqg.rtd", ,"ContractData",P23, "LongDescription",, "T")) -> Tesla, Inc. | U23: =IF(P23="","",TEXT(RTD("cqg.rtd",,"ContractData",P23,"LastTradeToday",,"T"),AB23)) -> 983.50 | V23: =IF(P23="","",TEXT(RTD("cqg.rtd", ,"ContractData", P23, "NetLastTradeToday",, "T"),AB23)) -> -1.50 | W23: =IFERROR(IF(P23="","",RTD("cqg.rtd", ,"ContractData", P23, "PerCentNetLastTrade",, "T")/100),"") -> -0.00152284264 | X23: =IF(P23="","",TEXT(RTD("cqg.rtd", ,"ContractData", P23, "OPen",, "T"),AB23)) -> 989.03 | Y23: =IF(P23="","",TEXT(RTD("cqg.rtd", ,"ContractData", P23, "HIgh",, "T"),AB23)) -> 996.00 | Z23: =IF(P23="","",TEXT(RTD("cqg.rtd", ,"ContractData", P23, "LOw",, "T"),AB23)) -> 978.14 | AA23: =IF(P23="","",IF(LEN(RTD("cqg.rtd",,"ContractData",P23,"TickSize",,"T"))=1,0,LEN(RTD("cqg.rtd",,"ContractData",P23,"TickSize",,"T"))-2)) -> 2 | AB23: #.00
A24: 1 | B24: =Ranked!G19 -> S.US.GIS | C24: =IF(B24="","",RTD("cqg.rtd", ,"ContractData",B24, "LongDescription",, "T")) -> General Mills Inc | G24: =IFERROR(RTD("cqg.rtd", ,"ContractData",B24, "PerCentNetLastTrade",, "T")/100,"") -> 0.004653130288 | I24: =Ranked!Q19 -> S.US.MKTX | J24: =IF(I24="","",RTD("cqg.rtd", ,"ContractData",I24, "LongDescription",, "T")) -> MarketAxcess Inc | N24: =IFERROR(RTD("cqg.rtd", ,"ContractData",I24, "PerCentNetLastTrade",, "T")/100,"") -> -0.01845922019 | O24: Chart Symbol: | R24: EP | S24: Time Frame: | U24: 5 | V24: Sessions: | W24: All | Y24: NASDAQ closes in:
A25: 1 | B25: =Ranked!G20 -> S.US.AIZ | C25: =IF(B25="","",RTD("cqg.rtd", ,"ContractData",B25, "LongDescription",, "T")) -> Assurant Inc | G25: =IFERROR(RTD("cqg.rtd", ,"ContractData",B25, "PerCentNetLastTrade",, "T")/100,"") -> 0.004437400951 | I25: =Ranked!Q20 -> S.US.BK | J25: =IF(I25="","",RTD("cqg.rtd", ,"ContractData",I25, "LongDescription",, "T")) -> Bank of New York Co Inc | N25: =IFERROR(RTD("cqg.rtd", ,"ContractData",I25, "PerCentNetLastTrade",, "T")/100,"") -> -0.02241488687 | O25: Description: | R25: =RTD("cqg.rtd", ,"ContractData",R24, "LongDescription",, "T") -> E-Mini S&P 500, Jun 22 | U25: Last: | V25: =RTD("cqg.rtd", ,"ContractData",R24, "LastTradeToday",, "T") -> 4393.75 | W25: NC: | X25: =RTD("cqg.rtd", ,"ContractData",R24, "NetChange",, "T") -> 6.25 | Y25: =IF(0.625-MOD(W2,1)<0,"Market is Closed",0.625-MOD(W2,1)) -> 0.2589351852
A26: 1 | B26: =Ranked!G21 -> S.US.ETR | C26: =IF(B26="","",RTD("cqg.rtd", ,"ContractData",B26, "LongDescription",, "T")) -> Entergy Corporation | G26: =IFERROR(RTD("cqg.rtd", ,"ContractData",B26, "PerCentNetLastTrade",, "T")/100,"") -> 0.0038647343 | I26: =Ranked!Q21 -> S.US.STT | J26: =IF(I26="","",RTD("cqg.rtd", ,"ContractData",I26, "LongDescription",, "T")) -> State Street Corp | N26: =IFERROR(RTD("cqg.rtd", ,"ContractData",I26, "PerCentNetLastTrade",, "T")/100,"") -> -0.02611792639
A27: 1 | B27: =Ranked!G22 ->  | C27: =IF(B27="","",RTD("cqg.rtd", ,"ContractData",B27, "LongDescription",, "T")) ->  | G27: =IFERROR(RTD("cqg.rtd", ,"ContractData",B27, "PerCentNetLastTrade",, "T")/100,"") ->  | I27: =Ranked!Q22 -> S.US.EMBC | J27: =IF(I27="","",RTD("cqg.rtd", ,"ContractData",I27, "LongDescription",, "T")) -> Embecta Corp. | N27: =IFERROR(RTD("cqg.rtd", ,"ContractData",I27, "PerCentNetLastTrade",, "T")/100,"") -> -0.02619555285
A28: 0 | B28: =Ranked!G23 ->  | C28: =IF(B28="","",RTD("cqg.rtd", ,"ContractData",B28, "LongDescription",, "T")) ->  | G28: =IFERROR(RTD("cqg.rtd", ,"ContractData",B28, "PerCentNetLastTrade",, "T")/100,"") ->  | I28: =Ranked!Q23 ->  | J28: =IF(I28="","",RTD("cqg.rtd", ,"ContractData",I28, "LongDescription",, "T")) ->  | N28: =IFERROR(RTD("cqg.rtd", ,"ContractData",I28, "PerCentNetLastTrade",, "T")/100,"") -> 
A29: 0 | B29: =Ranked!G24 ->  | C29: =IF(B29="","",RTD("cqg.rtd", ,"ContractData",B29, "LongDescription",, "T")) ->  | G29: =IFERROR(RTD("cqg.rtd", ,"ContractData",B29, "PerCentNetLastTrade",, "T")/100,"") ->  | I29: =Ranked!Q24 ->  | J29: =IF(I29="","",RTD("cqg.rtd", ,"ContractData",I29, "LongDescription",, "T")) ->  | N29: =IFERROR(RTD("cqg.rtd", ,"ContractData",I29, "PerCentNetLastTrade",, "T")/100,"") -> 
A30: 0 | B30: =Ranked!G25 ->  | C30: =IF(B30="","",RTD("cqg.rtd", ,"ContractData",B30, "LongDescription",, "T")) ->  | G30: =IFERROR(RTD("cqg.rtd", ,"ContractData",B30, "PerCentNetLastTrade",, "T")/100,"") ->  | I30: =Ranked!Q25 ->  | J30: =IF(I30="","",RTD("cqg.rtd", ,"ContractData",I30, "LongDescription",, "T")) ->  | N30: =IFERROR(RTD("cqg.rtd", ,"ContractData",I30, "PerCentNetLastTrade",, "T")/100,"") -> 
A31: 0 | B31: =Ranked!G26 ->  | C31: =IF(B31="","",RTD("cqg.rtd", ,"ContractData",B31, "LongDescription",, "T")) ->  | G31: =IFERROR(RTD("cqg.rtd", ,"ContractData",B31, "PerCentNetLastTrade",, "T")/100,"") ->  | I31: =Ranked!Q26 ->  | J31: =IF(I31="","",RTD("cqg.rtd", ,"ContractData",I31, "LongDescription",, "T")) ->  | N31: =IFERROR(RTD("cqg.rtd", ,"ContractData",I31, "PerCentNetLastTrade",, "T")/100,"") -> 
A32: 0 | B32: =Ranked!G27 ->  | C32: =IF(B32="","",RTD("cqg.rtd", ,"ContractData",B32, "LongDescription",, "T")) ->  | G32: =IFERROR(RTD("cqg.rtd", ,"ContractData",B32, "PerCentNetLastTrade",, "T")/100,"") ->  | I32: =Ranked!Q27 ->  | J32: =IF(I32="","",RTD("cqg.rtd", ,"ContractData",I32, "LongDescription",, "T")) ->  | N32: =IFERROR(RTD("cqg.rtd", ,"ContractData",I32, "PerCentNetLastTrade",, "T")/100,"") -> 
A33: 0 | B33: =Ranked!G28 ->  | C33: =IF(B33="","",RTD("cqg.rtd", ,"ContractData",B33, "LongDescription",, "T")) ->  | G33: =IFERROR(RTD("cqg.rtd", ,"ContractData",B33, "PerCentNetLastTrade",, "T")/100,"") ->  | I33: =Ranked!Q28 ->  | J33: =IF(I33="","",RTD("cqg.rtd", ,"ContractData",I33, "LongDescription",, "T")) ->  | N33: =IFERROR(RTD("cqg.rtd", ,"ContractData",I33, "PerCentNetLastTrade",, "T")/100,"") -> 
A34: 0 | B34: =Ranked!G29 ->  | C34: =IF(B34="","",RTD("cqg.rtd", ,"ContractData",B34, "LongDescription",, "T")) ->  | G34: =IFERROR(RTD("cqg.rtd", ,"ContractData",B34, "PerCentNetLastTrade",, "T")/100,"") ->  | I34: =Ranked!Q29 ->  | J34: =IF(I34="","",RTD("cqg.rtd", ,"ContractData",I34, "LongDescription",, "T")) ->  | N34: =IFERROR(RTD("cqg.rtd", ,"ContractData",I34, "PerCentNetLastTrade",, "T")/100,"") -> 
A35: 0 | B35: =Ranked!G30 ->  | C35: =IF(B35="","",RTD("cqg.rtd", ,"ContractData",B35, "LongDescription",, "T")) ->  | G35: =IFERROR(RTD("cqg.rtd", ,"ContractData",B35, "PerCentNetLastTrade",, "T")/100,"") ->  | I35: =Ranked!Q30 ->  | J35: =IF(I35="","",RTD("cqg.rtd", ,"ContractData",I35, "LongDescription",, "T")) ->  | N35: =IFERROR(RTD("cqg.rtd", ,"ContractData",I35, "PerCentNetLastTrade",, "T")/100,"") -> 
A36: 0 | B36: =Ranked!G31 ->  | C36: =IF(B36="","",RTD("cqg.rtd", ,"ContractData",B36, "LongDescription",, "T")) ->  | G36: =IFERROR(RTD("cqg.rtd", ,"ContractData",B36, "PerCentNetLastTrade",, "T")/100,"") ->  | I36: =Ranked!Q31 ->  | J36: =IF(I36="","",RTD("cqg.rtd", ,"ContractData",I36, "LongDescription",, "T")) ->  | N36: =IFERROR(RTD("cqg.rtd", ,"ContractData",I36, "PerCentNetLastTrade",, "T")/100,"") -> 
A37: 0 | B37: =Ranked!G32 ->  | C37: =IF(B37="","",RTD("cqg.rtd", ,"ContractData",B37, "LongDescription",, "T")) ->  | G37: =IFERROR(RTD("cqg.rtd", ,"ContractData",B37, "PerCentNetLastTrade",, "T")/100,"") ->  | I37: =Ranked!Q32 ->  | J37: =IF(I37="","",RTD("cqg.rtd", ,"ContractData",I37, "LongDescription",, "T")) ->  | N37: =IFERROR(RTD("cqg.rtd", ,"ContractData",I37, "PerCentNetLastTrade",, "T")/100,"") -> 
A38: 0 | B38: =Ranked!G33 ->  | C38: =IF(B38="","",RTD("cqg.rtd", ,"ContractData",B38, "LongDescription",, "T")) ->  | G38: =IFERROR(RTD("cqg.rtd", ,"ContractData",B38, "PerCentNetLastTrade",, "T")/100,"") ->  | I38: =Ranked!Q33 ->  | J38: =IF(I38="","",RTD("cqg.rtd", ,"ContractData",I38, "LongDescription",, "T")) ->  | N38: =IFERROR(RTD("cqg.rtd", ,"ContractData",I38, "PerCentNetLastTrade",, "T")/100,"") -> 
A39: 0 | B39: =Ranked!G34 ->  | C39: =IF(B39="","",RTD("cqg.rtd", ,"ContractData",B39, "LongDescription",, "T")) ->  | G39: =IFERROR(RTD("cqg.rtd", ,"ContractData",B39, "PerCentNetLastTrade",, "T")/100,"") ->  | I39: =Ranked!Q34 ->  | J39: =IF(I39="","",RTD("cqg.rtd", ,"ContractData",I39, "LongDescription",, "T")) ->  | N39: =IFERROR(RTD("cqg.rtd", ,"ContractData",I39, "PerCentNetLastTrade",, "T")/100,"") -> 
A40: 0 | B40: =Ranked!G35 ->  | C40: =IF(B40="","",RTD("cqg.rtd", ,"ContractData",B40, "LongDescription",, "T")) ->  | G40: =IFERROR(RTD("cqg.rtd", ,"ContractData",B40, "PerCentNetLastTrade",, "T")/100,"") ->  | I40: =Ranked!Q35 ->  | J40: =IF(I40="","",RTD("cqg.rtd", ,"ContractData",I40, "LongDescription",, "T")) ->  | N40: =IFERROR(RTD("cqg.rtd", ,"ContractData",I40, "PerCentNetLastTrade",, "T")/100,"") -> 
A41: 0 | B41: =Ranked!G36 ->  | C41: =IF(B41="","",RTD("cqg.rtd", ,"ContractData",B41, "LongDescription",, "T")) ->  | G41: =IFERROR(RTD("cqg.rtd", ,"ContractData",B41, "PerCentNetLastTrade",, "T")/100,"") ->  | I41: =Ranked!Q36 ->  | J41: =IF(I41="","",RTD("cqg.rtd", ,"ContractData",I41, "LongDescription",, "T")) ->  | N41: =IFERROR(RTD("cqg.rtd", ,"ContractData",I41, "PerCentNetLastTrade",, "T")/100,"") -> 
A42: 0 | B42: =Ranked!G37 ->  | C42: =IF(B42="","",RTD("cqg.rtd", ,"ContractData",B42, "LongDescription",, "T")) ->  | G42: =IFERROR(RTD("cqg.rtd", ,"ContractData",B42, "PerCentNetLastTrade",, "T")/100,"") ->  | I42: =Ranked!Q37 ->  | J42: =IF(I42="","",RTD("cqg.rtd", ,"ContractData",I42, "LongDescription",, "T")) ->  | N42: =IFERROR(RTD("cqg.rtd", ,"ContractData",I42, "PerCentNetLastTrade",, "T")/100,"") -> 
A43: 0 | B43: =Ranked!G38 ->  | C43: =IF(B43="","",RTD("cqg.rtd", ,"ContractData",B43, "LongDescription",, "T")) ->  | G43: =IFERROR(RTD("cqg.rtd", ,"ContractData",B43, "PerCentNetLastTrade",, "T")/100,"") ->  | I43: =Ranked!Q38 ->  | J43: =IF(I43="","",RTD("cqg.rtd", ,"ContractData",I43, "LongDescription",, "T")) ->  | N43: =IFERROR(RTD("cqg.rtd", ,"ContractData",I43, "PerCentNetLastTrade",, "T")/100,"") -> 
A44: 0 | B44: =Ranked!G39 ->  | C44: =IF(B44="","",RTD("cqg.rtd", ,"ContractData",B44, "LongDescription",, "T")) ->  | G44: =IFERROR(RTD("cqg.rtd", ,"ContractData",B44, "PerCentNetLastTrade",, "T")/100,"") ->  | I44: =Ranked!Q39 ->  | J44: =IF(I44="","",RTD("cqg.rtd", ,"ContractData",I44, "LongDescription",, "T")) ->  | N44: =IFERROR(RTD("cqg.rtd", ,"ContractData",I44, "PerCentNetLastTrade",, "T")/100,"") -> 
A45: 0 | B45: =Ranked!G40 ->  | C45: =IF(B45="","",RTD("cqg.rtd", ,"ContractData",B45, "LongDescription",, "T")) ->  | G45: =IFERROR(RTD("cqg.rtd", ,"ContractData",B45, "PerCentNetLastTrade",, "T")/100,"") ->  | I45: =Ranked!Q40 ->  | J45: =IF(I45="","",RTD("cqg.rtd", ,"ContractData",I45, "LongDescription",, "T")) ->  | N45: =IFERROR(RTD("cqg.rtd", ,"ContractData",I45, "PerCentNetLastTrade",, "T")/100,"") -> 
A46: 0 | B46: =Ranked!G41 ->  | C46: =IF(B46="","",RTD("cqg.rtd", ,"ContractData",B46, "LongDescription",, "T")) ->  | G46: =IFERROR(RTD("cqg.rtd", ,"ContractData",B46, "PerCentNetLastTrade",, "T")/100,"") ->  | I46: =Ranked!Q41 ->  | J46: =IF(I46="","",RTD("cqg.rtd", ,"ContractData",I46, "LongDescription",, "T")) ->  | N46: =IFERROR(RTD("cqg.rtd", ,"ContractData",I46, "PerCentNetLastTrade",, "T")/100,"") -> 
C47: Copyright © 2019 | I47: =IF(OR(I46<>"",B46<>""),"Please check Ranked Tab for a full view","") ->  | X47: Designed by Thom Hartle

Sheet Data (hidden)
A1: Symbol | B1: =Main!D5 -> 52 | C1: =Main!G5 -> W | H1: 0 | I1: 0 | S1: UP
A2: =Symbols!A2 -> S.US.A | B2: =IFERROR(RTD("cqg.rtd",,"StudyData",A2,"Bar",, "High",$C$1,"0",,,,,"T"),"") -> 126.75 | C2: =IFERROR(RTD("cqg.rtd",,"StudyData",A2,"Bar",, "Low",$C$1,"0",,,,,"T"),"") -> 126 | D2: =IFERROR(RTD("cqg.rtd",,"StudyData","HiLevel("&A2&",Period1:="&$B$1&",AllowGaps:=0,InputChoice1:=High,InputChoice3:=High)","Bar",, "Close",$C$1,"-1",,,,,"T"),"") -> 179.57 | E2: =IFERROR(RTD("cqg.rtd",,"StudyData","LoLevel("&A2&",Period2:="&$B$1&",AllowGaps:=0,InputChoice2:=Low,InputChoice4:=Low)","Bar",, "Close",$C$1,"-1",,,,,"T"),"") -> 123.06 | F2: =IF(B2="",0,IFERROR(IF(B2>D2,1,0),"")) -> 0 | G2: =IF(C2="",0,IFERROR(IF(C2<E2,1,0),"")) -> 0 | H2: =IF(F2=1,INT(H1+1),H1+0.001) -> 0.001 | I2: =IF(G2=1,INT(I1+1),I1+0.001) -> 0.001 | J2: =A2 -> S.US.A | K2: =RTD("cqg.rtd", ,"ContractData",A2, "PerCentNetLastTrade",, "T")/100 -> -0.00347991142 | L2: =RANK($K2,$K$2:K$506)+COUNTIF($K$2:K2,K2)-1 ->  | M2: =J2 -> S.US.A | N2: 1 | O2: =IFERROR(VLOOKUP(N2,$L$2:$M$506,2,FALSE),"") ->  | P2: =RTD("cqg.rtd", ,"ContractData",O2, "PerCentNetLastTrade",, "T")/100 ->  | Q2: =VLOOKUP(O2,$A$2:$H$506,8,FALSE) ->  | S2: 1 | T2: =IFERROR(VLOOKUP(S2,$H$2:$J$506,3,FALSE),"") -> S.US.AIZ
A3: =Symbols!A3 -> S.US.AAL | B3: =IFERROR(RTD("cqg.rtd",,"StudyData",A3,"Bar",, "High",$C$1,"0",,,,,"T"),"") -> 18.97 | C3: =IFERROR(RTD("cqg.rtd",,"StudyData",A3,"Bar",, "Low",$C$1,"0",,,,,"T"),"") -> 18.65 | D3: =IFERROR(RTD("cqg.rtd",,"StudyData","HiLevel("&A3&",Period1:="&$B$1&",AllowGaps:=0,InputChoice1:=High,InputChoice3:=High)","Bar",, "Close",$C$1,"-1",,,,,"T"),"") -> 26.04 | E3: =IFERROR(RTD("cqg.rtd",,"StudyData","LoLevel("&A3&",Period2:="&$B$1&",AllowGaps:=0,InputChoice2:=Low,InputChoice4:=Low)","Bar",, "Close",$C$1,"-1",,,,,"T"),"") -> 12.44 | F3: =IF(B3="",0,IFERROR(IF(B3>D3,1,0),"")) -> 0 | G3: =IF(C3="",0,IFERROR(IF(C3<E3,1,0),"")) -> 0 | H3: =IF(F3=1,INT(H2+1),H2+0.001) -> 0.002 | I3: 0.002 | J3: =A3 -> S.US.AAL | K3: =RTD("cqg.rtd", ,"ContractData",A3, "PerCentNetLastTrade",, "T")/100 -> -0.002631578947 | L3: =RANK($K3,$K$2:K$506)+COUNTIF($K$2:K3,K3)-1 ->  | M3: =J3 -> S.US.AAL | N3: =N2+1 -> 2 | P3: =RTD("cqg.rtd", ,"ContractData",O3, "PerCentNetLastTrade",, "T")/100 ->  | S3: =S2+1 -> 2 | T3: S.US.APA
A4: =Symbols!A4 -> S.US.AAP | B4: =IFERROR(RTD("cqg.rtd",,"StudyData",A4,"Bar",, "High",$C$1,"0",,,,,"T"),"") -> 220 | C4: =IFERROR(RTD("cqg.rtd",,"StudyData",A4,"Bar",, "Low",$C$1,"0",,,,,"T"),"") -> 217.38 | D4: =IFERROR(RTD("cqg.rtd",,"StudyData","HiLevel("&A4&",Period1:="&$B$1&",AllowGaps:=0,InputChoice1:=High,InputChoice3:=High)","Bar",, "Close",$C$1,"-1",,,,,"T"),"") -> 244.55 | E4: =IFERROR(RTD("cqg.rtd",,"StudyData","LoLevel("&A4&",Period2:="&$B$1&",AllowGaps:=0,InputChoice2:=Low,InputChoice4:=Low)","Bar",, "Close",$C$1,"-1",,,,,"T"),"") -> 187.16 | F4: =IF(B4="",0,IFERROR(IF(B4>D4,1,0),"")) -> 0 | G4: 0 | H4: 0.003 | I4: 0.003 | J4: S.US.AAP | K4: =RTD("cqg.rtd", ,"ContractData",A4, "PerCentNetLastTrade",, "T")/100 -> 0.006036217304 | L4: =RANK($K4,$K$2:K$506)+COUNTIF($K$2:K4,K4)-1 ->  | M4: =J4 -> S.US.AAP | N4: =N3+1 -> 3 | P4: =RTD("cqg.rtd", ,"ContractData",O4, "PerCentNetLastTrade",, "T")/100 ->  | S4: =S3+1 -> 3 | T4: S.US.BF.B
A5: =Symbols!A5 -> S.US.AAPL | B5: =IFERROR(RTD("cqg.rtd",,"StudyData",A5,"Bar",, "High",$C$1,"0",,,,,"T"),"") -> 165.73 | C5: =IFERROR(RTD("cqg.rtd",,"StudyData",A5,"Bar",, "Low",$C$1,"0",,,,,"T"),"") -> 163.57 | D5: =IFERROR(RTD("cqg.rtd",,"StudyData","HiLevel("&A5&",Period1:="&$B$1&",AllowGaps:=0,InputChoice1:=High,InputChoice3:=High)","Bar",, "Close",$C$1,"-1",,,,,"T"),"") -> 182.94 | E5: =IFERROR(RTD("cqg.rtd",,"StudyData","LoLevel("&A5&",Period2:="&$B$1&",AllowGaps:=0,InputChoice2:=Low,InputChoice4:=Low)","Bar",, "Close",$C$1,"-1",,,,,"T"),"") -> 122.25 | F5: 0 | G5: 0 | H5: 0.004 | I5: 0.004 | J5: S.US.AAPL | K5: =RTD("cqg.rtd", ,"ContractData",A5, "PerCentNetLastTrade",, "T")/100 -> -0.002177990199 | L5: =RANK($K5,$K$2:K$506)+COUNTIF($K$2:K5,K5)-1 ->  | M5: S.US.AAPL | N5: 4 | P5: =RTD("cqg.rtd", ,"ContractData",O5, "PerCentNetLastTrade",, "T")/100 ->  | S5: 4 | T5: S.US.BRK.B
A6: =Symbols!A6 -> S.US.ABBV | B6: =IFERROR(RTD("cqg.rtd",,"StudyData",A6,"Bar",, "High",$C$1,"0",,,,,"T"),"") -> 162.79 | C6: =IFERROR(RTD("cqg.rtd",,"StudyData",A6,"Bar",, "Low",$C$1,"0",,,,,"T"),"") -> 160.86 | D6: =IFERROR(RTD("cqg.rtd",,"StudyData","HiLevel("&A6&",Period1:="&$B$1&",AllowGaps:=0,InputChoice1:=High,InputChoice3:=High)","Bar",, "Close",$C$1,"-1",,,,,"T"),"") -> 175.91 | E6: =IFERROR(RTD("cqg.rtd",,"StudyData","LoLevel("&A6&",Period2:="&$B$1&",AllowGaps:=0,InputChoice2:=Low,InputChoice4:=Low)","Bar",, "Close",$C$1,"-1",,,,,"T"),"") -> 105.56 | F6: 0 | G6: 0 | H6: 0.005 | I6: 0.005 | J6: S.US.ABBV | K6: =RTD("cqg.rtd", ,"ContractData",A6, "PerCentNetLastTrade",, "T")/100 -> -0.007023596821 | L6: =RANK($K6,$K$2:K$506)+COUNTIF($K$2:K6,K6)-1 ->  | M6: S.US.ABBV | N6: 5 | P6: =RTD("cqg.rtd", ,"ContractData",O6, "PerCentNetLastTrade",, "T")/100 ->  | S6: 5 | T6: S.US.CTRA
A7: =Symbols!A7 -> S.US.ABC | B7: =IFERROR(RTD("cqg.rtd",,"StudyData",A7,"Bar",, "High",$C$1,"0",,,,,"T"),"") -> 162 | C7: =IFERROR(RTD("cqg.rtd",,"StudyData",A7,"Bar",, "Low",$C$1,"0",,,,,"T"),"") -> 160.34 | D7: =IFERROR(RTD("cqg.rtd",,"StudyData","HiLevel("&A7&",Period1:="&$B$1&",AllowGaps:=0,InputChoice1:=High,InputChoice3:=High)","Bar",, "Close",$C$1,"-1",,,,,"T"),"") -> 166.9 | E7: =IFERROR(RTD("cqg.rtd",,"StudyData","LoLevel("&A7&",Period2:="&$B$1&",AllowGaps:=0,InputChoice2:=Low,InputChoice4:=Low)","Bar",, "Close",$C$1,"-1",,,,,"T"),"") -> 111.34 | F7: 0 | G7: 0 | H7: 0.006 | I7: 0.006 | J7: S.US.ABC | K7: =RTD("cqg.rtd", ,"ContractData",A7, "PerCentNetLastTrade",, "T")/100 -> 0.003473729917 | L7: =RANK($K7,$K$2:K$506)+COUNTIF($K$2:K7,K7)-1 ->  | M7: S.US.ABC | N7: 6 | P7: =RTD("cqg.rtd", ,"ContractData",O7, "PerCentNetLastTrade",, "T")/100 ->  | S7: 6 | T7: S.US.DE
A8: =Symbols!A8 -> S.US.ABMD | B8: =IFERROR(RTD("cqg.rtd",,"StudyData",A8,"Bar",, "High",$C$1,"0",,,,,"T"),"") -> 307.24 | C8: =IFERROR(RTD("cqg.rtd",,"StudyData",A8,"Bar",, "Low",$C$1,"0",,,,,"T"),"") -> 303.71 | D8: =IFERROR(RTD("cqg.rtd",,"StudyData","HiLevel("&A8&",Period1:="&$B$1&",AllowGaps:=0,InputChoice1:=High,InputChoice3:=High)","Bar",, "Close",$C$1,"-1",,,,,"T"),"") -> 379.29 | E8: =IFERROR(RTD("cqg.rtd",,"StudyData","LoLevel("&A8&",Period2:="&$B$1&",AllowGaps:=0,InputChoice2:=Low,InputChoice4:=Low)","Bar",, "Close",$C$1,"-1",,,,,"T"),"") -> 261.27 | F8: 0 | G8: 0 | H8: 0.007 | I8: 0.007 | J8: S.US.ABMD | K8: =RTD("cqg.rtd", ,"ContractData",A8, "PerCentNetLastTrade",, "T")/100 -> -0.002646366963 | L8: =RANK($K8,$K$2:K$506)+COUNTIF($K$2:K8,K8)-1 ->  | M8: S.US.ABMD | N8: 7 | P8: =RTD("cqg.rtd", ,"ContractData",O8, "PerCentNetLastTrade",, "T")/100 ->  | S8: 7 | T8: S.US.ETR
A9: =Symbols!A9 -> S.US.ABT | B9: =IFERROR(RTD("cqg.rtd",,"StudyData",A9,"Bar",, "High",$C$1,"0",,,,,"T"),"") -> 118.33 | C9: =IFERROR(RTD("cqg.rtd",,"StudyData",A9,"Bar",, "Low",$C$1,"0",,,,,"T"),"") -> 117.02 | D9: =IFERROR(RTD("cqg.rtd",,"StudyData","HiLevel("&A9&",Period1:="&$B$1&",AllowGaps:=0,InputChoice1:=High,InputChoice3:=High)","Bar",, "Close",$C$1,"-1",,,,,"T"),"") -> 142.6 | E9: =IFERROR(RTD("cqg.rtd",,"StudyData","LoLevel("&A9&",Period2:="&$B$1&",AllowGaps:=0,InputChoice2:=Low,InputChoice4:=Low)","Bar",, "Close",$C$1,"-1",,,,,"T"),"") -> 105.36 | F9: 0 | G9: 0 | H9: 0.008 | I9: 0.008 | J9: S.US.ABT | K9: =RTD("cqg.rtd", ,"ContractData",A9, "PerCentNetLastTrade",, "T")/100 -> -0.0005098139179 | L9: =RANK($K9,$K$2:K$506)+COUNTIF($K$2:K9,K9)-1 ->  | M9: S.US.ABT | N9: 8 | P9: =RTD("cqg.rtd", ,"ContractData",O9, "PerCentNetLastTrade",, "T")/100 ->  | S9: 8 | T9: S.US.GIS
A10: =Symbols!A10 -> S.US.ACN | B10: =IFERROR(RTD("cqg.rtd",,"StudyData",A10,"Bar",, "High",$C$1,"0",,,,,"T"),"") -> 321 | C10: =IFERROR(RTD("cqg.rtd",,"StudyData",A10,"Bar",, "Low",$C$1,"0",,,,,"T"),"") -> 318.47 | D10: =IFERROR(RTD("cqg.rtd",,"StudyData","HiLevel("&A10&",Period1:="&$B$1&",AllowGaps:=0,InputChoice1:=High,InputChoice3:=High)","Bar",, "Close",$C$1,"-1",,,,,"T"),"") -> 417.37 | E10: =IFERROR(RTD("cqg.rtd",,"StudyData","LoLevel("&A10&",Period2:="&$B$1&",AllowGaps:=0,InputChoice2:=Low,InputChoice4:=Low)","Bar",, "Close",$C$1,"-1",,,,,"T"),"") -> 276.88 | F10: 0 | G10: 0 | H10: 0.009 | I10: 0.009 | J10: S.US.ACN | K10: =RTD("cqg.rtd", ,"ContractData",A10, "PerCentNetLastTrade",, "T")/100 -> -0.001846808777 | L10: =RANK($K10,$K$2:K$506)+COUNTIF($K$2:K10,K10)-1 ->  | M10: S.US.ACN | N10: 9 | P10: =RTD("cqg.rtd", ,"ContractData",O10, "PerCentNetLastTrade",, "T")/100 ->  | S10: 9 | T10: S.US.HAL
A11: =Symbols!A11 -> S.US.ADBE | B11: =IFERROR(RTD("cqg.rtd",,"StudyData",A11,"Bar",, "High",$C$1,"0",,,,,"T"),"") -> 423.4 | C11: =IFERROR(RTD("cqg.rtd",,"StudyData",A11,"Bar",, "Low",$C$1,"0",,,,,"T"),"") -> 418.73 | D11: =IFERROR(RTD("cqg.rtd",,"StudyData","HiLevel("&A11&",Period1:="&$B$1&",AllowGaps:=0,InputChoice1:=High,InputChoice3:=High)","Bar",, "Close",$C$1,"-1",,,,,"T"),"") -> 699.54 | E11: =IFERROR(RTD("cqg.rtd",,"StudyData","LoLevel("&A11&",Period2:="&$B$1&",AllowGaps:=0,InputChoice2:=Low,InputChoice4:=Low)","Bar",, "Close",$C$1,"-1",,,,,"T"),"") -> 407.94 | F11: 0 | G11: 0 | H11: 0.01 | I11: 0.01 | J11: S.US.ADBE | K11: =RTD("cqg.rtd", ,"ContractData",A11, "PerCentNetLastTrade",, "T")/100 -> -0.002211968414 | L11: =RANK($K11,$K$2:K$506)+COUNTIF($K$2:K11,K11)-1 ->  | M11: S.US.ADBE | N11: 10 | P11: =RTD("cqg.rtd", ,"ContractData",O11, "PerCentNetLastTrade",, "T")/100 ->  | S11: 10 | T11: S.US.HES
A12: =Symbols!A12 -> S.US.ADI | B12: =IFERROR(RTD("cqg.rtd",,"StudyData",A12,"Bar",, "High",$C$1,"0",,,,,"T"),"") -> 158.41 | C12: =IFERROR(RTD("cqg.rtd",,"StudyData",A12,"Bar",, "Low",$C$1,"0",,,,,"T"),"") -> 156.17 | D12: =IFERROR(RTD("cqg.rtd",,"StudyData","HiLevel("&A12&",Period1:="&$B$1&",AllowGaps:=0,InputChoice1:=High,InputChoice3:=High)","Bar",, "Close",$C$1,"-1",,,,,"T"),"") -> 191.95 | E12: =IFERROR(RTD("cqg.rtd",,"StudyData","LoLevel("&A12&",Period2:="&$B$1&",AllowGaps:=0,InputChoice2:=Low,InputChoice4:=Low)","Bar",, "Close",$C$1,"-1",,,,,"T"),"") -> 143.81 | F12: 0 | G12: 0 | H12: 0.011 | I12: 0.011 | J12: S.US.ADI | K12: =RTD("cqg.rtd", ,"ContractData",A12, "PerCentNetLastTrade",, "T")/100 -> 0.008306709265 | L12: =RANK($K12,$K$2:K$506)+COUNTIF($K$2:K12,K12)-1 ->  | M12: S.US.ADI | N12: 11 | P12: =RTD("cqg.rtd", ,"ContractData",O12, "PerCentNetLastTrade",, "T")/100 ->  | S12: 11 | T12: S.US.MOS
A13: =Symbols!A13 -> S.US.ADM | B13: =IFERROR(RTD("cqg.rtd",,"StudyData",A13,"Bar",, "High",$C$1,"0",,,,,"T"),"") -> 97.15 | C13: =IFERROR(RTD("cqg.rtd",,"StudyData",A13,"Bar",, "Low",$C$1,"0",,,,,"T"),"") -> 95.31 | D13: =IFERROR(RTD("cqg.rtd",,"StudyData","HiLevel("&A13&",Period1:="&$B$1&",AllowGaps:=0,InputChoice1:=High,InputChoice3:=High)","Bar",, "Close",$C$1,"-1",,,,,"T"),"") -> 97.64 | E13: =IFERROR(RTD("cqg.rtd",,"StudyData","LoLevel("&A13&",Period2:="&$B$1&",AllowGaps:=0,InputChoice2:=Low,InputChoice4:=Low)","Bar",, "Close",$C$1,"-1",,,,,"T"),"") -> 56.91 | F13: 0 | G13: 0 | H13: 0.012 | I13: 0.012 | J13: S.US.ADM | K13: =RTD("cqg.rtd", ,"ContractData",A13, "PerCentNetLastTrade",, "T")/100 -> 0.001754204932 | L13: =RANK($K13,$K$2:K$506)+COUNTIF($K$2:K13,K13)-1 ->  | M13: S.US.ADM | N13: 12 | P13: =RTD("cqg.rtd", ,"ContractData",O13, "PerCentNetLastTrade",, "T")/100 ->  | S13: 12 | T13: S.US.MPC
A14: =Symbols!A14 -> S.US.ADP | B14: =IFERROR(RTD("cqg.rtd",,"StudyData",A14,"Bar",, "High",$C$1,"0",,,,,"T"),"") -> 229.78 | C14: =IFERROR(RTD("cqg.rtd",,"StudyData",A14,"Bar",, "Low",$C$1,"0",,,,,"T"),"") -> 228 | D14: =IFERROR(RTD("cqg.rtd",,"StudyData","HiLevel("&A14&",Period1:="&$B$1&",AllowGaps:=0,InputChoice1:=High,InputChoice3:=High)","Bar",, "Close",$C$1,"-1",,,,,"T"),"") -> 248.96 | E14: =IFERROR(RTD("cqg.rtd",,"StudyData","LoLevel("&A14&",Period2:="&$B$1&",AllowGaps:=0,InputChoice2:=Low,InputChoice4:=Low)","Bar",, "Close",$C$1,"-1",,,,,"T"),"") -> 184.85 | F14: 0 | G14: 0 | H14: 0.013 | I14: 0.013 | J14: S.US.ADP | K14: =RTD("cqg.rtd", ,"ContractData",A14, "PerCentNetLastTrade",, "T")/100 -> -0.0007853403141 | L14: =RANK($K14,$K$2:K$506)+COUNTIF($K$2:K14,K14)-1 ->  | M14: S.US.ADP | N14: 13 | P14: =RTD("cqg.rtd", ,"ContractData",O14, "PerCentNetLastTrade",, "T")/100 ->  | S14: 13 | T14: S.US.MRO
A15: =Symbols!A15 -> S.US.ADSK | B15: =IFERROR(RTD("cqg.rtd",,"StudyData",A15,"Bar",, "High",$C$1,"0",,,,,"T"),"") -> 196.35 | C15: =IFERROR(RTD("cqg.rtd",,"StudyData",A15,"Bar",, "Low",$C$1,"0",,,,,"T"),"") -> 193.8 | D15: =IFERROR(RTD("cqg.rtd",,"StudyData","HiLevel("&A15&",Period1:="&$B$1&",AllowGaps:=0,InputChoice1:=High,InputChoice3:=High)","Bar",, "Close",$C$1,"-1",,,,,"T"),"") -> 344.39 | E15: =IFERROR(RTD("cqg.rtd",,"StudyData","LoLevel("&A15&",Period2:="&$B$1&",AllowGaps:=0,InputChoice2:=Low,InputChoice4:=Low)","Bar",, "Close",$C$1,"-1",,,,,"T"),"") -> 186.29 | F15: 0 | G15: 0 | H15: 0.014 | I15: 0.014 | J15: S.US.ADSK | K15: =RTD("cqg.rtd", ,"ContractData",A15, "PerCentNetLastTrade",, "T")/100 -> -0.01453769125 | L15: =RANK($K15,$K$2:K$506)+COUNTIF($K$2:K15,K15)-1 ->  | M15: S.US.ADSK | N15: 14 | P15: =RTD("cqg.rtd", ,"ContractData",O15, "PerCentNetLastTrade",, "T")/100 ->  | S15: 14 | T15: S.US.NEM
A16: =Symbols!A16 -> S.US.AEE | B16: =IFERROR(RTD("cqg.rtd",,"StudyData",A16,"Bar",, "High",$C$1,"0",,,,,"T"),"") -> 97 | C16: =IFERROR(RTD("cqg.rtd",,"StudyData",A16,"Bar",, "Low",$C$1,"0",,,,,"T"),"") -> 96.22 | D16: =IFERROR(RTD("cqg.rtd",,"StudyData","HiLevel("&A16&",Period1:="&$B$1&",AllowGaps:=0,InputChoice1:=High,InputChoice3:=High)","Bar",, "Close",$C$1,"-1",,,,,"T"),"") -> 97.61 | E16: =IFERROR(RTD("cqg.rtd",,"StudyData","LoLevel("&A16&",Period2:="&$B$1&",AllowGaps:=0,InputChoice2:=Low,InputChoice4:=Low)","Bar",, "Close",$C$1,"-1",,,,,"T"),"") -> 79.35 | F16: 0 | G16: 0 | H16: 0.015 | I16: 0.015 | J16: S.US.AEE | K16: =RTD("cqg.rtd", ,"ContractData",A16, "PerCentNetLastTrade",, "T")/100 -> 0.006753246753 | L16: =RANK($K16,$K$2:K$506)+COUNTIF($K$2:K16,K16)-1 ->  | M16: S.US.AEE | N16: 15 | P16: =RTD("cqg.rtd", ,"ContractData",O16, "PerCentNetLastTrade",, "T")/100 ->  | S16: 15 | T16: S.US.NUE
A17: =Symbols!A17 -> S.US.AEP | B17: =IFERROR(RTD("cqg.rtd",,"StudyData",A17,"Bar",, "High",$C$1,"0",,,,,"T"),"") -> 102.56 | C17: =IFERROR(RTD("cqg.rtd",,"StudyData",A17,"Bar",, "Low",$C$1,"0",,,,,"T"),"") -> 102.14 | D17: =IFERROR(RTD("cqg.rtd",,"StudyData","HiLevel("&A17&",Period1:="&$B$1&",AllowGaps:=0,InputChoice1:=High,InputChoice3:=High)","Bar",, "Close",$C$1,"-1",,,,,"T"),"") -> 104.81 | E17: =IFERROR(RTD("cqg.rtd",,"StudyData","LoLevel("&A17&",Period2:="&$B$1&",AllowGaps:=0,InputChoice2:=Low,InputChoice4:=Low)","Bar",, "Close",$C$1,"-1",,,,,"T"),"") -> 80.22 | F17: 0 | G17: 0 | H17: 0.016 | I17: 0.016 | J17: S.US.AEP | K17: =RTD("cqg.rtd", ,"ContractData",A17, "PerCentNetLastTrade",, "T")/100 -> 0.004018032144 | L17: =RANK($K17,$K$2:K$506)+COUNTIF($K$2:K17,K17)-1 ->  | M17: S.US.AEP | N17: 16 | P17: =RTD("cqg.rtd", ,"ContractData",O17, "PerCentNetLastTrade",, "T")/100 ->  | S17: 16 | T17: S.US.OKE
A18: =Symbols!A18 -> S.US.AES | B18: =IFERROR(RTD("cqg.rtd",,"StudyData",A18,"Bar",, "High",$C$1,"0",,,,,"T"),"") -> 24.58 | C18: =IFERROR(RTD("cqg.rtd",,"StudyData",A18,"Bar",, "Low",$C$1,"0",,,,,"T"),"") -> 24.35 | D18: =IFERROR(RTD("cqg.rtd",,"StudyData","HiLevel("&A18&",Period1:="&$B$1&",AllowGaps:=0,InputChoice1:=High,InputChoice3:=High)","Bar",, "Close",$C$1,"-1",,,,,"T"),"") -> 28.86 | E18: =IFERROR(RTD("cqg.rtd",,"StudyData","LoLevel("&A18&",Period2:="&$B$1&",AllowGaps:=0,InputChoice2:=Low,InputChoice4:=Low)","Bar",, "Close",$C$1,"-1",,,,,"T"),"") -> 19.76 | F18: 0 | G18: 0 | H18: 0.017 | I18: 0.017 | J18: S.US.AES | K18: =RTD("cqg.rtd", ,"ContractData",A18, "PerCentNetLastTrade",, "T")/100 -> -0.001229004506 | L18: =RANK($K18,$K$2:K$506)+COUNTIF($K$2:K18,K18)-1 ->  | M18: S.US.AES | N18: 17 | P18: =RTD("cqg.rtd", ,"ContractData",O18, "PerCentNetLastTrade",, "T")/100 ->  | S18: 17 | T18: S.US.PEG
A19: =Symbols!A19 -> S.US.AFL | B19: =IFERROR(RTD("cqg.rtd",,"StudyData",A19,"Bar",, "High",$C$1,"0",,,,,"T"),"") -> 65.82 | C19: =IFERROR(RTD("cqg.rtd",,"StudyData",A19,"Bar",, "Low",$C$1,"0",,,,,"T"),"") -> 65.11 | D19: =IFERROR(RTD("cqg.rtd",,"StudyData","HiLevel("&A19&",Period1:="&$B$1&",AllowGaps:=0,InputChoice1:=High,InputChoice3:=High)","Bar",, "Close",$C$1,"-1",,,,,"T"),"") -> 66.97 | E19: =IFERROR(RTD("cqg.rtd",,"StudyData","LoLevel("&A19&",Period2:="&$B$1&",AllowGaps:=0,InputChoice2:=Low,InputChoice4:=Low)","Bar",, "Close",$C$1,"-1",,,,,"T"),"") -> 51.28 | F19: 0 | G19: 0 | H19: 0.018 | I19: 0.018 | J19: S.US.AFL | K19: =RTD("cqg.rtd", ,"ContractData",A19, "PerCentNetLastTrade",, "T")/100 -> 0.006428899434 | L19: =RANK($K19,$K$2:K$506)+COUNTIF($K$2:K19,K19)-1 ->  | M19: S.US.AFL | N19: 18 | P19: =RTD("cqg.rtd", ,"ContractData",O19, "PerCentNetLastTrade",, "T")/100 ->  | S19: 18 | T19: S.US.PKG
A20: =Symbols!A20 -> S.US.AIG | B20: =IFERROR(RTD("cqg.rtd",,"StudyData",A20,"Bar",, "High",$C$1,"0",,,,,"T"),"") -> 63.71 | C20: =IFERROR(RTD("cqg.rtd",,"StudyData",A20,"Bar",, "Low",$C$1,"0",,,,,"T"),"") -> 62.71 | D20: =IFERROR(RTD("cqg.rtd",,"StudyData","HiLevel("&A20&",Period1:="&$B$1&",AllowGaps:=0,InputChoice1:=High,InputChoice3:=High)","Bar",, "Close",$C$1,"-1",,,,,"T"),"") -> 64.9 | E20: =IFERROR(RTD("cqg.rtd",,"StudyData","LoLevel("&A20&",Period2:="&$B$1&",AllowGaps:=0,InputChoice2:=Low,InputChoice4:=Low)","Bar",, "Close",$C$1,"-1",,,,,"T"),"") -> 44.54 | F20: 0 | G20: 0 | H20: 0.019 | I20: 0.019 | J20: S.US.AIG | K20: =RTD("cqg.rtd", ,"ContractData",A20, "PerCentNetLastTrade",, "T")/100 -> 0.01047120419 | L20: =RANK($K20,$K$2:K$506)+COUNTIF($K$2:K20,K20)-1 ->  | M20: S.US.AIG | N20: 19 | P20: =RTD("cqg.rtd", ,"ContractData",O20, "PerCentNetLastTrade",, "T")/100 ->  | S20: 19 | T20: S.US.RTX
A21: =Symbols!A21 -> S.US.AIZ | B21: =IFERROR(RTD("cqg.rtd",,"StudyData",A21,"Bar",, "High",$C$1,"0",,,,,"T"),"") -> 190.87 | C21: =IFERROR(RTD("cqg.rtd",,"StudyData",A21,"Bar",, "Low",$C$1,"0",,,,,"T"),"") -> 188.74 | D21: =IFERROR(RTD("cqg.rtd",,"StudyData","HiLevel("&A21&",Period1:="&$B$1&",AllowGaps:=0,InputChoice1:=High,InputChoice3:=High)","Bar",, "Close",$C$1,"-1",,,,,"T"),"") -> 190.19 | E21: =IFERROR(RTD("cqg.rtd",,"StudyData","LoLevel("&A21&",Period2:="&$B$1&",AllowGaps:=0,InputChoice2:=Low,InputChoice4:=Low)","Bar",, "Close",$C$1,"-1",,,,,"T"),"") -> 144.18 | F21: 1 | G21: 0 | H21: 1 | I21: 0.02 | J21: S.US.AIZ | K21: =RTD("cqg.rtd", ,"ContractData",A21, "PerCentNetLastTrade",, "T")/100 -> 0.004437400951 | L21: =RANK($K21,$K$2:K$506)+COUNTIF($K$2:K21,K21)-1 ->  | M21: S.US.AIZ | N21: 20 | P21: =RTD("cqg.rtd", ,"ContractData",O21, "PerCentNetLastTrade",, "T")/100 ->  | S21: 20 | T21: S.US.SRE
A22: =Symbols!A22 -> S.US.AJG | B22: =IFERROR(RTD("cqg.rtd",,"StudyData",A22,"Bar",, "High",$C$1,"0",,,,,"T"),"") -> 181.52 | C22: =IFERROR(RTD("cqg.rtd",,"StudyData",A22,"Bar",, "Low",$C$1,"0",,,,,"T"),"") -> 179.95 | D22: =IFERROR(RTD("cqg.rtd",,"StudyData","HiLevel("&A22&",Period1:="&$B$1&",AllowGaps:=0,InputChoice1:=High,InputChoice3:=High)","Bar",, "Close",$C$1,"-1",,,,,"T"),"") -> 184.92 | E22: =IFERROR(RTD("cqg.rtd",,"StudyData","LoLevel("&A22&",Period2:="&$B$1&",AllowGaps:=0,InputChoice2:=Low,InputChoice4:=Low)","Bar",, "Close",$C$1,"-1",,,,,"T"),"") -> 134.84 | F22: 0 | G22: 0 | H22: 1.001 | I22: 0.021 | J22: S.US.AJG | K22: =RTD("cqg.rtd", ,"ContractData",A22, "PerCentNetLastTrade",, "T")/100 -> 0.001993245114 | L22: =RANK($K22,$K$2:K$506)+COUNTIF($K$2:K22,K22)-1 ->  | M22: S.US.AJG | N22: 21 | P22: =RTD("cqg.rtd", ,"ContractData",O22, "PerCentNetLastTrade",, "T")/100 ->  | S22: 21 | T22: S.US.VLO
A23: =Symbols!A23 -> S.US.AKAM | B23: =IFERROR(RTD("cqg.rtd",,"StudyData",A23,"Bar",, "High",$C$1,"0",,,,,"T"),"") -> 119.62 | C23: =IFERROR(RTD("cqg.rtd",,"StudyData",A23,"Bar",, "Low",$C$1,"0",,,,,"T"),"") -> 118.69 | D23: =IFERROR(RTD("cqg.rtd",,"StudyData","HiLevel("&A23&",Period1:="&$B$1&",AllowGaps:=0,InputChoice1:=High,InputChoice3:=High)","Bar",, "Close",$C$1,"-1",,,,,"T"),"") -> 122.01 | E23: =IFERROR(RTD("cqg.rtd",,"StudyData","LoLevel("&A23&",Period2:="&$B$1&",AllowGaps:=0,InputChoice2:=Low,InputChoice4:=Low)","Bar",, "Close",$C$1,"-1",,,,,"T"),"") -> 96.86 | F23: 0 | G23: 0 | H23: 1.002 | I23: 0.022 | J23: S.US.AKAM | K23: =RTD("cqg.rtd", ,"ContractData",A23, "PerCentNetLastTrade",, "T")/100 -> -0.002101016892 | L23: =RANK($K23,$K$2:K$506)+COUNTIF($K$2:K23,K23)-1 ->  | M23: S.US.AKAM | N23: 22 | P23: =RTD("cqg.rtd", ,"ContractData",O23, "PerCentNetLastTrade",, "T")/100 ->  | S23: 22 | T23: S.US.WMB
A24: =Symbols!A24 -> S.US.ALB | B24: =IFERROR(RTD("cqg.rtd",,"StudyData",A24,"Bar",, "High",$C$1,"0",,,,,"T"),"") -> 213.43 | C24: =IFERROR(RTD("cqg.rtd",,"StudyData",A24,"Bar",, "Low",$C$1,"0",,,,,"T"),"") -> 210.61 | D24: =IFERROR(RTD("cqg.rtd",,"StudyData","HiLevel("&A24&",Period1:="&$B$1&",AllowGaps:=0,InputChoice1:=High,InputChoice3:=High)","Bar",, "Close",$C$1,"-1",,,,,"T"),"") -> 291.48 | E24: =IFERROR(RTD("cqg.rtd",,"StudyData","LoLevel("&A24&",Period2:="&$B$1&",AllowGaps:=0,InputChoice2:=Low,InputChoice4:=Low)","Bar",, "Close",$C$1,"-1",,,,,"T"),"") -> 146.52 | F24: 0 | G24: 0 | H24: 1.003 | I24: 0.023 | J24: S.US.ALB | K24: =RTD("cqg.rtd", ,"ContractData",A24, "PerCentNetLastTrade",, "T")/100 -> 0.003271847883 | L24: =RANK($K24,$K$2:K$506)+COUNTIF($K$2:K24,K24)-1 ->  | M24: S.US.ALB | N24: 23 | P24: =RTD("cqg.rtd", ,"ContractData",O24, "PerCentNetLastTrade",, "T")/100 ->  | S24: 23
A25: =Symbols!A25 -> S.US.ALGN | B25: =IFERROR(RTD("cqg.rtd",,"StudyData",A25,"Bar",, "High",$C$1,"0",,,,,"T"),"") -> 408.99 | C25: =IFERROR(RTD("cqg.rtd",,"StudyData",A25,"Bar",, "Low",$C$1,"0",,,,,"T"),"") -> 402.5 | D25: =IFERROR(RTD("cqg.rtd",,"StudyData","HiLevel("&A25&",Period1:="&$B$1&",AllowGaps:=0,InputChoice1:=High,InputChoice3:=High)","Bar",, "Close",$C$1,"-1",,,,,"T"),"") -> 737.45 | E25: =IFERROR(RTD("cqg.rtd",,"StudyData","LoLevel("&A25&",Period2:="&$B$1&",AllowGaps:=0,InputChoice2:=Low,InputChoice4:=Low)","Bar",, "Close",$C$1,"-1",,,,,"T"),"") -> 372.62 | F25: 0 | G25: 0 | H25: 1.004 | I25: 0.024 | J25: S.US.ALGN | K25: =RTD("cqg.rtd", ,"ContractData",A25, "PerCentNetLastTrade",, "T")/100 -> -0.01786150017 | L25: =RANK($K25,$K$2:K$506)+COUNTIF($K$2:K25,K25)-1 ->  | M25: S.US.ALGN | N25: 24 | P25: =RTD("cqg.rtd", ,"ContractData",O25, "PerCentNetLastTrade",, "T")/100 ->  | S25: 24
A26: =Symbols!A26 -> S.US.ALK | B26: =IFERROR(RTD("cqg.rtd",,"StudyData",A26,"Bar",, "High",$C$1,"0",,,,,"T"),"") -> 57.2 | C26: =IFERROR(RTD("cqg.rtd",,"StudyData",A26,"Bar",, "Low",$C$1,"0",,,,,"T"),"") -> 56.27 | D26: =IFERROR(RTD("cqg.rtd",,"StudyData","HiLevel("&A26&",Period1:="&$B$1&",AllowGaps:=0,InputChoice1:=High,InputChoice3:=High)","Bar",, "Close",$C$1,"-1",,,,,"T"),"") -> 72.92 | E26: =IFERROR(RTD("cqg.rtd",,"StudyData","LoLevel("&A26&",Period2:="&$B$1&",AllowGaps:=0,InputChoice2:=Low,InputChoice4:=Low)","Bar",, "Close",$C$1,"-1",,,,,"T"),"") -> 43.46 | F26: 0 | G26: 0 | H26: 1.005 | I26: 0.025 | J26: S.US.ALK | K26: =RTD("cqg.rtd", ,"ContractData",A26, "PerCentNetLastTrade",, "T")/100 -> 0.0005253020487 | L26: =RANK($K26,$K$2:K$506)+COUNTIF($K$2:K26,K26)-1 ->  | M26: S.US.ALK | N26: 25 | P26: =RTD("cqg.rtd", ,"ContractData",O26, "PerCentNetLastTrade",, "T")/100 ->  | S26: 25
A27: =Symbols!A27 -> S.US.ALL | B27: =IFERROR(RTD("cqg.rtd",,"StudyData",A27,"Bar",, "High",$C$1,"0",,,,,"T"),"") -> 141.04 | C27: =IFERROR(RTD("cqg.rtd",,"StudyData",A27,"Bar",, "Low",$C$1,"0",,,,,"T"),"") -> 139.89 | D27: =IFERROR(RTD("cqg.rtd",,"StudyData","HiLevel("&A27&",Period1:="&$B$1&",AllowGaps:=0,InputChoice1:=High,InputChoice3:=High)","Bar",, "Close",$C$1,"-1",,,,,"T"),"") -> 144.41 | E27: =IFERROR(RTD("cqg.rtd",,"StudyData","LoLevel("&A27&",Period2:="&$B$1&",AllowGaps:=0,InputChoice2:=Low,InputChoice4:=Low)","Bar",, "Close",$C$1,"-1",,,,,"T"),"") -> 106.11 | F27: 0 | G27: 0 | H27: 1.006 | I27: 0.026 | J27: S.US.ALL | K27: =RTD("cqg.rtd", ,"ContractData",A27, "PerCentNetLastTrade",, "T")/100 -> -0.002691980731 | L27: =RANK($K27,$K$2:K$506)+COUNTIF($K$2:K27,K27)-1 ->  | M27: S.US.ALL | N27: 26 | P27: =RTD("cqg.rtd", ,"ContractData",O27, "PerCentNetLastTrade",, "T")/100 ->  | S27: 26
A28: =Symbols!A28 -> S.US.ALLE | B28: =IFERROR(RTD("cqg.rtd",,"StudyData",A28,"Bar",, "High",$C$1,"0",,,,,"T"),"") -> 108.16 | C28: =IFERROR(RTD("cqg.rtd",,"StudyData",A28,"Bar",, "Low",$C$1,"0",,,,,"T"),"") -> 106.89 | D28: =IFERROR(RTD("cqg.rtd",,"StudyData","HiLevel("&A28&",Period1:="&$B$1&",AllowGaps:=0,InputChoice1:=High,InputChoice3:=High)","Bar",, "Close",$C$1,"-1",,,,,"T"),"") -> 148.69 | E28: =IFERROR(RTD("cqg.rtd",,"StudyData","LoLevel("&A28&",Period2:="&$B$1&",AllowGaps:=0,InputChoice2:=Low,InputChoice4:=Low)","Bar",, "Close",$C$1,"-1",,,,,"T"),"") -> 105.06 | F28: 0 | G28: 0 | H28: 1.007 | I28: 0.027 | J28: S.US.ALLE | K28: =RTD("cqg.rtd", ,"ContractData",A28, "PerCentNetLastTrade",, "T")/100 -> 0.0065158708 | L28: =RANK($K28,$K$2:K$506)+COUNTIF($K$2:K28,K28)-1 ->  | M28: S.US.ALLE | N28: 27 | P28: =RTD("cqg.rtd", ,"ContractData",O28, "PerCentNetLastTrade",, "T")/100 ->  | S28: 27
A29: =Symbols!A29 -> S.US.AMAT | B29: =IFERROR(RTD("cqg.rtd",,"StudyData",A29,"Bar",, "High",$C$1,"0",,,,,"T"),"") -> 114.8 | C29: =IFERROR(RTD("cqg.rtd",,"StudyData",A29,"Bar",, "Low",$C$1,"0",,,,,"T"),"") -> 112.34 | D29: =IFERROR(RTD("cqg.rtd",,"StudyData","HiLevel("&A29&",Period1:="&$B$1&",AllowGaps:=0,InputChoice1:=High,InputChoice3:=High)","Bar",, "Close",$C$1,"-1",,,,,"T"),"") -> 167.06 | E29: =IFERROR(RTD("cqg.rtd",,"StudyData","LoLevel("&A29&",Period2:="&$B$1&",AllowGaps:=0,InputChoice2:=Low,InputChoice4:=Low)","Bar",, "Close",$C$1,"-1",,,,,"T"),"") -> 113.25 | F29: 0 | G29: 1 | H29: 1.008 | I29: 1 | J29: S.US.AMAT | K29: =RTD("cqg.rtd", ,"ContractData",A29, "PerCentNetLastTrade",, "T")/100 -> 0.003616796048 | L29: =RANK($K29,$K$2:K$506)+COUNTIF($K$2:K29,K29)-1 ->  | M29: S.US.AMAT | N29: 28 | P29: =RTD("cqg.rtd", ,"ContractData",O29, "PerCentNetLastTrade",, "T")/100 ->  | S29: 28
A30: =Symbols!A30 -> S.US.AMCR | B30: =IFERROR(RTD("cqg.rtd",,"StudyData",A30,"Bar",, "High",$C$1,"0",,,,,"T"),"") -> 11.71 | C30: =IFERROR(RTD("cqg.rtd",,"StudyData",A30,"Bar",, "Low",$C$1,"0",,,,,"T"),"") -> 11.62 | D30: =IFERROR(RTD("cqg.rtd",,"StudyData","HiLevel("&A30&",Period1:="&$B$1&",AllowGaps:=0,InputChoice1:=High,InputChoice3:=High)","Bar",, "Close",$C$1,"-1",,,,,"T"),"") -> 12.92 | E30: =IFERROR(RTD("cqg.rtd",,"StudyData","LoLevel("&A30&",Period2:="&$B$1&",AllowGaps:=0,InputChoice2:=Low,InputChoice4:=Low)","Bar",, "Close",$C$1,"-1",,,,,"T"),"") -> 10.66 | F30: 0 | G30: 0 | H30: 1.009 | I30: 1.001 | J30: S.US.AMCR | K30: =RTD("cqg.rtd", ,"ContractData",A30, "PerCentNetLastTrade",, "T")/100 -> 0.001713796058 | L30: =RANK($K30,$K$2:K$506)+COUNTIF($K$2:K30,K30)-1 ->  | M30: S.US.AMCR | N30: 29 | P30: =RTD("cqg.rtd", ,"ContractData",O30, "PerCentNetLastTrade",, "T")/100 ->  | S30: 29
A31: =Symbols!A31 -> S.US.AMD | B31: =IFERROR(RTD("cqg.rtd",,"StudyData",A31,"Bar",, "High",$C$1,"0",,,,,"T"),"") -> 94.07 | C31: =IFERROR(RTD("cqg.rtd",,"StudyData",A31,"Bar",, "Low",$C$1,"0",,,,,"T"),"") -> 92 | D31: =IFERROR(RTD("cqg.rtd",,"StudyData","HiLevel("&A31&",Period1:="&$B$1&",AllowGaps:=0,InputChoice1:=High,InputChoice3:=High)","Bar",, "Close",$C$1,"-1",,,,,"T"),"") -> 164.45 | E31: =IFERROR(RTD("cqg.rtd",,"StudyData","LoLevel("&A31&",Period2:="&$B$1&",AllowGaps:=0,InputChoice2:=Low,InputChoice4:=Low)","Bar",, "Close",$C$1,"-1",,,,,"T"),"") -> 72.5 | F31: 0 | G31: 0 | H31: 1.01 | I31: 1.002 | J31: S.US.AMD | K31: =RTD("cqg.rtd", ,"ContractData",A31, "PerCentNetLastTrade",, "T")/100 -> -0.00730711369 | L31: =RANK($K31,$K$2:K$506)+COUNTIF($K$2:K31,K31)-1 ->  | M31: S.US.AMD | N31: 30 | P31: =RTD("cqg.rtd", ,"ContractData",O31, "PerCentNetLastTrade",, "T")/100 ->  | S31: 30
A32: =Symbols!A32 -> S.US.AME | B32: =IFERROR(RTD("cqg.rtd",,"StudyData",A32,"Bar",, "High",$C$1,"0",,,,,"T"),"") -> 128.33 | C32: =IFERROR(RTD("cqg.rtd",,"StudyData",A32,"Bar",, "Low",$C$1,"0",,,,,"T"),"") -> 127.06 | D32: =IFERROR(RTD("cqg.rtd",,"StudyData","HiLevel("&A32&",Period1:="&$B$1&",AllowGaps:=0,InputChoice1:=High,InputChoice3:=High)","Bar",, "Close",$C$1,"-1",,,,,"T"),"") -> 148.07 | E32: =IFERROR(RTD("cqg.rtd",,"StudyData","LoLevel("&A32&",Period2:="&$B$1&",AllowGaps:=0,InputChoice2:=Low,InputChoice4:=Low)","Bar",, "Close",$C$1,"-1",,,,,"T"),"") -> 121.8 | F32: 0 | G32: 0 | H32: 1.011 | I32: 1.003 | J32: S.US.AME | K32: =RTD("cqg.rtd", ,"ContractData",A32, "PerCentNetLastTrade",, "T")/100 -> 0.007713498623 | L32: =RANK($K32,$K$2:K$506)+COUNTIF($K$2:K32,K32)-1 ->  | M32: S.US.AME | N32: 31 | P32: =RTD("cqg.rtd", ,"ContractData",O32, "PerCentNetLastTrade",, "T")/100 ->  | S32: 31
A33: =Symbols!A33 -> S.US.AMGN | B33: =IFERROR(RTD("cqg.rtd",,"StudyData",A33,"Bar",, "High",$C$1,"0",,,,,"T"),"") -> 255.39 | C33: =IFERROR(RTD("cqg.rtd",,"StudyData",A33,"Bar",, "Low",$C$1,"0",,,,,"T"),"") -> 252.49 | D33: =IFERROR(RTD("cqg.rtd",,"StudyData","HiLevel("&A33&",Period1:="&$B$1&",AllowGaps:=0,InputChoice1:=High,InputChoice3:=High)","Bar",, "Close",$C$1,"-1",,,,,"T"),"") -> 261 | E33: =IFERROR(RTD("cqg.rtd",,"StudyData","LoLevel("&A33&",Period2:="&$B$1&",AllowGaps:=0,InputChoice2:=Low,InputChoice4:=Low)","Bar",, "Close",$C$1,"-1",,,,,"T"),"") -> 198.64 | F33: 0 | G33: 0 | H33: 1.012 | I33: 1.004 | J33: S.US.AMGN | K33: =RTD("cqg.rtd", ,"ContractData",A33, "PerCentNetLastTrade",, "T")/100 -> 0.002795055507 | L33: =RANK($K33,$K$2:K$506)+COUNTIF($K$2:K33,K33)-1 ->  | M33: S.US.AMGN | N33: 32 | P33: =RTD("cqg.rtd", ,"ContractData",O33, "PerCentNetLastTrade",, "T")/100 ->  | S33: 32
A34: =Symbols!A34 -> S.US.AMP | B34: =IFERROR(RTD("cqg.rtd",,"StudyData",A34,"Bar",, "High",$C$1,"0",,,,,"T"),"") -> 291.34 | C34: =IFERROR(RTD("cqg.rtd",,"StudyData",A34,"Bar",, "Low",$C$1,"0",,,,,"T"),"") -> 288.7 | D34: =IFERROR(RTD("cqg.rtd",,"StudyData","HiLevel("&A34&",Period1:="&$B$1&",AllowGaps:=0,InputChoice1:=High,InputChoice3:=High)","Bar",, "Close",$C$1,"-1",,,,,"T"),"") -> 332.37 | E34: =IFERROR(RTD("cqg.rtd",,"StudyData","LoLevel("&A34&",Period2:="&$B$1&",AllowGaps:=0,InputChoice2:=Low,InputChoice4:=Low)","Bar",, "Close",$C$1,"-1",,,,,"T"),"") -> 236.35 | F34: 0 | G34: 0 | H34: 1.013 | I34: 1.005 | J34: S.US.AMP | K34: =RTD("cqg.rtd", ,"ContractData",A34, "PerCentNetLastTrade",, "T")/100 -> 0.001719808757 | L34: =RANK($K34,$K$2:K$506)+COUNTIF($K$2:K34,K34)-1 ->  | M34: S.US.AMP | N34: 33 | P34: =RTD("cqg.rtd", ,"ContractData",O34, "PerCentNetLastTrade",, "T")/100 ->  | S34: 33
A35: =Symbols!A35 -> S.US.AMT | B35: =IFERROR(RTD("cqg.rtd",,"StudyData",A35,"Bar",, "High",$C$1,"0",,,,,"T"),"") -> 256.82 | C35: =IFERROR(RTD("cqg.rtd",,"StudyData",A35,"Bar",, "Low",$C$1,"0",,,,,"T"),"") -> 253.6 | D35: =IFERROR(RTD("cqg.rtd",,"StudyData","HiLevel("&A35&",Period1:="&$B$1&",AllowGaps:=0,InputChoice1:=High,InputChoice3:=High)","Bar",, "Close",$C$1,"-1",,,,,"T"),"") -> 303.72 | E35: =IFERROR(RTD("cqg.rtd",,"StudyData","LoLevel("&A35&",Period2:="&$B$1&",AllowGaps:=0,InputChoice2:=Low,InputChoice4:=Low)","Bar",, "Close",$C$1,"-1",,,,,"T"),"") -> 220 | F35: 0 | G35: 0 | H35: 1.014 | I35: 1.006 | J35: S.US.AMT | K35: =RTD("cqg.rtd", ,"ContractData",A35, "PerCentNetLastTrade",, "T")/100 -> 0.001917508022 | L35: =RANK($K35,$K$2:K$506)+COUNTIF($K$2:K35,K35)-1 ->  | M35: S.US.AMT | N35: 34 | P35: =RTD("cqg.rtd", ,"ContractData",O35, "PerCentNetLastTrade",, "T")/100 ->  | S35: 34
A36: =Symbols!A36 -> S.US.AMZN | B36: =IFERROR(RTD("cqg.rtd",,"StudyData",A36,"Bar",, "High",$C$1,"0",,,,,"T"),"") -> 3069 | C36: =IFERROR(RTD("cqg.rtd",,"StudyData",A36,"Bar",, "Low",$C$1,"0",,,,,"T"),"") -> 3030.47 | D36: =IFERROR(RTD("cqg.rtd",,"StudyData","HiLevel("&A36&",Period1:="&$B$1&",AllowGaps:=0,InputChoice1:=High,InputChoice3:=High)","Bar",, "Close",$C$1,"-1",,,,,"T"),"") -> 3773.07 | E36: =IFERROR(RTD("cqg.rtd",,"StudyData","LoLevel("&A36&",Period2:="&$B$1&",AllowGaps:=0,InputChoice2:=Low,InputChoice4:=Low)","Bar",, "Close",$C$1,"-1",,,,,"T"),"") -> 2671.45 | F36: 0 | G36: 0 | H36: 1.015 | I36: 1.007 | J36: S.US.AMZN | K36: =RTD("cqg.rtd", ,"ContractData",A36, "PerCentNetLastTrade",, "T")/100 -> -0.0007316759664 | L36: =RANK($K36,$K$2:K$506)+COUNTIF($K$2:K36,K36)-1 ->  | M36: S.US.AMZN | N36: 35 | P36: =RTD("cqg.rtd", ,"ContractData",O36, "PerCentNetLastTrade",, "T")/100 ->  | S36: 35
A37: =Symbols!A37 -> S.US.ANET | B37: =IFERROR(RTD("cqg.rtd",,"StudyData",A37,"Bar",, "High",$C$1,"0",,,,,"T"),"") -> 126.61 | C37: =IFERROR(RTD("cqg.rtd",,"StudyData",A37,"Bar",, "Low",$C$1,"0",,,,,"T"),"") -> 125.32 | D37: =IFERROR(RTD("cqg.rtd",,"StudyData","HiLevel("&A37&",Period1:="&$B$1&",AllowGaps:=0,InputChoice1:=High,InputChoice3:=High)","Bar",, "Close",$C$1,"-1",,,,,"T"),"") -> 148.57 | E37: =IFERROR(RTD("cqg.rtd",,"StudyData","LoLevel("&A37&",Period2:="&$B$1&",AllowGaps:=0,InputChoice2:=Low,InputChoice4:=Low)","Bar",, "Close",$C$1,"-1",,,,,"T"),"") -> 75.65 | F37: 0 | G37: 0 | H37: 1.016 | I37: 1.008 | J37: S.US.ANET | K37: =RTD("cqg.rtd", ,"ContractData",A37, "PerCentNetLastTrade",, "T")/100 -> -0.009006162111 | L37: =RANK($K37,$K$2:K$506)+COUNTIF($K$2:K37,K37)-1 ->  | M37: S.US.ANET | N37: 36 | P37: =RTD("cqg.rtd", ,"ContractData",O37, "PerCentNetLastTrade",, "T")/100 ->  | S37: 36
A38: =Symbols!A38 -> S.US.ANSS | B38: =IFERROR(RTD("cqg.rtd",,"StudyData",A38,"Bar",, "High",$C$1,"0",,,,,"T"),"") -> 281.74 | C38: =IFERROR(RTD("cqg.rtd",,"StudyData",A38,"Bar",, "Low",$C$1,"0",,,,,"T"),"") -> 278.85 | D38: =IFERROR(RTD("cqg.rtd",,"StudyData","HiLevel("&A38&",Period1:="&$B$1&",AllowGaps:=0,InputChoice1:=High,InputChoice3:=High)","Bar",, "Close",$C$1,"-1",,,,,"T"),"") -> 413.89 | E38: =IFERROR(RTD("cqg.rtd",,"StudyData","LoLevel("&A38&",Period2:="&$B$1&",AllowGaps:=0,InputChoice2:=Low,InputChoice4:=Low)","Bar",, "Close",$C$1,"-1",,,,,"T"),"") -> 278.22 | F38: 0 | G38: 0 | H38: 1.017 | I38: 1.009 | J38: S.US.ANSS | K38: =RTD("cqg.rtd", ,"ContractData",A38, "PerCentNetLastTrade",, "T")/100 -> -0.01183012786 | L38: =RANK($K38,$K$2:K$506)+COUNTIF($K$2:K38,K38)-1 ->  | M38: S.US.ANSS | N38: 37 | P38: =RTD("cqg.rtd", ,"ContractData",O38, "PerCentNetLastTrade",, "T")/100 ->  | S38: 37
A39: =Symbols!A39 -> S.US.ANTM | B39: =IFERROR(RTD("cqg.rtd",,"StudyData",A39,"Bar",, "High",$C$1,"0",,,,,"T"),"") -> 519.34 | C39: =IFERROR(RTD("cqg.rtd",,"StudyData",A39,"Bar",, "Low",$C$1,"0",,,,,"T"),"") -> 513.78 | D39: =IFERROR(RTD("cqg.rtd",,"StudyData","HiLevel("&A39&",Period1:="&$B$1&",AllowGaps:=0,InputChoice1:=High,InputChoice3:=High)","Bar",, "Close",$C$1,"-1",,,,,"T"),"") -> 526.62 | E39: =IFERROR(RTD("cqg.rtd",,"StudyData","LoLevel("&A39&",Period2:="&$B$1&",AllowGaps:=0,InputChoice2:=Low,InputChoice4:=Low)","Bar",, "Close",$C$1,"-1",,,,,"T"),"") -> 355.43 | F39: 0 | G39: 0 | H39: 1.018 | I39: 1.01 | J39: S.US.ANTM | K39: =RTD("cqg.rtd", ,"ContractData",A39, "PerCentNetLastTrade",, "T")/100 -> 0.001993342623 | L39: =RANK($K39,$K$2:K$506)+COUNTIF($K$2:K39,K39)-1 ->  | M39: S.US.ANTM | N39: 38 | P39: =RTD("cqg.rtd", ,"ContractData",O39, "PerCentNetLastTrade",, "T")/100 ->  | S39: 38
A40: =Symbols!A40 -> S.US.AON | B40: =IFERROR(RTD("cqg.rtd",,"StudyData",A40,"Bar",, "High",$C$1,"0",,,,,"T"),"") -> 331.8 | C40: =IFERROR(RTD("cqg.rtd",,"StudyData",A40,"Bar",, "Low",$C$1,"0",,,,,"T"),"") -> 326.93 | D40: =IFERROR(RTD("cqg.rtd",,"StudyData","HiLevel("&A40&",Period1:="&$B$1&",AllowGaps:=0,InputChoice1:=High,InputChoice3:=High)","Bar",, "Close",$C$1,"-1",,,,,"T"),"") -> 336.41 | E40: =IFERROR(RTD("cqg.rtd",,"StudyData","LoLevel("&A40&",Period2:="&$B$1&",AllowGaps:=0,InputChoice2:=Low,InputChoice4:=Low)","Bar",, "Close",$C$1,"-1",,,,,"T"),"") -> 223.19 | F40: 0 | G40: 0 | H40: 1.019 | I40: 1.011 | J40: S.US.AON | K40: =RTD("cqg.rtd", ,"ContractData",A40, "PerCentNetLastTrade",, "T")/100 -> 0.008407969293 | L40: =RANK($K40,$K$2:K$506)+COUNTIF($K$2:K40,K40)-1 ->  | M40: S.US.AON | N40: 39 | P40: =RTD("cqg.rtd", ,"ContractData",O40, "PerCentNetLastTrade",, "T")/100 ->  | S40: 39
A41: =Symbols!A41 -> S.US.AOS | B41: =IFERROR(RTD("cqg.rtd",,"StudyData",A41,"Bar",, "High",$C$1,"0",,,,,"T"),"") -> 64.49 | C41: =IFERROR(RTD("cqg.rtd",,"StudyData",A41,"Bar",, "Low",$C$1,"0",,,,,"T"),"") -> 63.53 | D41: =IFERROR(RTD("cqg.rtd",,"StudyData","HiLevel("&A41&",Period1:="&$B$1&",AllowGaps:=0,InputChoice1:=High,InputChoice3:=High)","Bar",, "Close",$C$1,"-1",,,,,"T"),"") -> 86.73 | E41: =IFERROR(RTD("cqg.rtd",,"StudyData","LoLevel("&A41&",Period2:="&$B$1&",AllowGaps:=0,InputChoice2:=Low,InputChoice4:=Low)","Bar",, "Close",$C$1,"-1",,,,,"T"),"") -> 60.39 | F41: 0 | G41: 0 | H41: 1.02 | I41: 1.012 | J41: S.US.AOS | K41: =RTD("cqg.rtd", ,"ContractData",A41, "PerCentNetLastTrade",, "T")/100 -> 0.008308512306 | L41: =RANK($K41,$K$2:K$506)+COUNTIF($K$2:K41,K41)-1 ->  | M41: S.US.AOS | N41: 40 | P41: =RTD("cqg.rtd", ,"ContractData",O41, "PerCentNetLastTrade",, "T")/100 ->  | S41: 40
A42: =Symbols!A42 -> S.US.APA | B42: =IFERROR(RTD("cqg.rtd",,"StudyData",A42,"Bar",, "High",$C$1,"0",,,,,"T"),"") -> 44.99 | C42: =IFERROR(RTD("cqg.rtd",,"StudyData",A42,"Bar",, "Low",$C$1,"0",,,,,"T"),"") -> 43.78 | D42: =IFERROR(RTD("cqg.rtd",,"StudyData","HiLevel("&A42&",Period1:="&$B$1&",AllowGaps:=0,InputChoice1:=High,InputChoice3:=High)","Bar",, "Close",$C$1,"-1",,,,,"T"),"") -> 44.28 | E42: =IFERROR(RTD("cqg.rtd",,"StudyData","LoLevel("&A42&",Period2:="&$B$1&",AllowGaps:=0,InputChoice2:=Low,InputChoice4:=Low)","Bar",, "Close",$C$1,"-1",,,,,"T"),"") -> 15.54 | F42: 1 | G42: 0 | H42: 2 | I42: 1.013 | J42: S.US.APA | K42: =RTD("cqg.rtd", ,"ContractData",A42, "PerCentNetLastTrade",, "T")/100 -> 0.024496337 | L42: =RANK($K42,$K$2:K$506)+COUNTIF($K$2:K42,K42)-1 ->  | M42: S.US.APA | N42: 41 | P42: =RTD("cqg.rtd", ,"ContractData",O42, "PerCentNetLastTrade",, "T")/100 ->  | S42: 41
A43: =Symbols!A43 -> S.US.APD | B43: =IFERROR(RTD("cqg.rtd",,"StudyData",A43,"Bar",, "High",$C$1,"0",,,,,"T"),"") -> 246.84 | C43: =IFERROR(RTD("cqg.rtd",,"StudyData",A43,"Bar",, "Low",$C$1,"0",,,,,"T"),"") -> 245.19 | D43: =IFERROR(RTD("cqg.rtd",,"StudyData","HiLevel("&A43&",Period1:="&$B$1&",AllowGaps:=0,InputChoice1:=High,InputChoice3:=High)","Bar",, "Close",$C$1,"-1",,,,,"T"),"") -> 316.39 | E43: =IFERROR(RTD("cqg.rtd",,"StudyData","LoLevel("&A43&",Period2:="&$B$1&",AllowGaps:=0,InputChoice2:=Low,InputChoice4:=Low)","Bar",, "Close",$C$1,"-1",,,,,"T"),"") -> 216.24 | F43: 0 | G43: 0 | H43: 2.001 | I43: 1.014 | J43: S.US.APD | K43: =RTD("cqg.rtd", ,"ContractData",A43, "PerCentNetLastTrade",, "T")/100 -> -0.003159941663 | L43: =RANK($K43,$K$2:K$506)+COUNTIF($K$2:K43,K43)-1 ->  | M43: S.US.APD | N43: 42 | P43: =RTD("cqg.rtd", ,"ContractData",O43, "PerCentNetLastTrade",, "T")/100 ->  | S43: 42
A44: =Symbols!A44 -> S.US.APH | B44: =IFERROR(RTD("cqg.rtd",,"StudyData",A44,"Bar",, "High",$C$1,"0",,,,,"T"),"") -> 71.03 | C44: =IFERROR(RTD("cqg.rtd",,"StudyData",A44,"Bar",, "Low",$C$1,"0",,,,,"T"),"") -> 70.04 | D44: =IFERROR(RTD("cqg.rtd",,"StudyData","HiLevel("&A44&",Period1:="&$B$1&",AllowGaps:=0,InputChoice1:=High,InputChoice3:=High)","Bar",, "Close",$C$1,"-1",,,,,"T"),"") -> 88.44 | E44: =IFERROR(RTD("cqg.rtd",,"StudyData","LoLevel("&A44&",Period2:="&$B$1&",AllowGaps:=0,InputChoice2:=Low,InputChoice4:=Low)","Bar",, "Close",$C$1,"-1",,,,,"T"),"") -> 64.13 | F44: 0 | G44: 0 | H44: 2.002 | I44: 1.015 | J44: S.US.APH | K44: =RTD("cqg.rtd", ,"ContractData",A44, "PerCentNetLastTrade",, "T")/100 -> 0.006393861893 | L44: =RANK($K44,$K$2:K$506)+COUNTIF($K$2:K44,K44)-1 ->  | M44: S.US.APH | N44: 43 | P44: =RTD("cqg.rtd", ,"ContractData",O44, "PerCentNetLastTrade",, "T")/100 ->  | S44: 43
A45: =Symbols!A45 -> S.US.APTV | B45: =IFERROR(RTD("cqg.rtd",,"StudyData",A45,"Bar",, "High",$C$1,"0",,,,,"T"),"") -> 106.75 | C45: =IFERROR(RTD("cqg.rtd",,"StudyData",A45,"Bar",, "Low",$C$1,"0",,,,,"T"),"") -> 103.21 | D45: =IFERROR(RTD("cqg.rtd",,"StudyData","HiLevel("&A45&",Period1:="&$B$1&",AllowGaps:=0,InputChoice1:=High,InputChoice3:=High)","Bar",, "Close",$C$1,"-1",,,,,"T"),"") -> 180.81 | E45: =IFERROR(RTD("cqg.rtd",,"StudyData","LoLevel("&A45&",Period2:="&$B$1&",AllowGaps:=0,InputChoice2:=Low,InputChoice4:=Low)","Bar",, "Close",$C$1,"-1",,,,,"T"),"") -> 94.75 | F45: 0 | G45: 0 | H45: 2.003 | I45: 1.016 | J45: S.US.APTV | K45: =RTD("cqg.rtd", ,"ContractData",A45, "PerCentNetLastTrade",, "T")/100 -> -0.02399776765 | L45: =RANK($K45,$K$2:K$506)+COUNTIF($K$2:K45,K45)-1 ->  | M45: S.US.APTV | N45: 44 | P45: =RTD("cqg.rtd", ,"ContractData",O45, "PerCentNetLastTrade",, "T")/100 ->  | S45: 44
A46: =Symbols!A46 -> S.US.ARE | B46: =IFERROR(RTD("cqg.rtd",,"StudyData",A46,"Bar",, "High",$C$1,"0",,,,,"T"),"") -> 196.99 | C46: =IFERROR(RTD("cqg.rtd",,"StudyData",A46,"Bar",, "Low",$C$1,"0",,,,,"T"),"") -> 196.02 | D46: =IFERROR(RTD("cqg.rtd",,"StudyData","HiLevel("&A46&",Period1:="&$B$1&",AllowGaps:=0,InputChoice1:=High,InputChoice3:=High)","Bar",, "Close",$C$1,"-1",,,,,"T"),"") -> 224.95 | E46: =IFERROR(RTD("cqg.rtd",,"StudyData","LoLevel("&A46&",Period2:="&$B$1&",AllowGaps:=0,InputChoice2:=Low,InputChoice4:=Low)","Bar",, "Close",$C$1,"-1",,,,,"T"),"") -> 171.5 | F46: 0 | G46: 0 | H46: 2.004 | I46: 1.017 | J46: S.US.ARE | K46: =RTD("cqg.rtd", ,"ContractData",A46, "PerCentNetLastTrade",, "T")/100 -> -0.0008155775308 | L46: =RANK($K46,$K$2:K$506)+COUNTIF($K$2:K46,K46)-1 ->  | M46: S.US.ARE | N46: 45 | P46: =RTD("cqg.rtd", ,"ContractData",O46, "PerCentNetLastTrade",, "T")/100 ->  | S46: 45
A47: =Symbols!A47 -> S.US.ATO | B47: =IFERROR(RTD("cqg.rtd",,"StudyData",A47,"Bar",, "High",$C$1,"0",,,,,"T"),"") -> 121.82 | C47: =IFERROR(RTD("cqg.rtd",,"StudyData",A47,"Bar",, "Low",$C$1,"0",,,,,"T"),"") -> 119.66 | D47: =IFERROR(RTD("cqg.rtd",,"StudyData","HiLevel("&A47&",Period1:="&$B$1&",AllowGaps:=0,InputChoice1:=High,InputChoice3:=High)","Bar",, "Close",$C$1,"-1",,,,,"T"),"") -> 122.5 | E47: =IFERROR(RTD("cqg.rtd",,"StudyData","LoLevel("&A47&",Period2:="&$B$1&",AllowGaps:=0,InputChoice2:=Low,InputChoice4:=Low)","Bar",, "Close",$C$1,"-1",,,,,"T"),"") -> 85.8 | F47: 0 | G47: 0 | H47: 2.005 | I47: 1.018 | J47: S.US.ATO | K47: =RTD("cqg.rtd", ,"ContractData",A47, "PerCentNetLastTrade",, "T")/100 -> 0.01102388508 | L47: =RANK($K47,$K$2:K$506)+COUNTIF($K$2:K47,K47)-1 ->  | M47: S.US.ATO | N47: 46 | P47: =RTD("cqg.rtd", ,"ContractData",O47, "PerCentNetLastTrade",, "T")/100 ->  | S47: 46
A48: =Symbols!A48 -> S.US.ATVI | B48: =IFERROR(RTD("cqg.rtd",,"StudyData",A48,"Bar",, "High",$C$1,"0",,,,,"T"),"") -> 79.04 | C48: =IFERROR(RTD("cqg.rtd",,"StudyData",A48,"Bar",, "Low",$C$1,"0",,,,,"T"),"") -> 78.72 | D48: =IFERROR(RTD("cqg.rtd",,"StudyData","HiLevel("&A48&",Period1:="&$B$1&",AllowGaps:=0,InputChoice1:=High,InputChoice3:=High)","Bar",, "Close",$C$1,"-1",,,,,"T"),"") -> 99.45 | E48: =IFERROR(RTD("cqg.rtd",,"StudyData","LoLevel("&A48&",Period2:="&$B$1&",AllowGaps:=0,InputChoice2:=Low,InputChoice4:=Low)","Bar",, "Close",$C$1,"-1",,,,,"T"),"") -> 56.4 | F48: 0 | G48: 0 | H48: 2.006 | I48: 1.019 | J48: S.US.ATVI | K48: =RTD("cqg.rtd", ,"ContractData",A48, "PerCentNetLastTrade",, "T")/100 -> -0.0002533890789 | L48: =RANK($K48,$K$2:K$506)+COUNTIF($K$2:K48,K48)-1 ->  | M48: S.US.ATVI | N48: 47 | P48: =RTD("cqg.rtd", ,"ContractData",O48, "PerCentNetLastTrade",, "T")/100 ->  | S48: 47
A49: =Symbols!A49 -> S.US.AVB | B49: =IFERROR(RTD("cqg.rtd",,"StudyData",A49,"Bar",, "High",$C$1,"0",,,,,"T"),"") -> 248.49 | C49: =IFERROR(RTD("cqg.rtd",,"StudyData",A49,"Bar",, "Low",$C$1,"0",,,,,"T"),"") -> 246.54 | D49: =IFERROR(RTD("cqg.rtd",,"StudyData","HiLevel("&A49&",Period1:="&$B$1&",AllowGaps:=0,InputChoice1:=High,InputChoice3:=High)","Bar",, "Close",$C$1,"-1",,,,,"T"),"") -> 259.05 | E49: =IFERROR(RTD("cqg.rtd",,"StudyData","LoLevel("&A49&",Period2:="&$B$1&",AllowGaps:=0,InputChoice2:=Low,InputChoice4:=Low)","Bar",, "Close",$C$1,"-1",,,,,"T"),"") -> 186.61 | F49: 0 | G49: 0 | H49: 2.007 | I49: 1.02 | J49: S.US.AVB | K49: =RTD("cqg.rtd", ,"ContractData",A49, "PerCentNetLastTrade",, "T")/100 -> 0.004744333158 | L49: =RANK($K49,$K$2:K$506)+COUNTIF($K$2:K49,K49)-1 ->  | M49: S.US.AVB | N49: 48 | P49: =RTD("cqg.rtd", ,"ContractData",O49, "PerCentNetLastTrade",, "T")/100 ->  | S49: 48
A50: =Symbols!A50 -> S.US.AVGO | B50: =IFERROR(RTD("cqg.rtd",,"StudyData",A50,"Bar",, "High",$C$1,"0",,,,,"T"),"") -> 582 | C50: =IFERROR(RTD("cqg.rtd",,"StudyData",A50,"Bar",, "Low",$C$1,"0",,,,,"T"),"") -> 572.85 | D50: =IFERROR(RTD("cqg.rtd",,"StudyData","HiLevel("&A50&",Period1:="&$B$1&",AllowGaps:=0,InputChoice1:=High,InputChoice3:=High)","Bar",, "Close",$C$1,"-1",,,,,"T"),"") -> 677.76 | E50: =IFERROR(RTD("cqg.rtd",,"StudyData","LoLevel("&A50&",Period2:="&$B$1&",AllowGaps:=0,InputChoice2:=Low,InputChoice4:=Low)","Bar",, "Close",$C$1,"-1",,,,,"T"),"") -> 419.14 | F50: 0 | G50: 0 | H50: 2.008 | I50: 1.021 | J50: S.US.AVGO | K50: =RTD("cqg.rtd", ,"ContractData",A50, "PerCentNetLastTrade",, "T")/100 -> 0.01078679097 | L50: =RANK($K50,$K$2:K$506)+COUNTIF($K$2:K50,K50)-1 ->  | M50: S.US.AVGO | N50: 49 | P50: =RTD("cqg.rtd", ,"ContractData",O50, "PerCentNetLastTrade",, "T")/100 ->  | S50: 49
A51: =Symbols!A51 -> S.US.AVY | B51: =IFERROR(RTD("cqg.rtd",,"StudyData",A51,"Bar",, "High",$C$1,"0",,,,,"T"),"") -> 167.53 | C51: =IFERROR(RTD("cqg.rtd",,"StudyData",A51,"Bar",, "Low",$C$1,"0",,,,,"T"),"") -> 165.07 | D51: =IFERROR(RTD("cqg.rtd",,"StudyData","HiLevel("&A51&",Period1:="&$B$1&",AllowGaps:=0,InputChoice1:=High,InputChoice3:=High)","Bar",, "Close",$C$1,"-1",,,,,"T"),"") -> 229.24 | E51: =IFERROR(RTD("cqg.rtd",,"StudyData","LoLevel("&A51&",Period2:="&$B$1&",AllowGaps:=0,InputChoice2:=Low,InputChoice4:=Low)","Bar",, "Close",$C$1,"-1",,,,,"T"),"") -> 156.51 | F51: 0 | G51: 0 | H51: 2.009 | I51: 1.022 | J51: S.US.AVY | K51: =RTD("cqg.rtd", ,"ContractData",A51, "PerCentNetLastTrade",, "T")/100 -> -0.002522674034 | L51: =RANK($K51,$K$2:K$506)+COUNTIF($K$2:K51,K51)-1 ->  | M51: S.US.AVY | N51: 50 | P51: =RTD("cqg.rtd", ,"ContractData",O51, "PerCentNetLastTrade",, "T")/100 ->  | S51: 50
A52: =Symbols!A52 -> S.US.AWK | B52: =IFERROR(RTD("cqg.rtd",,"StudyData",A52,"Bar",, "High",$C$1,"0",,,,,"T"),"") -> 167.14 | C52: =IFERROR(RTD("cqg.rtd",,"StudyData",A52,"Bar",, "Low",$C$1,"0",,,,,"T"),"") -> 166.1 | D52: =IFERROR(RTD("cqg.rtd",,"StudyData","HiLevel("&A52&",Period1:="&$B$1&",AllowGaps:=0,InputChoice1:=High,InputChoice3:=High)","Bar",, "Close",$C$1,"-1",,,,,"T"),"") -> 189.65 | E52: =IFERROR(RTD("cqg.rtd",,"StudyData","LoLevel("&A52&",Period2:="&$B$1&",AllowGaps:=0,InputChoice2:=Low,InputChoice4:=Low)","Bar",, "Close",$C$1,"-1",,,,,"T"),"") -> 144.2 | F52: 0 | G52: 0 | H52: 2.01 | I52: 1.023 | J52: S.US.AWK | K52: =RTD("cqg.rtd", ,"ContractData",A52, "PerCentNetLastTrade",, "T")/100 -> 0.00331006259 | L52: =RANK($K52,$K$2:K$506)+COUNTIF($K$2:K52,K52)-1 ->  | M52: S.US.AWK | N52: 51 | P52: =RTD("cqg.rtd", ,"ContractData",O52, "PerCentNetLastTrade",, "T")/100 ->  | S52: 51
A53: =Symbols!A53 -> S.US.AXP | B53: =IFERROR(RTD("cqg.rtd",,"StudyData",A53,"Bar",, "High",$C$1,"0",,,,,"T"),"") -> 183.95 | C53: =IFERROR(RTD("cqg.rtd",,"StudyData",A53,"Bar",, "Low",$C$1,"0",,,,,"T"),"") -> 181 | D53: =IFERROR(RTD("cqg.rtd",,"StudyData","HiLevel("&A53&",Period1:="&$B$1&",AllowGaps:=0,InputChoice1:=High,InputChoice3:=High)","Bar",, "Close",$C$1,"-1",,,,,"T"),"") -> 199.55 | E53: =IFERROR(RTD("cqg.rtd",,"StudyData","LoLevel("&A53&",Period2:="&$B$1&",AllowGaps:=0,InputChoice2:=Low,InputChoice4:=Low)","Bar",, "Close",$C$1,"-1",,,,,"T"),"") -> 140.68 | F53: 0 | G53: 0 | H53: 2.011 | I53: 1.024 | J53: S.US.AXP | K53: =RTD("cqg.rtd", ,"ContractData",A53, "PerCentNetLastTrade",, "T")/100 -> 0.01407595496 | L53: =RANK($K53,$K$2:K$506)+COUNTIF($K$2:K53,K53)-1 ->  | M53: S.US.AXP | N53: 52 | P53: =RTD("cqg.rtd", ,"ContractData",O53, "PerCentNetLastTrade",, "T")/100 ->  | S53: 52
A54: =Symbols!A54 -> S.US.AZO | B54: =IFERROR(RTD("cqg.rtd",,"StudyData",A54,"Bar",, "High",$C$1,"0",,,,,"T"),"") -> 2168.1 | C54: =IFERROR(RTD("cqg.rtd",,"StudyData",A54,"Bar",, "Low",$C$1,"0",,,,,"T"),"") -> 2149.73 | D54: =IFERROR(RTD("cqg.rtd",,"StudyData","HiLevel("&A54&",Period1:="&$B$1&",AllowGaps:=0,InputChoice1:=High,InputChoice3:=High)","Bar",, "Close",$C$1,"-1",,,,,"T"),"") -> 2221.56 | E54: =IFERROR(RTD("cqg.rtd",,"StudyData","LoLevel("&A54&",Period2:="&$B$1&",AllowGaps:=0,InputChoice2:=Low,InputChoice4:=Low)","Bar",, "Close",$C$1,"-1",,,,,"T"),"") -> 1367.96 | F54: 0 | G54: 0 | H54: 2.012 | I54: 1.025 | J54: S.US.AZO | K54: =RTD("cqg.rtd", ,"ContractData",A54, "PerCentNetLastTrade",, "T")/100 -> 0.001164187379 | L54: =RANK($K54,$K$2:K$506)+COUNTIF($K$2:K54,K54)-1 ->  | M54: S.US.AZO | N54: 53 | P54: =RTD("cqg.rtd", ,"ContractData",O54, "PerCentNetLastTrade",, "T")/100 ->  | S54: 53
A55: =Symbols!A55 -> S.US.BA | B55: =IFERROR(RTD("cqg.rtd",,"StudyData",A55,"Bar",, "High",$C$1,"0",,,,,"T"),"") -> 182.46 | C55: =IFERROR(RTD("cqg.rtd",,"StudyData",A55,"Bar",, "Low",$C$1,"0",,,,,"T"),"") -> 180.01 | D55: =IFERROR(RTD("cqg.rtd",,"StudyData","HiLevel("&A55&",Period1:="&$B$1&",AllowGaps:=0,InputChoice1:=High,InputChoice3:=High)","Bar",, "Close",$C$1,"-1",,,,,"T"),"") -> 258.39 | E55: =IFERROR(RTD("cqg.rtd",,"StudyData","LoLevel("&A55&",Period2:="&$B$1&",AllowGaps:=0,InputChoice2:=Low,InputChoice4:=Low)","Bar",, "Close",$C$1,"-1",,,,,"T"),"") -> 167.58 | F55: 0 | G55: 0 | H55: 2.013 | I55: 1.026 | J55: S.US.BA | K55: =RTD("cqg.rtd", ,"ContractData",A55, "PerCentNetLastTrade",, "T")/100 -> -0.005166538419 | L55: =RANK($K55,$K$2:K$506)+COUNTIF($K$2:K55,K55)-1 ->  | M55: S.US.BA | N55: 54 | P55: =RTD("cqg.rtd", ,"ContractData",O55, "PerCentNetLastTrade",, "T")/100 ->  | S55: 54
A56: =Symbols!A56 -> S.US.BAC | B56: =IFERROR(RTD("cqg.rtd",,"StudyData",A56,"Bar",, "High",$C$1,"0",,,,,"T"),"") -> 38.61 | C56: =IFERROR(RTD("cqg.rtd",,"StudyData",A56,"Bar",, "Low",$C$1,"0",,,,,"T"),"") -> 37.22 | D56: =IFERROR(RTD("cqg.rtd",,"StudyData","HiLevel("&A56&",Period1:="&$B$1&",AllowGaps:=0,InputChoice1:=High,InputChoice3:=High)","Bar",, "Close",$C$1,"-1",,,,,"T"),"") -> 50.11 | E56: =IFERROR(RTD("cqg.rtd",,"StudyData","LoLevel("&A56&",Period2:="&$B$1&",AllowGaps:=0,InputChoice2:=Low,InputChoice4:=Low)","Bar",, "Close",$C$1,"-1",,,,,"T"),"") -> 36.51 | F56: 0 | G56: 0 | H56: 2.014 | I56: 1.027 | J56: S.US.BAC | K56: =RTD("cqg.rtd", ,"ContractData",A56, "PerCentNetLastTrade",, "T")/100 -> 0.02635081182 | L56: =RANK($K56,$K$2:K$506)+COUNTIF($K$2:K56,K56)-1 ->  | M56: S.US.BAC | N56: 55 | P56: =RTD("cqg.rtd", ,"ContractData",O56, "PerCentNetLastTrade",, "T")/100 ->  | S56: 55
A57: =Symbols!A57 -> S.US.BAX | B57: =IFERROR(RTD("cqg.rtd",,"StudyData",A57,"Bar",, "High",$C$1,"0",,,,,"T"),"") -> 76.37 | C57: =IFERROR(RTD("cqg.rtd",,"StudyData",A57,"Bar",, "Low",$C$1,"0",,,,,"T"),"") -> 75.94 | D57: =IFERROR(RTD("cqg.rtd",,"StudyData","HiLevel("&A57&",Period1:="&$B$1&",AllowGaps:=0,InputChoice1:=High,InputChoice3:=High)","Bar",, "Close",$C$1,"-1",,,,,"T"),"") -> 89.7 | E57: =IFERROR(RTD("cqg.rtd",,"StudyData","LoLevel("&A57&",Period2:="&$B$1&",AllowGaps:=0,InputChoice2:=Low,InputChoice4:=Low)","Bar",, "Close",$C$1,"-1",,,,,"T"),"") -> 73.12 | F57: 0 | G57: 0 | H57: 2.015 | I57: 1.028 | J57: S.US.BAX | K57: =RTD("cqg.rtd", ,"ContractData",A57, "PerCentNetLastTrade",, "T")/100 -> -0.005363683935 | L57: =RANK($K57,$K$2:K$506)+COUNTIF($K$2:K57,K57)-1 ->  | M57: S.US.BAX | N57: 56 | P57: =RTD("cqg.rtd", ,"ContractData",O57, "PerCentNetLastTrade",, "T")/100 ->  | S57: 56
A58: =Symbols!A58 -> S.US.BBWI | B58: =IFERROR(RTD("cqg.rtd",,"StudyData",A58,"Bar",, "High",$C$1,"0",,,,,"T"),"") -> 52.98 | C58: =IFERROR(RTD("cqg.rtd",,"StudyData",A58,"Bar",, "Low",$C$1,"0",,,,,"T"),"") -> 52.09 | D58: =IFERROR(RTD("cqg.rtd",,"StudyData","HiLevel("&A58&",Period1:="&$B$1&",AllowGaps:=0,InputChoice1:=High,InputChoice3:=High)","Bar",, "Close",$C$1,"-1",,,,,"T"),"") -> 82 | E58: =IFERROR(RTD("cqg.rtd",,"StudyData","LoLevel("&A58&",Period2:="&$B$1&",AllowGaps:=0,InputChoice2:=Low,InputChoice4:=Low)","Bar",, "Close",$C$1,"-1",,,,,"T"),"") -> 44.17 | F58: 0 | G58: 0 | H58: 2.016 | I58: 1.029 | J58: S.US.BBWI | K58: =RTD("cqg.rtd", ,"ContractData",A58, "PerCentNetLastTrade",, "T")/100 -> 0.009388771795 | L58: =RANK($K58,$K$2:K$506)+COUNTIF($K$2:K58,K58)-1 ->  | M58: S.US.BBWI | N58: 57 | P58: =RTD("cqg.rtd", ,"ContractData",O58, "PerCentNetLastTrade",, "T")/100 ->  | S58: 57
A59: =Symbols!A59 -> S.US.BBY | B59: =IFERROR(RTD("cqg.rtd",,"StudyData",A59,"Bar",, "High",$C$1,"0",,,,,"T"),"") -> 94.51 | C59: =IFERROR(RTD("cqg.rtd",,"StudyData",A59,"Bar",, "Low",$C$1,"0",,,,,"T"),"") -> 92.76 | D59: =IFERROR(RTD("cqg.rtd",,"StudyData","HiLevel("&A59&",Period1:="&$B$1&",AllowGaps:=0,InputChoice1:=High,InputChoice3:=High)","Bar",, "Close",$C$1,"-1",,,,,"T"),"") -> 141.97 | E59: =IFERROR(RTD("cqg.rtd",,"StudyData","LoLevel("&A59&",Period2:="&$B$1&",AllowGaps:=0,InputChoice2:=Low,InputChoice4:=Low)","Bar",, "Close",$C$1,"-1",,,,,"T"),"") -> 85.58 | F59: 0 | G59: 0 | H59: 2.017 | I59: 1.03 | J59: S.US.BBY | K59: =RTD("cqg.rtd", ,"ContractData",A59, "PerCentNetLastTrade",, "T")/100 -> -0.009377664109 | L59: =RANK($K59,$K$2:K$506)+COUNTIF($K$2:K59,K59)-1 ->  | M59: S.US.BBY | N59: 58 | P59: =RTD("cqg.rtd", ,"ContractData",O59, "PerCentNetLastTrade",, "T")/100 ->  | S59: 58
A60: =Symbols!A60 -> S.US.BDX | B60: =IFERROR(RTD("cqg.rtd",,"StudyData",A60,"Bar",, "High",$C$1,"0",,,,,"T"),"") -> 272.17 | C60: =IFERROR(RTD("cqg.rtd",,"StudyData",A60,"Bar",, "Low",$C$1,"0",,,,,"T"),"") -> 270.68 | D60: =IFERROR(RTD("cqg.rtd",,"StudyData","HiLevel("&A60&",Period1:="&$B$1&",AllowGaps:=0,InputChoice1:=High,InputChoice3:=High)","Bar",, "Close",$C$1,"-1",,,,,"T"),"") -> 280.62 | E60: =IFERROR(RTD("cqg.rtd",,"StudyData","LoLevel("&A60&",Period2:="&$B$1&",AllowGaps:=0,InputChoice2:=Low,InputChoice4:=Low)","Bar",, "Close",$C$1,"-1",,,,,"T"),"") -> 235.13 | F60: 0 | G60: 0 | H60: 2.018 | I60: 1.031 | J60: S.US.BDX | K60: =RTD("cqg.rtd", ,"ContractData",A60, "PerCentNetLastTrade",, "T")/100 -> -0.003680800942 | L60: =RANK($K60,$K$2:K$506)+COUNTIF($K$2:K60,K60)-1 ->  | M60: S.US.BDX | N60: 59 | P60: =RTD("cqg.rtd", ,"ContractData",O60, "PerCentNetLastTrade",, "T")/100 ->  | S60: 59
A61: =Symbols!A61 -> S.US.BEN | B61: =IFERROR(RTD("cqg.rtd",,"StudyData",A61,"Bar",, "High",$C$1,"0",,,,,"T"),"") -> 25.65 | C61: =IFERROR(RTD("cqg.rtd",,"StudyData",A61,"Bar",, "Low",$C$1,"0",,,,,"T"),"") -> 25.38 | D61: =IFERROR(RTD("cqg.rtd",,"StudyData","HiLevel("&A61&",Period1:="&$B$1&",AllowGaps:=0,InputChoice1:=High,InputChoice3:=High)","Bar",, "Close",$C$1,"-1",,,,,"T"),"") -> 38.27 | E61: =IFERROR(RTD("cqg.rtd",,"StudyData","LoLevel("&A61&",Period2:="&$B$1&",AllowGaps:=0,InputChoice2:=Low,InputChoice4:=Low)","Bar",, "Close",$C$1,"-1",,,,,"T"),"") -> 25.45 | F61: 0 | G61: 1 | H61: 2.019 | I61: 2 | J61: S.US.BEN | K61: =RTD("cqg.rtd", ,"ContractData",A61, "PerCentNetLastTrade",, "T")/100 -> 0.001564333203 | L61: =RANK($K61,$K$2:K$506)+COUNTIF($K$2:K61,K61)-1 ->  | M61: S.US.BEN | N61: 60 | P61: =RTD("cqg.rtd", ,"ContractData",O61, "PerCentNetLastTrade",, "T")/100 ->  | S61: 60
A62: =Symbols!A62 -> S.US.BF.B | B62: =IFERROR(RTD("cqg.rtd",,"StudyData",A62,"Bar",, "High",$C$1,"0",,,,,"T"),"") -> 777: Bars Message -> Not found: S.US.BF.B : Bar on Bar,S.US.BF.B | C62: =IFERROR(RTD("cqg.rtd",,"StudyData",A62,"Bar",, "Low",$C$1,"0",,,,,"T"),"") -> 777: Bars Message -> Not found: S.US.BF.B : Bar on Bar,S.US.BF.B | D62: =IFERROR(RTD("cqg.rtd",,"StudyData","HiLevel("&A62&",Period1:="&$B$1&",AllowGaps:=0,InputChoice1:=High,InputChoice3:=High)","Bar",, "Close",$C$1,"-1",,,,,"T"),"") -> 777: Bars Message -> Not found: S.US.BF.B : Bar on Bar,HiLevel(S.US.BF.B,Period1:=52,AllowGaps:=0,InputChoice1:=High,InputChoice3:=High) | E62: =IFERROR(RTD("cqg.rtd",,"StudyData","LoLevel("&A62&",Period2:="&$B$1&",AllowGaps:=0,InputChoice2:=Low,InputChoice4:=Low)","Bar",, "Close",$C$1,"-1",,,,,"T"),"") -> 777: Bars Message -> Not found: S.US.BF.B : Bar on Bar,LoLevel(S.US.BF.B,Period2:=52,AllowGaps:=0,InputChoice2:=Low,InputChoice4:=Low) | F62: 1 | G62: 0 | H62: 3 | I62: 2.001 | J62: S.US.BF.B | K62: =RTD("cqg.rtd", ,"ContractData",A62, "PerCentNetLastTrade",, "T")/100 ->  | L62: =RANK($K62,$K$2:K$506)+COUNTIF($K$2:K62,K62)-1 ->  | M62: S.US.BF.B | N62: 61 | P62: =RTD("cqg.rtd", ,"ContractData",O62, "PerCentNetLastTrade",, "T")/100 ->  | S62: 61
A63: =Symbols!A63 -> S.US.BIIB | B63: =IFERROR(RTD("cqg.rtd",,"StudyData",A63,"Bar",, "High",$C$1,"0",,,,,"T"),"") -> 217.66 | C63: =IFERROR(RTD("cqg.rtd",,"StudyData",A63,"Bar",, "Low",$C$1,"0",,,,,"T"),"") -> 214.88 | D63: =IFERROR(RTD("cqg.rtd",,"StudyData","HiLevel("&A63&",Period1:="&$B$1&",AllowGaps:=0,InputChoice1:=High,InputChoice3:=High)","Bar",, "Close",$C$1,"-1",,,,,"T"),"") -> 468.55 | E63: =IFERROR(RTD("cqg.rtd",,"StudyData","LoLevel("&A63&",Period2:="&$B$1&",AllowGaps:=0,InputChoice2:=Low,InputChoice4:=Low)","Bar",, "Close",$C$1,"-1",,,,,"T"),"") -> 192.67 | F63: 0 | G63: 0 | H63: 3.001 | I63: 2.002 | J63: S.US.BIIB | K63: =RTD("cqg.rtd", ,"ContractData",A63, "PerCentNetLastTrade",, "T")/100 -> 0.01096212656 | L63: =RANK($K63,$K$2:K$506)+COUNTIF($K$2:K63,K63)-1 ->  | M63: S.US.BIIB | N63: 62 | P63: =RTD("cqg.rtd", ,"ContractData",O63, "PerCentNetLastTrade",, "T")/100 ->  | S63: 62
A64: =Symbols!A64 -> S.US.BIO | B64: =IFERROR(RTD("cqg.rtd",,"StudyData",A64,"Bar",, "High",$C$1,"0",,,,,"T"),"") -> 544.94 | C64: =IFERROR(RTD("cqg.rtd",,"StudyData",A64,"Bar",, "Low",$C$1,"0",,,,,"T"),"") -> 542.65 | D64: =IFERROR(RTD("cqg.rtd",,"StudyData","HiLevel("&A64&",Period1:="&$B$1&",AllowGaps:=0,InputChoice1:=High,InputChoice3:=High)","Bar",, "Close",$C$1,"-1",,,,,"T"),"") -> 832.7 | E64: =IFERROR(RTD("cqg.rtd",,"StudyData","LoLevel("&A64&",Period2:="&$B$1&",AllowGaps:=0,InputChoice2:=Low,InputChoice4:=Low)","Bar",, "Close",$C$1,"-1",,,,,"T"),"") -> 524.19 | F64: 0 | G64: 0 | H64: 3.002 | I64: 2.003 | J64: S.US.BIO | K64: =RTD("cqg.rtd", ,"ContractData",A64, "PerCentNetLastTrade",, "T")/100 -> -0.005928601397 | L64: =RANK($K64,$K$2:K$506)+COUNTIF($K$2:K64,K64)-1 ->  | M64: S.US.BIO | N64: 63 | P64: =RTD("cqg.rtd", ,"ContractData",O64, "PerCentNetLastTrade",, "T")/100 ->  | S64: 63
A65: =Symbols!A65 -> S.US.BK | B65: =IFERROR(RTD("cqg.rtd",,"StudyData",A65,"Bar",, "High",$C$1,"0",,,,,"T"),"") -> 46.66 | C65: =IFERROR(RTD("cqg.rtd",,"StudyData",A65,"Bar",, "Low",$C$1,"0",,,,,"T"),"") -> 44.98 | D65: =IFERROR(RTD("cqg.rtd",,"StudyData","HiLevel("&A65&",Period1:="&$B$1&",AllowGaps:=0,InputChoice1:=High,InputChoice3:=High)","Bar",, "Close",$C$1,"-1",,,,,"T"),"") -> 64.63 | E65: =IFERROR(RTD("cqg.rtd",,"StudyData","LoLevel("&A65&",Period2:="&$B$1&",AllowGaps:=0,InputChoice2:=Low,InputChoice4:=Low)","Bar",, "Close",$C$1,"-1",,,,,"T"),"") -> 46.13 | F65: 0 | G65: 1 | H65: 3.003 | I65: 3 | J65: S.US.BK | K65: =RTD("cqg.rtd", ,"ContractData",A65, "PerCentNetLastTrade",, "T")/100 -> -0.02241488687 | L65: =RANK($K65,$K$2:K$506)+COUNTIF($K$2:K65,K65)-1 ->  | M65: S.US.BK | N65: 64 | P65: =RTD("cqg.rtd", ,"ContractData",O65, "PerCentNetLastTrade",, "T")/100 ->  | S65: 64
A66: =Symbols!A66 -> S.US.BKNG | B66: =IFERROR(RTD("cqg.rtd",,"StudyData",A66,"Bar",, "High",$C$1,"0",,,,,"T"),"") -> 2224.96 | C66: =IFERROR(RTD("cqg.rtd",,"StudyData",A66,"Bar",, "Low",$C$1,"0",,,,,"T"),"") -> 2205.13 | D66: =IFERROR(RTD("cqg.rtd",,"StudyData","HiLevel("&A66&",Period1:="&$B$1&",AllowGaps:=0,InputChoice1:=High,InputChoice3:=High)","Bar",, "Close",$C$1,"-1",,,,,"T"),"") -> 2715.66 | E66: =IFERROR(RTD("cqg.rtd",,"StudyData","LoLevel("&A66&",Period2:="&$B$1&",AllowGaps:=0,InputChoice2:=Low,InputChoice4:=Low)","Bar",, "Close",$C$1,"-1",,,,,"T"),"") -> 1796.45 | F66: 0 | G66: 0 | H66: 3.004 | I66: 3.001 | J66: S.US.BKNG | K66: =RTD("cqg.rtd", ,"ContractData",A66, "PerCentNetLastTrade",, "T")/100 -> -0.009096255988 | L66: =RANK($K66,$K$2:K$506)+COUNTIF($K$2:K66,K66)-1 ->  | M66: S.US.BKNG | N66: 65 | O66: =IFERROR(VLOOKUP(N66,$L$2:$M$506,2,FALSE),"") ->  | P66: =RTD("cqg.rtd", ,"ContractData",O66, "PerCentNetLastTrade",, "T")/100 ->  | Q66: =VLOOKUP(O66,$A$2:$H$506,8,FALSE) ->  | S66: 65 | T66: =IFERROR(VLOOKUP(S66,$H$2:$J$506,3,FALSE),"") -> 
A67: =Symbols!A67 -> S.US.BKR | B67: =IFERROR(RTD("cqg.rtd",,"StudyData",A67,"Bar",, "High",$C$1,"0",,,,,"T"),"") -> 37.9 | C67: =IFERROR(RTD("cqg.rtd",,"StudyData",A67,"Bar",, "Low",$C$1,"0",,,,,"T"),"") -> 37.22 | D67: =IFERROR(RTD("cqg.rtd",,"StudyData","HiLevel("&A67&",Period1:="&$B$1&",AllowGaps:=0,InputChoice1:=High,InputChoice3:=High)","Bar",, "Close",$C$1,"-1",,,,,"T"),"") -> 39.78 | E67: =IFERROR(RTD("cqg.rtd",,"StudyData","LoLevel("&A67&",Period2:="&$B$1&",AllowGaps:=0,InputChoice2:=Low,InputChoice4:=Low)","Bar",, "Close",$C$1,"-1",,,,,"T"),"") -> 18.75 | F67: =IF(B67="",0,IFERROR(IF(B67>D67,1,0),"")) -> 0 | G67: =IF(C67="",0,IFERROR(IF(C67<E67,1,0),"")) -> 0 | H67: =IF(F67=1,INT(H66+1),H66+0.001) -> 3.005 | I67: 3.002 | J67: =A67 -> S.US.BKR | K67: =RTD("cqg.rtd", ,"ContractData",A67, "PerCentNetLastTrade",, "T")/100 -> 0.01072673639 | L67: =RANK($K67,$K$2:K$506)+COUNTIF($K$2:K67,K67)-1 ->  | M67: S.US.BKR | N67: 66 | P67: =RTD("cqg.rtd", ,"ContractData",O67, "PerCentNetLastTrade",, "T")/100 ->  | S67: 66
A68: =Symbols!A68 -> S.US.BLK | B68: =IFERROR(RTD("cqg.rtd",,"StudyData",A68,"Bar",, "High",$C$1,"0",,,,,"T"),"") -> 691.49 | C68: =IFERROR(RTD("cqg.rtd",,"StudyData",A68,"Bar",, "Low",$C$1,"0",,,,,"T"),"") -> 687 | D68: =IFERROR(RTD("cqg.rtd",,"StudyData","HiLevel("&A68&",Period1:="&$B$1&",AllowGaps:=0,InputChoice1:=High,InputChoice3:=High)","Bar",, "Close",$C$1,"-1",,,,,"T"),"") -> 973.16 | E68: =IFERROR(RTD("cqg.rtd",,"StudyData","LoLevel("&A68&",Period2:="&$B$1&",AllowGaps:=0,InputChoice2:=Low,InputChoice4:=Low)","Bar",, "Close",$C$1,"-1",,,,,"T"),"") -> 660.15 | F68: 0 | G68: 0 | H68: 3.006 | I68: 3.003 | J68: S.US.BLK | K68: =RTD("cqg.rtd", ,"ContractData",A68, "PerCentNetLastTrade",, "T")/100 -> 0.001206097331 | L68: =RANK($K68,$K$2:K$506)+COUNTIF($K$2:K68,K68)-1 ->  | M68: =J68 -> S.US.BLK | N68: =N67+1 -> 67 | P68: =RTD("cqg.rtd", ,"ContractData",O68, "PerCentNetLastTrade",, "T")/100 ->  | S68: =S67+1 -> 67
A69: =Symbols!A69 -> S.US.BLL | B69: =IFERROR(RTD("cqg.rtd",,"StudyData",A69,"Bar",, "High",$C$1,"0",,,,,"T"),"") -> 87.69 | C69: =IFERROR(RTD("cqg.rtd",,"StudyData",A69,"Bar",, "Low",$C$1,"0",,,,,"T"),"") -> 86.85 | D69: =IFERROR(RTD("cqg.rtd",,"StudyData","HiLevel("&A69&",Period1:="&$B$1&",AllowGaps:=0,InputChoice1:=High,InputChoice3:=High)","Bar",, "Close",$C$1,"-1",,,,,"T"),"") -> 98.09 | E69: =IFERROR(RTD("cqg.rtd",,"StudyData","LoLevel("&A69&",Period2:="&$B$1&",AllowGaps:=0,InputChoice2:=Low,InputChoice4:=Low)","Bar",, "Close",$C$1,"-1",,,,,"T"),"") -> 77.95 | F69: 0 | G69: 0 | H69: 3.007 | I69: 3.004 | J69: S.US.BLL | K69: =RTD("cqg.rtd", ,"ContractData",A69, "PerCentNetLastTrade",, "T")/100 -> 0.0003442340792 | L69: =RANK($K69,$K$2:K$506)+COUNTIF($K$2:K69,K69)-1 ->  | M69: S.US.BLL | N69: 68 | P69: =RTD("cqg.rtd", ,"ContractData",O69, "PerCentNetLastTrade",, "T")/100 ->  | S69: 68
A70: =Symbols!A70 -> S.US.BMY | B70: =IFERROR(RTD("cqg.rtd",,"StudyData",A70,"Bar",, "High",$C$1,"0",,,,,"T"),"") -> 77.15 | C70: =IFERROR(RTD("cqg.rtd",,"StudyData",A70,"Bar",, "Low",$C$1,"0",,,,,"T"),"") -> 76.63 | D70: =IFERROR(RTD("cqg.rtd",,"StudyData","HiLevel("&A70&",Period1:="&$B$1&",AllowGaps:=0,InputChoice1:=High,InputChoice3:=High)","Bar",, "Close",$C$1,"-1",,,,,"T"),"") -> 78.13 | E70: =IFERROR(RTD("cqg.rtd",,"StudyData","LoLevel("&A70&",Period2:="&$B$1&",AllowGaps:=0,InputChoice2:=Low,InputChoice4:=Low)","Bar",, "Close",$C$1,"-1",,,,,"T"),"") -> 53.22 | F70: 0 | G70: 0 | H70: 3.008 | I70: 3.005 | J70: S.US.BMY | K70: =RTD("cqg.rtd", ,"ContractData",A70, "PerCentNetLastTrade",, "T")/100 -> -0.006450780544 | L70: =RANK($K70,$K$2:K$506)+COUNTIF($K$2:K70,K70)-1 ->  | M70: S.US.BMY | N70: 69 | P70: =RTD("cqg.rtd", ,"ContractData",O70, "PerCentNetLastTrade",, "T")/100 ->  | S70: 69
A71: =Symbols!A71 -> S.US.BR | B71: =IFERROR(RTD("cqg.rtd",,"StudyData",A71,"Bar",, "High",$C$1,"0",,,,,"T"),"") -> 153.64 | C71: =IFERROR(RTD("cqg.rtd",,"StudyData",A71,"Bar",, "Low",$C$1,"0",,,,,"T"),"") -> 152.49 | D71: =IFERROR(RTD("cqg.rtd",,"StudyData","HiLevel("&A71&",Period1:="&$B$1&",AllowGaps:=0,InputChoice1:=High,InputChoice3:=High)","Bar",, "Close",$C$1,"-1",,,,,"T"),"") -> 185.4 | E71: =IFERROR(RTD("cqg.rtd",,"StudyData","LoLevel("&A71&",Period2:="&$B$1&",AllowGaps:=0,InputChoice2:=Low,InputChoice4:=Low)","Bar",, "Close",$C$1,"-1",,,,,"T"),"") -> 137.57 | F71: 0 | G71: 0 | H71: 3.009 | I71: 3.006 | J71: S.US.BR | K71: =RTD("cqg.rtd", ,"ContractData",A71, "PerCentNetLastTrade",, "T")/100 -> -0.0005211047421 | L71: =RANK($K71,$K$2:K$506)+COUNTIF($K$2:K71,K71)-1 ->  | M71: S.US.BR | N71: 70 | P71: =RTD("cqg.rtd", ,"ContractData",O71, "PerCentNetLastTrade",, "T")/100 ->  | S71: 70
A72: =Symbols!A72 -> S.US.BRK.B | B72: =IFERROR(RTD("cqg.rtd",,"StudyData",A72,"Bar",, "High",$C$1,"0",,,,,"T"),"") -> 777: Bars Message -> Not found: S.US.BRK.B : Bar on Bar,S.US.BRK.B | C72: =IFERROR(RTD("cqg.rtd",,"StudyData",A72,"Bar",, "Low",$C$1,"0",,,,,"T"),"") -> 777: Bars Message -> Not found: S.US.BRK.B : Bar on Bar,S.US.BRK.B | D72: =IFERROR(RTD("cqg.rtd",,"StudyData","HiLevel("&A72&",Period1:="&$B$1&",AllowGaps:=0,InputChoice1:=High,InputChoice3:=High)","Bar",, "Close",$C$1,"-1",,,,,"T"),"") -> 777: Bars Message -> Not found: S.US.BRK.B : Bar on Bar,HiLevel(S.US.BRK.B,Period1:=52,AllowGaps:=0,InputChoice1:=High,InputChoice3:=High) | E72: =IFERROR(RTD("cqg.rtd",,"StudyData","LoLevel("&A72&",Period2:="&$B$1&",AllowGaps:=0,InputChoice2:=Low,InputChoice4:=Low)","Bar",, "Close",$C$1,"-1",,,,,"T"),"") -> 777: Bars Message -> Not found: S.US.BRK.B : Bar on Bar,LoLevel(S.US.BRK.B,Period2:=52,AllowGaps:=0,InputChoice2:=Low,InputChoice4:=Low) | F72: 1 | G72: 0 | H72: 4 | I72: 3.007 | J72: S.US.BRK.B | K72: =RTD("cqg.rtd", ,"ContractData",A72, "PerCentNetLastTrade",, "T")/100 ->  | L72: =RANK($K72,$K$2:K$506)+COUNTIF($K$2:K72,K72)-1 ->  | M72: S.US.BRK.B | N72: 71 | P72: =RTD("cqg.rtd", ,"ContractData",O72, "PerCentNetLastTrade",, "T")/100 ->  | S72: 71
A73: =Symbols!A73 -> S.US.BRO | B73: =IFERROR(RTD("cqg.rtd",,"StudyData",A73,"Bar",, "High",$C$1,"0",,,,,"T"),"") -> 71.08 | C73: =IFERROR(RTD("cqg.rtd",,"StudyData",A73,"Bar",, "Low",$C$1,"0",,,,,"T"),"") -> 70.43 | D73: =IFERROR(RTD("cqg.rtd",,"StudyData","HiLevel("&A73&",Period1:="&$B$1&",AllowGaps:=0,InputChoice1:=High,InputChoice3:=High)","Bar",, "Close",$C$1,"-1",,,,,"T"),"") -> 74 | E73: =IFERROR(RTD("cqg.rtd",,"StudyData","LoLevel("&A73&",Period2:="&$B$1&",AllowGaps:=0,InputChoice2:=Low,InputChoice4:=Low)","Bar",, "Close",$C$1,"-1",,,,,"T"),"") -> 49.15 | F73: 0 | G73: 0 | H73: 4.001 | I73: 3.008 | J73: S.US.BRO | K73: =RTD("cqg.rtd", ,"ContractData",A73, "PerCentNetLastTrade",, "T")/100 -> -0.006735896716 | L73: =RANK($K73,$K$2:K$506)+COUNTIF($K$2:K73,K73)-1 ->  | M73: S.US.BRO | N73: 72 | P73: =RTD("cqg.rtd", ,"ContractData",O73, "PerCentNetLastTrade",, "T")/100 ->  | S73: 72
A74: =Symbols!A74 -> S.US.BSX | B74: =IFERROR(RTD("cqg.rtd",,"StudyData",A74,"Bar",, "High",$C$1,"0",,,,,"T"),"") -> 44.56 | C74: =IFERROR(RTD("cqg.rtd",,"StudyData",A74,"Bar",, "Low",$C$1,"0",,,,,"T"),"") -> 44.13 | D74: =IFERROR(RTD("cqg.rtd",,"StudyData","HiLevel("&A74&",Period1:="&$B$1&",AllowGaps:=0,InputChoice1:=High,InputChoice3:=High)","Bar",, "Close",$C$1,"-1",,,,,"T"),"") -> 46.28 | E74: =IFERROR(RTD("cqg.rtd",,"StudyData","LoLevel("&A74&",Period2:="&$B$1&",AllowGaps:=0,InputChoice2:=Low,InputChoice4:=Low)","Bar",, "Close",$C$1,"-1",,,,,"T"),"") -> 37.96 | F74: 0 | G74: 0 | H74: 4.002 | I74: 3.009 | J74: S.US.BSX | K74: =RTD("cqg.rtd", ,"ContractData",A74, "PerCentNetLastTrade",, "T")/100 -> -0.0002259887006 | L74: =RANK($K74,$K$2:K$506)+COUNTIF($K$2:K74,K74)-1 ->  | M74: S.US.BSX | N74: 73 | P74: =RTD("cqg.rtd", ,"ContractData",O74, "PerCentNetLastTrade",, "T")/100 ->  | S74: 73
A75: =Symbols!A75 -> S.US.BWA | B75: =IFERROR(RTD("cqg.rtd",,"StudyData",A75,"Bar",, "High",$C$1,"0",,,,,"T"),"") -> 37.31 | C75: =IFERROR(RTD("cqg.rtd",,"StudyData",A75,"Bar",, "Low",$C$1,"0",,,,,"T"),"") -> 36.76 | D75: =IFERROR(RTD("cqg.rtd",,"StudyData","HiLevel("&A75&",Period1:="&$B$1&",AllowGaps:=0,InputChoice1:=High,InputChoice3:=High)","Bar",, "Close",$C$1,"-1",,,,,"T"),"") -> 55.55 | E75: =IFERROR(RTD("cqg.rtd",,"StudyData","LoLevel("&A75&",Period2:="&$B$1&",AllowGaps:=0,InputChoice2:=Low,InputChoice4:=Low)","Bar",, "Close",$C$1,"-1",,,,,"T"),"") -> 34.85 | F75: 0 | G75: 0 | H75: 4.003 | I75: 3.01 | J75: S.US.BWA | K75: =RTD("cqg.rtd", ,"ContractData",A75, "PerCentNetLastTrade",, "T")/100 -> -0.000270197244 | L75: =RANK($K75,$K$2:K$506)+COUNTIF($K$2:K75,K75)-1 ->  | M75: S.US.BWA | N75: 74 | P75: =RTD("cqg.rtd", ,"ContractData",O75, "PerCentNetLastTrade",, "T")/100 ->  | S75: 74
A76: =Symbols!A76 -> S.US.BXP | B76: =IFERROR(RTD("cqg.rtd",,"StudyData",A76,"Bar",, "High",$C$1,"0",,,,,"T"),"") -> 125.59 | C76: =IFERROR(RTD("cqg.rtd",,"StudyData",A76,"Bar",, "Low",$C$1,"0",,,,,"T"),"") -> 124.83 | D76: =IFERROR(RTD("cqg.rtd",,"StudyData","HiLevel("&A76&",Period1:="&$B$1&",AllowGaps:=0,InputChoice1:=High,InputChoice3:=High)","Bar",, "Close",$C$1,"-1",,,,,"T"),"") -> 133.11 | E76: =IFERROR(RTD("cqg.rtd",,"StudyData","LoLevel("&A76&",Period2:="&$B$1&",AllowGaps:=0,InputChoice2:=Low,InputChoice4:=Low)","Bar",, "Close",$C$1,"-1",,,,,"T"),"") -> 103.2 | F76: 0 | G76: 0 | H76: 4.004 | I76: 3.011 | J76: S.US.BXP | K76: =RTD("cqg.rtd", ,"ContractData",A76, "PerCentNetLastTrade",, "T")/100 -> 0.004173689702 | L76: =RANK($K76,$K$2:K$506)+COUNTIF($K$2:K76,K76)-1 ->  | M76: S.US.BXP | N76: 75 | P76: =RTD("cqg.rtd", ,"ContractData",O76, "PerCentNetLastTrade",, "T")/100 ->  | S76: 75
A77: =Symbols!A77 -> S.US.C | B77: =IFERROR(RTD("cqg.rtd",,"StudyData",A77,"Bar",, "High",$C$1,"0",,,,,"T"),"") -> 52.01 | C77: =IFERROR(RTD("cqg.rtd",,"StudyData",A77,"Bar",, "Low",$C$1,"0",,,,,"T"),"") -> 50.78 | D77: =IFERROR(RTD("cqg.rtd",,"StudyData","HiLevel("&A77&",Period1:="&$B$1&",AllowGaps:=0,InputChoice1:=High,InputChoice3:=High)","Bar",, "Close",$C$1,"-1",,,,,"T"),"") -> 80.29 | E77: =IFERROR(RTD("cqg.rtd",,"StudyData","LoLevel("&A77&",Period2:="&$B$1&",AllowGaps:=0,InputChoice2:=Low,InputChoice4:=Low)","Bar",, "Close",$C$1,"-1",,,,,"T"),"") -> 49.04 | F77: 0 | G77: 0 | H77: 4.005 | I77: 3.012 | J77: S.US.C | K77: =RTD("cqg.rtd", ,"ContractData",A77, "PerCentNetLastTrade",, "T")/100 -> 0.019242097 | L77: =RANK($K77,$K$2:K$506)+COUNTIF($K$2:K77,K77)-1 ->  | M77: S.US.C | N77: 76 | P77: =RTD("cqg.rtd", ,"ContractData",O77, "PerCentNetLastTrade",, "T")/100 ->  | S77: 76
A78: =Symbols!A78 -> S.US.CAG | B78: =IFERROR(RTD("cqg.rtd",,"StudyData",A78,"Bar",, "High",$C$1,"0",,,,,"T"),"") -> 35.69 | C78: =IFERROR(RTD("cqg.rtd",,"StudyData",A78,"Bar",, "Low",$C$1,"0",,,,,"T"),"") -> 35.49 | D78: =IFERROR(RTD("cqg.rtd",,"StudyData","HiLevel("&A78&",Period1:="&$B$1&",AllowGaps:=0,InputChoice1:=High,InputChoice3:=High)","Bar",, "Close",$C$1,"-1",,,,,"T"),"") -> 39.09 | E78: =IFERROR(RTD("cqg.rtd",,"StudyData","LoLevel("&A78&",Period2:="&$B$1&",AllowGaps:=0,InputChoice2:=Low,InputChoice4:=Low)","Bar",, "Close",$C$1,"-1",,,,,"T"),"") -> 30.06 | F78: 0 | G78: 0 | H78: 4.006 | I78: 3.013 | J78: S.US.CAG | K78: =RTD("cqg.rtd", ,"ContractData",A78, "PerCentNetLastTrade",, "T")/100 -> -0.0002807411567 | L78: =RANK($K78,$K$2:K$506)+COUNTIF($K$2:K78,K78)-1 ->  | M78: S.US.CAG | N78: 77 | P78: =RTD("cqg.rtd", ,"ContractData",O78, "PerCentNetLastTrade",, "T")/100 ->  | S78: 77
A79: =Symbols!A79 -> S.US.CAH | B79: =IFERROR(RTD("cqg.rtd",,"StudyData",A79,"Bar",, "High",$C$1,"0",,,,,"T"),"") -> 63.67 | C79: =IFERROR(RTD("cqg.rtd",,"StudyData",A79,"Bar",, "Low",$C$1,"0",,,,,"T"),"") -> 62.55 | D79: =IFERROR(RTD("cqg.rtd",,"StudyData","HiLevel("&A79&",Period1:="&$B$1&",AllowGaps:=0,InputChoice1:=High,InputChoice3:=High)","Bar",, "Close",$C$1,"-1",,,,,"T"),"") -> 64.12 | E79: =IFERROR(RTD("cqg.rtd",,"StudyData","LoLevel("&A79&",Period2:="&$B$1&",AllowGaps:=0,InputChoice2:=Low,InputChoice4:=Low)","Bar",, "Close",$C$1,"-1",,,,,"T"),"") -> 45.85 | F79: 0 | G79: 0 | H79: 4.007 | I79: 3.014 | J79: S.US.CAH | K79: =RTD("cqg.rtd", ,"ContractData",A79, "PerCentNetLastTrade",, "T")/100 -> 0.007782719187 | L79: =RANK($K79,$K$2:K$506)+COUNTIF($K$2:K79,K79)-1 ->  | M79: S.US.CAH | N79: 78 | P79: =RTD("cqg.rtd", ,"ContractData",O79, "PerCentNetLastTrade",, "T")/100 ->  | S79: 78
A80: =Symbols!A80 -> S.US.CARR | B80: =IFERROR(RTD("cqg.rtd",,"StudyData",A80,"Bar",, "High",$C$1,"0",,,,,"T"),"") -> 41.75 | C80: =IFERROR(RTD("cqg.rtd",,"StudyData",A80,"Bar",, "Low",$C$1,"0",,,,,"T"),"") -> 41.13 | D80: =IFERROR(RTD("cqg.rtd",,"StudyData","HiLevel("&A80&",Period1:="&$B$1&",AllowGaps:=0,InputChoice1:=High,InputChoice3:=High)","Bar",, "Close",$C$1,"-1",,,,,"T"),"") -> 58.89 | E80: =IFERROR(RTD("cqg.rtd",,"StudyData","LoLevel("&A80&",Period2:="&$B$1&",AllowGaps:=0,InputChoice2:=Low,InputChoice4:=Low)","Bar",, "Close",$C$1,"-1",,,,,"T"),"") -> 41.27 | F80: 0 | G80: 1 | H80: 4.008 | I80: 4 | J80: S.US.CARR | K80: =RTD("cqg.rtd", ,"ContractData",A80, "PerCentNetLastTrade",, "T")/100 -> 0.006782945736 | L80: =RANK($K80,$K$2:K$506)+COUNTIF($K$2:K80,K80)-1 ->  | M80: S.US.CARR | N80: 79 | P80: =RTD("cqg.rtd", ,"ContractData",O80, "PerCentNetLastTrade",, "T")/100 ->  | S80: 79
A81: =Symbols!A81 -> S.US.CAT | B81: =IFERROR(RTD("cqg.rtd",,"StudyData",A81,"Bar",, "High",$C$1,"0",,,,,"T"),"") -> 233.26 | C81: =IFERROR(RTD("cqg.rtd",,"StudyData",A81,"Bar",, "Low",$C$1,"0",,,,,"T"),"") -> 228 | D81: =IFERROR(RTD("cqg.rtd",,"StudyData","HiLevel("&A81&",Period1:="&$B$1&",AllowGaps:=0,InputChoice1:=High,InputChoice3:=High)","Bar",, "Close",$C$1,"-1",,,,,"T"),"") -> 246.69 | E81: =IFERROR(RTD("cqg.rtd",,"StudyData","LoLevel("&A81&",Period2:="&$B$1&",AllowGaps:=0,InputChoice2:=Low,InputChoice4:=Low)","Bar",, "Close",$C$1,"-1",,,,,"T"),"") -> 179.67 | F81: 0 | G81: 0 | H81: 4.009 | I81: 4.001 | J81: S.US.CAT | K81: =RTD("cqg.rtd", ,"ContractData",A81, "PerCentNetLastTrade",, "T")/100 -> 0.02229928449 | L81: =RANK($K81,$K$2:K$506)+COUNTIF($K$2:K81,K81)-1 ->  | M81: S.US.CAT | N81: 80 | P81: =RTD("cqg.rtd", ,"ContractData",O81, "PerCentNetLastTrade",, "T")/100 ->  | S81: 80
A82: =Symbols!A82 -> S.US.CB | B82: =IFERROR(RTD("cqg.rtd",,"StudyData",A82,"Bar",, "High",$C$1,"0",,,,,"T"),"") -> 212.16 | C82: =IFERROR(RTD("cqg.rtd",,"StudyData",A82,"Bar",, "Low",$C$1,"0",,,,,"T"),"") -> 209.42 | D82: =IFERROR(RTD("cqg.rtd",,"StudyData","HiLevel("&A82&",Period1:="&$B$1&",AllowGaps:=0,InputChoice1:=High,InputChoice3:=High)","Bar",, "Close",$C$1,"-1",,,,,"T"),"") -> 218.98 | E82: =IFERROR(RTD("cqg.rtd",,"StudyData","LoLevel("&A82&",Period2:="&$B$1&",AllowGaps:=0,InputChoice2:=Low,InputChoice4:=Low)","Bar",, "Close",$C$1,"-1",,,,,"T"),"") -> 155.78 | F82: 0 | G82: 0 | H82: 4.01 | I82: 4.002 | J82: S.US.CB | K82: =RTD("cqg.rtd", ,"ContractData",A82, "PerCentNetLastTrade",, "T")/100 -> 0.006887706631 | L82: =RANK($K82,$K$2:K$506)+COUNTIF($K$2:K82,K82)-1 ->  | M82: S.US.CB | N82: 81 | P82: =RTD("cqg.rtd", ,"ContractData",O82, "PerCentNetLastTrade",, "T")/100 ->  | S82: 81
A83: =Symbols!A83 -> S.US.CBOE | B83: =IFERROR(RTD("cqg.rtd",,"StudyData",A83,"Bar",, "High",$C$1,"0",,,,,"T"),"") -> 119.93 | C83: =IFERROR(RTD("cqg.rtd",,"StudyData",A83,"Bar",, "Low",$C$1,"0",,,,,"T"),"") -> 117.8 | D83: =IFERROR(RTD("cqg.rtd",,"StudyData","HiLevel("&A83&",Period1:="&$B$1&",AllowGaps:=0,InputChoice1:=High,InputChoice3:=High)","Bar",, "Close",$C$1,"-1",,,,,"T"),"") -> 138.99 | E83: =IFERROR(RTD("cqg.rtd",,"StudyData","LoLevel("&A83&",Period2:="&$B$1&",AllowGaps:=0,InputChoice2:=Low,InputChoice4:=Low)","Bar",, "Close",$C$1,"-1",,,,,"T"),"") -> 100.53 | F83: 0 | G83: 0 | H83: 4.011 | I83: 4.003 | J83: S.US.CBOE | K83: =RTD("cqg.rtd", ,"ContractData",A83, "PerCentNetLastTrade",, "T")/100 -> 0.01235830563 | L83: =RANK($K83,$K$2:K$506)+COUNTIF($K$2:K83,K83)-1 ->  | M83: S.US.CBOE | N83: 82 | P83: =RTD("cqg.rtd", ,"ContractData",O83, "PerCentNetLastTrade",, "T")/100 ->  | S83: 82
A84: =Symbols!A84 -> S.US.CBRE | B84: =IFERROR(RTD("cqg.rtd",,"StudyData",A84,"Bar",, "High",$C$1,"0",,,,,"T"),"") -> 86.37 | C84: =IFERROR(RTD("cqg.rtd",,"StudyData",A84,"Bar",, "Low",$C$1,"0",,,,,"T"),"") -> 85.42 | D84: =IFERROR(RTD("cqg.rtd",,"StudyData","HiLevel("&A84&",Period1:="&$B$1&",AllowGaps:=0,InputChoice1:=High,InputChoice3:=High)","Bar",, "Close",$C$1,"-1",,,,,"T"),"") -> 111 | E84: =IFERROR(RTD("cqg.rtd",,"StudyData","LoLevel("&A84&",Period2:="&$B$1&",AllowGaps:=0,InputChoice2:=Low,InputChoice4:=Low)","Bar",, "Close",$C$1,"-1",,,,,"T"),"") -> 79.84 | F84: 0 | G84: 0 | H84: 4.012 | I84: 4.004 | J84: S.US.CBRE | K84: =RTD("cqg.rtd", ,"ContractData",A84, "PerCentNetLastTrade",, "T")/100 -> 0.001870032726 | L84: =RANK($K84,$K$2:K$506)+COUNTIF($K$2:K84,K84)-1 ->  | M84: S.US.CBRE | N84: 83 | P84: =RTD("cqg.rtd", ,"ContractData",O84, "PerCentNetLastTrade",, "T")/100 ->  | S84: 83
A85: =Symbols!A85 -> S.US.CCI | B85: =IFERROR(RTD("cqg.rtd",,"StudyData",A85,"Bar",, "High",$C$1,"0",,,,,"T"),"") -> 193.03 | C85: =IFERROR(RTD("cqg.rtd",,"StudyData",A85,"Bar",, "Low",$C$1,"0",,,,,"T"),"") -> 192.15 | D85: =IFERROR(RTD("cqg.rtd",,"StudyData","HiLevel("&A85&",Period1:="&$B$1&",AllowGaps:=0,InputChoice1:=High,InputChoice3:=High)","Bar",, "Close",$C$1,"-1",,,,,"T"),"") -> 209.86 | E85: =IFERROR(RTD("cqg.rtd",,"StudyData","LoLevel("&A85&",Period2:="&$B$1&",AllowGaps:=0,InputChoice2:=Low,InputChoice4:=Low)","Bar",, "Close",$C$1,"-1",,,,,"T"),"") -> 157.16 | F85: 0 | G85: 0 | H85: 4.013 | I85: 4.005 | J85: S.US.CCI | K85: =RTD("cqg.rtd", ,"ContractData",A85, "PerCentNetLastTrade",, "T")/100 -> -0.002491177081 | L85: =RANK($K85,$K$2:K$506)+COUNTIF($K$2:K85,K85)-1 ->  | M85: S.US.CCI | N85: 84 | P85: =RTD("cqg.rtd", ,"ContractData",O85, "PerCentNetLastTrade",, "T")/100 ->  | S85: 84
A86: =Symbols!A86 -> S.US.CCL | B86: =IFERROR(RTD("cqg.rtd",,"StudyData",A86,"Bar",, "High",$C$1,"0",,,,,"T"),"") -> 19.44 | C86: =IFERROR(RTD("cqg.rtd",,"StudyData",A86,"Bar",, "Low",$C$1,"0",,,,,"T"),"") -> 19.13 | D86: =IFERROR(RTD("cqg.rtd",,"StudyData","HiLevel("&A86&",Period1:="&$B$1&",AllowGaps:=0,InputChoice1:=High,InputChoice3:=High)","Bar",, "Close",$C$1,"-1",,,,,"T"),"") -> 31.52 | E86: =IFERROR(RTD("cqg.rtd",,"StudyData","LoLevel("&A86&",Period2:="&$B$1&",AllowGaps:=0,InputChoice2:=Low,InputChoice4:=Low)","Bar",, "Close",$C$1,"-1",,,,,"T"),"") -> 14.94 | F86: 0 | G86: 0 | H86: 4.014 | I86: 4.006 | J86: S.US.CCL | K86: =RTD("cqg.rtd", ,"ContractData",A86, "PerCentNetLastTrade",, "T")/100 -> -0.01124744376 | L86: =RANK($K86,$K$2:K$506)+COUNTIF($K$2:K86,K86)-1 ->  | M86: S.US.CCL | N86: 85 | P86: =RTD("cqg.rtd", ,"ContractData",O86, "PerCentNetLastTrade",, "T")/100 ->  | S86: 85
A87: =Symbols!A87 -> S.US.CDAY | B87: =IFERROR(RTD("cqg.rtd",,"StudyData",A87,"Bar",, "High",$C$1,"0",,,,,"T"),"") -> 60.35 | C87: =IFERROR(RTD("cqg.rtd",,"StudyData",A87,"Bar",, "Low",$C$1,"0",,,,,"T"),"") -> 59.22 | D87: =IFERROR(RTD("cqg.rtd",,"StudyData","HiLevel("&A87&",Period1:="&$B$1&",AllowGaps:=0,InputChoice1:=High,InputChoice3:=High)","Bar",, "Close",$C$1,"-1",,,,,"T"),"") -> 130.37 | E87: =IFERROR(RTD("cqg.rtd",,"StudyData","LoLevel("&A87&",Period2:="&$B$1&",AllowGaps:=0,InputChoice2:=Low,InputChoice4:=Low)","Bar",, "Close",$C$1,"-1",,,,,"T"),"") -> 58.58 | F87: 0 | G87: 0 | H87: 4.015 | I87: 4.007 | J87: S.US.CDAY | K87: =RTD("cqg.rtd", ,"ContractData",A87, "PerCentNetLastTrade",, "T")/100 -> -0.02094672604 | L87: =RANK($K87,$K$2:K$506)+COUNTIF($K$2:K87,K87)-1 ->  | M87: S.US.CDAY | N87: 86 | P87: =RTD("cqg.rtd", ,"ContractData",O87, "PerCentNetLastTrade",, "T")/100 ->  | S87: 86
A88: =Symbols!A88 -> S.US.CDNS | B88: =IFERROR(RTD("cqg.rtd",,"StudyData",A88,"Bar",, "High",$C$1,"0",,,,,"T"),"") -> 150.52 | C88: =IFERROR(RTD("cqg.rtd",,"StudyData",A88,"Bar",, "Low",$C$1,"0",,,,,"T"),"") -> 148.51 | D88: =IFERROR(RTD("cqg.rtd",,"StudyData","HiLevel("&A88&",Period1:="&$B$1&",AllowGaps:=0,InputChoice1:=High,InputChoice3:=High)","Bar",, "Close",$C$1,"-1",,,,,"T"),"") -> 192.7 | E88: =IFERROR(RTD("cqg.rtd",,"StudyData","LoLevel("&A88&",Period2:="&$B$1&",AllowGaps:=0,InputChoice2:=Low,InputChoice4:=Low)","Bar",, "Close",$C$1,"-1",,,,,"T"),"") -> 118.11 | F88: 0 | G88: 0 | H88: 4.016 | I88: 4.008 | J88: S.US.CDNS | K88: =RTD("cqg.rtd", ,"ContractData",A88, "PerCentNetLastTrade",, "T")/100 -> -0.00567423231 | L88: =RANK($K88,$K$2:K$506)+COUNTIF($K$2:K88,K88)-1 ->  | M88: S.US.CDNS | N88: 87 | P88: =RTD("cqg.rtd", ,"ContractData",O88, "PerCentNetLastTrade",, "T")/100 ->  | S88: 87
A89: =Symbols!A89 -> S.US.CDW | B89: =IFERROR(RTD("cqg.rtd",,"StudyData",A89,"Bar",, "High",$C$1,"0",,,,,"T"),"") -> 174.75 | C89: =IFERROR(RTD("cqg.rtd",,"StudyData",A89,"Bar",, "Low",$C$1,"0",,,,,"T"),"") -> 172.66 | D89: =IFERROR(RTD("cqg.rtd",,"StudyData","HiLevel("&A89&",Period1:="&$B$1&",AllowGaps:=0,InputChoice1:=High,InputChoice3:=High)","Bar",, "Close",$C$1,"-1",,,,,"T"),"") -> 208.7 | E89: =IFERROR(RTD("cqg.rtd",,"StudyData","LoLevel("&A89&",Period2:="&$B$1&",AllowGaps:=0,InputChoice2:=Low,InputChoice4:=Low)","Bar",, "Close",$C$1,"-1",,,,,"T"),"") -> 162.47 | F89: 0 | G89: 0 | H89: 4.017 | I89: 4.009 | J89: S.US.CDW | K89: =RTD("cqg.rtd", ,"ContractData",A89, "PerCentNetLastTrade",, "T")/100 -> 0.00520321443 | L89: =RANK($K89,$K$2:K$506)+COUNTIF($K$2:K89,K89)-1 ->  | M89: S.US.CDW | N89: 88 | P89: =RTD("cqg.rtd", ,"ContractData",O89, "PerCentNetLastTrade",, "T")/100 ->  | S89: 88
A90: =Symbols!A90 -> S.US.CE | B90: =IFERROR(RTD("cqg.rtd",,"StudyData",A90,"Bar",, "High",$C$1,"0",,,,,"T"),"") -> 146.59 | C90: =IFERROR(RTD("cqg.rtd",,"StudyData",A90,"Bar",, "Low",$C$1,"0",,,,,"T"),"") -> 145.25 | D90: =IFERROR(RTD("cqg.rtd",,"StudyData","HiLevel("&A90&",Period1:="&$B$1&",AllowGaps:=0,InputChoice1:=High,InputChoice3:=High)","Bar",, "Close",$C$1,"-1",,,,,"T"),"") -> 176.5 | E90: =IFERROR(RTD("cqg.rtd",,"StudyData","LoLevel("&A90&",Period2:="&$B$1&",AllowGaps:=0,InputChoice2:=Low,InputChoice4:=Low)","Bar",, "Close",$C$1,"-1",,,,,"T"),"") -> 132.26 | F90: 0 | G90: 0 | H90: 4.018 | I90: 4.01 | J90: S.US.CE | K90: =RTD("cqg.rtd", ,"ContractData",A90, "PerCentNetLastTrade",, "T")/100 -> 0.005166356685 | L90: =RANK($K90,$K$2:K$506)+COUNTIF($K$2:K90,K90)-1 ->  | M90: S.US.CE | N90: 89 | P90: =RTD("cqg.rtd", ,"ContractData",O90, "PerCentNetLastTrade",, "T")/100 ->  | S90: 89
A91: =Symbols!A91 -> S.US.CEG | B91: =IFERROR(RTD("cqg.rtd",,"StudyData",A91,"Bar",, "High",$C$1,"0",,,,,"T"),"") -> 63.71 | C91: =IFERROR(RTD("cqg.rtd",,"StudyData",A91,"Bar",, "Low",$C$1,"0",,,,,"T"),"") -> 62.29 | D91: =IFERROR(RTD("cqg.rtd",,"StudyData","HiLevel("&A91&",Period1:="&$B$1&",AllowGaps:=0,InputChoice1:=High,InputChoice3:=High)","Bar",, "Close",$C$1,"-1",,,,,"T"),"") ->  | E91: =IFERROR(RTD("cqg.rtd",,"StudyData","LoLevel("&A91&",Period2:="&$B$1&",AllowGaps:=0,InputChoice2:=Low,InputChoice4:=Low)","Bar",, "Close",$C$1,"-1",,,,,"T"),"") ->  | F91: 0 | G91: 1 | H91: 4.019 | I91: 5 | J91: S.US.CEG | K91: =RTD("cqg.rtd", ,"ContractData",A91, "PerCentNetLastTrade",, "T")/100 -> 0.01438848921 | L91: =RANK($K91,$K$2:K$506)+COUNTIF($K$2:K91,K91)-1 ->  | M91: S.US.CEG | N91: 90 | P91: =RTD("cqg.rtd", ,"ContractData",O91, "PerCentNetLastTrade",, "T")/100 ->  | S91: 90
A92: =Symbols!A92 -> S.US.CERN | B92: =IFERROR(RTD("cqg.rtd",,"StudyData",A92,"Bar",, "High",$C$1,"0",,,,,"T"),"") -> 93.36 | C92: =IFERROR(RTD("cqg.rtd",,"StudyData",A92,"Bar",, "Low",$C$1,"0",,,,,"T"),"") -> 93.21 | D92: =IFERROR(RTD("cqg.rtd",,"StudyData","HiLevel("&A92&",Period1:="&$B$1&",AllowGaps:=0,InputChoice1:=High,InputChoice3:=High)","Bar",, "Close",$C$1,"-1",,,,,"T"),"") -> 93.87 | E92: =IFERROR(RTD("cqg.rtd",,"StudyData","LoLevel("&A92&",Period2:="&$B$1&",AllowGaps:=0,InputChoice2:=Low,InputChoice4:=Low)","Bar",, "Close",$C$1,"-1",,,,,"T"),"") -> 69.08 | F92: 0 | G92: 0 | H92: 4.02 | I92: 5.001 | J92: S.US.CERN | K92: =RTD("cqg.rtd", ,"ContractData",A92, "PerCentNetLastTrade",, "T")/100 -> -0.0006430868167 | L92: =RANK($K92,$K$2:K$506)+COUNTIF($K$2:K92,K92)-1 ->  | M92: S.US.CERN | N92: 91 | P92: =RTD("cqg.rtd", ,"ContractData",O92, "PerCentNetLastTrade",, "T")/100 ->  | S92: 91
A93: =Symbols!A93 -> S.US.CF | B93: =IFERROR(RTD("cqg.rtd",,"StudyData",A93,"Bar",, "High",$C$1,"0",,,,,"T"),"") -> 109.45 | C93: =IFERROR(RTD("cqg.rtd",,"StudyData",A93,"Bar",, "Low",$C$1,"0",,,,,"T"),"") -> 106.66 | D93: =IFERROR(RTD("cqg.rtd",,"StudyData","HiLevel("&A93&",Period1:="&$B$1&",AllowGaps:=0,InputChoice1:=High,InputChoice3:=High)","Bar",, "Close",$C$1,"-1",,,,,"T"),"") -> 113.48 | E93: =IFERROR(RTD("cqg.rtd",,"StudyData","LoLevel("&A93&",Period2:="&$B$1&",AllowGaps:=0,InputChoice2:=Low,InputChoice4:=Low)","Bar",, "Close",$C$1,"-1",,,,,"T"),"") -> 43.18 | F93: 0 | G93: 0 | H93: 4.021 | I93: 5.002 | J93: S.US.CF | K93: =RTD("cqg.rtd", ,"ContractData",A93, "PerCentNetLastTrade",, "T")/100 -> 0.008209574762 | L93: =RANK($K93,$K$2:K$506)+COUNTIF($K$2:K93,K93)-1 ->  | M93: S.US.CF | N93: 92 | P93: =RTD("cqg.rtd", ,"ContractData",O93, "PerCentNetLastTrade",, "T")/100 ->  | S93: 92
A94: =Symbols!A94 -> S.US.CFG | B94: =IFERROR(RTD("cqg.rtd",,"StudyData",A94,"Bar",, "High",$C$1,"0",,,,,"T"),"") -> 41.19 | C94: =IFERROR(RTD("cqg.rtd",,"StudyData",A94,"Bar",, "Low",$C$1,"0",,,,,"T"),"") -> 40.6 | D94: =IFERROR(RTD("cqg.rtd",,"StudyData","HiLevel("&A94&",Period1:="&$B$1&",AllowGaps:=0,InputChoice1:=High,InputChoice3:=High)","Bar",, "Close",$C$1,"-1",,,,,"T"),"") -> 57 | E94: =IFERROR(RTD("cqg.rtd",,"StudyData","LoLevel("&A94&",Period2:="&$B$1&",AllowGaps:=0,InputChoice2:=Low,InputChoice4:=Low)","Bar",, "Close",$C$1,"-1",,,,,"T"),"") -> 39.55 | F94: 0 | G94: 0 | H94: 4.022 | I94: 5.003 | J94: S.US.CFG | K94: =RTD("cqg.rtd", ,"ContractData",A94, "PerCentNetLastTrade",, "T")/100 -> 0.004404208466 | L94: =RANK($K94,$K$2:K$506)+COUNTIF($K$2:K94,K94)-1 ->  | M94: S.US.CFG | N94: 93 | P94: =RTD("cqg.rtd", ,"ContractData",O94, "PerCentNetLastTrade",, "T")/100 ->  | S94: 93
A95: =Symbols!A95 -> S.US.CHD | B95: =IFERROR(RTD("cqg.rtd",,"StudyData",A95,"Bar",, "High",$C$1,"0",,,,,"T"),"") -> 102.73 | C95: =IFERROR(RTD("cqg.rtd",,"StudyData",A95,"Bar",, "Low",$C$1,"0",,,,,"T"),"") -> 102.06 | D95: =IFERROR(RTD("cqg.rtd",,"StudyData","HiLevel("&A95&",Period1:="&$B$1&",AllowGaps:=0,InputChoice1:=High,InputChoice3:=High)","Bar",, "Close",$C$1,"-1",,,,,"T"),"") -> 105.15 | E95: =IFERROR(RTD("cqg.rtd",,"StudyData","LoLevel("&A95&",Period2:="&$B$1&",AllowGaps:=0,InputChoice2:=Low,InputChoice4:=Low)","Bar",, "Close",$C$1,"-1",,,,,"T"),"") -> 80.76 | F95: 0 | G95: 0 | H95: 4.023 | I95: 5.004 | J95: S.US.CHD | K95: =RTD("cqg.rtd", ,"ContractData",A95, "PerCentNetLastTrade",, "T")/100 -> 9.741841208e-05 | L95: =RANK($K95,$K$2:K$506)+COUNTIF($K$2:K95,K95)-1 ->  | M95: S.US.CHD | N95: 94 | P95: =RTD("cqg.rtd", ,"ContractData",O95, "PerCentNetLastTrade",, "T")/100 ->  | S95: 94
A96: =Symbols!A96 -> S.US.CHRW | B96: =IFERROR(RTD("cqg.rtd",,"StudyData",A96,"Bar",, "High",$C$1,"0",,,,,"T"),"") -> 103.94 | C96: =IFERROR(RTD("cqg.rtd",,"StudyData",A96,"Bar",, "Low",$C$1,"0",,,,,"T"),"") -> 102.52 | D96: =IFERROR(RTD("cqg.rtd",,"StudyData","HiLevel("&A96&",Period1:="&$B$1&",AllowGaps:=0,InputChoice1:=High,InputChoice3:=High)","Bar",, "Close",$C$1,"-1",,,,,"T"),"") -> 112.15 | E96: =IFERROR(RTD("cqg.rtd",,"StudyData","LoLevel("&A96&",Period2:="&$B$1&",AllowGaps:=0,InputChoice2:=Low,InputChoice4:=Low)","Bar",, "Close",$C$1,"-1",,,,,"T"),"") -> 84.67 | F96: 0 | G96: 0 | H96: 4.024 | I96: 5.005 | J96: S.US.CHRW | K96: =RTD("cqg.rtd", ,"ContractData",A96, "PerCentNetLastTrade",, "T")/100 -> -0.006777691712 | L96: =RANK($K96,$K$2:K$506)+COUNTIF($K$2:K96,K96)-1 ->  | M96: S.US.CHRW | N96: 95 | P96: =RTD("cqg.rtd", ,"ContractData",O96, "PerCentNetLastTrade",, "T")/100 ->  | S96: 95
A97: =Symbols!A97 -> S.US.CHTR | B97: =IFERROR(RTD("cqg.rtd",,"StudyData",A97,"Bar",, "High",$C$1,"0",,,,,"T"),"") -> 556.92 | C97: =IFERROR(RTD("cqg.rtd",,"StudyData",A97,"Bar",, "Low",$C$1,"0",,,,,"T"),"") -> 552.28 | D97: =IFERROR(RTD("cqg.rtd",,"StudyData","HiLevel("&A97&",Period1:="&$B$1&",AllowGaps:=0,InputChoice1:=High,InputChoice3:=High)","Bar",, "Close",$C$1,"-1",,,,,"T"),"") -> 825.62 | E97: =IFERROR(RTD("cqg.rtd",,"StudyData","LoLevel("&A97&",Period2:="&$B$1&",AllowGaps:=0,InputChoice2:=Low,InputChoice4:=Low)","Bar",, "Close",$C$1,"-1",,,,,"T"),"") -> 542.82 | F97: 0 | G97: 0 | H97: 4.025 | I97: 5.006 | J97: S.US.CHTR | K97: =RTD("cqg.rtd", ,"ContractData",A97, "PerCentNetLastTrade",, "T")/100 -> -0.003727580494 | L97: =RANK($K97,$K$2:K$506)+COUNTIF($K$2:K97,K97)-1 ->  | M97: S.US.CHTR | N97: 96 | P97: =RTD("cqg.rtd", ,"ContractData",O97, "PerCentNetLastTrade",, "T")/100 ->  | S97: 96
A98: =Symbols!A98 -> S.US.CI | B98: =IFERROR(RTD("cqg.rtd",,"StudyData",A98,"Bar",, "High",$C$1,"0",,,,,"T"),"") -> 261.53 | C98: =IFERROR(RTD("cqg.rtd",,"StudyData",A98,"Bar",, "Low",$C$1,"0",,,,,"T"),"") -> 257.92 | D98: =IFERROR(RTD("cqg.rtd",,"StudyData","HiLevel("&A98&",Period1:="&$B$1&",AllowGaps:=0,InputChoice1:=High,InputChoice3:=High)","Bar",, "Close",$C$1,"-1",,,,,"T"),"") -> 272.81 | E98: =IFERROR(RTD("cqg.rtd",,"StudyData","LoLevel("&A98&",Period2:="&$B$1&",AllowGaps:=0,InputChoice2:=Low,InputChoice4:=Low)","Bar",, "Close",$C$1,"-1",,,,,"T"),"") -> 191.74 | F98: 0 | G98: 0 | H98: 4.026 | I98: 5.007 | J98: S.US.CI | K98: =RTD("cqg.rtd", ,"ContractData",A98, "PerCentNetLastTrade",, "T")/100 -> 0.007175649088 | L98: =RANK($K98,$K$2:K$506)+COUNTIF($K$2:K98,K98)-1 ->  | M98: S.US.CI | N98: 97 | P98: =RTD("cqg.rtd", ,"ContractData",O98, "PerCentNetLastTrade",, "T")/100 ->  | S98: 97
A99: =Symbols!A99 -> S.US.CINF | B99: =IFERROR(RTD("cqg.rtd",,"StudyData",A99,"Bar",, "High",$C$1,"0",,,,,"T"),"") -> 138.74 | C99: =IFERROR(RTD("cqg.rtd",,"StudyData",A99,"Bar",, "Low",$C$1,"0",,,,,"T"),"") -> 137.33 | D99: =IFERROR(RTD("cqg.rtd",,"StudyData","HiLevel("&A99&",Period1:="&$B$1&",AllowGaps:=0,InputChoice1:=High,InputChoice3:=High)","Bar",, "Close",$C$1,"-1",,,,,"T"),"") -> 139.81 | E99: =IFERROR(RTD("cqg.rtd",,"StudyData","LoLevel("&A99&",Period2:="&$B$1&",AllowGaps:=0,InputChoice2:=Low,InputChoice4:=Low)","Bar",, "Close",$C$1,"-1",,,,,"T"),"") -> 105.64 | F99: 0 | G99: 0 | H99: 4.027 | I99: 5.008 | J99: S.US.CINF | K99: =RTD("cqg.rtd", ,"ContractData",A99, "PerCentNetLastTrade",, "T")/100 -> 0.002605108908 | L99: =RANK($K99,$K$2:K$506)+COUNTIF($K$2:K99,K99)-1 ->  | M99: S.US.CINF | N99: 98 | P99: =RTD("cqg.rtd", ,"ContractData",O99, "PerCentNetLastTrade",, "T")/100 ->  | S99: 98
A100: =Symbols!A100 -> S.US.CL | B100: =IFERROR(RTD("cqg.rtd",,"StudyData",A100,"Bar",, "High",$C$1,"0",,,,,"T"),"") -> 81.18 | C100: =IFERROR(RTD("cqg.rtd",,"StudyData",A100,"Bar",, "Low",$C$1,"0",,,,,"T"),"") -> 80.86 | D100: =IFERROR(RTD("cqg.rtd",,"StudyData","HiLevel("&A100&",Period1:="&$B$1&",AllowGaps:=0,InputChoice1:=High,InputChoice3:=High)","Bar",, "Close",$C$1,"-1",,,,,"T"),"") -> 85.61 | E100: =IFERROR(RTD("cqg.rtd",,"StudyData","LoLevel("&A100&",Period2:="&$B$1&",AllowGaps:=0,InputChoice2:=Low,InputChoice4:=Low)","Bar",, "Close",$C$1,"-1",,,,,"T"),"") -> 72.2 | F100: 0 | G100: 0 | H100: 4.028 | I100: 5.009 | J100: S.US.CL | K100: =RTD("cqg.rtd", ,"ContractData",A100, "PerCentNetLastTrade",, "T")/100 -> 0.0009883864591 | L100: =RANK($K100,$K$2:K$506)+COUNTIF($K$2:K100,K100)-1 ->  | M100: S.US.CL | N100: 99 | P100: =RTD("cqg.rtd", ,"ContractData",O100, "PerCentNetLastTrade",, "T")/100 ->  | S100: 99
A101: =Symbols!A101 -> S.US.CLX | B101: =IFERROR(RTD("cqg.rtd",,"StudyData",A101,"Bar",, "High",$C$1,"0",,,,,"T"),"") -> 146.05 | C101: =IFERROR(RTD("cqg.rtd",,"StudyData",A101,"Bar",, "Low",$C$1,"0",,,,,"T"),"") -> 144.75 | D101: =IFERROR(RTD("cqg.rtd",,"StudyData","HiLevel("&A101&",Period1:="&$B$1&",AllowGaps:=0,InputChoice1:=High,InputChoice3:=High)","Bar",, "Close",$C$1,"-1",,,,,"T"),"") -> 196.65 | E101: =IFERROR(RTD("cqg.rtd",,"StudyData","LoLevel("&A101&",Period2:="&$B$1&",AllowGaps:=0,InputChoice2:=Low,InputChoice4:=Low)","Bar",, "Close",$C$1,"-1",,,,,"T"),"") -> 127.02 | F101: 0 | G101: 0 | H101: 4.029 | I101: 5.01 | J101: S.US.CLX | K101: =RTD("cqg.rtd", ,"ContractData",A101, "PerCentNetLastTrade",, "T")/100 -> 0.002953905338 | L101: =RANK($K101,$K$2:K$506)+COUNTIF($K$2:K101,K101)-1 ->  | M101: S.US.CLX | N101: 100 | P101: =RTD("cqg.rtd", ,"ContractData",O101, "PerCentNetLastTrade",, "T")/100 ->  | S101: 100
A102: =Symbols!A102 -> S.US.CMA | B102: =IFERROR(RTD("cqg.rtd",,"StudyData",A102,"Bar",, "High",$C$1,"0",,,,,"T"),"") -> 89.14 | C102: =IFERROR(RTD("cqg.rtd",,"StudyData",A102,"Bar",, "Low",$C$1,"0",,,,,"T"),"") -> 87.94 | D102: =IFERROR(RTD("cqg.rtd",,"StudyData","HiLevel("&A102&",Period1:="&$B$1&",AllowGaps:=0,InputChoice1:=High,InputChoice3:=High)","Bar",, "Close",$C$1,"-1",,,,,"T"),"") -> 102.09 | E102: =IFERROR(RTD("cqg.rtd",,"StudyData","LoLevel("&A102&",Period2:="&$B$1&",AllowGaps:=0,InputChoice2:=Low,InputChoice4:=Low)","Bar",, "Close",$C$1,"-1",,,,,"T"),"") -> 63.07 | F102: 0 | G102: 0 | H102: 4.03 | I102: 5.011 | J102: S.US.CMA | K102: =RTD("cqg.rtd", ,"ContractData",A102, "PerCentNetLastTrade",, "T")/100 -> 0.006676473916 | L102: =RANK($K102,$K$2:K$506)+COUNTIF($K$2:K102,K102)-1 ->  | M102: S.US.CMA | N102: 101 | P102: =RTD("cqg.rtd", ,"ContractData",O102, "PerCentNetLastTrade",, "T")/100 ->  | S102: 101
A103: =Symbols!A103 -> S.US.CMCSA | B103: =IFERROR(RTD("cqg.rtd",,"StudyData",A103,"Bar",, "High",$C$1,"0",,,,,"T"),"") -> 48 | C103: =IFERROR(RTD("cqg.rtd",,"StudyData",A103,"Bar",, "Low",$C$1,"0",,,,,"T"),"") -> 47.49 | D103: =IFERROR(RTD("cqg.rtd",,"StudyData","HiLevel("&A103&",Period1:="&$B$1&",AllowGaps:=0,InputChoice1:=High,InputChoice3:=High)","Bar",, "Close",$C$1,"-1",,,,,"T"),"") -> 61.8 | E103: =IFERROR(RTD("cqg.rtd",,"StudyData","LoLevel("&A103&",Period2:="&$B$1&",AllowGaps:=0,InputChoice2:=Low,InputChoice4:=Low)","Bar",, "Close",$C$1,"-1",,,,,"T"),"") -> 44.27 | F103: 0 | G103: 0 | H103: 4.031 | I103: 5.012 | J103: S.US.CMCSA | K103: =RTD("cqg.rtd", ,"ContractData",A103, "PerCentNetLastTrade",, "T")/100 -> 0.00798654897 | L103: =RANK($K103,$K$2:K$506)+COUNTIF($K$2:K103,K103)-1 ->  | M103: S.US.CMCSA | N103: 102 | P103: =RTD("cqg.rtd", ,"ContractData",O103, "PerCentNetLastTrade",, "T")/100 ->  | S103: 102
A104: =Symbols!A104 -> S.US.CME | B104: =IFERROR(RTD("cqg.rtd",,"StudyData",A104,"Bar",, "High",$C$1,"0",,,,,"T"),"") -> 238.82 | C104: =IFERROR(RTD("cqg.rtd",,"StudyData",A104,"Bar",, "Low",$C$1,"0",,,,,"T"),"") -> 237.16 | D104: =IFERROR(RTD("cqg.rtd",,"StudyData","HiLevel("&A104&",Period1:="&$B$1&",AllowGaps:=0,InputChoice1:=High,InputChoice3:=High)","Bar",, "Close",$C$1,"-1",,,,,"T"),"") -> 256.94 | E104: =IFERROR(RTD("cqg.rtd",,"StudyData","LoLevel("&A104&",Period2:="&$B$1&",AllowGaps:=0,InputChoice2:=Low,InputChoice4:=Low)","Bar",, "Close",$C$1,"-1",,,,,"T"),"") -> 185.79 | F104: 0 | G104: 0 | H104: 4.032 | I104: 5.013 | J104: S.US.CME | K104: =RTD("cqg.rtd", ,"ContractData",A104, "PerCentNetLastTrade",, "T")/100 -> 0.004249768577 | L104: =RANK($K104,$K$2:K$506)+COUNTIF($K$2:K104,K104)-1 ->  | M104: S.US.CME | N104: 103 | P104: =RTD("cqg.rtd", ,"ContractData",O104, "PerCentNetLastTrade",, "T")/100 ->  | S104: 103
A105: =Symbols!A105 -> S.US.CMG | B105: =IFERROR(RTD("cqg.rtd",,"StudyData",A105,"Bar",, "High",$C$1,"0",,,,,"T"),"") -> 1605.44 | C105: =IFERROR(RTD("cqg.rtd",,"StudyData",A105,"Bar",, "Low",$C$1,"0",,,,,"T"),"") -> 1591 | D105: =IFERROR(RTD("cqg.rtd",,"StudyData","HiLevel("&A105&",Period1:="&$B$1&",AllowGaps:=0,InputChoice1:=High,InputChoice3:=High)","Bar",, "Close",$C$1,"-1",,,,,"T"),"") -> 1958.54 | E105: =IFERROR(RTD("cqg.rtd",,"StudyData","LoLevel("&A105&",Period2:="&$B$1&",AllowGaps:=0,InputChoice2:=Low,InputChoice4:=Low)","Bar",, "Close",$C$1,"-1",,,,,"T"),"") -> 1277.41 | F105: =IF(B105="",0,IFERROR(IF(B105>D105,1,0),"")) -> 0 | G105: =IF(C105="",0,IFERROR(IF(C105<E105,1,0),"")) -> 0 | H105: =IF(F105=1,INT(H104+1),H104+0.001) -> 4.033 | I105: =IF(G105=1,INT(I104+1),I104+0.001) -> 5.014 | J105: =A105 -> S.US.CMG | K105: =RTD("cqg.rtd", ,"ContractData",A105, "PerCentNetLastTrade",, "T")/100 -> -0.006387345073 | L105: =RANK($K105,$K$2:K$506)+COUNTIF($K$2:K105,K105)-1 ->  | M105: S.US.CMG | N105: 104 | P105: =RTD("cqg.rtd", ,"ContractData",O105, "PerCentNetLastTrade",, "T")/100 ->  | S105: 104
A106: =Symbols!A106 -> S.US.CMI | B106: =IFERROR(RTD("cqg.rtd",,"StudyData",A106,"Bar",, "High",$C$1,"0",,,,,"T"),"") -> 198.1 | C106: =IFERROR(RTD("cqg.rtd",,"StudyData",A106,"Bar",, "Low",$C$1,"0",,,,,"T"),"") -> 195.64 | D106: =IFERROR(RTD("cqg.rtd",,"StudyData","HiLevel("&A106&",Period1:="&$B$1&",AllowGaps:=0,InputChoice1:=High,InputChoice3:=High)","Bar",, "Close",$C$1,"-1",,,,,"T"),"") -> 273.65 | E106: =IFERROR(RTD("cqg.rtd",,"StudyData","LoLevel("&A106&",Period2:="&$B$1&",AllowGaps:=0,InputChoice2:=Low,InputChoice4:=Low)","Bar",, "Close",$C$1,"-1",,,,,"T"),"") -> 189.5 | F106: 0 | G106: 0 | H106: 4.034 | I106: 5.015 | J106: S.US.CMI | K106: =RTD("cqg.rtd", ,"ContractData",A106, "PerCentNetLastTrade",, "T")/100 -> 0.008267837093 | L106: =RANK($K106,$K$2:K$506)+COUNTIF($K$2:K106,K106)-1 ->  | M106: S.US.CMI | N106: 105 | P106: =RTD("cqg.rtd", ,"ContractData",O106, "PerCentNetLastTrade",, "T")/100 ->  | S106: 105
A107: =Symbols!A107 -> S.US.CMS | B107: =IFERROR(RTD("cqg.rtd",,"StudyData",A107,"Bar",, "High",$C$1,"0",,,,,"T"),"") -> 72.18 | C107: =IFERROR(RTD("cqg.rtd",,"StudyData",A107,"Bar",, "Low",$C$1,"0",,,,,"T"),"") -> 71.69 | D107: =IFERROR(RTD("cqg.rtd",,"StudyData","HiLevel("&A107&",Period1:="&$B$1&",AllowGaps:=0,InputChoice1:=High,InputChoice3:=High)","Bar",, "Close",$C$1,"-1",,,,,"T"),"") -> 73.64 | E107: =IFERROR(RTD("cqg.rtd",,"StudyData","LoLevel("&A107&",Period2:="&$B$1&",AllowGaps:=0,InputChoice2:=Low,InputChoice4:=Low)","Bar",, "Close",$C$1,"-1",,,,,"T"),"") -> 57.92 | F107: 0 | G107: 0 | H107: 4.035 | I107: 5.016 | J107: S.US.CMS | K107: =RTD("cqg.rtd", ,"ContractData",A107, "PerCentNetLastTrade",, "T")/100 -> 0.00642907058 | L107: =RANK($K107,$K$2:K$506)+COUNTIF($K$2:K107,K107)-1 ->  | M107: S.US.CMS | N107: 106 | P107: =RTD("cqg.rtd", ,"ContractData",O107, "PerCentNetLastTrade",, "T")/100 ->  | S107: 106
A108: =Symbols!A108 -> S.US.CNC | B108: =IFERROR(RTD("cqg.rtd",,"StudyData",A108,"Bar",, "High",$C$1,"0",,,,,"T"),"") -> 86.75 | C108: =IFERROR(RTD("cqg.rtd",,"StudyData",A108,"Bar",, "Low",$C$1,"0",,,,,"T"),"") -> 86.37 | D108: =IFERROR(RTD("cqg.rtd",,"StudyData","HiLevel("&A108&",Period1:="&$B$1&",AllowGaps:=0,InputChoice1:=High,InputChoice3:=High)","Bar",, "Close",$C$1,"-1",,,,,"T"),"") -> 89.79 | E108: =IFERROR(RTD("cqg.rtd",,"StudyData","LoLevel("&A108&",Period2:="&$B$1&",AllowGaps:=0,InputChoice2:=Low,InputChoice4:=Low)","Bar",, "Close",$C$1,"-1",,,,,"T"),"") -> 59.33 | F108: 0 | G108: 0 | H108: 4.036 | I108: 5.017 | J108: S.US.CNC | K108: =RTD("cqg.rtd", ,"ContractData",A108, "PerCentNetLastTrade",, "T")/100 -> 0.0003466605038 | L108: =RANK($K108,$K$2:K$506)+COUNTIF($K$2:K108,K108)-1 ->  | M108: S.US.CNC | N108: 107 | P108: =RTD("cqg.rtd", ,"ContractData",O108, "PerCentNetLastTrade",, "T")/100 ->  | S108: 107
A109: =Symbols!A109 -> S.US.CNP | B109: =IFERROR(RTD("cqg.rtd",,"StudyData",A109,"Bar",, "High",$C$1,"0",,,,,"T"),"") -> 32.64 | C109: =IFERROR(RTD("cqg.rtd",,"StudyData",A109,"Bar",, "Low",$C$1,"0",,,,,"T"),"") -> 32.46 | D109: =IFERROR(RTD("cqg.rtd",,"StudyData","HiLevel("&A109&",Period1:="&$B$1&",AllowGaps:=0,InputChoice1:=High,InputChoice3:=High)","Bar",, "Close",$C$1,"-1",,,,,"T"),"") -> 32.71 | E109: =IFERROR(RTD("cqg.rtd",,"StudyData","LoLevel("&A109&",Period2:="&$B$1&",AllowGaps:=0,InputChoice2:=Low,InputChoice4:=Low)","Bar",, "Close",$C$1,"-1",,,,,"T"),"") -> 23.58 | F109: 0 | G109: 0 | H109: 4.037 | I109: 5.018 | J109: S.US.CNP | K109: =RTD("cqg.rtd", ,"ContractData",A109, "PerCentNetLastTrade",, "T")/100 -> 0.007407407407 | L109: =RANK($K109,$K$2:K$506)+COUNTIF($K$2:K109,K109)-1 ->  | M109: S.US.CNP | N109: 108 | P109: =RTD("cqg.rtd", ,"ContractData",O109, "PerCentNetLastTrade",, "T")/100 ->  | S109: 108
A110: =Symbols!A110 -> S.US.COF | B110: =IFERROR(RTD("cqg.rtd",,"StudyData",A110,"Bar",, "High",$C$1,"0",,,,,"T"),"") -> 135.58 | C110: =IFERROR(RTD("cqg.rtd",,"StudyData",A110,"Bar",, "Low",$C$1,"0",,,,,"T"),"") -> 132 | D110: =IFERROR(RTD("cqg.rtd",,"StudyData","HiLevel("&A110&",Period1:="&$B$1&",AllowGaps:=0,InputChoice1:=High,InputChoice3:=High)","Bar",, "Close",$C$1,"-1",,,,,"T"),"") -> 177.95 | E110: =IFERROR(RTD("cqg.rtd",,"StudyData","LoLevel("&A110&",Period2:="&$B$1&",AllowGaps:=0,InputChoice2:=Low,InputChoice4:=Low)","Bar",, "Close",$C$1,"-1",,,,,"T"),"") -> 122.43 | F110: 0 | G110: 0 | H110: 4.038 | I110: 5.019 | J110: S.US.COF | K110: =RTD("cqg.rtd", ,"ContractData",A110, "PerCentNetLastTrade",, "T")/100 -> 0.02255072027 | L110: =RANK($K110,$K$2:K$506)+COUNTIF($K$2:K110,K110)-1 ->  | M110: S.US.COF | N110: 109 | P110: =RTD("cqg.rtd", ,"ContractData",O110, "PerCentNetLastTrade",, "T")/100 ->  | S110: 109
A111: =Symbols!A111 -> S.US.COO | B111: =IFERROR(RTD("cqg.rtd",,"StudyData",A111,"Bar",, "High",$C$1,"0",,,,,"T"),"") -> 399.17 | C111: =IFERROR(RTD("cqg.rtd",,"StudyData",A111,"Bar",, "Low",$C$1,"0",,,,,"T"),"") -> 396.8 | D111: =IFERROR(RTD("cqg.rtd",,"StudyData","HiLevel("&A111&",Period1:="&$B$1&",AllowGaps:=0,InputChoice1:=High,InputChoice3:=High)","Bar",, "Close",$C$1,"-1",,,,,"T"),"") -> 463.59 | E111: =IFERROR(RTD("cqg.rtd",,"StudyData","LoLevel("&A111&",Period2:="&$B$1&",AllowGaps:=0,InputChoice2:=Low,InputChoice4:=Low)","Bar",, "Close",$C$1,"-1",,,,,"T"),"") -> 368.78 | F111: 0 | G111: 0 | H111: 4.039 | I111: 5.02 | J111: S.US.COO | K111: =RTD("cqg.rtd", ,"ContractData",A111, "PerCentNetLastTrade",, "T")/100 -> -0.005655372604 | L111: =RANK($K111,$K$2:K$506)+COUNTIF($K$2:K111,K111)-1 ->  | M111: S.US.COO | N111: 110 | P111: =RTD("cqg.rtd", ,"ContractData",O111, "PerCentNetLastTrade",, "T")/100 ->  | S111: 110
A112: =Symbols!A112 -> S.US.COP | B112: =IFERROR(RTD("cqg.rtd",,"StudyData",A112,"Bar",, "High",$C$1,"0",,,,,"T"),"") -> 103.8 | C112: =IFERROR(RTD("cqg.rtd",,"StudyData",A112,"Bar",, "Low",$C$1,"0",,,,,"T"),"") -> 101.7 | D112: =IFERROR(RTD("cqg.rtd",,"StudyData","HiLevel("&A112&",Period1:="&$B$1&",AllowGaps:=0,InputChoice1:=High,InputChoice3:=High)","Bar",, "Close",$C$1,"-1",,,,,"T"),"") -> 107.52 | E112: =IFERROR(RTD("cqg.rtd",,"StudyData","LoLevel("&A112&",Period2:="&$B$1&",AllowGaps:=0,InputChoice2:=Low,InputChoice4:=Low)","Bar",, "Close",$C$1,"-1",,,,,"T"),"") -> 47.85 | F112: 0 | G112: 0 | H112: 4.04 | I112: 5.021 | J112: S.US.COP | K112: =RTD("cqg.rtd", ,"ContractData",A112, "PerCentNetLastTrade",, "T")/100 -> 0.02140672783 | L112: =RANK($K112,$K$2:K$506)+COUNTIF($K$2:K112,K112)-1 ->  | M112: S.US.COP | N112: 111 | P112: =RTD("cqg.rtd", ,"ContractData",O112, "PerCentNetLastTrade",, "T")/100 ->  | S112: 111
A113: =Symbols!A113 -> S.US.COST | B113: =IFERROR(RTD("cqg.rtd",,"StudyData",A113,"Bar",, "High",$C$1,"0",,,,,"T"),"") -> 590.86 | C113: =IFERROR(RTD("cqg.rtd",,"StudyData",A113,"Bar",, "Low",$C$1,"0",,,,,"T"),"") -> 585.38 | D113: =IFERROR(RTD("cqg.rtd",,"StudyData","HiLevel("&A113&",Period1:="&$B$1&",AllowGaps:=0,InputChoice1:=High,InputChoice3:=High)","Bar",, "Close",$C$1,"-1",,,,,"T"),"") -> 612.27 | E113: =IFERROR(RTD("cqg.rtd",,"StudyData","LoLevel("&A113&",Period2:="&$B$1&",AllowGaps:=0,InputChoice2:=Low,InputChoice4:=Low)","Bar",, "Close",$C$1,"-1",,,,,"T"),"") -> 365.29 | F113: 0 | G113: 0 | H113: 4.041 | I113: 5.022 | J113: S.US.COST | K113: =RTD("cqg.rtd", ,"ContractData",A113, "PerCentNetLastTrade",, "T")/100 -> -0.0001863175189 | L113: =RANK($K113,$K$2:K$506)+COUNTIF($K$2:K113,K113)-1 ->  | M113: S.US.COST | N113: 112 | P113: =RTD("cqg.rtd", ,"ContractData",O113, "PerCentNetLastTrade",, "T")/100 ->  | S113: 112
A114: =Symbols!A114 -> S.US.CPB | B114: =IFERROR(RTD("cqg.rtd",,"StudyData",A114,"Bar",, "High",$C$1,"0",,,,,"T"),"") -> 46.29 | C114: =IFERROR(RTD("cqg.rtd",,"StudyData",A114,"Bar",, "Low",$C$1,"0",,,,,"T"),"") -> 46.08 | D114: =IFERROR(RTD("cqg.rtd",,"StudyData","HiLevel("&A114&",Period1:="&$B$1&",AllowGaps:=0,InputChoice1:=High,InputChoice3:=High)","Bar",, "Close",$C$1,"-1",,,,,"T"),"") -> 50.83 | E114: =IFERROR(RTD("cqg.rtd",,"StudyData","LoLevel("&A114&",Period2:="&$B$1&",AllowGaps:=0,InputChoice2:=Low,InputChoice4:=Low)","Bar",, "Close",$C$1,"-1",,,,,"T"),"") -> 39.76 | F114: 0 | G114: 0 | H114: 4.042 | I114: 5.023 | J114: S.US.CPB | K114: =RTD("cqg.rtd", ,"ContractData",A114, "PerCentNetLastTrade",, "T")/100 -> -0.0002164502165 | L114: =RANK($K114,$K$2:K$506)+COUNTIF($K$2:K114,K114)-1 ->  | M114: S.US.CPB | N114: 113 | P114: =RTD("cqg.rtd", ,"ContractData",O114, "PerCentNetLastTrade",, "T")/100 ->  | S114: 113
A115: =Symbols!A115 -> S.US.CPRT | B115: =IFERROR(RTD("cqg.rtd",,"StudyData",A115,"Bar",, "High",$C$1,"0",,,,,"T"),"") -> 117.34 | C115: =IFERROR(RTD("cqg.rtd",,"StudyData",A115,"Bar",, "Low",$C$1,"0",,,,,"T"),"") -> 116.53 | D115: =IFERROR(RTD("cqg.rtd",,"StudyData","HiLevel("&A115&",Period1:="&$B$1&",AllowGaps:=0,InputChoice1:=High,InputChoice3:=High)","Bar",, "Close",$C$1,"-1",,,,,"T"),"") -> 161.12 | E115: =IFERROR(RTD("cqg.rtd",,"StudyData","LoLevel("&A115&",Period2:="&$B$1&",AllowGaps:=0,InputChoice2:=Low,InputChoice4:=Low)","Bar",, "Close",$C$1,"-1",,,,,"T"),"") -> 106.37 | F115: 0 | G115: 0 | H115: 4.043 | I115: 5.024 | J115: S.US.CPRT | K115: =RTD("cqg.rtd", ,"ContractData",A115, "PerCentNetLastTrade",, "T")/100 -> -0.003846811421 | L115: =RANK($K115,$K$2:K$506)+COUNTIF($K$2:K115,K115)-1 ->  | M115: S.US.CPRT | N115: 114 | P115: =RTD("cqg.rtd", ,"ContractData",O115, "PerCentNetLastTrade",, "T")/100 ->  | S115: 114
A116: =Symbols!A116 -> S.US.CPT | B116: =IFERROR(RTD("cqg.rtd",,"StudyData",A116,"Bar",, "High",$C$1,"0",,,,,"T"),"") -> 165.38 | C116: =IFERROR(RTD("cqg.rtd",,"StudyData",A116,"Bar",, "Low",$C$1,"0",,,,,"T"),"") -> 164.28 | D116: =IFERROR(RTD("cqg.rtd",,"StudyData","HiLevel("&A116&",Period1:="&$B$1&",AllowGaps:=0,InputChoice1:=High,InputChoice3:=High)","Bar",, "Close",$C$1,"-1",,,,,"T"),"") -> 180.37 | E116: =IFERROR(RTD("cqg.rtd",,"StudyData","LoLevel("&A116&",Period2:="&$B$1&",AllowGaps:=0,InputChoice2:=Low,InputChoice4:=Low)","Bar",, "Close",$C$1,"-1",,,,,"T"),"") -> 115.77 | F116: 0 | G116: 0 | H116: 4.044 | I116: 5.025 | J116: S.US.CPT | K116: =RTD("cqg.rtd", ,"ContractData",A116, "PerCentNetLastTrade",, "T")/100 -> -0.0004252217228 | L116: =RANK($K116,$K$2:K$506)+COUNTIF($K$2:K116,K116)-1 ->  | M116: S.US.CPT | N116: 115 | P116: =RTD("cqg.rtd", ,"ContractData",O116, "PerCentNetLastTrade",, "T")/100 ->  | S116: 115
A117: =Symbols!A117 -> S.US.CRL | B117: =IFERROR(RTD("cqg.rtd",,"StudyData",A117,"Bar",, "High",$C$1,"0",,,,,"T"),"") -> 284.88 | C117: =IFERROR(RTD("cqg.rtd",,"StudyData",A117,"Bar",, "Low",$C$1,"0",,,,,"T"),"") -> 282.53 | D117: =IFERROR(RTD("cqg.rtd",,"StudyData","HiLevel("&A117&",Period1:="&$B$1&",AllowGaps:=0,InputChoice1:=High,InputChoice3:=High)","Bar",, "Close",$C$1,"-1",,,,,"T"),"") -> 460.21 | E117: =IFERROR(RTD("cqg.rtd",,"StudyData","LoLevel("&A117&",Period2:="&$B$1&",AllowGaps:=0,InputChoice2:=Low,InputChoice4:=Low)","Bar",, "Close",$C$1,"-1",,,,,"T"),"") -> 251.3 | F117: 0 | G117: 0 | H117: 4.045 | I117: 5.026 | J117: S.US.CRL | K117: =RTD("cqg.rtd", ,"ContractData",A117, "PerCentNetLastTrade",, "T")/100 -> -0.0004215999719 | L117: =RANK($K117,$K$2:K$506)+COUNTIF($K$2:K117,K117)-1 ->  | M117: S.US.CRL | N117: 116 | P117: =RTD("cqg.rtd", ,"ContractData",O117, "PerCentNetLastTrade",, "T")/100 ->  | S117: 116
A118: =Symbols!A118 -> S.US.CRM | B118: =IFERROR(RTD("cqg.rtd",,"StudyData",A118,"Bar",, "High",$C$1,"0",,,,,"T"),"") -> 189.23 | C118: =IFERROR(RTD("cqg.rtd",,"StudyData",A118,"Bar",, "Low",$C$1,"0",,,,,"T"),"") -> 187.16 | D118: =IFERROR(RTD("cqg.rtd",,"StudyData","HiLevel("&A118&",Period1:="&$B$1&",AllowGaps:=0,InputChoice1:=High,InputChoice3:=High)","Bar",, "Close",$C$1,"-1",,,,,"T"),"") -> 311.75 | E118: =IFERROR(RTD("cqg.rtd",,"StudyData","LoLevel("&A118&",Period2:="&$B$1&",AllowGaps:=0,InputChoice2:=Low,InputChoice4:=Low)","Bar",, "Close",$C$1,"-1",,,,,"T"),"") -> 184.44 | F118: 0 | G118: 0 | H118: 4.046 | I118: 5.027 | J118: S.US.CRM | K118: =RTD("cqg.rtd", ,"ContractData",A118, "PerCentNetLastTrade",, "T")/100 -> -0.01140383295 | L118: =RANK($K118,$K$2:K$506)+COUNTIF($K$2:K118,K118)-1 ->  | M118: S.US.CRM | N118: 117 | P118: =RTD("cqg.rtd", ,"ContractData",O118, "PerCentNetLastTrade",, "T")/100 ->  | S118: 117
A119: =Symbols!A119 -> S.US.CSCO | B119: =IFERROR(RTD("cqg.rtd",,"StudyData",A119,"Bar",, "High",$C$1,"0",,,,,"T"),"") -> 51.43 | C119: =IFERROR(RTD("cqg.rtd",,"StudyData",A119,"Bar",, "Low",$C$1,"0",,,,,"T"),"") -> 50.8 | D119: =IFERROR(RTD("cqg.rtd",,"StudyData","HiLevel("&A119&",Period1:="&$B$1&",AllowGaps:=0,InputChoice1:=High,InputChoice3:=High)","Bar",, "Close",$C$1,"-1",,,,,"T"),"") -> 64.28 | E119: =IFERROR(RTD("cqg.rtd",,"StudyData","LoLevel("&A119&",Period2:="&$B$1&",AllowGaps:=0,InputChoice2:=Low,InputChoice4:=Low)","Bar",, "Close",$C$1,"-1",,,,,"T"),"") -> 50.1 | F119: 0 | G119: 0 | H119: 4.047 | I119: 5.028 | J119: S.US.CSCO | K119: =RTD("cqg.rtd", ,"ContractData",A119, "PerCentNetLastTrade",, "T")/100 -> 0.002149697088 | L119: =RANK($K119,$K$2:K$506)+COUNTIF($K$2:K119,K119)-1 ->  | M119: S.US.CSCO | N119: 118 | P119: =RTD("cqg.rtd", ,"ContractData",O119, "PerCentNetLastTrade",, "T")/100 ->  | S119: 118
A120: =Symbols!A120 -> S.US.CSX | B120: =IFERROR(RTD("cqg.rtd",,"StudyData",A120,"Bar",, "High",$C$1,"0",,,,,"T"),"") -> 35.19 | C120: =IFERROR(RTD("cqg.rtd",,"StudyData",A120,"Bar",, "Low",$C$1,"0",,,,,"T"),"") -> 34.7 | D120: =IFERROR(RTD("cqg.rtd",,"StudyData","HiLevel("&A120&",Period1:="&$B$1&",AllowGaps:=0,InputChoice1:=High,InputChoice3:=High)","Bar",, "Close",$C$1,"-1",,,,,"T"),"") -> 38.63 | E120: =IFERROR(RTD("cqg.rtd",,"StudyData","LoLevel("&A120&",Period2:="&$B$1&",AllowGaps:=0,InputChoice2:=Low,InputChoice4:=Low)","Bar",, "Close",$C$1,"-1",,,,,"T"),"") -> 29.48 | F120: 0 | G120: 0 | H120: 4.048 | I120: 5.029 | J120: S.US.CSX | K120: =RTD("cqg.rtd", ,"ContractData",A120, "PerCentNetLastTrade",, "T")/100 -> 0.00142612664 | L120: =RANK($K120,$K$2:K$506)+COUNTIF($K$2:K120,K120)-1 ->  | M120: S.US.CSX | N120: 119 | P120: =RTD("cqg.rtd", ,"ContractData",O120, "PerCentNetLastTrade",, "T")/100 ->  | S120: 119
A121: =Symbols!A121 -> S.US.CTAS | B121: =IFERROR(RTD("cqg.rtd",,"StudyData",A121,"Bar",, "High",$C$1,"0",,,,,"T"),"") -> 416.32 | C121: =IFERROR(RTD("cqg.rtd",,"StudyData",A121,"Bar",, "Low",$C$1,"0",,,,,"T"),"") -> 411.73 | D121: =IFERROR(RTD("cqg.rtd",,"StudyData","HiLevel("&A121&",Period1:="&$B$1&",AllowGaps:=0,InputChoice1:=High,InputChoice3:=High)","Bar",, "Close",$C$1,"-1",,,,,"T"),"") -> 461.44 | E121: =IFERROR(RTD("cqg.rtd",,"StudyData","LoLevel("&A121&",Period2:="&$B$1&",AllowGaps:=0,InputChoice2:=Low,InputChoice4:=Low)","Bar",, "Close",$C$1,"-1",,,,,"T"),"") -> 338 | F121: 0 | G121: 0 | H121: 4.049 | I121: 5.03 | J121: S.US.CTAS | K121: =RTD("cqg.rtd", ,"ContractData",A121, "PerCentNetLastTrade",, "T")/100 -> 0.006406072473 | L121: =RANK($K121,$K$2:K$506)+COUNTIF($K$2:K121,K121)-1 ->  | M121: S.US.CTAS | N121: 120 | P121: =RTD("cqg.rtd", ,"ContractData",O121, "PerCentNetLastTrade",, "T")/100 ->  | S121: 120
A122: =Symbols!A122 -> S.US.CTLT | B122: =IFERROR(RTD("cqg.rtd",,"StudyData",A122,"Bar",, "High",$C$1,"0",,,,,"T"),"") -> 97.68 | C122: =IFERROR(RTD("cqg.rtd",,"StudyData",A122,"Bar",, "Low",$C$1,"0",,,,,"T"),"") -> 96.45 | D122: =IFERROR(RTD("cqg.rtd",,"StudyData","HiLevel("&A122&",Period1:="&$B$1&",AllowGaps:=0,InputChoice1:=High,InputChoice3:=High)","Bar",, "Close",$C$1,"-1",,,,,"T"),"") -> 142.64 | E122: =IFERROR(RTD("cqg.rtd",,"StudyData","LoLevel("&A122&",Period2:="&$B$1&",AllowGaps:=0,InputChoice2:=Low,InputChoice4:=Low)","Bar",, "Close",$C$1,"-1",,,,,"T"),"") -> 91.17 | F122: 0 | G122: 0 | H122: 4.05 | I122: 5.031 | J122: S.US.CTLT | K122: =RTD("cqg.rtd", ,"ContractData",A122, "PerCentNetLastTrade",, "T")/100 -> -0.008939580764 | L122: =RANK($K122,$K$2:K$506)+COUNTIF($K$2:K122,K122)-1 ->  | M122: S.US.CTLT | N122: 121 | P122: =RTD("cqg.rtd", ,"ContractData",O122, "PerCentNetLastTrade",, "T")/100 ->  | S122: 121
A123: =Symbols!A123 -> S.US.CTRA | B123: =IFERROR(RTD("cqg.rtd",,"StudyData",A123,"Bar",, "High",$C$1,"0",,,,,"T"),"") -> 30.47 | C123: =IFERROR(RTD("cqg.rtd",,"StudyData",A123,"Bar",, "Low",$C$1,"0",,,,,"T"),"") -> 29.74 | D123: =IFERROR(RTD("cqg.rtd",,"StudyData","HiLevel("&A123&",Period1:="&$B$1&",AllowGaps:=0,InputChoice1:=High,InputChoice3:=High)","Bar",, "Close",$C$1,"-1",,,,,"T"),"") -> 29.63 | E123: =IFERROR(RTD("cqg.rtd",,"StudyData","LoLevel("&A123&",Period2:="&$B$1&",AllowGaps:=0,InputChoice2:=Low,InputChoice4:=Low)","Bar",, "Close",$C$1,"-1",,,,,"T"),"") -> 14.28 | F123: 1 | G123: 0 | H123: 5 | I123: 5.032 | J123: S.US.CTRA | K123: =RTD("cqg.rtd", ,"ContractData",A123, "PerCentNetLastTrade",, "T")/100 -> 0.03399048266 | L123: =RANK($K123,$K$2:K$506)+COUNTIF($K$2:K123,K123)-1 ->  | M123: S.US.CTRA | N123: 122 | P123: =RTD("cqg.rtd", ,"ContractData",O123, "PerCentNetLastTrade",, "T")/100 ->  | S123: 122
A124: =Symbols!A124 -> S.US.CTSH | B124: =IFERROR(RTD("cqg.rtd",,"StudyData",A124,"Bar",, "High",$C$1,"0",,,,,"T"),"") -> 85.42 | C124: =IFERROR(RTD("cqg.rtd",,"StudyData",A124,"Bar",, "Low",$C$1,"0",,,,,"T"),"") -> 84.55 | D124: =IFERROR(RTD("cqg.rtd",,"StudyData","HiLevel("&A124&",Period1:="&$B$1&",AllowGaps:=0,InputChoice1:=High,InputChoice3:=High)","Bar",, "Close",$C$1,"-1",,,,,"T"),"") -> 93.46 | E124: =IFERROR(RTD("cqg.rtd",,"StudyData","LoLevel("&A124&",Period2:="&$B$1&",AllowGaps:=0,InputChoice2:=Low,InputChoice4:=Low)","Bar",, "Close",$C$1,"-1",,,,,"T"),"") -> 66.19 | F124: 0 | G124: 0 | H124: 5.001 | I124: 5.033 | J124: S.US.CTSH | K124: =RTD("cqg.rtd", ,"ContractData",A124, "PerCentNetLastTrade",, "T")/100 -> 0.002242152466 | L124: =RANK($K124,$K$2:K$506)+COUNTIF($K$2:K124,K124)-1 ->  | M124: S.US.CTSH | N124: 123 | P124: =RTD("cqg.rtd", ,"ContractData",O124, "PerCentNetLastTrade",, "T")/100 ->  | S124: 123
A125: =Symbols!A125 -> S.US.CTVA | B125: =IFERROR(RTD("cqg.rtd",,"StudyData",A125,"Bar",, "High",$C$1,"0",,,,,"T"),"") -> 61.5 | C125: =IFERROR(RTD("cqg.rtd",,"StudyData",A125,"Bar",, "Low",$C$1,"0",,,,,"T"),"") -> 60.81 | D125: =IFERROR(RTD("cqg.rtd",,"StudyData","HiLevel("&A125&",Period1:="&$B$1&",AllowGaps:=0,InputChoice1:=High,InputChoice3:=High)","Bar",, "Close",$C$1,"-1",,,,,"T"),"") -> 61.74 | E125: =IFERROR(RTD("cqg.rtd",,"StudyData","LoLevel("&A125&",Period2:="&$B$1&",AllowGaps:=0,InputChoice2:=Low,InputChoice4:=Low)","Bar",, "Close",$C$1,"-1",,,,,"T"),"") -> 40.6 | F125: 0 | G125: 0 | H125: 5.002 | I125: 5.034 | J125: S.US.CTVA | K125: =RTD("cqg.rtd", ,"ContractData",A125, "PerCentNetLastTrade",, "T")/100 -> 0.003769873791 | L125: =RANK($K125,$K$2:K$506)+COUNTIF($K$2:K125,K125)-1 ->  | M125: S.US.CTVA | N125: 124 | P125: =RTD("cqg.rtd", ,"ContractData",O125, "PerCentNetLastTrade",, "T")/100 ->  | S125: 124
A126: =Symbols!A126 -> S.US.CTXS | B126: =IFERROR(RTD("cqg.rtd",,"StudyData",A126,"Bar",, "High",$C$1,"0",,,,,"T"),"") -> 102.19 | C126: =IFERROR(RTD("cqg.rtd",,"StudyData",A126,"Bar",, "Low",$C$1,"0",,,,,"T"),"") -> 102 | D126: =IFERROR(RTD("cqg.rtd",,"StudyData","HiLevel("&A126&",Period1:="&$B$1&",AllowGaps:=0,InputChoice1:=High,InputChoice3:=High)","Bar",, "Close",$C$1,"-1",,,,,"T"),"") -> 144.47 | E126: =IFERROR(RTD("cqg.rtd",,"StudyData","LoLevel("&A126&",Period2:="&$B$1&",AllowGaps:=0,InputChoice2:=Low,InputChoice4:=Low)","Bar",, "Close",$C$1,"-1",,,,,"T"),"") -> 78.07 | F126: 0 | G126: 0 | H126: 5.003 | I126: 5.035 | J126: S.US.CTXS | K126: =RTD("cqg.rtd", ,"ContractData",A126, "PerCentNetLastTrade",, "T")/100 -> -0.00234741784 | L126: =RANK($K126,$K$2:K$506)+COUNTIF($K$2:K126,K126)-1 ->  | M126: S.US.CTXS | N126: 125 | P126: =RTD("cqg.rtd", ,"ContractData",O126, "PerCentNetLastTrade",, "T")/100 ->  | S126: 125
A127: =Symbols!A127 -> S.US.CVS | B127: =IFERROR(RTD("cqg.rtd",,"StudyData",A127,"Bar",, "High",$C$1,"0",,,,,"T"),"") -> 104.49 | C127: =IFERROR(RTD("cqg.rtd",,"StudyData",A127,"Bar",, "Low",$C$1,"0",,,,,"T"),"") -> 103.08 | D127: =IFERROR(RTD("cqg.rtd",,"StudyData","HiLevel("&A127&",Period1:="&$B$1&",AllowGaps:=0,InputChoice1:=High,InputChoice3:=High)","Bar",, "Close",$C$1,"-1",,,,,"T"),"") -> 111.25 | E127: =IFERROR(RTD("cqg.rtd",,"StudyData","LoLevel("&A127&",Period2:="&$B$1&",AllowGaps:=0,InputChoice2:=Low,InputChoice4:=Low)","Bar",, "Close",$C$1,"-1",,,,,"T"),"") -> 74.97 | F127: 0 | G127: 0 | H127: 5.004 | I127: 5.036 | J127: S.US.CVS | K127: =RTD("cqg.rtd", ,"ContractData",A127, "PerCentNetLastTrade",, "T")/100 -> 0.004533179012 | L127: =RANK($K127,$K$2:K$506)+COUNTIF($K$2:K127,K127)-1 ->  | M127: S.US.CVS | N127: 126 | P127: =RTD("cqg.rtd", ,"ContractData",O127, "PerCentNetLastTrade",, "T")/100 ->  | S127: 126
A128: =Symbols!A128 -> S.US.CVX | B128: =IFERROR(RTD("cqg.rtd",,"StudyData",A128,"Bar",, "High",$C$1,"0",,,,,"T"),"") -> 173.79 | C128: =IFERROR(RTD("cqg.rtd",,"StudyData",A128,"Bar",, "Low",$C$1,"0",,,,,"T"),"") -> 171.87 | D128: =IFERROR(RTD("cqg.rtd",,"StudyData","HiLevel("&A128&",Period1:="&$B$1&",AllowGaps:=0,InputChoice1:=High,InputChoice3:=High)","Bar",, "Close",$C$1,"-1",,,,,"T"),"") -> 174.76 | E128: =IFERROR(RTD("cqg.rtd",,"StudyData","LoLevel("&A128&",Period2:="&$B$1&",AllowGaps:=0,InputChoice2:=Low,InputChoice4:=Low)","Bar",, "Close",$C$1,"-1",,,,,"T"),"") -> 92.86 | F128: 0 | G128: 0 | H128: 5.005 | I128: 5.037 | J128: S.US.CVX | K128: =RTD("cqg.rtd", ,"ContractData",A128, "PerCentNetLastTrade",, "T")/100 -> 0.01171396935 | L128: =RANK($K128,$K$2:K$506)+COUNTIF($K$2:K128,K128)-1 ->  | M128: S.US.CVX | N128: 127 | P128: =RTD("cqg.rtd", ,"ContractData",O128, "PerCentNetLastTrade",, "T")/100 ->  | S128: 127
A129: =Symbols!A129 -> S.US.CZR | B129: =IFERROR(RTD("cqg.rtd",,"StudyData",A129,"Bar",, "High",$C$1,"0",,,,,"T"),"") -> 69.08 | C129: =IFERROR(RTD("cqg.rtd",,"StudyData",A129,"Bar",, "Low",$C$1,"0",,,,,"T"),"") -> 68 | D129: =IFERROR(RTD("cqg.rtd",,"StudyData","HiLevel("&A129&",Period1:="&$B$1&",AllowGaps:=0,InputChoice1:=High,InputChoice3:=High)","Bar",, "Close",$C$1,"-1",,,,,"T"),"") -> 119.81 | E129: =IFERROR(RTD("cqg.rtd",,"StudyData","LoLevel("&A129&",Period2:="&$B$1&",AllowGaps:=0,InputChoice2:=Low,InputChoice4:=Low)","Bar",, "Close",$C$1,"-1",,,,,"T"),"") -> 66.81 | F129: 0 | G129: 0 | H129: 5.006 | I129: 5.038 | J129: S.US.CZR | K129: =RTD("cqg.rtd", ,"ContractData",A129, "PerCentNetLastTrade",, "T")/100 -> -0.005807200929 | L129: =RANK($K129,$K$2:K$506)+COUNTIF($K$2:K129,K129)-1 ->  | M129: S.US.CZR | N129: 128 | P129: =RTD("cqg.rtd", ,"ContractData",O129, "PerCentNetLastTrade",, "T")/100 ->  | S129: 128
A130: =Symbols!A130 -> S.US.D | B130: =IFERROR(RTD("cqg.rtd",,"StudyData",A130,"Bar",, "High",$C$1,"0",,,,,"T"),"") -> 88.04 | C130: =IFERROR(RTD("cqg.rtd",,"StudyData",A130,"Bar",, "Low",$C$1,"0",,,,,"T"),"") -> 87.5 | D130: =IFERROR(RTD("cqg.rtd",,"StudyData","HiLevel("&A130&",Period1:="&$B$1&",AllowGaps:=0,InputChoice1:=High,InputChoice3:=High)","Bar",, "Close",$C$1,"-1",,,,,"T"),"") -> 88.78 | E130: =IFERROR(RTD("cqg.rtd",,"StudyData","LoLevel("&A130&",Period2:="&$B$1&",AllowGaps:=0,InputChoice2:=Low,InputChoice4:=Low)","Bar",, "Close",$C$1,"-1",,,,,"T"),"") -> 70.37 | F130: 0 | G130: 0 | H130: 5.007 | I130: 5.039 | J130: S.US.D | K130: =RTD("cqg.rtd", ,"ContractData",A130, "PerCentNetLastTrade",, "T")/100 -> 0.005606407323 | L130: =RANK($K130,$K$2:K$506)+COUNTIF($K$2:K130,K130)-1 ->  | M130: S.US.D | N130: 129 | O130: =IFERROR(VLOOKUP(N130,$L$2:$M$506,2,FALSE),"") ->  | P130: =RTD("cqg.rtd", ,"ContractData",O130, "PerCentNetLastTrade",, "T")/100 ->  | Q130: =VLOOKUP(O130,$A$2:$H$506,8,FALSE) ->  | S130: 129 | T130: =IFERROR(VLOOKUP(S130,$H$2:$J$506,3,FALSE),"") -> 
A131: =Symbols!A131 -> S.US.DAL | B131: =IFERROR(RTD("cqg.rtd",,"StudyData",A131,"Bar",, "High",$C$1,"0",,,,,"T"),"") -> 42.82 | C131: =IFERROR(RTD("cqg.rtd",,"StudyData",A131,"Bar",, "Low",$C$1,"0",,,,,"T"),"") -> 41.85 | D131: =IFERROR(RTD("cqg.rtd",,"StudyData","HiLevel("&A131&",Period1:="&$B$1&",AllowGaps:=0,InputChoice1:=High,InputChoice3:=High)","Bar",, "Close",$C$1,"-1",,,,,"T"),"") -> 48.54 | E131: =IFERROR(RTD("cqg.rtd",,"StudyData","LoLevel("&A131&",Period2:="&$B$1&",AllowGaps:=0,InputChoice2:=Low,InputChoice4:=Low)","Bar",, "Close",$C$1,"-1",,,,,"T"),"") -> 29.75 | F131: 0 | G131: 0 | H131: 5.008 | I131: 5.04 | J131: S.US.DAL | K131: =RTD("cqg.rtd", ,"ContractData",A131, "PerCentNetLastTrade",, "T")/100 -> 0.01085930123 | L131: =RANK($K131,$K$2:K$506)+COUNTIF($K$2:K131,K131)-1 ->  | M131: S.US.DAL | N131: 130 | P131: =RTD("cqg.rtd", ,"ContractData",O131, "PerCentNetLastTrade",, "T")/100 ->  | S131: 130
A132: =Symbols!A132 -> S.US.DD | B132: =IFERROR(RTD("cqg.rtd",,"StudyData",A132,"Bar",, "High",$C$1,"0",,,,,"T"),"") -> 69.25 | C132: =IFERROR(RTD("cqg.rtd",,"StudyData",A132,"Bar",, "Low",$C$1,"0",,,,,"T"),"") -> 68.42 | D132: =IFERROR(RTD("cqg.rtd",,"StudyData","HiLevel("&A132&",Period1:="&$B$1&",AllowGaps:=0,InputChoice1:=High,InputChoice3:=High)","Bar",, "Close",$C$1,"-1",,,,,"T"),"") -> 86.28 | E132: =IFERROR(RTD("cqg.rtd",,"StudyData","LoLevel("&A132&",Period2:="&$B$1&",AllowGaps:=0,InputChoice2:=Low,InputChoice4:=Low)","Bar",, "Close",$C$1,"-1",,,,,"T"),"") -> 66.37 | F132: 0 | G132: 0 | H132: 5.009 | I132: 5.041 | J132: S.US.DD | K132: =RTD("cqg.rtd", ,"ContractData",A132, "PerCentNetLastTrade",, "T")/100 -> -0.002765647744 | L132: =RANK($K132,$K$2:K$506)+COUNTIF($K$2:K132,K132)-1 ->  | M132: =J132 -> S.US.DD | N132: =N131+1 -> 131 | P132: =RTD("cqg.rtd", ,"ContractData",O132, "PerCentNetLastTrade",, "T")/100 ->  | S132: =S131+1 -> 131
A133: =Symbols!A133 -> S.US.DE | B133: =IFERROR(RTD("cqg.rtd",,"StudyData",A133,"Bar",, "High",$C$1,"0",,,,,"T"),"") -> 444.83 | C133: =IFERROR(RTD("cqg.rtd",,"StudyData",A133,"Bar",, "Low",$C$1,"0",,,,,"T"),"") -> 432.24 | D133: =IFERROR(RTD("cqg.rtd",,"StudyData","HiLevel("&A133&",Period1:="&$B$1&",AllowGaps:=0,InputChoice1:=High,InputChoice3:=High)","Bar",, "Close",$C$1,"-1",,,,,"T"),"") -> 439.4 | E133: =IFERROR(RTD("cqg.rtd",,"StudyData","LoLevel("&A133&",Period2:="&$B$1&",AllowGaps:=0,InputChoice2:=Low,InputChoice4:=Low)","Bar",, "Close",$C$1,"-1",,,,,"T"),"") -> 320.5 | F133: 1 | G133: 0 | H133: 6 | I133: 5.042 | J133: S.US.DE | K133: =RTD("cqg.rtd", ,"ContractData",A133, "PerCentNetLastTrade",, "T")/100 -> 0.01708070979 | L133: =RANK($K133,$K$2:K$506)+COUNTIF($K$2:K133,K133)-1 ->  | M133: S.US.DE | N133: 132 | P133: =RTD("cqg.rtd", ,"ContractData",O133, "PerCentNetLastTrade",, "T")/100 ->  | S133: 132
A134: =Symbols!A134 -> S.US.DFS | B134: =IFERROR(RTD("cqg.rtd",,"StudyData",A134,"Bar",, "High",$C$1,"0",,,,,"T"),"") -> 114.56 | C134: =IFERROR(RTD("cqg.rtd",,"StudyData",A134,"Bar",, "Low",$C$1,"0",,,,,"T"),"") -> 112.03 | D134: =IFERROR(RTD("cqg.rtd",,"StudyData","HiLevel("&A134&",Period1:="&$B$1&",AllowGaps:=0,InputChoice1:=High,InputChoice3:=High)","Bar",, "Close",$C$1,"-1",,,,,"T"),"") -> 135.69 | E134: =IFERROR(RTD("cqg.rtd",,"StudyData","LoLevel("&A134&",Period2:="&$B$1&",AllowGaps:=0,InputChoice2:=Low,InputChoice4:=Low)","Bar",, "Close",$C$1,"-1",,,,,"T"),"") -> 94.91 | F134: 0 | G134: 0 | H134: 6.001 | I134: 5.043 | J134: S.US.DFS | K134: =RTD("cqg.rtd", ,"ContractData",A134, "PerCentNetLastTrade",, "T")/100 -> 0.02121590301 | L134: =RANK($K134,$K$2:K$506)+COUNTIF($K$2:K134,K134)-1 ->  | M134: S.US.DFS | N134: 133 | P134: =RTD("cqg.rtd", ,"ContractData",O134, "PerCentNetLastTrade",, "T")/100 ->  | S134: 133
A135: =Symbols!A135 -> S.US.DG | B135: =IFERROR(RTD("cqg.rtd",,"StudyData",A135,"Bar",, "High",$C$1,"0",,,,,"T"),"") -> 249.44 | C135: =IFERROR(RTD("cqg.rtd",,"StudyData",A135,"Bar",, "Low",$C$1,"0",,,,,"T"),"") -> 246.27 | D135: =IFERROR(RTD("cqg.rtd",,"StudyData","HiLevel("&A135&",Period1:="&$B$1&",AllowGaps:=0,InputChoice1:=High,InputChoice3:=High)","Bar",, "Close",$C$1,"-1",,,,,"T"),"") -> 250.3 | E135: =IFERROR(RTD("cqg.rtd",,"StudyData","LoLevel("&A135&",Period2:="&$B$1&",AllowGaps:=0,InputChoice2:=Low,InputChoice4:=Low)","Bar",, "Close",$C$1,"-1",,,,,"T"),"") -> 185.15 | F135: 0 | G135: 0 | H135: 6.002 | I135: 5.044 | J135: S.US.DG | K135: =RTD("cqg.rtd", ,"ContractData",A135, "PerCentNetLastTrade",, "T")/100 -> 0.0005627688226 | L135: =RANK($K135,$K$2:K$506)+COUNTIF($K$2:K135,K135)-1 ->  | M135: S.US.DG | N135: 134 | P135: =RTD("cqg.rtd", ,"ContractData",O135, "PerCentNetLastTrade",, "T")/100 ->  | S135: 134
A136: =Symbols!A136 -> S.US.DGX | B136: =IFERROR(RTD("cqg.rtd",,"StudyData",A136,"Bar",, "High",$C$1,"0",,,,,"T"),"") -> 136.4 | C136: =IFERROR(RTD("cqg.rtd",,"StudyData",A136,"Bar",, "Low",$C$1,"0",,,,,"T"),"") -> 135.6 | D136: =IFERROR(RTD("cqg.rtd",,"StudyData","HiLevel("&A136&",Period1:="&$B$1&",AllowGaps:=0,InputChoice1:=High,InputChoice3:=High)","Bar",, "Close",$C$1,"-1",,,,,"T"),"") -> 174.16 | E136: =IFERROR(RTD("cqg.rtd",,"StudyData","LoLevel("&A136&",Period2:="&$B$1&",AllowGaps:=0,InputChoice2:=Low,InputChoice4:=Low)","Bar",, "Close",$C$1,"-1",,,,,"T"),"") -> 125.77 | F136: 0 | G136: 0 | H136: 6.003 | I136: 5.045 | J136: S.US.DGX | K136: =RTD("cqg.rtd", ,"ContractData",A136, "PerCentNetLastTrade",, "T")/100 -> 0.002648616833 | L136: =RANK($K136,$K$2:K$506)+COUNTIF($K$2:K136,K136)-1 ->  | M136: S.US.DGX | N136: 135 | P136: =RTD("cqg.rtd", ,"ContractData",O136, "PerCentNetLastTrade",, "T")/100 ->  | S136: 135
A137: =Symbols!A137 -> S.US.DHI | B137: =IFERROR(RTD("cqg.rtd",,"StudyData",A137,"Bar",, "High",$C$1,"0",,,,,"T"),"") -> 73.33 | C137: =IFERROR(RTD("cqg.rtd",,"StudyData",A137,"Bar",, "Low",$C$1,"0",,,,,"T"),"") -> 71.31 | D137: =IFERROR(RTD("cqg.rtd",,"StudyData","HiLevel("&A137&",Period1:="&$B$1&",AllowGaps:=0,InputChoice1:=High,InputChoice3:=High)","Bar",, "Close",$C$1,"-1",,,,,"T"),"") -> 110.45 | E137: =IFERROR(RTD("cqg.rtd",,"StudyData","LoLevel("&A137&",Period2:="&$B$1&",AllowGaps:=0,InputChoice2:=Low,InputChoice4:=Low)","Bar",, "Close",$C$1,"-1",,,,,"T"),"") -> 68.79 | F137: 0 | G137: 0 | H137: 6.004 | I137: 5.046 | J137: S.US.DHI | K137: =RTD("cqg.rtd", ,"ContractData",A137, "PerCentNetLastTrade",, "T")/100 -> -0.001103296097 | L137: =RANK($K137,$K$2:K$506)+COUNTIF($K$2:K137,K137)-1 ->  | M137: S.US.DHI | N137: 136 | P137: =RTD("cqg.rtd", ,"ContractData",O137, "PerCentNetLastTrade",, "T")/100 ->  | S137: 136
A138: =Symbols!A138 -> S.US.DHR | B138: =IFERROR(RTD("cqg.rtd",,"StudyData",A138,"Bar",, "High",$C$1,"0",,,,,"T"),"") -> 276.79 | C138: =IFERROR(RTD("cqg.rtd",,"StudyData",A138,"Bar",, "Low",$C$1,"0",,,,,"T"),"") -> 274.48 | D138: =IFERROR(RTD("cqg.rtd",,"StudyData","HiLevel("&A138&",Period1:="&$B$1&",AllowGaps:=0,InputChoice1:=High,InputChoice3:=High)","Bar",, "Close",$C$1,"-1",,,,,"T"),"") -> 333.96 | E138: =IFERROR(RTD("cqg.rtd",,"StudyData","LoLevel("&A138&",Period2:="&$B$1&",AllowGaps:=0,InputChoice2:=Low,InputChoice4:=Low)","Bar",, "Close",$C$1,"-1",,,,,"T"),"") -> 238.32 | F138: 0 | G138: 0 | H138: 6.005 | I138: 5.047 | J138: S.US.DHR | K138: =RTD("cqg.rtd", ,"ContractData",A138, "PerCentNetLastTrade",, "T")/100 -> -0.006282042025 | L138: =RANK($K138,$K$2:K$506)+COUNTIF($K$2:K138,K138)-1 ->  | M138: S.US.DHR | N138: 137 | P138: =RTD("cqg.rtd", ,"ContractData",O138, "PerCentNetLastTrade",, "T")/100 ->  | S138: 137
A139: =Symbols!A139 -> S.US.DIS | B139: =IFERROR(RTD("cqg.rtd",,"StudyData",A139,"Bar",, "High",$C$1,"0",,,,,"T"),"") -> 130.22 | C139: =IFERROR(RTD("cqg.rtd",,"StudyData",A139,"Bar",, "Low",$C$1,"0",,,,,"T"),"") -> 129.19 | D139: =IFERROR(RTD("cqg.rtd",,"StudyData","HiLevel("&A139&",Period1:="&$B$1&",AllowGaps:=0,InputChoice1:=High,InputChoice3:=High)","Bar",, "Close",$C$1,"-1",,,,,"T"),"") -> 190.33 | E139: =IFERROR(RTD("cqg.rtd",,"StudyData","LoLevel("&A139&",Period2:="&$B$1&",AllowGaps:=0,InputChoice2:=Low,InputChoice4:=Low)","Bar",, "Close",$C$1,"-1",,,,,"T"),"") -> 128.38 | F139: 0 | G139: 0 | H139: 6.006 | I139: 5.048 | J139: S.US.DIS | K139: =RTD("cqg.rtd", ,"ContractData",A139, "PerCentNetLastTrade",, "T")/100 -> -0.008124473059 | L139: =RANK($K139,$K$2:K$506)+COUNTIF($K$2:K139,K139)-1 ->  | M139: S.US.DIS | N139: 138 | P139: =RTD("cqg.rtd", ,"ContractData",O139, "PerCentNetLastTrade",, "T")/100 ->  | S139: 138
A140: =Symbols!A140 -> S.US.DISH | B140: =IFERROR(RTD("cqg.rtd",,"StudyData",A140,"Bar",, "High",$C$1,"0",,,,,"T"),"") -> 33.74 | C140: =IFERROR(RTD("cqg.rtd",,"StudyData",A140,"Bar",, "Low",$C$1,"0",,,,,"T"),"") -> 32.87 | D140: =IFERROR(RTD("cqg.rtd",,"StudyData","HiLevel("&A140&",Period1:="&$B$1&",AllowGaps:=0,InputChoice1:=High,InputChoice3:=High)","Bar",, "Close",$C$1,"-1",,,,,"T"),"") -> 47.05 | E140: =IFERROR(RTD("cqg.rtd",,"StudyData","LoLevel("&A140&",Period2:="&$B$1&",AllowGaps:=0,InputChoice2:=Low,InputChoice4:=Low)","Bar",, "Close",$C$1,"-1",,,,,"T"),"") -> 25.84 | F140: 0 | G140: 0 | H140: 6.007 | I140: 5.049 | J140: S.US.DISH | K140: =RTD("cqg.rtd", ,"ContractData",A140, "PerCentNetLastTrade",, "T")/100 -> 0.007532389274 | L140: =RANK($K140,$K$2:K$506)+COUNTIF($K$2:K140,K140)-1 ->  | M140: S.US.DISH | N140: 139 | P140: =RTD("cqg.rtd", ,"ContractData",O140, "PerCentNetLastTrade",, "T")/100 ->  | S140: 139
A141: =Symbols!A141 -> S.US.DLR | B141: =IFERROR(RTD("cqg.rtd",,"StudyData",A141,"Bar",, "High",$C$1,"0",,,,,"T"),"") -> 145.74 | C141: =IFERROR(RTD("cqg.rtd",,"StudyData",A141,"Bar",, "Low",$C$1,"0",,,,,"T"),"") -> 144.84 | D141: =IFERROR(RTD("cqg.rtd",,"StudyData","HiLevel("&A141&",Period1:="&$B$1&",AllowGaps:=0,InputChoice1:=High,InputChoice3:=High)","Bar",, "Close",$C$1,"-1",,,,,"T"),"") -> 178.22 | E141: =IFERROR(RTD("cqg.rtd",,"StudyData","LoLevel("&A141&",Period2:="&$B$1&",AllowGaps:=0,InputChoice2:=Low,InputChoice4:=Low)","Bar",, "Close",$C$1,"-1",,,,,"T"),"") -> 130.1 | F141: 0 | G141: 0 | H141: 6.008 | I141: 5.05 | J141: S.US.DLR | K141: =RTD("cqg.rtd", ,"ContractData",A141, "PerCentNetLastTrade",, "T")/100 -> -0.0001379120121 | L141: =RANK($K141,$K$2:K$506)+COUNTIF($K$2:K141,K141)-1 ->  | M141: S.US.DLR | N141: 140 | P141: =RTD("cqg.rtd", ,"ContractData",O141, "PerCentNetLastTrade",, "T")/100 ->  | S141: 140
A142: =Symbols!A142 -> S.US.DLTR | B142: =IFERROR(RTD("cqg.rtd",,"StudyData",A142,"Bar",, "High",$C$1,"0",,,,,"T"),"") -> 173.69 | C142: =IFERROR(RTD("cqg.rtd",,"StudyData",A142,"Bar",, "Low",$C$1,"0",,,,,"T"),"") -> 172.45 | D142: =IFERROR(RTD("cqg.rtd",,"StudyData","HiLevel("&A142&",Period1:="&$B$1&",AllowGaps:=0,InputChoice1:=High,InputChoice3:=High)","Bar",, "Close",$C$1,"-1",,,,,"T"),"") -> 174.3 | E142: =IFERROR(RTD("cqg.rtd",,"StudyData","LoLevel("&A142&",Period2:="&$B$1&",AllowGaps:=0,InputChoice2:=Low,InputChoice4:=Low)","Bar",, "Close",$C$1,"-1",,,,,"T"),"") -> 84.26 | F142: 0 | G142: 0 | H142: 6.009 | I142: 5.051 | J142: S.US.DLTR | K142: =RTD("cqg.rtd", ,"ContractData",A142, "PerCentNetLastTrade",, "T")/100 -> 0.002311470673 | L142: =RANK($K142,$K$2:K$506)+COUNTIF($K$2:K142,K142)-1 ->  | M142: S.US.DLTR | N142: 141 | P142: =RTD("cqg.rtd", ,"ContractData",O142, "PerCentNetLastTrade",, "T")/100 ->  | S142: 141
A143: =Symbols!A143 -> S.US.DOV | B143: =IFERROR(RTD("cqg.rtd",,"StudyData",A143,"Bar",, "High",$C$1,"0",,,,,"T"),"") -> 148.19 | C143: =IFERROR(RTD("cqg.rtd",,"StudyData",A143,"Bar",, "Low",$C$1,"0",,,,,"T"),"") -> 145.96 | D143: =IFERROR(RTD("cqg.rtd",,"StudyData","HiLevel("&A143&",Period1:="&$B$1&",AllowGaps:=0,InputChoice1:=High,InputChoice3:=High)","Bar",, "Close",$C$1,"-1",,,,,"T"),"") -> 184.04 | E143: =IFERROR(RTD("cqg.rtd",,"StudyData","LoLevel("&A143&",Period2:="&$B$1&",AllowGaps:=0,InputChoice2:=Low,InputChoice4:=Low)","Bar",, "Close",$C$1,"-1",,,,,"T"),"") -> 138.87 | F143: 0 | G143: 0 | H143: 6.01 | I143: 5.052 | J143: S.US.DOV | K143: =RTD("cqg.rtd", ,"ContractData",A143, "PerCentNetLastTrade",, "T")/100 -> 0.01010998019 | L143: =RANK($K143,$K$2:K$506)+COUNTIF($K$2:K143,K143)-1 ->  | M143: S.US.DOV | N143: 142 | P143: =RTD("cqg.rtd", ,"ContractData",O143, "PerCentNetLastTrade",, "T")/100 ->  | S143: 142
A144: =Symbols!A144 -> S.US.DOW | B144: =IFERROR(RTD("cqg.rtd",,"StudyData",A144,"Bar",, "High",$C$1,"0",,,,,"T"),"") -> 66.26 | C144: =IFERROR(RTD("cqg.rtd",,"StudyData",A144,"Bar",, "Low",$C$1,"0",,,,,"T"),"") -> 65.3 | D144: =IFERROR(RTD("cqg.rtd",,"StudyData","HiLevel("&A144&",Period1:="&$B$1&",AllowGaps:=0,InputChoice1:=High,InputChoice3:=High)","Bar",, "Close",$C$1,"-1",,,,,"T"),"") -> 71.38 | E144: =IFERROR(RTD("cqg.rtd",,"StudyData","LoLevel("&A144&",Period2:="&$B$1&",AllowGaps:=0,InputChoice2:=Low,InputChoice4:=Low)","Bar",, "Close",$C$1,"-1",,,,,"T"),"") -> 52.07 | F144: 0 | G144: 0 | H144: 6.011 | I144: 5.053 | J144: S.US.DOW | K144: =RTD("cqg.rtd", ,"ContractData",A144, "PerCentNetLastTrade",, "T")/100 -> 0.007634753397 | L144: =RANK($K144,$K$2:K$506)+COUNTIF($K$2:K144,K144)-1 ->  | M144: S.US.DOW | N144: 143 | P144: =RTD("cqg.rtd", ,"ContractData",O144, "PerCentNetLastTrade",, "T")/100 ->  | S144: 143
A145: =Symbols!A145 -> S.US.DPZ | B145: =IFERROR(RTD("cqg.rtd",,"StudyData",A145,"Bar",, "High",$C$1,"0",,,,,"T"),"") -> 388.12 | C145: =IFERROR(RTD("cqg.rtd",,"StudyData",A145,"Bar",, "Low",$C$1,"0",,,,,"T"),"") -> 384.07 | D145: =IFERROR(RTD("cqg.rtd",,"StudyData","HiLevel("&A145&",Period1:="&$B$1&",AllowGaps:=0,InputChoice1:=High,InputChoice3:=High)","Bar",, "Close",$C$1,"-1",,,,,"T"),"") -> 567.57 | E145: =IFERROR(RTD("cqg.rtd",,"StudyData","LoLevel("&A145&",Period2:="&$B$1&",AllowGaps:=0,InputChoice2:=Low,InputChoice4:=Low)","Bar",, "Close",$C$1,"-1",,,,,"T"),"") -> 378.46 | F145: 0 | G145: 0 | H145: 6.012 | I145: 5.054 | J145: S.US.DPZ | K145: =RTD("cqg.rtd", ,"ContractData",A145, "PerCentNetLastTrade",, "T")/100 -> -0.005552112385 | L145: =RANK($K145,$K$2:K$506)+COUNTIF($K$2:K145,K145)-1 ->  | M145: S.US.DPZ | N145: 144 | P145: =RTD("cqg.rtd", ,"ContractData",O145, "PerCentNetLastTrade",, "T")/100 ->  | S145: 144
A146: =Symbols!A146 -> S.US.DRE | B146: =IFERROR(RTD("cqg.rtd",,"StudyData",A146,"Bar",, "High",$C$1,"0",,,,,"T"),"") -> 58.69 | C146: =IFERROR(RTD("cqg.rtd",,"StudyData",A146,"Bar",, "Low",$C$1,"0",,,,,"T"),"") -> 58.31 | D146: =IFERROR(RTD("cqg.rtd",,"StudyData","HiLevel("&A146&",Period1:="&$B$1&",AllowGaps:=0,InputChoice1:=High,InputChoice3:=High)","Bar",, "Close",$C$1,"-1",,,,,"T"),"") -> 66.22 | E146: =IFERROR(RTD("cqg.rtd",,"StudyData","LoLevel("&A146&",Period2:="&$B$1&",AllowGaps:=0,InputChoice2:=Low,InputChoice4:=Low)","Bar",, "Close",$C$1,"-1",,,,,"T"),"") -> 44.13 | F146: 0 | G146: 0 | H146: 6.013 | I146: 5.055 | J146: S.US.DRE | K146: =RTD("cqg.rtd", ,"ContractData",A146, "PerCentNetLastTrade",, "T")/100 -> 0.005321888412 | L146: =RANK($K146,$K$2:K$506)+COUNTIF($K$2:K146,K146)-1 ->  | M146: S.US.DRE | N146: 145 | P146: =RTD("cqg.rtd", ,"ContractData",O146, "PerCentNetLastTrade",, "T")/100 ->  | S146: 145
A147: =Symbols!A147 -> S.US.DRI | B147: =IFERROR(RTD("cqg.rtd",,"StudyData",A147,"Bar",, "High",$C$1,"0",,,,,"T"),"") -> 131.7 | C147: =IFERROR(RTD("cqg.rtd",,"StudyData",A147,"Bar",, "Low",$C$1,"0",,,,,"T"),"") -> 130.24 | D147: =IFERROR(RTD("cqg.rtd",,"StudyData","HiLevel("&A147&",Period1:="&$B$1&",AllowGaps:=0,InputChoice1:=High,InputChoice3:=High)","Bar",, "Close",$C$1,"-1",,,,,"T"),"") -> 164.27 | E147: =IFERROR(RTD("cqg.rtd",,"StudyData","LoLevel("&A147&",Period2:="&$B$1&",AllowGaps:=0,InputChoice2:=Low,InputChoice4:=Low)","Bar",, "Close",$C$1,"-1",,,,,"T"),"") -> 116.03 | F147: 0 | G147: 0 | H147: 6.014 | I147: 5.056 | J147: S.US.DRI | K147: =RTD("cqg.rtd", ,"ContractData",A147, "PerCentNetLastTrade",, "T")/100 -> -0.001521491061 | L147: =RANK($K147,$K$2:K$506)+COUNTIF($K$2:K147,K147)-1 ->  | M147: S.US.DRI | N147: 146 | P147: =RTD("cqg.rtd", ,"ContractData",O147, "PerCentNetLastTrade",, "T")/100 ->  | S147: 146
A148: =Symbols!A148 -> S.US.DTE | B148: =IFERROR(RTD("cqg.rtd",,"StudyData",A148,"Bar",, "High",$C$1,"0",,,,,"T"),"") -> 138.03 | C148: =IFERROR(RTD("cqg.rtd",,"StudyData",A148,"Bar",, "Low",$C$1,"0",,,,,"T"),"") -> 137.37 | D148: =IFERROR(RTD("cqg.rtd",,"StudyData","HiLevel("&A148&",Period1:="&$B$1&",AllowGaps:=0,InputChoice1:=High,InputChoice3:=High)","Bar",, "Close",$C$1,"-1",,,,,"T"),"") -> 138.51 | E148: =IFERROR(RTD("cqg.rtd",,"StudyData","LoLevel("&A148&",Period2:="&$B$1&",AllowGaps:=0,InputChoice2:=Low,InputChoice4:=Low)","Bar",, "Close",$C$1,"-1",,,,,"T"),"") -> 108.22 | F148: 0 | G148: 0 | H148: 6.015 | I148: 5.057 | J148: S.US.DTE | K148: =RTD("cqg.rtd", ,"ContractData",A148, "PerCentNetLastTrade",, "T")/100 -> 0.005030254429 | L148: =RANK($K148,$K$2:K$506)+COUNTIF($K$2:K148,K148)-1 ->  | M148: S.US.DTE | N148: 147 | P148: =RTD("cqg.rtd", ,"ContractData",O148, "PerCentNetLastTrade",, "T")/100 ->  | S148: 147
A149: =Symbols!A149 -> S.US.DUK | B149: =IFERROR(RTD("cqg.rtd",,"StudyData",A149,"Bar",, "High",$C$1,"0",,,,,"T"),"") -> 115.82 | C149: =IFERROR(RTD("cqg.rtd",,"StudyData",A149,"Bar",, "Low",$C$1,"0",,,,,"T"),"") -> 115.16 | D149: =IFERROR(RTD("cqg.rtd",,"StudyData","HiLevel("&A149&",Period1:="&$B$1&",AllowGaps:=0,InputChoice1:=High,InputChoice3:=High)","Bar",, "Close",$C$1,"-1",,,,,"T"),"") -> 115.96 | E149: =IFERROR(RTD("cqg.rtd",,"StudyData","LoLevel("&A149&",Period2:="&$B$1&",AllowGaps:=0,InputChoice2:=Low,InputChoice4:=Low)","Bar",, "Close",$C$1,"-1",,,,,"T"),"") -> 95.48 | F149: 0 | G149: 0 | H149: 6.016 | I149: 5.058 | J149: S.US.DUK | K149: =RTD("cqg.rtd", ,"ContractData",A149, "PerCentNetLastTrade",, "T")/100 -> 0.005659555943 | L149: =RANK($K149,$K$2:K$506)+COUNTIF($K$2:K149,K149)-1 ->  | M149: S.US.DUK | N149: 148 | P149: =RTD("cqg.rtd", ,"ContractData",O149, "PerCentNetLastTrade",, "T")/100 ->  | S149: 148
A150: =Symbols!A150 -> S.US.DVA | B150: =IFERROR(RTD("cqg.rtd",,"StudyData",A150,"Bar",, "High",$C$1,"0",,,,,"T"),"") -> 121.98 | C150: =IFERROR(RTD("cqg.rtd",,"StudyData",A150,"Bar",, "Low",$C$1,"0",,,,,"T"),"") -> 120.34 | D150: =IFERROR(RTD("cqg.rtd",,"StudyData","HiLevel("&A150&",Period1:="&$B$1&",AllowGaps:=0,InputChoice1:=High,InputChoice3:=High)","Bar",, "Close",$C$1,"-1",,,,,"T"),"") -> 136.48 | E150: =IFERROR(RTD("cqg.rtd",,"StudyData","LoLevel("&A150&",Period2:="&$B$1&",AllowGaps:=0,InputChoice2:=Low,InputChoice4:=Low)","Bar",, "Close",$C$1,"-1",,,,,"T"),"") -> 94.38 | F150: 0 | G150: 0 | H150: 6.017 | I150: 5.059 | J150: S.US.DVA | K150: =RTD("cqg.rtd", ,"ContractData",A150, "PerCentNetLastTrade",, "T")/100 -> 0.004199258954 | L150: =RANK($K150,$K$2:K$506)+COUNTIF($K$2:K150,K150)-1 ->  | M150: S.US.DVA | N150: 149 | P150: =RTD("cqg.rtd", ,"ContractData",O150, "PerCentNetLastTrade",, "T")/100 ->  | S150: 149
A151: =Symbols!A151 -> S.US.DVN | B151: =IFERROR(RTD("cqg.rtd",,"StudyData",A151,"Bar",, "High",$C$1,"0",,,,,"T"),"") -> 64.24 | C151: =IFERROR(RTD("cqg.rtd",,"StudyData",A151,"Bar",, "Low",$C$1,"0",,,,,"T"),"") -> 62.65 | D151: =IFERROR(RTD("cqg.rtd",,"StudyData","HiLevel("&A151&",Period1:="&$B$1&",AllowGaps:=0,InputChoice1:=High,InputChoice3:=High)","Bar",, "Close",$C$1,"-1",,,,,"T"),"") -> 64.29 | E151: =IFERROR(RTD("cqg.rtd",,"StudyData","LoLevel("&A151&",Period2:="&$B$1&",AllowGaps:=0,InputChoice2:=Low,InputChoice4:=Low)","Bar",, "Close",$C$1,"-1",,,,,"T"),"") -> 20.14 | F151: 0 | G151: 0 | H151: 6.018 | I151: 5.06 | J151: S.US.DVN | K151: =RTD("cqg.rtd", ,"ContractData",A151, "PerCentNetLastTrade",, "T")/100 -> 0.02030051151 | L151: =RANK($K151,$K$2:K$506)+COUNTIF($K$2:K151,K151)-1 ->  | M151: S.US.DVN | N151: 150 | P151: =RTD("cqg.rtd", ,"ContractData",O151, "PerCentNetLastTrade",, "T")/100 ->  | S151: 150
A152: =Symbols!A152 -> S.US.DXC | B152: =IFERROR(RTD("cqg.rtd",,"StudyData",A152,"Bar",, "High",$C$1,"0",,,,,"T"),"") -> 31.64 | C152: =IFERROR(RTD("cqg.rtd",,"StudyData",A152,"Bar",, "Low",$C$1,"0",,,,,"T"),"") -> 31.03 | D152: =IFERROR(RTD("cqg.rtd",,"StudyData","HiLevel("&A152&",Period1:="&$B$1&",AllowGaps:=0,InputChoice1:=High,InputChoice3:=High)","Bar",, "Close",$C$1,"-1",,,,,"T"),"") -> 44.18 | E152: =IFERROR(RTD("cqg.rtd",,"StudyData","LoLevel("&A152&",Period2:="&$B$1&",AllowGaps:=0,InputChoice2:=Low,InputChoice4:=Low)","Bar",, "Close",$C$1,"-1",,,,,"T"),"") -> 28.56 | F152: 0 | G152: 0 | H152: 6.019 | I152: 5.061 | J152: S.US.DXC | K152: =RTD("cqg.rtd", ,"ContractData",A152, "PerCentNetLastTrade",, "T")/100 -> 0.00608 | L152: =RANK($K152,$K$2:K$506)+COUNTIF($K$2:K152,K152)-1 ->  | M152: S.US.DXC | N152: 151 | P152: =RTD("cqg.rtd", ,"ContractData",O152, "PerCentNetLastTrade",, "T")/100 ->  | S152: 151
A153: =Symbols!A153 -> S.US.DXCM | B153: =IFERROR(RTD("cqg.rtd",,"StudyData",A153,"Bar",, "High",$C$1,"0",,,,,"T"),"") -> 491.99 | C153: =IFERROR(RTD("cqg.rtd",,"StudyData",A153,"Bar",, "Low",$C$1,"0",,,,,"T"),"") -> 482.02 | D153: =IFERROR(RTD("cqg.rtd",,"StudyData","HiLevel("&A153&",Period1:="&$B$1&",AllowGaps:=0,InputChoice1:=High,InputChoice3:=High)","Bar",, "Close",$C$1,"-1",,,,,"T"),"") -> 659.45 | E153: =IFERROR(RTD("cqg.rtd",,"StudyData","LoLevel("&A153&",Period2:="&$B$1&",AllowGaps:=0,InputChoice2:=Low,InputChoice4:=Low)","Bar",, "Close",$C$1,"-1",,,,,"T"),"") -> 318.45 | F153: 0 | G153: 0 | H153: 6.02 | I153: 5.062 | J153: S.US.DXCM | K153: =RTD("cqg.rtd", ,"ContractData",A153, "PerCentNetLastTrade",, "T")/100 -> -0.01960943691 | L153: =RANK($K153,$K$2:K$506)+COUNTIF($K$2:K153,K153)-1 ->  | M153: S.US.DXCM | N153: 152 | P153: =RTD("cqg.rtd", ,"ContractData",O153, "PerCentNetLastTrade",, "T")/100 ->  | S153: 152
A154: =Symbols!A154 -> S.US.EA | B154: =IFERROR(RTD("cqg.rtd",,"StudyData",A154,"Bar",, "High",$C$1,"0",,,,,"T"),"") -> 123.34 | C154: =IFERROR(RTD("cqg.rtd",,"StudyData",A154,"Bar",, "Low",$C$1,"0",,,,,"T"),"") -> 122.34 | D154: =IFERROR(RTD("cqg.rtd",,"StudyData","HiLevel("&A154&",Period1:="&$B$1&",AllowGaps:=0,InputChoice1:=High,InputChoice3:=High)","Bar",, "Close",$C$1,"-1",,,,,"T"),"") -> 148.93 | E154: =IFERROR(RTD("cqg.rtd",,"StudyData","LoLevel("&A154&",Period2:="&$B$1&",AllowGaps:=0,InputChoice2:=Low,InputChoice4:=Low)","Bar",, "Close",$C$1,"-1",,,,,"T"),"") -> 117.58 | F154: 0 | G154: 0 | H154: 6.021 | I154: 5.063 | J154: S.US.EA | K154: =RTD("cqg.rtd", ,"ContractData",A154, "PerCentNetLastTrade",, "T")/100 -> 0.0003262642741 | L154: =RANK($K154,$K$2:K$506)+COUNTIF($K$2:K154,K154)-1 ->  | M154: S.US.EA | N154: 153 | P154: =RTD("cqg.rtd", ,"ContractData",O154, "PerCentNetLastTrade",, "T")/100 ->  | S154: 153
A155: =Symbols!A155 -> S.US.EBAY | B155: =IFERROR(RTD("cqg.rtd",,"StudyData",A155,"Bar",, "High",$C$1,"0",,,,,"T"),"") -> 54.36 | C155: =IFERROR(RTD("cqg.rtd",,"StudyData",A155,"Bar",, "Low",$C$1,"0",,,,,"T"),"") -> 53.72 | D155: =IFERROR(RTD("cqg.rtd",,"StudyData","HiLevel("&A155&",Period1:="&$B$1&",AllowGaps:=0,InputChoice1:=High,InputChoice3:=High)","Bar",, "Close",$C$1,"-1",,,,,"T"),"") -> 81.19 | E155: =IFERROR(RTD("cqg.rtd",,"StudyData","LoLevel("&A155&",Period2:="&$B$1&",AllowGaps:=0,InputChoice2:=Low,InputChoice4:=Low)","Bar",, "Close",$C$1,"-1",,,,,"T"),"") -> 49.53 | F155: 0 | G155: 0 | H155: 6.022 | I155: 5.064 | J155: S.US.EBAY | K155: =RTD("cqg.rtd", ,"ContractData",A155, "PerCentNetLastTrade",, "T")/100 -> -0.006832871653 | L155: =RANK($K155,$K$2:K$506)+COUNTIF($K$2:K155,K155)-1 ->  | M155: S.US.EBAY | N155: 154 | P155: =RTD("cqg.rtd", ,"ContractData",O155, "PerCentNetLastTrade",, "T")/100 ->  | S155: 154
A156: =Symbols!A156 -> S.US.ECL | B156: =IFERROR(RTD("cqg.rtd",,"StudyData",A156,"Bar",, "High",$C$1,"0",,,,,"T"),"") -> 177.56 | C156: =IFERROR(RTD("cqg.rtd",,"StudyData",A156,"Bar",, "Low",$C$1,"0",,,,,"T"),"") -> 175.12 | D156: =IFERROR(RTD("cqg.rtd",,"StudyData","HiLevel("&A156&",Period1:="&$B$1&",AllowGaps:=0,InputChoice1:=High,InputChoice3:=High)","Bar",, "Close",$C$1,"-1",,,,,"T"),"") -> 238.93 | E156: =IFERROR(RTD("cqg.rtd",,"StudyData","LoLevel("&A156&",Period2:="&$B$1&",AllowGaps:=0,InputChoice2:=Low,InputChoice4:=Low)","Bar",, "Close",$C$1,"-1",,,,,"T"),"") -> 154.84 | F156: 0 | G156: 0 | H156: 6.023 | I156: 5.065 | J156: S.US.ECL | K156: =RTD("cqg.rtd", ,"ContractData",A156, "PerCentNetLastTrade",, "T")/100 -> 0.0006228765572 | L156: =RANK($K156,$K$2:K$506)+COUNTIF($K$2:K156,K156)-1 ->  | M156: S.US.ECL | N156: 155 | P156: =RTD("cqg.rtd", ,"ContractData",O156, "PerCentNetLastTrade",, "T")/100 ->  | S156: 155
A157: =Symbols!A157 -> S.US.ED | B157: =IFERROR(RTD("cqg.rtd",,"StudyData",A157,"Bar",, "High",$C$1,"0",,,,,"T"),"") -> 98.61 | C157: =IFERROR(RTD("cqg.rtd",,"StudyData",A157,"Bar",, "Low",$C$1,"0",,,,,"T"),"") -> 98.25 | D157: =IFERROR(RTD("cqg.rtd",,"StudyData","HiLevel("&A157&",Period1:="&$B$1&",AllowGaps:=0,InputChoice1:=High,InputChoice3:=High)","Bar",, "Close",$C$1,"-1",,,,,"T"),"") -> 98.65 | E157: =IFERROR(RTD("cqg.rtd",,"StudyData","LoLevel("&A157&",Period2:="&$B$1&",AllowGaps:=0,InputChoice2:=Low,InputChoice4:=Low)","Bar",, "Close",$C$1,"-1",,,,,"T"),"") -> 71.17 | F157: 0 | G157: 0 | H157: 6.024 | I157: 5.066 | J157: S.US.ED | K157: =RTD("cqg.rtd", ,"ContractData",A157, "PerCentNetLastTrade",, "T")/100 -> 0.004284402734 | L157: =RANK($K157,$K$2:K$506)+COUNTIF($K$2:K157,K157)-1 ->  | M157: S.US.ED | N157: 156 | P157: =RTD("cqg.rtd", ,"ContractData",O157, "PerCentNetLastTrade",, "T")/100 ->  | S157: 156
A158: =Symbols!A158 -> S.US.EFX | B158: =IFERROR(RTD("cqg.rtd",,"StudyData",A158,"Bar",, "High",$C$1,"0",,,,,"T"),"") -> 218.44 | C158: =IFERROR(RTD("cqg.rtd",,"StudyData",A158,"Bar",, "Low",$C$1,"0",,,,,"T"),"") -> 215 | D158: =IFERROR(RTD("cqg.rtd",,"StudyData","HiLevel("&A158&",Period1:="&$B$1&",AllowGaps:=0,InputChoice1:=High,InputChoice3:=High)","Bar",, "Close",$C$1,"-1",,,,,"T"),"") -> 300.11 | E158: =IFERROR(RTD("cqg.rtd",,"StudyData","LoLevel("&A158&",Period2:="&$B$1&",AllowGaps:=0,InputChoice2:=Low,InputChoice4:=Low)","Bar",, "Close",$C$1,"-1",,,,,"T"),"") -> 188.5 | F158: 0 | G158: 0 | H158: 6.025 | I158: 5.067 | J158: S.US.EFX | K158: =RTD("cqg.rtd", ,"ContractData",A158, "PerCentNetLastTrade",, "T")/100 -> 0.005499584065 | L158: =RANK($K158,$K$2:K$506)+COUNTIF($K$2:K158,K158)-1 ->  | M158: S.US.EFX | N158: 157 | P158: =RTD("cqg.rtd", ,"ContractData",O158, "PerCentNetLastTrade",, "T")/100 ->  | S158: 157
A159: =Symbols!A159 -> S.US.EIX | B159: =IFERROR(RTD("cqg.rtd",,"StudyData",A159,"Bar",, "High",$C$1,"0",,,,,"T"),"") -> 72.44 | C159: =IFERROR(RTD("cqg.rtd",,"StudyData",A159,"Bar",, "Low",$C$1,"0",,,,,"T"),"") -> 71.94 | D159: =IFERROR(RTD("cqg.rtd",,"StudyData","HiLevel("&A159&",Period1:="&$B$1&",AllowGaps:=0,InputChoice1:=High,InputChoice3:=High)","Bar",, "Close",$C$1,"-1",,,,,"T"),"") -> 72.64 | E159: =IFERROR(RTD("cqg.rtd",,"StudyData","LoLevel("&A159&",Period2:="&$B$1&",AllowGaps:=0,InputChoice2:=Low,InputChoice4:=Low)","Bar",, "Close",$C$1,"-1",,,,,"T"),"") -> 54.14 | F159: 0 | G159: 0 | H159: 6.026 | I159: 5.068 | J159: S.US.EIX | K159: =RTD("cqg.rtd", ,"ContractData",A159, "PerCentNetLastTrade",, "T")/100 -> 0.007516703786 | L159: =RANK($K159,$K$2:K$506)+COUNTIF($K$2:K159,K159)-1 ->  | M159: S.US.EIX | N159: 158 | P159: =RTD("cqg.rtd", ,"ContractData",O159, "PerCentNetLastTrade",, "T")/100 ->  | S159: 158
A160: =Symbols!A160 -> S.US.EL | B160: =IFERROR(RTD("cqg.rtd",,"StudyData",A160,"Bar",, "High",$C$1,"0",,,,,"T"),"") -> 264.69 | C160: =IFERROR(RTD("cqg.rtd",,"StudyData",A160,"Bar",, "Low",$C$1,"0",,,,,"T"),"") -> 262.66 | D160: =IFERROR(RTD("cqg.rtd",,"StudyData","HiLevel("&A160&",Period1:="&$B$1&",AllowGaps:=0,InputChoice1:=High,InputChoice3:=High)","Bar",, "Close",$C$1,"-1",,,,,"T"),"") -> 374.2 | E160: =IFERROR(RTD("cqg.rtd",,"StudyData","LoLevel("&A160&",Period2:="&$B$1&",AllowGaps:=0,InputChoice2:=Low,InputChoice4:=Low)","Bar",, "Close",$C$1,"-1",,,,,"T"),"") -> 248.42 | F160: 0 | G160: 0 | H160: 6.027 | I160: 5.069 | J160: S.US.EL | K160: =RTD("cqg.rtd", ,"ContractData",A160, "PerCentNetLastTrade",, "T")/100 -> -0.00227384697 | L160: =RANK($K160,$K$2:K$506)+COUNTIF($K$2:K160,K160)-1 ->  | M160: S.US.EL | N160: 159 | P160: =RTD("cqg.rtd", ,"ContractData",O160, "PerCentNetLastTrade",, "T")/100 ->  | S160: 159
A161: =Symbols!A161 -> S.US.EMBC | B161: =IFERROR(RTD("cqg.rtd",,"StudyData",A161,"Bar",, "High",$C$1,"0",,,,,"T"),"") -> 32.64 | C161: =IFERROR(RTD("cqg.rtd",,"StudyData",A161,"Bar",, "Low",$C$1,"0",,,,,"T"),"") -> 31.69 | D161: =IFERROR(RTD("cqg.rtd",,"StudyData","HiLevel("&A161&",Period1:="&$B$1&",AllowGaps:=0,InputChoice1:=High,InputChoice3:=High)","Bar",, "Close",$C$1,"-1",,,,,"T"),"") ->  | E161: =IFERROR(RTD("cqg.rtd",,"StudyData","LoLevel("&A161&",Period2:="&$B$1&",AllowGaps:=0,InputChoice2:=Low,InputChoice4:=Low)","Bar",, "Close",$C$1,"-1",,,,,"T"),"") ->  | F161: 0 | G161: 1 | H161: 6.028 | I161: 6 | J161: S.US.EMBC | K161: =RTD("cqg.rtd", ,"ContractData",A161, "PerCentNetLastTrade",, "T")/100 -> -0.02619555285 | L161: =RANK($K161,$K$2:K$506)+COUNTIF($K$2:K161,K161)-1 ->  | M161: S.US.EMBC | N161: 160 | P161: =RTD("cqg.rtd", ,"ContractData",O161, "PerCentNetLastTrade",, "T")/100 ->  | S161: 160
A162: =Symbols!A162 -> S.US.EMN | B162: =IFERROR(RTD("cqg.rtd",,"StudyData",A162,"Bar",, "High",$C$1,"0",,,,,"T"),"") -> 109.19 | C162: =IFERROR(RTD("cqg.rtd",,"StudyData",A162,"Bar",, "Low",$C$1,"0",,,,,"T"),"") -> 107.91 | D162: =IFERROR(RTD("cqg.rtd",,"StudyData","HiLevel("&A162&",Period1:="&$B$1&",AllowGaps:=0,InputChoice1:=High,InputChoice3:=High)","Bar",, "Close",$C$1,"-1",,,,,"T"),"") -> 130.47 | E162: =IFERROR(RTD("cqg.rtd",,"StudyData","LoLevel("&A162&",Period2:="&$B$1&",AllowGaps:=0,InputChoice2:=Low,InputChoice4:=Low)","Bar",, "Close",$C$1,"-1",,,,,"T"),"") -> 98.24 | F162: 0 | G162: 0 | H162: 6.029 | I162: 6.001 | J162: S.US.EMN | K162: =RTD("cqg.rtd", ,"ContractData",A162, "PerCentNetLastTrade",, "T")/100 -> 0.004911500324 | L162: =RANK($K162,$K$2:K$506)+COUNTIF($K$2:K162,K162)-1 ->  | M162: S.US.EMN | N162: 161 | P162: =RTD("cqg.rtd", ,"ContractData",O162, "PerCentNetLastTrade",, "T")/100 ->  | S162: 161
A163: =Symbols!A163 -> S.US.EMR | B163: =IFERROR(RTD("cqg.rtd",,"StudyData",A163,"Bar",, "High",$C$1,"0",,,,,"T"),"") -> 93.8 | C163: =IFERROR(RTD("cqg.rtd",,"StudyData",A163,"Bar",, "Low",$C$1,"0",,,,,"T"),"") -> 92.63 | D163: =IFERROR(RTD("cqg.rtd",,"StudyData","HiLevel("&A163&",Period1:="&$B$1&",AllowGaps:=0,InputChoice1:=High,InputChoice3:=High)","Bar",, "Close",$C$1,"-1",,,,,"T"),"") -> 105.99 | E163: =IFERROR(RTD("cqg.rtd",,"StudyData","LoLevel("&A163&",Period2:="&$B$1&",AllowGaps:=0,InputChoice2:=Low,InputChoice4:=Low)","Bar",, "Close",$C$1,"-1",,,,,"T"),"") -> 86.72 | F163: 0 | G163: 0 | H163: 6.03 | I163: 6.002 | J163: S.US.EMR | K163: =RTD("cqg.rtd", ,"ContractData",A163, "PerCentNetLastTrade",, "T")/100 -> 0.009368942494 | L163: =RANK($K163,$K$2:K$506)+COUNTIF($K$2:K163,K163)-1 ->  | M163: S.US.EMR | N163: 162 | P163: =RTD("cqg.rtd", ,"ContractData",O163, "PerCentNetLastTrade",, "T")/100 ->  | S163: 162
A164: =Symbols!A164 -> S.US.ENPH | B164: =IFERROR(RTD("cqg.rtd",,"StudyData",A164,"Bar",, "High",$C$1,"0",,,,,"T"),"") -> 192.19 | C164: =IFERROR(RTD("cqg.rtd",,"StudyData",A164,"Bar",, "Low",$C$1,"0",,,,,"T"),"") -> 188.24 | D164: =IFERROR(RTD("cqg.rtd",,"StudyData","HiLevel("&A164&",Period1:="&$B$1&",AllowGaps:=0,InputChoice1:=High,InputChoice3:=High)","Bar",, "Close",$C$1,"-1",,,,,"T"),"") -> 282.46 | E164: =IFERROR(RTD("cqg.rtd",,"StudyData","LoLevel("&A164&",Period2:="&$B$1&",AllowGaps:=0,InputChoice2:=Low,InputChoice4:=Low)","Bar",, "Close",$C$1,"-1",,,,,"T"),"") -> 108.88 | F164: 0 | G164: 0 | H164: 6.031 | I164: 6.003 | J164: S.US.ENPH | K164: =RTD("cqg.rtd", ,"ContractData",A164, "PerCentNetLastTrade",, "T")/100 -> -0.01002572043 | L164: =RANK($K164,$K$2:K$506)+COUNTIF($K$2:K164,K164)-1 ->  | M164: S.US.ENPH | N164: 163 | P164: =RTD("cqg.rtd", ,"ContractData",O164, "PerCentNetLastTrade",, "T")/100 ->  | S164: 163
A165: =Symbols!A165 -> S.US.EOG | B165: =IFERROR(RTD("cqg.rtd",,"StudyData",A165,"Bar",, "High",$C$1,"0",,,,,"T"),"") -> 125.22 | C165: =IFERROR(RTD("cqg.rtd",,"StudyData",A165,"Bar",, "Low",$C$1,"0",,,,,"T"),"") -> 123.2 | D165: =IFERROR(RTD("cqg.rtd",,"StudyData","HiLevel("&A165&",Period1:="&$B$1&",AllowGaps:=0,InputChoice1:=High,InputChoice3:=High)","Bar",, "Close",$C$1,"-1",,,,,"T"),"") -> 127.94 | E165: =IFERROR(RTD("cqg.rtd",,"StudyData","LoLevel("&A165&",Period2:="&$B$1&",AllowGaps:=0,InputChoice2:=Low,InputChoice4:=Low)","Bar",, "Close",$C$1,"-1",,,,,"T"),"") -> 62.81 | F165: 0 | G165: 0 | H165: 6.032 | I165: 6.004 | J165: S.US.EOG | K165: =RTD("cqg.rtd", ,"ContractData",A165, "PerCentNetLastTrade",, "T")/100 -> 0.01415324549 | L165: =RANK($K165,$K$2:K$506)+COUNTIF($K$2:K165,K165)-1 ->  | M165: S.US.EOG | N165: 164 | P165: =RTD("cqg.rtd", ,"ContractData",O165, "PerCentNetLastTrade",, "T")/100 ->  | S165: 164
A166: =Symbols!A166 -> S.US.EPAM | B166: =IFERROR(RTD("cqg.rtd",,"StudyData",A166,"Bar",, "High",$C$1,"0",,,,,"T"),"") -> 290.21 | C166: =IFERROR(RTD("cqg.rtd",,"StudyData",A166,"Bar",, "Low",$C$1,"0",,,,,"T"),"") -> 286 | D166: =IFERROR(RTD("cqg.rtd",,"StudyData","HiLevel("&A166&",Period1:="&$B$1&",AllowGaps:=0,InputChoice1:=High,InputChoice3:=High)","Bar",, "Close",$C$1,"-1",,,,,"T"),"") -> 725.4 | E166: =IFERROR(RTD("cqg.rtd",,"StudyData","LoLevel("&A166&",Period2:="&$B$1&",AllowGaps:=0,InputChoice2:=Low,InputChoice4:=Low)","Bar",, "Close",$C$1,"-1",,,,,"T"),"") -> 168.59 | F166: 0 | G166: 0 | H166: 6.033 | I166: 6.005 | J166: S.US.EPAM | K166: =RTD("cqg.rtd", ,"ContractData",A166, "PerCentNetLastTrade",, "T")/100 -> -0.01241122526 | L166: =RANK($K166,$K$2:K$506)+COUNTIF($K$2:K166,K166)-1 ->  | M166: S.US.EPAM | N166: 165 | P166: =RTD("cqg.rtd", ,"ContractData",O166, "PerCentNetLastTrade",, "T")/100 ->  | S166: 165
A167: =Symbols!A167 -> S.US.EQIX | B167: =IFERROR(RTD("cqg.rtd",,"StudyData",A167,"Bar",, "High",$C$1,"0",,,,,"T"),"") -> 738.82 | C167: =IFERROR(RTD("cqg.rtd",,"StudyData",A167,"Bar",, "Low",$C$1,"0",,,,,"T"),"") -> 732.22 | D167: =IFERROR(RTD("cqg.rtd",,"StudyData","HiLevel("&A167&",Period1:="&$B$1&",AllowGaps:=0,InputChoice1:=High,InputChoice3:=High)","Bar",, "Close",$C$1,"-1",,,,,"T"),"") -> 885.26 | E167: =IFERROR(RTD("cqg.rtd",,"StudyData","LoLevel("&A167&",Period2:="&$B$1&",AllowGaps:=0,InputChoice2:=Low,InputChoice4:=Low)","Bar",, "Close",$C$1,"-1",,,,,"T"),"") -> 662.26 | F167: 0 | G167: 0 | H167: 6.034 | I167: 6.006 | J167: S.US.EQIX | K167: =RTD("cqg.rtd", ,"ContractData",A167, "PerCentNetLastTrade",, "T")/100 -> -0.004107502312 | L167: =RANK($K167,$K$2:K$506)+COUNTIF($K$2:K167,K167)-1 ->  | M167: S.US.EQIX | N167: 166 | P167: =RTD("cqg.rtd", ,"ContractData",O167, "PerCentNetLastTrade",, "T")/100 ->  | S167: 166
A168: =Symbols!A168 -> S.US.EQR | B168: =IFERROR(RTD("cqg.rtd",,"StudyData",A168,"Bar",, "High",$C$1,"0",,,,,"T"),"") -> 91.14 | C168: =IFERROR(RTD("cqg.rtd",,"StudyData",A168,"Bar",, "Low",$C$1,"0",,,,,"T"),"") -> 90.6 | D168: =IFERROR(RTD("cqg.rtd",,"StudyData","HiLevel("&A168&",Period1:="&$B$1&",AllowGaps:=0,InputChoice1:=High,InputChoice3:=High)","Bar",, "Close",$C$1,"-1",,,,,"T"),"") -> 93.03 | E168: =IFERROR(RTD("cqg.rtd",,"StudyData","LoLevel("&A168&",Period2:="&$B$1&",AllowGaps:=0,InputChoice2:=Low,InputChoice4:=Low)","Bar",, "Close",$C$1,"-1",,,,,"T"),"") -> 70.98 | F168: 0 | G168: 0 | H168: 6.035 | I168: 6.007 | J168: S.US.EQR | K168: =RTD("cqg.rtd", ,"ContractData",A168, "PerCentNetLastTrade",, "T")/100 -> 0.005750304103 | L168: =RANK($K168,$K$2:K$506)+COUNTIF($K$2:K168,K168)-1 ->  | M168: S.US.EQR | N168: 167 | P168: =RTD("cqg.rtd", ,"ContractData",O168, "PerCentNetLastTrade",, "T")/100 ->  | S168: 167
A169: =Symbols!A169 -> S.US.ES | B169: =IFERROR(RTD("cqg.rtd",,"StudyData",A169,"Bar",, "High",$C$1,"0",,,,,"T"),"") -> 93.14 | C169: =IFERROR(RTD("cqg.rtd",,"StudyData",A169,"Bar",, "Low",$C$1,"0",,,,,"T"),"") -> 92.61 | D169: =IFERROR(RTD("cqg.rtd",,"StudyData","HiLevel("&A169&",Period1:="&$B$1&",AllowGaps:=0,InputChoice1:=High,InputChoice3:=High)","Bar",, "Close",$C$1,"-1",,,,,"T"),"") -> 93.33 | E169: =IFERROR(RTD("cqg.rtd",,"StudyData","LoLevel("&A169&",Period2:="&$B$1&",AllowGaps:=0,InputChoice2:=Low,InputChoice4:=Low)","Bar",, "Close",$C$1,"-1",,,,,"T"),"") -> 78.44 | F169: =IF(B169="",0,IFERROR(IF(B169>D169,1,0),"")) -> 0 | G169: =IF(C169="",0,IFERROR(IF(C169<E169,1,0),"")) -> 0 | H169: =IF(F169=1,INT(H168+1),H168+0.001) -> 6.036 | I169: =IF(G169=1,INT(I168+1),I168+0.001) -> 6.008 | J169: =A169 -> S.US.ES | K169: =RTD("cqg.rtd", ,"ContractData",A169, "PerCentNetLastTrade",, "T")/100 -> 0.003563714903 | L169: =RANK($K169,$K$2:K$506)+COUNTIF($K$2:K169,K169)-1 ->  | M169: S.US.ES | N169: 168 | P169: =RTD("cqg.rtd", ,"ContractData",O169, "PerCentNetLastTrade",, "T")/100 ->  | S169: 168
A170: =Symbols!A170 -> S.US.ESS | B170: =IFERROR(RTD("cqg.rtd",,"StudyData",A170,"Bar",, "High",$C$1,"0",,,,,"T"),"") -> 346.53 | C170: =IFERROR(RTD("cqg.rtd",,"StudyData",A170,"Bar",, "Low",$C$1,"0",,,,,"T"),"") -> 345.34 | D170: =IFERROR(RTD("cqg.rtd",,"StudyData","HiLevel("&A170&",Period1:="&$B$1&",AllowGaps:=0,InputChoice1:=High,InputChoice3:=High)","Bar",, "Close",$C$1,"-1",,,,,"T"),"") -> 359.49 | E170: =IFERROR(RTD("cqg.rtd",,"StudyData","LoLevel("&A170&",Period2:="&$B$1&",AllowGaps:=0,InputChoice2:=Low,InputChoice4:=Low)","Bar",, "Close",$C$1,"-1",,,,,"T"),"") -> 278.3 | F170: 0 | G170: 0 | H170: 6.037 | I170: 6.009 | J170: S.US.ESS | K170: =RTD("cqg.rtd", ,"ContractData",A170, "PerCentNetLastTrade",, "T")/100 -> 0.00295215768 | L170: =RANK($K170,$K$2:K$506)+COUNTIF($K$2:K170,K170)-1 ->  | M170: S.US.ESS | N170: 169 | P170: =RTD("cqg.rtd", ,"ContractData",O170, "PerCentNetLastTrade",, "T")/100 ->  | S170: 169
A171: =Symbols!A171 -> S.US.ETN | B171: =IFERROR(RTD("cqg.rtd",,"StudyData",A171,"Bar",, "High",$C$1,"0",,,,,"T"),"") -> 141.74 | C171: =IFERROR(RTD("cqg.rtd",,"StudyData",A171,"Bar",, "Low",$C$1,"0",,,,,"T"),"") -> 139.6 | D171: =IFERROR(RTD("cqg.rtd",,"StudyData","HiLevel("&A171&",Period1:="&$B$1&",AllowGaps:=0,InputChoice1:=High,InputChoice3:=High)","Bar",, "Close",$C$1,"-1",,,,,"T"),"") -> 175.72 | E171: =IFERROR(RTD("cqg.rtd",,"StudyData","LoLevel("&A171&",Period2:="&$B$1&",AllowGaps:=0,InputChoice2:=Low,InputChoice4:=Low)","Bar",, "Close",$C$1,"-1",,,,,"T"),"") -> 137.56 | F171: 0 | G171: 0 | H171: 6.038 | I171: 6.01 | J171: S.US.ETN | K171: =RTD("cqg.rtd", ,"ContractData",A171, "PerCentNetLastTrade",, "T")/100 -> 0.009005789436 | L171: =RANK($K171,$K$2:K$506)+COUNTIF($K$2:K171,K171)-1 ->  | M171: S.US.ETN | N171: 170 | P171: =RTD("cqg.rtd", ,"ContractData",O171, "PerCentNetLastTrade",, "T")/100 ->  | S171: 170
A172: =Symbols!A172 -> S.US.ETR | B172: =IFERROR(RTD("cqg.rtd",,"StudyData",A172,"Bar",, "High",$C$1,"0",,,,,"T"),"") -> 124.85 | C172: =IFERROR(RTD("cqg.rtd",,"StudyData",A172,"Bar",, "Low",$C$1,"0",,,,,"T"),"") -> 124.25 | D172: =IFERROR(RTD("cqg.rtd",,"StudyData","HiLevel("&A172&",Period1:="&$B$1&",AllowGaps:=0,InputChoice1:=High,InputChoice3:=High)","Bar",, "Close",$C$1,"-1",,,,,"T"),"") -> 124.76 | E172: =IFERROR(RTD("cqg.rtd",,"StudyData","LoLevel("&A172&",Period2:="&$B$1&",AllowGaps:=0,InputChoice2:=Low,InputChoice4:=Low)","Bar",, "Close",$C$1,"-1",,,,,"T"),"") -> 98.49 | F172: 1 | G172: 0 | H172: 7 | I172: 6.011 | J172: S.US.ETR | K172: =RTD("cqg.rtd", ,"ContractData",A172, "PerCentNetLastTrade",, "T")/100 -> 0.0038647343 | L172: =RANK($K172,$K$2:K$506)+COUNTIF($K$2:K172,K172)-1 ->  | M172: S.US.ETR | N172: 171 | P172: =RTD("cqg.rtd", ,"ContractData",O172, "PerCentNetLastTrade",, "T")/100 ->  | S172: 171
A173: =Symbols!A173 -> S.US.ETSY | B173: =IFERROR(RTD("cqg.rtd",,"StudyData",A173,"Bar",, "High",$C$1,"0",,,,,"T"),"") -> 115.5 | C173: =IFERROR(RTD("cqg.rtd",,"StudyData",A173,"Bar",, "Low",$C$1,"0",,,,,"T"),"") -> 109.53 | D173: =IFERROR(RTD("cqg.rtd",,"StudyData","HiLevel("&A173&",Period1:="&$B$1&",AllowGaps:=0,InputChoice1:=High,InputChoice3:=High)","Bar",, "Close",$C$1,"-1",,,,,"T"),"") -> 307.75 | E173: =IFERROR(RTD("cqg.rtd",,"StudyData","LoLevel("&A173&",Period2:="&$B$1&",AllowGaps:=0,InputChoice2:=Low,InputChoice4:=Low)","Bar",, "Close",$C$1,"-1",,,,,"T"),"") -> 109.38 | F173: 0 | G173: 0 | H173: 7.001 | I173: 6.012 | J173: S.US.ETSY | K173: =RTD("cqg.rtd", ,"ContractData",A173, "PerCentNetLastTrade",, "T")/100 -> -0.05319975818 | L173: =RANK($K173,$K$2:K$506)+COUNTIF($K$2:K173,K173)-1 ->  | M173: S.US.ETSY | N173: 172 | P173: =RTD("cqg.rtd", ,"ContractData",O173, "PerCentNetLastTrade",, "T")/100 ->  | S173: 172
A174: =Symbols!A174 -> S.US.EVRG | B174: =IFERROR(RTD("cqg.rtd",,"StudyData",A174,"Bar",, "High",$C$1,"0",,,,,"T"),"") -> 71.29 | C174: =IFERROR(RTD("cqg.rtd",,"StudyData",A174,"Bar",, "Low",$C$1,"0",,,,,"T"),"") -> 70.78 | D174: =IFERROR(RTD("cqg.rtd",,"StudyData","HiLevel("&A174&",Period1:="&$B$1&",AllowGaps:=0,InputChoice1:=High,InputChoice3:=High)","Bar",, "Close",$C$1,"-1",,,,,"T"),"") -> 71.48 | E174: =IFERROR(RTD("cqg.rtd",,"StudyData","LoLevel("&A174&",Period2:="&$B$1&",AllowGaps:=0,InputChoice2:=Low,InputChoice4:=Low)","Bar",, "Close",$C$1,"-1",,,,,"T"),"") -> 59.46 | F174: 0 | G174: 0 | H174: 7.002 | I174: 6.013 | J174: S.US.EVRG | K174: =RTD("cqg.rtd", ,"ContractData",A174, "PerCentNetLastTrade",, "T")/100 -> 0.006778703573 | L174: =RANK($K174,$K$2:K$506)+COUNTIF($K$2:K174,K174)-1 ->  | M174: S.US.EVRG | N174: 173 | P174: =RTD("cqg.rtd", ,"ContractData",O174, "PerCentNetLastTrade",, "T")/100 ->  | S174: 173
A175: =Symbols!A175 -> S.US.EW | B175: =IFERROR(RTD("cqg.rtd",,"StudyData",A175,"Bar",, "High",$C$1,"0",,,,,"T"),"") -> 120.66 | C175: =IFERROR(RTD("cqg.rtd",,"StudyData",A175,"Bar",, "Low",$C$1,"0",,,,,"T"),"") -> 119.35 | D175: =IFERROR(RTD("cqg.rtd",,"StudyData","HiLevel("&A175&",Period1:="&$B$1&",AllowGaps:=0,InputChoice1:=High,InputChoice3:=High)","Bar",, "Close",$C$1,"-1",,,,,"T"),"") -> 131.73 | E175: =IFERROR(RTD("cqg.rtd",,"StudyData","LoLevel("&A175&",Period2:="&$B$1&",AllowGaps:=0,InputChoice2:=Low,InputChoice4:=Low)","Bar",, "Close",$C$1,"-1",,,,,"T"),"") -> 87.32 | F175: 0 | G175: 0 | H175: 7.003 | I175: 6.014 | J175: S.US.EW | K175: =RTD("cqg.rtd", ,"ContractData",A175, "PerCentNetLastTrade",, "T")/100 -> -0.002999500083 | L175: =RANK($K175,$K$2:K$506)+COUNTIF($K$2:K175,K175)-1 ->  | M175: S.US.EW | N175: 174 | P175: =RTD("cqg.rtd", ,"ContractData",O175, "PerCentNetLastTrade",, "T")/100 ->  | S175: 174
A176: =Symbols!A176 -> S.US.EXC | B176: =IFERROR(RTD("cqg.rtd",,"StudyData",A176,"Bar",, "High",$C$1,"0",,,,,"T"),"") -> 49.25 | C176: =IFERROR(RTD("cqg.rtd",,"StudyData",A176,"Bar",, "Low",$C$1,"0",,,,,"T"),"") -> 49 | D176: =IFERROR(RTD("cqg.rtd",,"StudyData","HiLevel("&A176&",Period1:="&$B$1&",AllowGaps:=0,InputChoice1:=High,InputChoice3:=High)","Bar",, "Close",$C$1,"-1",,,,,"T"),"") -> 50.29 | E176: =IFERROR(RTD("cqg.rtd",,"StudyData","LoLevel("&A176&",Period2:="&$B$1&",AllowGaps:=0,InputChoice2:=Low,InputChoice4:=Low)","Bar",, "Close",$C$1,"-1",,,,,"T"),"") -> 30.52 | F176: 0 | G176: 0 | H176: 7.004 | I176: 6.015 | J176: S.US.EXC | K176: =RTD("cqg.rtd", ,"ContractData",A176, "PerCentNetLastTrade",, "T")/100 -> 0.002651437895 | L176: =RANK($K176,$K$2:K$506)+COUNTIF($K$2:K176,K176)-1 ->  | M176: S.US.EXC | N176: 175 | P176: =RTD("cqg.rtd", ,"ContractData",O176, "PerCentNetLastTrade",, "T")/100 ->  | S176: 175
A177: =Symbols!A177 -> S.US.EXPD | B177: =IFERROR(RTD("cqg.rtd",,"StudyData",A177,"Bar",, "High",$C$1,"0",,,,,"T"),"") -> 97.02 | C177: =IFERROR(RTD("cqg.rtd",,"StudyData",A177,"Bar",, "Low",$C$1,"0",,,,,"T"),"") -> 96.2 | D177: =IFERROR(RTD("cqg.rtd",,"StudyData","HiLevel("&A177&",Period1:="&$B$1&",AllowGaps:=0,InputChoice1:=High,InputChoice3:=High)","Bar",, "Close",$C$1,"-1",,,,,"T"),"") -> 137.8 | E177: =IFERROR(RTD("cqg.rtd",,"StudyData","LoLevel("&A177&",Period2:="&$B$1&",AllowGaps:=0,InputChoice2:=Low,InputChoice4:=Low)","Bar",, "Close",$C$1,"-1",,,,,"T"),"") -> 94.95 | F177: 0 | G177: 0 | H177: 7.005 | I177: 6.016 | J177: S.US.EXPD | K177: =RTD("cqg.rtd", ,"ContractData",A177, "PerCentNetLastTrade",, "T")/100 -> -0.0002068466232 | L177: =RANK($K177,$K$2:K$506)+COUNTIF($K$2:K177,K177)-1 ->  | M177: S.US.EXPD | N177: 176 | P177: =RTD("cqg.rtd", ,"ContractData",O177, "PerCentNetLastTrade",, "T")/100 ->  | S177: 176
A178: =Symbols!A178 -> S.US.EXPE | B178: =IFERROR(RTD("cqg.rtd",,"StudyData",A178,"Bar",, "High",$C$1,"0",,,,,"T"),"") -> 191.68 | C178: =IFERROR(RTD("cqg.rtd",,"StudyData",A178,"Bar",, "Low",$C$1,"0",,,,,"T"),"") -> 189.62 | D178: =IFERROR(RTD("cqg.rtd",,"StudyData","HiLevel("&A178&",Period1:="&$B$1&",AllowGaps:=0,InputChoice1:=High,InputChoice3:=High)","Bar",, "Close",$C$1,"-1",,,,,"T"),"") -> 217.72 | E178: =IFERROR(RTD("cqg.rtd",,"StudyData","LoLevel("&A178&",Period2:="&$B$1&",AllowGaps:=0,InputChoice2:=Low,InputChoice4:=Low)","Bar",, "Close",$C$1,"-1",,,,,"T"),"") -> 136.77 | F178: 0 | G178: 0 | H178: 7.006 | I178: 6.017 | J178: S.US.EXPE | K178: =RTD("cqg.rtd", ,"ContractData",A178, "PerCentNetLastTrade",, "T")/100 -> -0.00495954059 | L178: =RANK($K178,$K$2:K$506)+COUNTIF($K$2:K178,K178)-1 ->  | M178: S.US.EXPE | N178: 177 | P178: =RTD("cqg.rtd", ,"ContractData",O178, "PerCentNetLastTrade",, "T")/100 ->  | S178: 177
A179: =Symbols!A179 -> S.US.EXR | B179: =IFERROR(RTD("cqg.rtd",,"StudyData",A179,"Bar",, "High",$C$1,"0",,,,,"T"),"") -> 213.65 | C179: =IFERROR(RTD("cqg.rtd",,"StudyData",A179,"Bar",, "Low",$C$1,"0",,,,,"T"),"") -> 212 | D179: =IFERROR(RTD("cqg.rtd",,"StudyData","HiLevel("&A179&",Period1:="&$B$1&",AllowGaps:=0,InputChoice1:=High,InputChoice3:=High)","Bar",, "Close",$C$1,"-1",,,,,"T"),"") -> 228.83 | E179: =IFERROR(RTD("cqg.rtd",,"StudyData","LoLevel("&A179&",Period2:="&$B$1&",AllowGaps:=0,InputChoice2:=Low,InputChoice4:=Low)","Bar",, "Close",$C$1,"-1",,,,,"T"),"") -> 141.67 | F179: 0 | G179: 0 | H179: 7.007 | I179: 6.018 | J179: S.US.EXR | K179: =RTD("cqg.rtd", ,"ContractData",A179, "PerCentNetLastTrade",, "T")/100 -> 0.003999059045 | L179: =RANK($K179,$K$2:K$506)+COUNTIF($K$2:K179,K179)-1 ->  | M179: S.US.EXR | N179: 178 | P179: =RTD("cqg.rtd", ,"ContractData",O179, "PerCentNetLastTrade",, "T")/100 ->  | S179: 178
A180: =Symbols!A180 -> S.US.F | B180: =IFERROR(RTD("cqg.rtd",,"StudyData",A180,"Bar",, "High",$C$1,"0",,,,,"T"),"") -> 15.55 | C180: =IFERROR(RTD("cqg.rtd",,"StudyData",A180,"Bar",, "Low",$C$1,"0",,,,,"T"),"") -> 15.37 | D180: =IFERROR(RTD("cqg.rtd",,"StudyData","HiLevel("&A180&",Period1:="&$B$1&",AllowGaps:=0,InputChoice1:=High,InputChoice3:=High)","Bar",, "Close",$C$1,"-1",,,,,"T"),"") -> 25.87 | E180: =IFERROR(RTD("cqg.rtd",,"StudyData","LoLevel("&A180&",Period2:="&$B$1&",AllowGaps:=0,InputChoice2:=Low,InputChoice4:=Low)","Bar",, "Close",$C$1,"-1",,,,,"T"),"") -> 11.14 | F180: 0 | G180: 0 | H180: 7.008 | I180: 6.019 | J180: S.US.F | K180: =RTD("cqg.rtd", ,"ContractData",A180, "PerCentNetLastTrade",, "T")/100 -> -0.000645994832 | L180: =RANK($K180,$K$2:K$506)+COUNTIF($K$2:K180,K180)-1 ->  | M180: S.US.F | N180: 179 | P180: =RTD("cqg.rtd", ,"ContractData",O180, "PerCentNetLastTrade",, "T")/100 ->  | S180: 179
A181: =Symbols!A181 -> S.US.FANG | B181: =IFERROR(RTD("cqg.rtd",,"StudyData",A181,"Bar",, "High",$C$1,"0",,,,,"T"),"") -> 141.05 | C181: =IFERROR(RTD("cqg.rtd",,"StudyData",A181,"Bar",, "Low",$C$1,"0",,,,,"T"),"") -> 138.05 | D181: =IFERROR(RTD("cqg.rtd",,"StudyData","HiLevel("&A181&",Period1:="&$B$1&",AllowGaps:=0,InputChoice1:=High,InputChoice3:=High)","Bar",, "Close",$C$1,"-1",,,,,"T"),"") -> 147.99 | E181: =IFERROR(RTD("cqg.rtd",,"StudyData","LoLevel("&A181&",Period2:="&$B$1&",AllowGaps:=0,InputChoice2:=Low,InputChoice4:=Low)","Bar",, "Close",$C$1,"-1",,,,,"T"),"") -> 65.93 | F181: 0 | G181: 0 | H181: 7.009 | I181: 6.02 | J181: S.US.FANG | K181: =RTD("cqg.rtd", ,"ContractData",A181, "PerCentNetLastTrade",, "T")/100 -> 0.01083501878 | L181: =RANK($K181,$K$2:K$506)+COUNTIF($K$2:K181,K181)-1 ->  | M181: S.US.FANG | N181: 180 | P181: =RTD("cqg.rtd", ,"ContractData",O181, "PerCentNetLastTrade",, "T")/100 ->  | S181: 180
A182: =Symbols!A182 -> S.US.FAST | B182: =IFERROR(RTD("cqg.rtd",,"StudyData",A182,"Bar",, "High",$C$1,"0",,,,,"T"),"") -> 56.1 | C182: =IFERROR(RTD("cqg.rtd",,"StudyData",A182,"Bar",, "Low",$C$1,"0",,,,,"T"),"") -> 55.74 | D182: =IFERROR(RTD("cqg.rtd",,"StudyData","HiLevel("&A182&",Period1:="&$B$1&",AllowGaps:=0,InputChoice1:=High,InputChoice3:=High)","Bar",, "Close",$C$1,"-1",,,,,"T"),"") -> 64.74 | E182: =IFERROR(RTD("cqg.rtd",,"StudyData","LoLevel("&A182&",Period2:="&$B$1&",AllowGaps:=0,InputChoice2:=Low,InputChoice4:=Low)","Bar",, "Close",$C$1,"-1",,,,,"T"),"") -> 48.84 | F182: 0 | G182: 0 | H182: 7.01 | I182: 6.021 | J182: S.US.FAST | K182: =RTD("cqg.rtd", ,"ContractData",A182, "PerCentNetLastTrade",, "T")/100 -> -0.003213711837 | L182: =RANK($K182,$K$2:K$506)+COUNTIF($K$2:K182,K182)-1 ->  | M182: S.US.FAST | N182: 181 | P182: =RTD("cqg.rtd", ,"ContractData",O182, "PerCentNetLastTrade",, "T")/100 ->  | S182: 181
A183: =Symbols!A183 -> S.US.FB | B183: =IFERROR(RTD("cqg.rtd",,"StudyData",A183,"Bar",, "High",$C$1,"0",,,,,"T"),"") -> 211.4 | C183: =IFERROR(RTD("cqg.rtd",,"StudyData",A183,"Bar",, "Low",$C$1,"0",,,,,"T"),"") -> 209.35 | D183: =IFERROR(RTD("cqg.rtd",,"StudyData","HiLevel("&A183&",Period1:="&$B$1&",AllowGaps:=0,InputChoice1:=High,InputChoice3:=High)","Bar",, "Close",$C$1,"-1",,,,,"T"),"") -> 384.33 | E183: =IFERROR(RTD("cqg.rtd",,"StudyData","LoLevel("&A183&",Period2:="&$B$1&",AllowGaps:=0,InputChoice2:=Low,InputChoice4:=Low)","Bar",, "Close",$C$1,"-1",,,,,"T"),"") -> 185.82 | F183: 0 | G183: 0 | H183: 7.011 | I183: 6.022 | J183: S.US.FB | K183: =RTD("cqg.rtd", ,"ContractData",A183, "PerCentNetLastTrade",, "T")/100 -> 0.0002854695975 | L183: =RANK($K183,$K$2:K$506)+COUNTIF($K$2:K183,K183)-1 ->  | M183: S.US.FB | N183: 182 | P183: =RTD("cqg.rtd", ,"ContractData",O183, "PerCentNetLastTrade",, "T")/100 ->  | S183: 182
A184: =Symbols!A184 -> S.US.FBHS | B184: =IFERROR(RTD("cqg.rtd",,"StudyData",A184,"Bar",, "High",$C$1,"0",,,,,"T"),"") -> 70.35 | C184: =IFERROR(RTD("cqg.rtd",,"StudyData",A184,"Bar",, "Low",$C$1,"0",,,,,"T"),"") -> 69.3 | D184: =IFERROR(RTD("cqg.rtd",,"StudyData","HiLevel("&A184&",Period1:="&$B$1&",AllowGaps:=0,InputChoice1:=High,InputChoice3:=High)","Bar",, "Close",$C$1,"-1",,,,,"T"),"") -> 114 | E184: =IFERROR(RTD("cqg.rtd",,"StudyData","LoLevel("&A184&",Period2:="&$B$1&",AllowGaps:=0,InputChoice2:=Low,InputChoice4:=Low)","Bar",, "Close",$C$1,"-1",,,,,"T"),"") -> 69.59 | F184: 0 | G184: 1 | H184: 7.012 | I184: 7 | J184: S.US.FBHS | K184: =RTD("cqg.rtd", ,"ContractData",A184, "PerCentNetLastTrade",, "T")/100 -> 0.001723147616 | L184: =RANK($K184,$K$2:K$506)+COUNTIF($K$2:K184,K184)-1 ->  | M184: S.US.FBHS | N184: 183 | P184: =RTD("cqg.rtd", ,"ContractData",O184, "PerCentNetLastTrade",, "T")/100 ->  | S184: 183
A185: =Symbols!A185 -> S.US.FCX | B185: =IFERROR(RTD("cqg.rtd",,"StudyData",A185,"Bar",, "High",$C$1,"0",,,,,"T"),"") -> 50.11 | C185: =IFERROR(RTD("cqg.rtd",,"StudyData",A185,"Bar",, "Low",$C$1,"0",,,,,"T"),"") -> 49.41 | D185: =IFERROR(RTD("cqg.rtd",,"StudyData","HiLevel("&A185&",Period1:="&$B$1&",AllowGaps:=0,InputChoice1:=High,InputChoice3:=High)","Bar",, "Close",$C$1,"-1",,,,,"T"),"") -> 51.99 | E185: =IFERROR(RTD("cqg.rtd",,"StudyData","LoLevel("&A185&",Period2:="&$B$1&",AllowGaps:=0,InputChoice2:=Low,InputChoice4:=Low)","Bar",, "Close",$C$1,"-1",,,,,"T"),"") -> 30.02 | F185: 0 | G185: 0 | H185: 7.013 | I185: 7.001 | J185: S.US.FCX | K185: =RTD("cqg.rtd", ,"ContractData",A185, "PerCentNetLastTrade",, "T")/100 -> 0.01585688148 | L185: =RANK($K185,$K$2:K$506)+COUNTIF($K$2:K185,K185)-1 ->  | M185: S.US.FCX | N185: 184 | P185: =RTD("cqg.rtd", ,"ContractData",O185, "PerCentNetLastTrade",, "T")/100 ->  | S185: 184
A186: =Symbols!A186 -> S.US.FDS | B186: =IFERROR(RTD("cqg.rtd",,"StudyData",A186,"Bar",, "High",$C$1,"0",,,,,"T"),"") -> 422.25 | C186: =IFERROR(RTD("cqg.rtd",,"StudyData",A186,"Bar",, "Low",$C$1,"0",,,,,"T"),"") -> 420.19 | D186: =IFERROR(RTD("cqg.rtd",,"StudyData","HiLevel("&A186&",Period1:="&$B$1&",AllowGaps:=0,InputChoice1:=High,InputChoice3:=High)","Bar",, "Close",$C$1,"-1",,,,,"T"),"") -> 495.39 | E186: =IFERROR(RTD("cqg.rtd",,"StudyData","LoLevel("&A186&",Period2:="&$B$1&",AllowGaps:=0,InputChoice2:=Low,InputChoice4:=Low)","Bar",, "Close",$C$1,"-1",,,,,"T"),"") -> 316.37 | F186: 0 | G186: 0 | H186: 7.014 | I186: 7.002 | J186: S.US.FDS | K186: =RTD("cqg.rtd", ,"ContractData",A186, "PerCentNetLastTrade",, "T")/100 -> 0.0007846494044 | L186: =RANK($K186,$K$2:K$506)+COUNTIF($K$2:K186,K186)-1 ->  | M186: S.US.FDS | N186: 185 | P186: =RTD("cqg.rtd", ,"ContractData",O186, "PerCentNetLastTrade",, "T")/100 ->  | S186: 185
A187: =Symbols!A187 -> S.US.FDX | B187: =IFERROR(RTD("cqg.rtd",,"StudyData",A187,"Bar",, "High",$C$1,"0",,,,,"T"),"") -> 206.98 | C187: =IFERROR(RTD("cqg.rtd",,"StudyData",A187,"Bar",, "Low",$C$1,"0",,,,,"T"),"") -> 205.31 | D187: =IFERROR(RTD("cqg.rtd",,"StudyData","HiLevel("&A187&",Period1:="&$B$1&",AllowGaps:=0,InputChoice1:=High,InputChoice3:=High)","Bar",, "Close",$C$1,"-1",,,,,"T"),"") -> 319.9 | E187: =IFERROR(RTD("cqg.rtd",,"StudyData","LoLevel("&A187&",Period2:="&$B$1&",AllowGaps:=0,InputChoice2:=Low,InputChoice4:=Low)","Bar",, "Close",$C$1,"-1",,,,,"T"),"") -> 199.03 | F187: 0 | G187: 0 | H187: 7.015 | I187: 7.003 | J187: S.US.FDX | K187: =RTD("cqg.rtd", ,"ContractData",A187, "PerCentNetLastTrade",, "T")/100 -> 0.001312335958 | L187: =RANK($K187,$K$2:K$506)+COUNTIF($K$2:K187,K187)-1 ->  | M187: S.US.FDX | N187: 186 | P187: =RTD("cqg.rtd", ,"ContractData",O187, "PerCentNetLastTrade",, "T")/100 ->  | S187: 186
A188: =Symbols!A188 -> S.US.FE | B188: =IFERROR(RTD("cqg.rtd",,"StudyData",A188,"Bar",, "High",$C$1,"0",,,,,"T"),"") -> 47.6 | C188: =IFERROR(RTD("cqg.rtd",,"StudyData",A188,"Bar",, "Low",$C$1,"0",,,,,"T"),"") -> 47.14 | D188: =IFERROR(RTD("cqg.rtd",,"StudyData","HiLevel("&A188&",Period1:="&$B$1&",AllowGaps:=0,InputChoice1:=High,InputChoice3:=High)","Bar",, "Close",$C$1,"-1",,,,,"T"),"") -> 47.99 | E188: =IFERROR(RTD("cqg.rtd",,"StudyData","LoLevel("&A188&",Period2:="&$B$1&",AllowGaps:=0,InputChoice2:=Low,InputChoice4:=Low)","Bar",, "Close",$C$1,"-1",,,,,"T"),"") -> 35.42 | F188: 0 | G188: 0 | H188: 7.016 | I188: 7.004 | J188: S.US.FE | K188: =RTD("cqg.rtd", ,"ContractData",A188, "PerCentNetLastTrade",, "T")/100 -> 0.00253164557 | L188: =RANK($K188,$K$2:K$506)+COUNTIF($K$2:K188,K188)-1 ->  | M188: S.US.FE | N188: 187 | P188: =RTD("cqg.rtd", ,"ContractData",O188, "PerCentNetLastTrade",, "T")/100 ->  | S188: 187
A189: =Symbols!A189 -> S.US.FFIV | B189: =IFERROR(RTD("cqg.rtd",,"StudyData",A189,"Bar",, "High",$C$1,"0",,,,,"T"),"") -> 200.19 | C189: =IFERROR(RTD("cqg.rtd",,"StudyData",A189,"Bar",, "Low",$C$1,"0",,,,,"T"),"") -> 198.17 | D189: =IFERROR(RTD("cqg.rtd",,"StudyData","HiLevel("&A189&",Period1:="&$B$1&",AllowGaps:=0,InputChoice1:=High,InputChoice3:=High)","Bar",, "Close",$C$1,"-1",,,,,"T"),"") -> 249 | E189: =IFERROR(RTD("cqg.rtd",,"StudyData","LoLevel("&A189&",Period2:="&$B$1&",AllowGaps:=0,InputChoice2:=Low,InputChoice4:=Low)","Bar",, "Close",$C$1,"-1",,,,,"T"),"") -> 174.34 | F189: 0 | G189: 0 | H189: 7.017 | I189: 7.005 | J189: S.US.FFIV | K189: =RTD("cqg.rtd", ,"ContractData",A189, "PerCentNetLastTrade",, "T")/100 -> -0.002355535508 | L189: =RANK($K189,$K$2:K$506)+COUNTIF($K$2:K189,K189)-1 ->  | M189: S.US.FFIV | N189: 188 | P189: =RTD("cqg.rtd", ,"ContractData",O189, "PerCentNetLastTrade",, "T")/100 ->  | S189: 188
A190: =Symbols!A190 -> S.US.FIS | B190: =IFERROR(RTD("cqg.rtd",,"StudyData",A190,"Bar",, "High",$C$1,"0",,,,,"T"),"") -> 103.48 | C190: =IFERROR(RTD("cqg.rtd",,"StudyData",A190,"Bar",, "Low",$C$1,"0",,,,,"T"),"") -> 101.7 | D190: =IFERROR(RTD("cqg.rtd",,"StudyData","HiLevel("&A190&",Period1:="&$B$1&",AllowGaps:=0,InputChoice1:=High,InputChoice3:=High)","Bar",, "Close",$C$1,"-1",,,,,"T"),"") -> 155.96 | E190: =IFERROR(RTD("cqg.rtd",,"StudyData","LoLevel("&A190&",Period2:="&$B$1&",AllowGaps:=0,InputChoice2:=Low,InputChoice4:=Low)","Bar",, "Close",$C$1,"-1",,,,,"T"),"") -> 85 | F190: 0 | G190: 0 | H190: 7.018 | I190: 7.006 | J190: S.US.FIS | K190: =RTD("cqg.rtd", ,"ContractData",A190, "PerCentNetLastTrade",, "T")/100 -> 0.008979990239 | L190: =RANK($K190,$K$2:K$506)+COUNTIF($K$2:K190,K190)-1 ->  | M190: S.US.FIS | N190: 189 | P190: =RTD("cqg.rtd", ,"ContractData",O190, "PerCentNetLastTrade",, "T")/100 ->  | S190: 189
A191: =Symbols!A191 -> S.US.FISV | B191: =IFERROR(RTD("cqg.rtd",,"StudyData",A191,"Bar",, "High",$C$1,"0",,,,,"T"),"") -> 100.72 | C191: =IFERROR(RTD("cqg.rtd",,"StudyData",A191,"Bar",, "Low",$C$1,"0",,,,,"T"),"") -> 99.14 | D191: =IFERROR(RTD("cqg.rtd",,"StudyData","HiLevel("&A191&",Period1:="&$B$1&",AllowGaps:=0,InputChoice1:=High,InputChoice3:=High)","Bar",, "Close",$C$1,"-1",,,,,"T"),"") -> 127.34 | E191: =IFERROR(RTD("cqg.rtd",,"StudyData","LoLevel("&A191&",Period2:="&$B$1&",AllowGaps:=0,InputChoice2:=Low,InputChoice4:=Low)","Bar",, "Close",$C$1,"-1",,,,,"T"),"") -> 89.91 | F191: 0 | G191: 0 | H191: 7.019 | I191: 7.007 | J191: S.US.FISV | K191: =RTD("cqg.rtd", ,"ContractData",A191, "PerCentNetLastTrade",, "T")/100 -> 0.006421189927 | L191: =RANK($K191,$K$2:K$506)+COUNTIF($K$2:K191,K191)-1 ->  | M191: S.US.FISV | N191: 190 | P191: =RTD("cqg.rtd", ,"ContractData",O191, "PerCentNetLastTrade",, "T")/100 ->  | S191: 190
A192: =Symbols!A192 -> S.US.FITB | B192: =IFERROR(RTD("cqg.rtd",,"StudyData",A192,"Bar",, "High",$C$1,"0",,,,,"T"),"") -> 39.39 | C192: =IFERROR(RTD("cqg.rtd",,"StudyData",A192,"Bar",, "Low",$C$1,"0",,,,,"T"),"") -> 38.82 | D192: =IFERROR(RTD("cqg.rtd",,"StudyData","HiLevel("&A192&",Period1:="&$B$1&",AllowGaps:=0,InputChoice1:=High,InputChoice3:=High)","Bar",, "Close",$C$1,"-1",,,,,"T"),"") -> 50.64 | E192: =IFERROR(RTD("cqg.rtd",,"StudyData","LoLevel("&A192&",Period2:="&$B$1&",AllowGaps:=0,InputChoice2:=Low,InputChoice4:=Low)","Bar",, "Close",$C$1,"-1",,,,,"T"),"") -> 34.35 | F192: 0 | G192: 0 | H192: 7.02 | I192: 7.008 | J192: S.US.FITB | K192: =RTD("cqg.rtd", ,"ContractData",A192, "PerCentNetLastTrade",, "T")/100 -> 0.006152268649 | L192: =RANK($K192,$K$2:K$506)+COUNTIF($K$2:K192,K192)-1 ->  | M192: S.US.FITB | N192: 191 | P192: =RTD("cqg.rtd", ,"ContractData",O192, "PerCentNetLastTrade",, "T")/100 ->  | S192: 191
A193: =Symbols!A193 -> S.US.FLT | B193: =IFERROR(RTD("cqg.rtd",,"StudyData",A193,"Bar",, "High",$C$1,"0",,,,,"T"),"") -> 260.8 | C193: =IFERROR(RTD("cqg.rtd",,"StudyData",A193,"Bar",, "Low",$C$1,"0",,,,,"T"),"") -> 257.83 | D193: =IFERROR(RTD("cqg.rtd",,"StudyData","HiLevel("&A193&",Period1:="&$B$1&",AllowGaps:=0,InputChoice1:=High,InputChoice3:=High)","Bar",, "Close",$C$1,"-1",,,,,"T"),"") -> 295.36 | E193: =IFERROR(RTD("cqg.rtd",,"StudyData","LoLevel("&A193&",Period2:="&$B$1&",AllowGaps:=0,InputChoice2:=Low,InputChoice4:=Low)","Bar",, "Close",$C$1,"-1",,,,,"T"),"") -> 200.78 | F193: 0 | G193: 0 | H193: 7.021 | I193: 7.009 | J193: S.US.FLT | K193: =RTD("cqg.rtd", ,"ContractData",A193, "PerCentNetLastTrade",, "T")/100 -> 0.005528279275 | L193: =RANK($K193,$K$2:K$506)+COUNTIF($K$2:K193,K193)-1 ->  | M193: S.US.FLT | N193: 192 | P193: =RTD("cqg.rtd", ,"ContractData",O193, "PerCentNetLastTrade",, "T")/100 ->  | S193: 192
A194: =Symbols!A194 -> S.US.FMC | B194: =IFERROR(RTD("cqg.rtd",,"StudyData",A194,"Bar",, "High",$C$1,"0",,,,,"T"),"") -> 138.41 | C194: =IFERROR(RTD("cqg.rtd",,"StudyData",A194,"Bar",, "Low",$C$1,"0",,,,,"T"),"") -> 137.33 | D194: =IFERROR(RTD("cqg.rtd",,"StudyData","HiLevel("&A194&",Period1:="&$B$1&",AllowGaps:=0,InputChoice1:=High,InputChoice3:=High)","Bar",, "Close",$C$1,"-1",,,,,"T"),"") -> 139.09 | E194: =IFERROR(RTD("cqg.rtd",,"StudyData","LoLevel("&A194&",Period2:="&$B$1&",AllowGaps:=0,InputChoice2:=Low,InputChoice4:=Low)","Bar",, "Close",$C$1,"-1",,,,,"T"),"") -> 87.27 | F194: 0 | G194: 0 | H194: 7.022 | I194: 7.01 | J194: S.US.FMC | K194: =RTD("cqg.rtd", ,"ContractData",A194, "PerCentNetLastTrade",, "T")/100 -> 0.01074639959 | L194: =RANK($K194,$K$2:K$506)+COUNTIF($K$2:K194,K194)-1 ->  | M194: S.US.FMC | N194: 193 | O194: =IFERROR(VLOOKUP(N194,$L$2:$M$506,2,FALSE),"") ->  | P194: =RTD("cqg.rtd", ,"ContractData",O194, "PerCentNetLastTrade",, "T")/100 ->  | Q194: =VLOOKUP(O194,$A$2:$H$506,8,FALSE) ->  | S194: 193 | T194: =IFERROR(VLOOKUP(S194,$H$2:$J$506,3,FALSE),"") -> 
A195: =Symbols!A195 -> S.US.FOX | B195: =IFERROR(RTD("cqg.rtd",,"StudyData",A195,"Bar",, "High",$C$1,"0",,,,,"T"),"") -> 36.17 | C195: =IFERROR(RTD("cqg.rtd",,"StudyData",A195,"Bar",, "Low",$C$1,"0",,,,,"T"),"") -> 35.75 | D195: =IFERROR(RTD("cqg.rtd",,"StudyData","HiLevel("&A195&",Period1:="&$B$1&",AllowGaps:=0,InputChoice1:=High,InputChoice3:=High)","Bar",, "Close",$C$1,"-1",,,,,"T"),"") -> 40.91 | E195: =IFERROR(RTD("cqg.rtd",,"StudyData","LoLevel("&A195&",Period2:="&$B$1&",AllowGaps:=0,InputChoice2:=Low,InputChoice4:=Low)","Bar",, "Close",$C$1,"-1",,,,,"T"),"") -> 31.87 | F195: 0 | G195: 0 | H195: 7.023 | I195: 7.011 | J195: S.US.FOX | K195: =RTD("cqg.rtd", ,"ContractData",A195, "PerCentNetLastTrade",, "T")/100 -> 0.008368200837 | L195: =RANK($K195,$K$2:K$506)+COUNTIF($K$2:K195,K195)-1 ->  | M195: S.US.FOX | N195: 194 | P195: =RTD("cqg.rtd", ,"ContractData",O195, "PerCentNetLastTrade",, "T")/100 ->  | S195: 194
A196: =Symbols!A196 -> S.US.FOXA | B196: =IFERROR(RTD("cqg.rtd",,"StudyData",A196,"Bar",, "High",$C$1,"0",,,,,"T"),"") -> 39.41 | C196: =IFERROR(RTD("cqg.rtd",,"StudyData",A196,"Bar",, "Low",$C$1,"0",,,,,"T"),"") -> 38.97 | D196: =IFERROR(RTD("cqg.rtd",,"StudyData","HiLevel("&A196&",Period1:="&$B$1&",AllowGaps:=0,InputChoice1:=High,InputChoice3:=High)","Bar",, "Close",$C$1,"-1",,,,,"T"),"") -> 44.95 | E196: =IFERROR(RTD("cqg.rtd",,"StudyData","LoLevel("&A196&",Period2:="&$B$1&",AllowGaps:=0,InputChoice2:=Low,InputChoice4:=Low)","Bar",, "Close",$C$1,"-1",,,,,"T"),"") -> 34.16 | F196: 0 | G196: 0 | H196: 7.024 | I196: 7.012 | J196: S.US.FOXA | K196: =RTD("cqg.rtd", ,"ContractData",A196, "PerCentNetLastTrade",, "T")/100 -> 0.005623721881 | L196: =RANK($K196,$K$2:K$506)+COUNTIF($K$2:K196,K196)-1 ->  | M196: =J196 -> S.US.FOXA | N196: =N195+1 -> 195 | P196: =RTD("cqg.rtd", ,"ContractData",O196, "PerCentNetLastTrade",, "T")/100 ->  | S196: =S195+1 -> 195
A197: =Symbols!A197 -> S.US.FRC | B197: =IFERROR(RTD("cqg.rtd",,"StudyData",A197,"Bar",, "High",$C$1,"0",,,,,"T"),"") -> 160.94 | C197: =IFERROR(RTD("cqg.rtd",,"StudyData",A197,"Bar",, "Low",$C$1,"0",,,,,"T"),"") -> 159.06 | D197: =IFERROR(RTD("cqg.rtd",,"StudyData","HiLevel("&A197&",Period1:="&$B$1&",AllowGaps:=0,InputChoice1:=High,InputChoice3:=High)","Bar",, "Close",$C$1,"-1",,,,,"T"),"") -> 222.86 | E197: =IFERROR(RTD("cqg.rtd",,"StudyData","LoLevel("&A197&",Period2:="&$B$1&",AllowGaps:=0,InputChoice2:=Low,InputChoice4:=Low)","Bar",, "Close",$C$1,"-1",,,,,"T"),"") -> 150 | F197: 0 | G197: 0 | H197: 7.025 | I197: 7.013 | J197: S.US.FRC | K197: =RTD("cqg.rtd", ,"ContractData",A197, "PerCentNetLastTrade",, "T")/100 -> -0.002488335925 | L197: =RANK($K197,$K$2:K$506)+COUNTIF($K$2:K197,K197)-1 ->  | M197: S.US.FRC | N197: 196 | P197: =RTD("cqg.rtd", ,"ContractData",O197, "PerCentNetLastTrade",, "T")/100 ->  | S197: 196
A198: =Symbols!A198 -> S.US.FRT | B198: =IFERROR(RTD("cqg.rtd",,"StudyData",A198,"Bar",, "High",$C$1,"0",,,,,"T"),"") -> 124.31 | C198: =IFERROR(RTD("cqg.rtd",,"StudyData",A198,"Bar",, "Low",$C$1,"0",,,,,"T"),"") -> 123.14 | D198: =IFERROR(RTD("cqg.rtd",,"StudyData","HiLevel("&A198&",Period1:="&$B$1&",AllowGaps:=0,InputChoice1:=High,InputChoice3:=High)","Bar",, "Close",$C$1,"-1",,,,,"T"),"") -> 140.51 | E198: =IFERROR(RTD("cqg.rtd",,"StudyData","LoLevel("&A198&",Period2:="&$B$1&",AllowGaps:=0,InputChoice2:=Low,InputChoice4:=Low)","Bar",, "Close",$C$1,"-1",,,,,"T"),"") -> 105.62 | F198: 0 | G198: 0 | H198: 7.026 | I198: 7.014 | J198: S.US.FRT | K198: =RTD("cqg.rtd", ,"ContractData",A198, "PerCentNetLastTrade",, "T")/100 -> 0.005273405809 | L198: =RANK($K198,$K$2:K$506)+COUNTIF($K$2:K198,K198)-1 ->  | M198: S.US.FRT | N198: 197 | P198: =RTD("cqg.rtd", ,"ContractData",O198, "PerCentNetLastTrade",, "T")/100 ->  | S198: 197
A199: =Symbols!A199 -> S.US.FTNT | B199: =IFERROR(RTD("cqg.rtd",,"StudyData",A199,"Bar",, "High",$C$1,"0",,,,,"T"),"") -> 331.67 | C199: =IFERROR(RTD("cqg.rtd",,"StudyData",A199,"Bar",, "Low",$C$1,"0",,,,,"T"),"") -> 327.26 | D199: =IFERROR(RTD("cqg.rtd",,"StudyData","HiLevel("&A199&",Period1:="&$B$1&",AllowGaps:=0,InputChoice1:=High,InputChoice3:=High)","Bar",, "Close",$C$1,"-1",,,,,"T"),"") -> 371.77 | E199: =IFERROR(RTD("cqg.rtd",,"StudyData","LoLevel("&A199&",Period2:="&$B$1&",AllowGaps:=0,InputChoice2:=Low,InputChoice4:=Low)","Bar",, "Close",$C$1,"-1",,,,,"T"),"") -> 192.78 | F199: 0 | G199: 0 | H199: 7.027 | I199: 7.015 | J199: S.US.FTNT | K199: =RTD("cqg.rtd", ,"ContractData",A199, "PerCentNetLastTrade",, "T")/100 -> -0.01272003858 | L199: =RANK($K199,$K$2:K$506)+COUNTIF($K$2:K199,K199)-1 ->  | M199: S.US.FTNT | N199: 198 | P199: =RTD("cqg.rtd", ,"ContractData",O199, "PerCentNetLastTrade",, "T")/100 ->  | S199: 198
A200: =Symbols!A200 -> S.US.FTV | B200: =IFERROR(RTD("cqg.rtd",,"StudyData",A200,"Bar",, "High",$C$1,"0",,,,,"T"),"") -> 58.37 | C200: =IFERROR(RTD("cqg.rtd",,"StudyData",A200,"Bar",, "Low",$C$1,"0",,,,,"T"),"") -> 57.74 | D200: =IFERROR(RTD("cqg.rtd",,"StudyData","HiLevel("&A200&",Period1:="&$B$1&",AllowGaps:=0,InputChoice1:=High,InputChoice3:=High)","Bar",, "Close",$C$1,"-1",,,,,"T"),"") -> 79.87 | E200: =IFERROR(RTD("cqg.rtd",,"StudyData","LoLevel("&A200&",Period2:="&$B$1&",AllowGaps:=0,InputChoice2:=Low,InputChoice4:=Low)","Bar",, "Close",$C$1,"-1",,,,,"T"),"") -> 56.06 | F200: 0 | G200: 0 | H200: 7.028 | I200: 7.016 | J200: S.US.FTV | K200: =RTD("cqg.rtd", ,"ContractData",A200, "PerCentNetLastTrade",, "T")/100 -> -0.002062564455 | L200: =RANK($K200,$K$2:K$506)+COUNTIF($K$2:K200,K200)-1 ->  | M200: S.US.FTV | N200: 199 | P200: =RTD("cqg.rtd", ,"ContractData",O200, "PerCentNetLastTrade",, "T")/100 ->  | S200: 199
... 307 more rows

Sheet Ranked
A2: 1 | B2: =IFERROR(VLOOKUP(A2,Data!$H$2:$J$507,3,FALSE),"") -> S.US.AIZ | C2: =IFERROR(RTD("cqg.rtd", ,"ContractData",B2, "PerCentNetLastTrade",, "T")/100,"") -> 0.004437400951 | D2: =IFERROR(RANK($C2,$C$2:C$507)+COUNTIF($C$2:C2,C2)-1,"") -> 19 | E2: =IF(B2="","",B2) -> S.US.AIZ | F2: 1 | G2: =IFERROR(VLOOKUP(F2,$D$2:$E$507,2,FALSE),"") -> S.US.CTRA | H2: =IF(G2="","",RTD("cqg.rtd", ,"ContractData",G2, "LongDescription",, "T")) -> Cottera Energy, Inc | I2: =IFERROR(RTD("cqg.rtd", ,"ContractData",G2, "PerCentNetLastTrade",, "T")/100,"") -> 0.03399048266 | J2: =IF(I2<>"",1,0) -> 1 | K2: 1 | L2: =IFERROR(VLOOKUP(A2,Data!$I$2:$J$507,2,FALSE),"") -> S.US.AMAT | M2: =IFERROR(RTD("cqg.rtd", ,"ContractData",L2, "PerCentNetLastTrade",, "T")/100,"") -> 0.003616796048 | N2: =IFERROR(RANK($M2,$M$2:M$507)+COUNTIF($M$2:M2,M2)-1,"") -> 6 | O2: =IF(L2="","",L2) -> S.US.AMAT | P2: 1 | Q2: =IFERROR(VLOOKUP(P2,$N$2:$O$507,2,FALSE),"") -> S.US.CEG | R2: =IF(Q2="","",RTD("cqg.rtd", ,"ContractData",Q2, "LongDescription",, "T")) -> Constellation Energy Corporation | S2: =IFERROR(RTD("cqg.rtd", ,"ContractData",Q2, "PerCentNetLastTrade",, "T")/100,"") -> 0.01438848921 | T2: =IF(S2<>"",1,0) -> 1 | U2: =COUNTIF(J2:J508,"1") -> 20 | V2: =COUNTIF(T2:T508,"1") -> 21
A3: =A2+1 -> 2 | B3: =IFERROR(VLOOKUP(A3,Data!$H$2:$J$507,3,FALSE),"") -> S.US.APA | C3: =IFERROR(RTD("cqg.rtd", ,"ContractData",B3, "PerCentNetLastTrade",, "T")/100,"") -> 0.024496337 | D3: =IFERROR(RANK($C3,$C$2:C$507)+COUNTIF($C$2:C3,C3)-1,"") -> 3 | E3: =IF(B3="","",B3) -> S.US.APA | F3: =F2+1 -> 2 | G3: =IFERROR(VLOOKUP(F3,$D$2:$E$507,2,FALSE),"") -> S.US.HAL | H3: =IF(G3="","",RTD("cqg.rtd", ,"ContractData",G3, "LongDescription",, "T")) -> Halliburton Company | I3: =IFERROR(RTD("cqg.rtd", ,"ContractData",G3, "PerCentNetLastTrade",, "T")/100,"") -> 0.02649656526 | J3: =IF(I3<>"",1,0) -> 1 | K3: =K2+1 -> 2 | L3: =IFERROR(VLOOKUP(A3,Data!$I$2:$J$507,2,FALSE),"") -> S.US.BEN | M3: =IFERROR(RTD("cqg.rtd", ,"ContractData",L3, "PerCentNetLastTrade",, "T")/100,"") -> 0.001564333203 | N3: =IFERROR(RANK($M3,$M$2:M$507)+COUNTIF($M$2:M3,M3)-1,"") -> 9 | O3: =IF(L3="","",L3) -> S.US.BEN | P3: =P2+1 -> 2 | Q3: =IFERROR(VLOOKUP(P3,$N$2:$O$507,2,FALSE),"") -> S.US.ITW | R3: =IF(Q3="","",RTD("cqg.rtd", ,"ContractData",Q3, "LongDescription",, "T")) -> Illinois Tools Works Inc | S3: =IFERROR(RTD("cqg.rtd", ,"ContractData",Q3, "PerCentNetLastTrade",, "T")/100,"") -> 0.00810108524 | T3: =IF(S3<>"",1,0) -> 1
A4: =A3+1 -> 3 | B4: =IFERROR(VLOOKUP(A4,Data!$H$2:$J$507,3,FALSE),"") -> S.US.BF.B | C4: =IFERROR(RTD("cqg.rtd", ,"ContractData",B4, "PerCentNetLastTrade",, "T")/100,"") ->  | D4: =IFERROR(RANK($C4,$C$2:C$507)+COUNTIF($C$2:C4,C4)-1,"") ->  | E4: S.US.BF.B | F4: =F3+1 -> 3 | G4: S.US.APA | H4: =IF(G4="","",RTD("cqg.rtd", ,"ContractData",G4, "LongDescription",, "T")) -> APA Corporation | I4: =IFERROR(RTD("cqg.rtd", ,"ContractData",G4, "PerCentNetLastTrade",, "T")/100,"") -> 0.024496337 | J4: 1 | K4: =K3+1 -> 3 | L4: =IFERROR(VLOOKUP(A4,Data!$I$2:$J$507,2,FALSE),"") -> S.US.BK | M4: =IFERROR(RTD("cqg.rtd", ,"ContractData",L4, "PerCentNetLastTrade",, "T")/100,"") -> -0.02241488687 | N4: =IFERROR(RANK($M4,$M$2:M$507)+COUNTIF($M$2:M4,M4)-1,"") -> 19 | O4: S.US.BK | P4: =P3+1 -> 3 | Q4: S.US.TEL | R4: =IF(Q4="","",RTD("cqg.rtd", ,"ContractData",Q4, "LongDescription",, "T")) -> TE Connectivity Ltd. | S4: =IFERROR(RTD("cqg.rtd", ,"ContractData",Q4, "PerCentNetLastTrade",, "T")/100,"") -> 0.008024487095 | T4: 1
A5: 4 | B5: =IFERROR(VLOOKUP(A5,Data!$H$2:$J$507,3,FALSE),"") -> S.US.BRK.B | C5: =IFERROR(RTD("cqg.rtd", ,"ContractData",B5, "PerCentNetLastTrade",, "T")/100,"") ->  | D5: =IFERROR(RANK($C5,$C$2:C$507)+COUNTIF($C$2:C5,C5)-1,"") ->  | E5: S.US.BRK.B | F5: 4 | G5: S.US.MPC | H5: =IF(G5="","",RTD("cqg.rtd", ,"ContractData",G5, "LongDescription",, "T")) -> Marathon Petroleum Corporation | I5: =IFERROR(RTD("cqg.rtd", ,"ContractData",G5, "PerCentNetLastTrade",, "T")/100,"") -> 0.0244266055 | J5: 1 | K5: 4 | L5: =IFERROR(VLOOKUP(A5,Data!$I$2:$J$507,2,FALSE),"") -> S.US.CARR | M5: =IFERROR(RTD("cqg.rtd", ,"ContractData",L5, "PerCentNetLastTrade",, "T")/100,"") -> 0.006782945736 | N5: =IFERROR(RANK($M5,$M$2:M$507)+COUNTIF($M$2:M5,M5)-1,"") -> 4 | O5: S.US.CARR | P5: 4 | Q5: S.US.CARR | R5: =IF(Q5="","",RTD("cqg.rtd", ,"ContractData",Q5, "LongDescription",, "T")) -> Carrier Global Corporation | S5: =IFERROR(RTD("cqg.rtd", ,"ContractData",Q5, "PerCentNetLastTrade",, "T")/100,"") -> 0.006782945736 | T5: 1
A6: 5 | B6: =IFERROR(VLOOKUP(A6,Data!$H$2:$J$507,3,FALSE),"") -> S.US.CTRA | C6: =IFERROR(RTD("cqg.rtd", ,"ContractData",B6, "PerCentNetLastTrade",, "T")/100,"") -> 0.03399048266 | D6: =IFERROR(RANK($C6,$C$2:C$507)+COUNTIF($C$2:C6,C6)-1,"") -> 1 | E6: S.US.CTRA | F6: 5 | G6: S.US.VLO | H6: =IF(G6="","",RTD("cqg.rtd", ,"ContractData",G6, "LongDescription",, "T")) -> Valero Energy Corp New | I6: =IFERROR(RTD("cqg.rtd", ,"ContractData",G6, "PerCentNetLastTrade",, "T")/100,"") -> 0.02250619874 | J6: 1 | K6: 5 | L6: =IFERROR(VLOOKUP(A6,Data!$I$2:$J$507,2,FALSE),"") -> S.US.CEG | M6: =IFERROR(RTD("cqg.rtd", ,"ContractData",L6, "PerCentNetLastTrade",, "T")/100,"") -> 0.01438848921 | N6: =IFERROR(RANK($M6,$M$2:M$507)+COUNTIF($M$2:M6,M6)-1,"") -> 1 | O6: S.US.CEG | P6: 5 | Q6: S.US.MAS | R6: =IF(Q6="","",RTD("cqg.rtd", ,"ContractData",Q6, "LongDescription",, "T")) -> Masco Corporation | S6: =IFERROR(RTD("cqg.rtd", ,"ContractData",Q6, "PerCentNetLastTrade",, "T")/100,"") -> 0.003846932577 | T6: 1
A7: 6 | B7: =IFERROR(VLOOKUP(A7,Data!$H$2:$J$507,3,FALSE),"") -> S.US.DE | C7: =IFERROR(RTD("cqg.rtd", ,"ContractData",B7, "PerCentNetLastTrade",, "T")/100,"") -> 0.01708070979 | D7: =IFERROR(RANK($C7,$C$2:C$507)+COUNTIF($C$2:C7,C7)-1,"") -> 9 | E7: S.US.DE | F7: 6 | G7: S.US.MRO | H7: =IF(G7="","",RTD("cqg.rtd", ,"ContractData",G7, "LongDescription",, "T")) -> Marathon Oil Corporation | I7: =IFERROR(RTD("cqg.rtd", ,"ContractData",G7, "PerCentNetLastTrade",, "T")/100,"") -> 0.02217211575 | J7: 1 | K7: 6 | L7: =IFERROR(VLOOKUP(A7,Data!$I$2:$J$507,2,FALSE),"") -> S.US.EMBC | M7: =IFERROR(RTD("cqg.rtd", ,"ContractData",L7, "PerCentNetLastTrade",, "T")/100,"") -> -0.02619555285 | N7: =IFERROR(RANK($M7,$M$2:M$507)+COUNTIF($M$2:M7,M7)-1,"") -> 21 | O7: S.US.EMBC | P7: 6 | Q7: S.US.AMAT | R7: =IF(Q7="","",RTD("cqg.rtd", ,"ContractData",Q7, "LongDescription",, "T")) -> Applied Materials Inc | S7: =IFERROR(RTD("cqg.rtd", ,"ContractData",Q7, "PerCentNetLastTrade",, "T")/100,"") -> 0.003616796048 | T7: 1
A8: 7 | B8: =IFERROR(VLOOKUP(A8,Data!$H$2:$J$507,3,FALSE),"") -> S.US.ETR | C8: =IFERROR(RTD("cqg.rtd", ,"ContractData",B8, "PerCentNetLastTrade",, "T")/100,"") -> 0.0038647343 | D8: =IFERROR(RANK($C8,$C$2:C$507)+COUNTIF($C$2:C8,C8)-1,"") -> 20 | E8: S.US.ETR | F8: 7 | G8: S.US.OKE | H8: =IF(G8="","",RTD("cqg.rtd", ,"ContractData",G8, "LongDescription",, "T")) -> ONEOK Inc New | I8: =IFERROR(RTD("cqg.rtd", ,"ContractData",G8, "PerCentNetLastTrade",, "T")/100,"") -> 0.01823281907 | J8: 1 | K8: 7 | L8: =IFERROR(VLOOKUP(A8,Data!$I$2:$J$507,2,FALSE),"") -> S.US.FBHS | M8: =IFERROR(RTD("cqg.rtd", ,"ContractData",L8, "PerCentNetLastTrade",, "T")/100,"") -> 0.001723147616 | N8: =IFERROR(RANK($M8,$M$2:M$507)+COUNTIF($M$2:M8,M8)-1,"") -> 8 | O8: S.US.FBHS | P8: 7 | Q8: S.US.SWKS | R8: =IF(Q8="","",RTD("cqg.rtd", ,"ContractData",Q8, "LongDescription",, "T")) -> Skyworks Solutions Inc | S8: =IFERROR(RTD("cqg.rtd", ,"ContractData",Q8, "PerCentNetLastTrade",, "T")/100,"") -> 0.002293383165 | T8: 1
A9: 8 | B9: =IFERROR(VLOOKUP(A9,Data!$H$2:$J$507,3,FALSE),"") -> S.US.GIS | C9: =IFERROR(RTD("cqg.rtd", ,"ContractData",B9, "PerCentNetLastTrade",, "T")/100,"") -> 0.004653130288 | D9: =IFERROR(RANK($C9,$C$2:C$507)+COUNTIF($C$2:C9,C9)-1,"") -> 18 | E9: S.US.GIS | F9: 8 | G9: S.US.HES | H9: =IF(G9="","",RTD("cqg.rtd", ,"ContractData",G9, "LongDescription",, "T")) -> Hess Corporation | I9: =IFERROR(RTD("cqg.rtd", ,"ContractData",G9, "PerCentNetLastTrade",, "T")/100,"") -> 0.01725941423 | J9: 1 | K9: 8 | L9: =IFERROR(VLOOKUP(A9,Data!$I$2:$J$507,2,FALSE),"") -> S.US.GNRC | M9: =IFERROR(RTD("cqg.rtd", ,"ContractData",L9, "PerCentNetLastTrade",, "T")/100,"") -> -0.01281898165 | N9: =IFERROR(RANK($M9,$M$2:M$507)+COUNTIF($M$2:M9,M9)-1,"") -> 16 | O9: S.US.GNRC | P9: 8 | Q9: S.US.FBHS | R9: =IF(Q9="","",RTD("cqg.rtd", ,"ContractData",Q9, "LongDescription",, "T")) -> Fortune Brands Home & Security, Inc. | S9: =IFERROR(RTD("cqg.rtd", ,"ContractData",Q9, "PerCentNetLastTrade",, "T")/100,"") -> 0.001723147616 | T9: 1
A10: 9 | B10: =IFERROR(VLOOKUP(A10,Data!$H$2:$J$507,3,FALSE),"") -> S.US.HAL | C10: =IFERROR(RTD("cqg.rtd", ,"ContractData",B10, "PerCentNetLastTrade",, "T")/100,"") -> 0.02649656526 | D10: =IFERROR(RANK($C10,$C$2:C$507)+COUNTIF($C$2:C10,C10)-1,"") -> 2 | E10: S.US.HAL | F10: 9 | G10: S.US.DE | H10: =IF(G10="","",RTD("cqg.rtd", ,"ContractData",G10, "LongDescription",, "T")) -> Deere & Company | I10: =IFERROR(RTD("cqg.rtd", ,"ContractData",G10, "PerCentNetLastTrade",, "T")/100,"") -> 0.01708070979 | J10: 1 | K10: 9 | L10: =IFERROR(VLOOKUP(A10,Data!$I$2:$J$507,2,FALSE),"") -> S.US.IPGP | M10: =IFERROR(RTD("cqg.rtd", ,"ContractData",L10, "PerCentNetLastTrade",, "T")/100,"") -> -0.01130640354 | N10: =IFERROR(RANK($M10,$M$2:M$507)+COUNTIF($M$2:M10,M10)-1,"") -> 14 | O10: S.US.IPGP | P10: 9 | Q10: S.US.BEN | R10: =IF(Q10="","",RTD("cqg.rtd", ,"ContractData",Q10, "LongDescription",, "T")) -> Franklin Resources Inc | S10: =IFERROR(RTD("cqg.rtd", ,"ContractData",Q10, "PerCentNetLastTrade",, "T")/100,"") -> 0.001564333203 | T10: 1
A11: 10 | B11: =IFERROR(VLOOKUP(A11,Data!$H$2:$J$507,3,FALSE),"") -> S.US.HES | C11: =IFERROR(RTD("cqg.rtd", ,"ContractData",B11, "PerCentNetLastTrade",, "T")/100,"") -> 0.01725941423 | D11: =IFERROR(RANK($C11,$C$2:C$507)+COUNTIF($C$2:C11,C11)-1,"") -> 8 | E11: S.US.HES | F11: 10 | G11: S.US.NUE | H11: =IF(G11="","",RTD("cqg.rtd", ,"ContractData",G11, "LongDescription",, "T")) -> Nucor Corp | I11: =IFERROR(RTD("cqg.rtd", ,"ContractData",G11, "PerCentNetLastTrade",, "T")/100,"") -> 0.01645293975 | J11: 1 | K11: 10 | L11: =IFERROR(VLOOKUP(A11,Data!$I$2:$J$507,2,FALSE),"") -> S.US.ITW | M11: =IFERROR(RTD("cqg.rtd", ,"ContractData",L11, "PerCentNetLastTrade",, "T")/100,"") -> 0.00810108524 | N11: =IFERROR(RANK($M11,$M$2:M$507)+COUNTIF($M$2:M11,M11)-1,"") -> 2 | O11: S.US.ITW | P11: 10 | Q11: S.US.LRCX | R11: =IF(Q11="","",RTD("cqg.rtd", ,"ContractData",Q11, "LongDescription",, "T")) -> LAM Research Corporation | S11: =IFERROR(RTD("cqg.rtd", ,"ContractData",Q11, "PerCentNetLastTrade",, "T")/100,"") -> -0.003354086286 | T11: 1
A12: 11 | B12: =IFERROR(VLOOKUP(A12,Data!$H$2:$J$507,3,FALSE),"") -> S.US.MOS | C12: =IFERROR(RTD("cqg.rtd", ,"ContractData",B12, "PerCentNetLastTrade",, "T")/100,"") -> 0.01367521368 | D12: =IFERROR(RANK($C12,$C$2:C$507)+COUNTIF($C$2:C12,C12)-1,"") -> 11 | E12: S.US.MOS | F12: 11 | G12: S.US.MOS | H12: =IF(G12="","",RTD("cqg.rtd", ,"ContractData",G12, "LongDescription",, "T")) -> Mosaic Company | I12: =IFERROR(RTD("cqg.rtd", ,"ContractData",G12, "PerCentNetLastTrade",, "T")/100,"") -> 0.01367521368 | J12: 1 | K12: 11 | L12: =IFERROR(VLOOKUP(A12,Data!$I$2:$J$507,2,FALSE),"") -> S.US.KMX | M12: =IFERROR(RTD("cqg.rtd", ,"ContractData",L12, "PerCentNetLastTrade",, "T")/100,"") -> -0.008279769038 | N12: =IFERROR(RANK($M12,$M$2:M$507)+COUNTIF($M$2:M12,M12)-1,"") -> 13 | O12: S.US.KMX | P12: 11 | Q12: S.US.PNR | R12: =IF(Q12="","",RTD("cqg.rtd", ,"ContractData",Q12, "LongDescription",, "T")) -> Pentair Ltd. | S12: =IFERROR(RTD("cqg.rtd", ,"ContractData",Q12, "PerCentNetLastTrade",, "T")/100,"") -> -0.005721914934 | T12: 1
A13: 12 | B13: =IFERROR(VLOOKUP(A13,Data!$H$2:$J$507,3,FALSE),"") -> S.US.MPC | C13: =IFERROR(RTD("cqg.rtd", ,"ContractData",B13, "PerCentNetLastTrade",, "T")/100,"") -> 0.0244266055 | D13: =IFERROR(RANK($C13,$C$2:C$507)+COUNTIF($C$2:C13,C13)-1,"") -> 4 | E13: S.US.MPC | F13: 12 | G13: S.US.NEM | H13: =IF(G13="","",RTD("cqg.rtd", ,"ContractData",G13, "LongDescription",, "T")) -> Newmont Goldcorp Corporation | I13: =IFERROR(RTD("cqg.rtd", ,"ContractData",G13, "PerCentNetLastTrade",, "T")/100,"") -> 0.01085289607 | J13: 1 | K13: 12 | L13: =IFERROR(VLOOKUP(A13,Data!$I$2:$J$507,2,FALSE),"") -> S.US.LRCX | M13: =IFERROR(RTD("cqg.rtd", ,"ContractData",L13, "PerCentNetLastTrade",, "T")/100,"") -> -0.003354086286 | N13: =IFERROR(RANK($M13,$M$2:M$507)+COUNTIF($M$2:M13,M13)-1,"") -> 10 | O13: S.US.LRCX | P13: 12 | Q13: S.US.OGN | R13: =IF(Q13="","",RTD("cqg.rtd", ,"ContractData",Q13, "LongDescription",, "T")) -> Organon & Co. | S13: =IFERROR(RTD("cqg.rtd", ,"ContractData",Q13, "PerCentNetLastTrade",, "T")/100,"") -> -0.008022922636 | T13: 1
A14: 13 | B14: =IFERROR(VLOOKUP(A14,Data!$H$2:$J$507,3,FALSE),"") -> S.US.MRO | C14: =IFERROR(RTD("cqg.rtd", ,"ContractData",B14, "PerCentNetLastTrade",, "T")/100,"") -> 0.02217211575 | D14: =IFERROR(RANK($C14,$C$2:C$507)+COUNTIF($C$2:C14,C14)-1,"") -> 6 | E14: S.US.MRO | F14: 13 | G14: S.US.RTX | H14: =IF(G14="","",RTD("cqg.rtd", ,"ContractData",G14, "LongDescription",, "T")) -> Raytheon Technologies Corporation | I14: =IFERROR(RTD("cqg.rtd", ,"ContractData",G14, "PerCentNetLastTrade",, "T")/100,"") -> 0.01035772514 | J14: 1 | K14: 13 | L14: =IFERROR(VLOOKUP(A14,Data!$I$2:$J$507,2,FALSE),"") -> S.US.MAS | M14: =IFERROR(RTD("cqg.rtd", ,"ContractData",L14, "PerCentNetLastTrade",, "T")/100,"") -> 0.003846932577 | N14: =IFERROR(RANK($M14,$M$2:M$507)+COUNTIF($M$2:M14,M14)-1,"") -> 5 | O14: S.US.MAS | P14: 13 | Q14: S.US.KMX | R14: =IF(Q14="","",RTD("cqg.rtd", ,"ContractData",Q14, "LongDescription",, "T")) -> Carmax Inc | S14: =IFERROR(RTD("cqg.rtd", ,"ContractData",Q14, "PerCentNetLastTrade",, "T")/100,"") -> -0.008279769038 | T14: 1
A15: 14 | B15: =IFERROR(VLOOKUP(A15,Data!$H$2:$J$507,3,FALSE),"") -> S.US.NEM | C15: =IFERROR(RTD("cqg.rtd", ,"ContractData",B15, "PerCentNetLastTrade",, "T")/100,"") -> 0.01085289607 | D15: =IFERROR(RANK($C15,$C$2:C$507)+COUNTIF($C$2:C15,C15)-1,"") -> 12 | E15: S.US.NEM | F15: 14 | G15: S.US.PEG | H15: =IF(G15="","",RTD("cqg.rtd", ,"ContractData",G15, "LongDescription",, "T")) -> Pub Svc Entrpr Grp Inc | I15: =IFERROR(RTD("cqg.rtd", ,"ContractData",G15, "PerCentNetLastTrade",, "T")/100,"") -> 0.007417582418 | J15: 1 | K15: 14 | L15: =IFERROR(VLOOKUP(A15,Data!$I$2:$J$507,2,FALSE),"") -> S.US.MKTX | M15: =IFERROR(RTD("cqg.rtd", ,"ContractData",L15, "PerCentNetLastTrade",, "T")/100,"") -> -0.01845922019 | N15: =IFERROR(RANK($M15,$M$2:M$507)+COUNTIF($M$2:M15,M15)-1,"") -> 18 | O15: S.US.MKTX | P15: 14 | Q15: S.US.IPGP | R15: =IF(Q15="","",RTD("cqg.rtd", ,"ContractData",Q15, "LongDescription",, "T")) -> IPG Photonics Corporation | S15: =IFERROR(RTD("cqg.rtd", ,"ContractData",Q15, "PerCentNetLastTrade",, "T")/100,"") -> -0.01130640354 | T15: 1
A16: 15 | B16: =IFERROR(VLOOKUP(A16,Data!$H$2:$J$507,3,FALSE),"") -> S.US.NUE | C16: =IFERROR(RTD("cqg.rtd", ,"ContractData",B16, "PerCentNetLastTrade",, "T")/100,"") -> 0.01645293975 | D16: =IFERROR(RANK($C16,$C$2:C$507)+COUNTIF($C$2:C16,C16)-1,"") -> 10 | E16: S.US.NUE | F16: 15 | G16: S.US.PKG | H16: =IF(G16="","",RTD("cqg.rtd", ,"ContractData",G16, "LongDescription",, "T")) -> Packaging Corp of America | I16: =IFERROR(RTD("cqg.rtd", ,"ContractData",G16, "PerCentNetLastTrade",, "T")/100,"") -> 0.006931664826 | J16: 1 | K16: 15 | L16: =IFERROR(VLOOKUP(A16,Data!$I$2:$J$507,2,FALSE),"") -> S.US.OGN | M16: =IFERROR(RTD("cqg.rtd", ,"ContractData",L16, "PerCentNetLastTrade",, "T")/100,"") -> -0.008022922636 | N16: =IFERROR(RANK($M16,$M$2:M$507)+COUNTIF($M$2:M16,M16)-1,"") -> 12 | O16: S.US.OGN | P16: 15 | Q16: S.US.WBD | R16: =IF(Q16="","",RTD("cqg.rtd", ,"ContractData",Q16, "LongDescription",, "T")) -> Warner Bros. Discovery, Inc. Series A | S16: =IFERROR(RTD("cqg.rtd", ,"ContractData",Q16, "PerCentNetLastTrade",, "T")/100,"") -> -0.01245980707 | T16: 1
A17: 16 | B17: =IFERROR(VLOOKUP(A17,Data!$H$2:$J$507,3,FALSE),"") -> S.US.OKE | C17: =IFERROR(RTD("cqg.rtd", ,"ContractData",B17, "PerCentNetLastTrade",, "T")/100,"") -> 0.01823281907 | D17: =IFERROR(RANK($C17,$C$2:C$507)+COUNTIF($C$2:C17,C17)-1,"") -> 7 | E17: S.US.OKE | F17: 16 | G17: S.US.SRE | H17: =IF(G17="","",RTD("cqg.rtd", ,"ContractData",G17, "LongDescription",, "T")) -> Sempra | I17: =IFERROR(RTD("cqg.rtd", ,"ContractData",G17, "PerCentNetLastTrade",, "T")/100,"") -> 0.006890510949 | J17: 1 | K17: 16 | L17: =IFERROR(VLOOKUP(A17,Data!$I$2:$J$507,2,FALSE),"") -> S.US.PNR | M17: =IFERROR(RTD("cqg.rtd", ,"ContractData",L17, "PerCentNetLastTrade",, "T")/100,"") -> -0.005721914934 | N17: =IFERROR(RANK($M17,$M$2:M$507)+COUNTIF($M$2:M17,M17)-1,"") -> 11 | O17: S.US.PNR | P17: 16 | Q17: S.US.GNRC | R17: =IF(Q17="","",RTD("cqg.rtd", ,"ContractData",Q17, "LongDescription",, "T")) -> Generac Holdings Inc. | S17: =IFERROR(RTD("cqg.rtd", ,"ContractData",Q17, "PerCentNetLastTrade",, "T")/100,"") -> -0.01281898165 | T17: 1
A18: 17 | B18: =IFERROR(VLOOKUP(A18,Data!$H$2:$J$507,3,FALSE),"") -> S.US.PEG | C18: =IFERROR(RTD("cqg.rtd", ,"ContractData",B18, "PerCentNetLastTrade",, "T")/100,"") -> 0.007417582418 | D18: =IFERROR(RANK($C18,$C$2:C$507)+COUNTIF($C$2:C18,C18)-1,"") -> 14 | E18: S.US.PEG | F18: 17 | G18: S.US.WMB | H18: =IF(G18="","",RTD("cqg.rtd", ,"ContractData",G18, "LongDescription",, "T")) -> Williams Companies Inc | I18: =IFERROR(RTD("cqg.rtd", ,"ContractData",G18, "PerCentNetLastTrade",, "T")/100,"") -> 0.006193693694 | J18: 1 | K18: 17 | L18: =IFERROR(VLOOKUP(A18,Data!$I$2:$J$507,2,FALSE),"") -> S.US.PTC | M18: =IFERROR(RTD("cqg.rtd", ,"ContractData",L18, "PerCentNetLastTrade",, "T")/100,"") -> -0.01712085908 | N18: =IFERROR(RANK($M18,$M$2:M$507)+COUNTIF($M$2:M18,M18)-1,"") -> 17 | O18: S.US.PTC | P18: 17 | Q18: S.US.PTC | R18: =IF(Q18="","",RTD("cqg.rtd", ,"ContractData",Q18, "LongDescription",, "T")) -> PTC Inc | S18: =IFERROR(RTD("cqg.rtd", ,"ContractData",Q18, "PerCentNetLastTrade",, "T")/100,"") -> -0.01712085908 | T18: 1
A19: 18 | B19: =IFERROR(VLOOKUP(A19,Data!$H$2:$J$507,3,FALSE),"") -> S.US.PKG | C19: =IFERROR(RTD("cqg.rtd", ,"ContractData",B19, "PerCentNetLastTrade",, "T")/100,"") -> 0.006931664826 | D19: =IFERROR(RANK($C19,$C$2:C$507)+COUNTIF($C$2:C19,C19)-1,"") -> 15 | E19: S.US.PKG | F19: 18 | G19: S.US.GIS | H19: =IF(G19="","",RTD("cqg.rtd", ,"ContractData",G19, "LongDescription",, "T")) -> General Mills Inc | I19: =IFERROR(RTD("cqg.rtd", ,"ContractData",G19, "PerCentNetLastTrade",, "T")/100,"") -> 0.004653130288 | J19: 1 | K19: 18 | L19: =IFERROR(VLOOKUP(A19,Data!$I$2:$J$507,2,FALSE),"") -> S.US.STT | M19: =IFERROR(RTD("cqg.rtd", ,"ContractData",L19, "PerCentNetLastTrade",, "T")/100,"") -> -0.02611792639 | N19: =IFERROR(RANK($M19,$M$2:M$507)+COUNTIF($M$2:M19,M19)-1,"") -> 20 | O19: S.US.STT | P19: 18 | Q19: S.US.MKTX | R19: =IF(Q19="","",RTD("cqg.rtd", ,"ContractData",Q19, "LongDescription",, "T")) -> MarketAxcess Inc | S19: =IFERROR(RTD("cqg.rtd", ,"ContractData",Q19, "PerCentNetLastTrade",, "T")/100,"") -> -0.01845922019 | T19: 1
A20: 19 | B20: =IFERROR(VLOOKUP(A20,Data!$H$2:$J$507,3,FALSE),"") -> S.US.RTX | C20: =IFERROR(RTD("cqg.rtd", ,"ContractData",B20, "PerCentNetLastTrade",, "T")/100,"") -> 0.01035772514 | D20: =IFERROR(RANK($C20,$C$2:C$507)+COUNTIF($C$2:C20,C20)-1,"") -> 13 | E20: S.US.RTX | F20: 19 | G20: S.US.AIZ | H20: =IF(G20="","",RTD("cqg.rtd", ,"ContractData",G20, "LongDescription",, "T")) -> Assurant Inc | I20: =IFERROR(RTD("cqg.rtd", ,"ContractData",G20, "PerCentNetLastTrade",, "T")/100,"") -> 0.004437400951 | J20: 1 | K20: 19 | L20: =IFERROR(VLOOKUP(A20,Data!$I$2:$J$507,2,FALSE),"") -> S.US.SWKS | M20: =IFERROR(RTD("cqg.rtd", ,"ContractData",L20, "PerCentNetLastTrade",, "T")/100,"") -> 0.002293383165 | N20: =IFERROR(RANK($M20,$M$2:M$507)+COUNTIF($M$2:M20,M20)-1,"") -> 7 | O20: S.US.SWKS | P20: 19 | Q20: S.US.BK | R20: =IF(Q20="","",RTD("cqg.rtd", ,"ContractData",Q20, "LongDescription",, "T")) -> Bank of New York Co Inc | S20: =IFERROR(RTD("cqg.rtd", ,"ContractData",Q20, "PerCentNetLastTrade",, "T")/100,"") -> -0.02241488687 | T20: 1
A21: 20 | B21: =IFERROR(VLOOKUP(A21,Data!$H$2:$J$507,3,FALSE),"") -> S.US.SRE | C21: =IFERROR(RTD("cqg.rtd", ,"ContractData",B21, "PerCentNetLastTrade",, "T")/100,"") -> 0.006890510949 | D21: =IFERROR(RANK($C21,$C$2:C$507)+COUNTIF($C$2:C21,C21)-1,"") -> 16 | E21: S.US.SRE | F21: 20 | G21: S.US.ETR | H21: =IF(G21="","",RTD("cqg.rtd", ,"ContractData",G21, "LongDescription",, "T")) -> Entergy Corporation | I21: =IFERROR(RTD("cqg.rtd", ,"ContractData",G21, "PerCentNetLastTrade",, "T")/100,"") -> 0.0038647343 | J21: 1 | K21: 20 | L21: =IFERROR(VLOOKUP(A21,Data!$I$2:$J$507,2,FALSE),"") -> S.US.TEL | M21: =IFERROR(RTD("cqg.rtd", ,"ContractData",L21, "PerCentNetLastTrade",, "T")/100,"") -> 0.008024487095 | N21: =IFERROR(RANK($M21,$M$2:M$507)+COUNTIF($M$2:M21,M21)-1,"") -> 3 | O21: S.US.TEL | P21: 20 | Q21: S.US.STT | R21: =IF(Q21="","",RTD("cqg.rtd", ,"ContractData",Q21, "LongDescription",, "T")) -> State Street Corp | S21: =IFERROR(RTD("cqg.rtd", ,"ContractData",Q21, "PerCentNetLastTrade",, "T")/100,"") -> -0.02611792639 | T21: 1
A22: 21 | B22: =IFERROR(VLOOKUP(A22,Data!$H$2:$J$507,3,FALSE),"") -> S.US.VLO | C22: =IFERROR(RTD("cqg.rtd", ,"ContractData",B22, "PerCentNetLastTrade",, "T")/100,"") -> 0.02250619874 | D22: =IFERROR(RANK($C22,$C$2:C$507)+COUNTIF($C$2:C22,C22)-1,"") -> 5 | E22: S.US.VLO | F22: 21 | H22: =IF(G22="","",RTD("cqg.rtd", ,"ContractData",G22, "LongDescription",, "T")) ->  | I22: =IFERROR(RTD("cqg.rtd", ,"ContractData",G22, "PerCentNetLastTrade",, "T")/100,"") ->  | J22: 0 | K22: 21 | L22: =IFERROR(VLOOKUP(A22,Data!$I$2:$J$507,2,FALSE),"") -> S.US.WBD | M22: =IFERROR(RTD("cqg.rtd", ,"ContractData",L22, "PerCentNetLastTrade",, "T")/100,"") -> -0.01245980707 | N22: =IFERROR(RANK($M22,$M$2:M$507)+COUNTIF($M$2:M22,M22)-1,"") -> 15 | O22: S.US.WBD | P22: 21 | Q22: S.US.EMBC | R22: =IF(Q22="","",RTD("cqg.rtd", ,"ContractData",Q22, "LongDescription",, "T")) -> Embecta Corp. | S22: =IFERROR(RTD("cqg.rtd", ,"ContractData",Q22, "PerCentNetLastTrade",, "T")/100,"") -> -0.02619555285 | T22: 1
A23: 22 | B23: =IFERROR(VLOOKUP(A23,Data!$H$2:$J$507,3,FALSE),"") -> S.US.WMB | C23: =IFERROR(RTD("cqg.rtd", ,"ContractData",B23, "PerCentNetLastTrade",, "T")/100,"") -> 0.006193693694 | D23: =IFERROR(RANK($C23,$C$2:C$507)+COUNTIF($C$2:C23,C23)-1,"") -> 17 | E23: S.US.WMB | F23: 22 | H23: =IF(G23="","",RTD("cqg.rtd", ,"ContractData",G23, "LongDescription",, "T")) ->  | I23: =IFERROR(RTD("cqg.rtd", ,"ContractData",G23, "PerCentNetLastTrade",, "T")/100,"") ->  | J23: 0 | K23: 22 | L23: =IFERROR(VLOOKUP(A23,Data!$I$2:$J$507,2,FALSE),"") ->  | M23: =IFERROR(RTD("cqg.rtd", ,"ContractData",L23, "PerCentNetLastTrade",, "T")/100,"") ->  | N23: =IFERROR(RANK($M23,$M$2:M$507)+COUNTIF($M$2:M23,M23)-1,"") ->  | P23: 22 | R23: =IF(Q23="","",RTD("cqg.rtd", ,"ContractData",Q23, "LongDescription",, "T")) ->  | S23: =IFERROR(RTD("cqg.rtd", ,"ContractData",Q23, "PerCentNetLastTrade",, "T")/100,"") ->  | T23: 0
A24: 23 | B24: =IFERROR(VLOOKUP(A24,Data!$H$2:$J$507,3,FALSE),"") ->  | C24: =IFERROR(RTD("cqg.rtd", ,"ContractData",B24, "PerCentNetLastTrade",, "T")/100,"") ->  | D24: =IFERROR(RANK($C24,$C$2:C$507)+COUNTIF($C$2:C24,C24)-1,"") ->  | F24: 23 | H24: =IF(G24="","",RTD("cqg.rtd", ,"ContractData",G24, "LongDescription",, "T")) ->  | I24: =IFERROR(RTD("cqg.rtd", ,"ContractData",G24, "PerCentNetLastTrade",, "T")/100,"") ->  | J24: 0 | K24: 23 | L24: =IFERROR(VLOOKUP(A24,Data!$I$2:$J$507,2,FALSE),"") ->  | M24: =IFERROR(RTD("cqg.rtd", ,"ContractData",L24, "PerCentNetLastTrade",, "T")/100,"") ->  | N24: =IFERROR(RANK($M24,$M$2:M$507)+COUNTIF($M$2:M24,M24)-1,"") ->  | P24: 23 | R24: =IF(Q24="","",RTD("cqg.rtd", ,"ContractData",Q24, "LongDescription",, "T")) ->  | S24: =IFERROR(RTD("cqg.rtd", ,"ContractData",Q24, "PerCentNetLastTrade",, "T")/100,"") ->  | T24: 0
A25: 24 | B25: =IFERROR(VLOOKUP(A25,Data!$H$2:$J$507,3,FALSE),"") ->  | C25: =IFERROR(RTD("cqg.rtd", ,"ContractData",B25, "PerCentNetLastTrade",, "T")/100,"") ->  | D25: =IFERROR(RANK($C25,$C$2:C$507)+COUNTIF($C$2:C25,C25)-1,"") ->  | F25: 24 | H25: =IF(G25="","",RTD("cqg.rtd", ,"ContractData",G25, "LongDescription",, "T")) ->  | I25: =IFERROR(RTD("cqg.rtd", ,"ContractData",G25, "PerCentNetLastTrade",, "T")/100,"") ->  | J25: 0 | K25: 24 | L25: =IFERROR(VLOOKUP(A25,Data!$I$2:$J$507,2,FALSE),"") ->  | M25: =IFERROR(RTD("cqg.rtd", ,"ContractData",L25, "PerCentNetLastTrade",, "T")/100,"") ->  | N25: =IFERROR(RANK($M25,$M$2:M$507)+COUNTIF($M$2:M25,M25)-1,"") ->  | P25: 24 | R25: =IF(Q25="","",RTD("cqg.rtd", ,"ContractData",Q25, "LongDescription",, "T")) ->  | S25: =IFERROR(RTD("cqg.rtd", ,"ContractData",Q25, "PerCentNetLastTrade",, "T")/100,"") ->  | T25: 0
A26: 25 | B26: =IFERROR(VLOOKUP(A26,Data!$H$2:$J$507,3,FALSE),"") ->  | C26: =IFERROR(RTD("cqg.rtd", ,"ContractData",B26, "PerCentNetLastTrade",, "T")/100,"") ->  | D26: =IFERROR(RANK($C26,$C$2:C$507)+COUNTIF($C$2:C26,C26)-1,"") ->  | F26: 25 | H26: =IF(G26="","",RTD("cqg.rtd", ,"ContractData",G26, "LongDescription",, "T")) ->  | I26: =IFERROR(RTD("cqg.rtd", ,"ContractData",G26, "PerCentNetLastTrade",, "T")/100,"") ->  | J26: 0 | K26: 25 | L26: =IFERROR(VLOOKUP(A26,Data!$I$2:$J$507,2,FALSE),"") ->  | M26: =IFERROR(RTD("cqg.rtd", ,"ContractData",L26, "PerCentNetLastTrade",, "T")/100,"") ->  | N26: =IFERROR(RANK($M26,$M$2:M$507)+COUNTIF($M$2:M26,M26)-1,"") ->  | P26: 25 | R26: =IF(Q26="","",RTD("cqg.rtd", ,"ContractData",Q26, "LongDescription",, "T")) ->  | S26: =IFERROR(RTD("cqg.rtd", ,"ContractData",Q26, "PerCentNetLastTrade",, "T")/100,"") ->  | T26: 0
A27: 26 | B27: =IFERROR(VLOOKUP(A27,Data!$H$2:$J$507,3,FALSE),"") ->  | C27: =IFERROR(RTD("cqg.rtd", ,"ContractData",B27, "PerCentNetLastTrade",, "T")/100,"") ->  | D27: =IFERROR(RANK($C27,$C$2:C$507)+COUNTIF($C$2:C27,C27)-1,"") ->  | F27: 26 | H27: =IF(G27="","",RTD("cqg.rtd", ,"ContractData",G27, "LongDescription",, "T")) ->  | I27: =IFERROR(RTD("cqg.rtd", ,"ContractData",G27, "PerCentNetLastTrade",, "T")/100,"") ->  | J27: 0 | K27: 26 | L27: =IFERROR(VLOOKUP(A27,Data!$I$2:$J$507,2,FALSE),"") ->  | M27: =IFERROR(RTD("cqg.rtd", ,"ContractData",L27, "PerCentNetLastTrade",, "T")/100,"") ->  | N27: =IFERROR(RANK($M27,$M$2:M$507)+COUNTIF($M$2:M27,M27)-1,"") ->  | P27: 26 | R27: =IF(Q27="","",RTD("cqg.rtd", ,"ContractData",Q27, "LongDescription",, "T")) ->  | S27: =IFERROR(RTD("cqg.rtd", ,"ContractData",Q27, "PerCentNetLastTrade",, "T")/100,"") ->  | T27: 0
A28: 27 | B28: =IFERROR(VLOOKUP(A28,Data!$H$2:$J$507,3,FALSE),"") ->  | C28: =IFERROR(RTD("cqg.rtd", ,"ContractData",B28, "PerCentNetLastTrade",, "T")/100,"") ->  | D28: =IFERROR(RANK($C28,$C$2:C$507)+COUNTIF($C$2:C28,C28)-1,"") ->  | F28: 27 | H28: =IF(G28="","",RTD("cqg.rtd", ,"ContractData",G28, "LongDescription",, "T")) ->  | I28: =IFERROR(RTD("cqg.rtd", ,"ContractData",G28, "PerCentNetLastTrade",, "T")/100,"") ->  | J28: 0 | K28: 27 | L28: =IFERROR(VLOOKUP(A28,Data!$I$2:$J$507,2,FALSE),"") ->  | M28: =IFERROR(RTD("cqg.rtd", ,"ContractData",L28, "PerCentNetLastTrade",, "T")/100,"") ->  | N28: =IFERROR(RANK($M28,$M$2:M$507)+COUNTIF($M$2:M28,M28)-1,"") ->  | P28: 27 | R28: =IF(Q28="","",RTD("cqg.rtd", ,"ContractData",Q28, "LongDescription",, "T")) ->  | S28: =IFERROR(RTD("cqg.rtd", ,"ContractData",Q28, "PerCentNetLastTrade",, "T")/100,"") ->  | T28: 0
A29: 28 | B29: =IFERROR(VLOOKUP(A29,Data!$H$2:$J$507,3,FALSE),"") ->  | C29: =IFERROR(RTD("cqg.rtd", ,"ContractData",B29, "PerCentNetLastTrade",, "T")/100,"") ->  | D29: =IFERROR(RANK($C29,$C$2:C$507)+COUNTIF($C$2:C29,C29)-1,"") ->  | F29: 28 | H29: =IF(G29="","",RTD("cqg.rtd", ,"ContractData",G29, "LongDescription",, "T")) ->  | I29: =IFERROR(RTD("cqg.rtd", ,"ContractData",G29, "PerCentNetLastTrade",, "T")/100,"") ->  | J29: 0 | K29: 28 | L29: =IFERROR(VLOOKUP(A29,Data!$I$2:$J$507,2,FALSE),"") ->  | M29: =IFERROR(RTD("cqg.rtd", ,"ContractData",L29, "PerCentNetLastTrade",, "T")/100,"") ->  | N29: =IFERROR(RANK($M29,$M$2:M$507)+COUNTIF($M$2:M29,M29)-1,"") ->  | P29: 28 | R29: =IF(Q29="","",RTD("cqg.rtd", ,"ContractData",Q29, "LongDescription",, "T")) ->  | S29: =IFERROR(RTD("cqg.rtd", ,"ContractData",Q29, "PerCentNetLastTrade",, "T")/100,"") ->  | T29: 0
A30: 29 | B30: =IFERROR(VLOOKUP(A30,Data!$H$2:$J$507,3,FALSE),"") ->  | C30: =IFERROR(RTD("cqg.rtd", ,"ContractData",B30, "PerCentNetLastTrade",, "T")/100,"") ->  | D30: =IFERROR(RANK($C30,$C$2:C$507)+COUNTIF($C$2:C30,C30)-1,"") ->  | F30: 29 | H30: =IF(G30="","",RTD("cqg.rtd", ,"ContractData",G30, "LongDescription",, "T")) ->  | I30: =IFERROR(RTD("cqg.rtd", ,"ContractData",G30, "PerCentNetLastTrade",, "T")/100,"") ->  | J30: 0 | K30: 29 | L30: =IFERROR(VLOOKUP(A30,Data!$I$2:$J$507,2,FALSE),"") ->  | M30: =IFERROR(RTD("cqg.rtd", ,"ContractData",L30, "PerCentNetLastTrade",, "T")/100,"") ->  | N30: =IFERROR(RANK($M30,$M$2:M$507)+COUNTIF($M$2:M30,M30)-1,"") ->  | P30: 29 | R30: =IF(Q30="","",RTD("cqg.rtd", ,"ContractData",Q30, "LongDescription",, "T")) ->  | S30: =IFERROR(RTD("cqg.rtd", ,"ContractData",Q30, "PerCentNetLastTrade",, "T")/100,"") ->  | T30: 0
A31: 30 | B31: =IFERROR(VLOOKUP(A31,Data!$H$2:$J$507,3,FALSE),"") ->  | C31: =IFERROR(RTD("cqg.rtd", ,"ContractData",B31, "PerCentNetLastTrade",, "T")/100,"") ->  | D31: =IFERROR(RANK($C31,$C$2:C$507)+COUNTIF($C$2:C31,C31)-1,"") ->  | F31: 30 | H31: =IF(G31="","",RTD("cqg.rtd", ,"ContractData",G31, "LongDescription",, "T")) ->  | I31: =IFERROR(RTD("cqg.rtd", ,"ContractData",G31, "PerCentNetLastTrade",, "T")/100,"") ->  | J31: 0 | K31: 30 | L31: =IFERROR(VLOOKUP(A31,Data!$I$2:$J$507,2,FALSE),"") ->  | M31: =IFERROR(RTD("cqg.rtd", ,"ContractData",L31, "PerCentNetLastTrade",, "T")/100,"") ->  | N31: =IFERROR(RANK($M31,$M$2:M$507)+COUNTIF($M$2:M31,M31)-1,"") ->  | P31: 30 | R31: =IF(Q31="","",RTD("cqg.rtd", ,"ContractData",Q31, "LongDescription",, "T")) ->  | S31: =IFERROR(RTD("cqg.rtd", ,"ContractData",Q31, "PerCentNetLastTrade",, "T")/100,"") ->  | T31: 0
A32: 31 | B32: =IFERROR(VLOOKUP(A32,Data!$H$2:$J$507,3,FALSE),"") ->  | C32: =IFERROR(RTD("cqg.rtd", ,"ContractData",B32, "PerCentNetLastTrade",, "T")/100,"") ->  | D32: =IFERROR(RANK($C32,$C$2:C$507)+COUNTIF($C$2:C32,C32)-1,"") ->  | F32: 31 | H32: =IF(G32="","",RTD("cqg.rtd", ,"ContractData",G32, "LongDescription",, "T")) ->  | I32: =IFERROR(RTD("cqg.rtd", ,"ContractData",G32, "PerCentNetLastTrade",, "T")/100,"") ->  | J32: 0 | K32: 31 | L32: =IFERROR(VLOOKUP(A32,Data!$I$2:$J$507,2,FALSE),"") ->  | M32: =IFERROR(RTD("cqg.rtd", ,"ContractData",L32, "PerCentNetLastTrade",, "T")/100,"") ->  | N32: =IFERROR(RANK($M32,$M$2:M$507)+COUNTIF($M$2:M32,M32)-1,"") ->  | P32: 31 | R32: =IF(Q32="","",RTD("cqg.rtd", ,"ContractData",Q32, "LongDescription",, "T")) ->  | S32: =IFERROR(RTD("cqg.rtd", ,"ContractData",Q32, "PerCentNetLastTrade",, "T")/100,"") ->  | T32: 0
A33: 32 | B33: =IFERROR(VLOOKUP(A33,Data!$H$2:$J$507,3,FALSE),"") ->  | C33: =IFERROR(RTD("cqg.rtd", ,"ContractData",B33, "PerCentNetLastTrade",, "T")/100,"") ->  | D33: =IFERROR(RANK($C33,$C$2:C$507)+COUNTIF($C$2:C33,C33)-1,"") ->  | F33: 32 | H33: =IF(G33="","",RTD("cqg.rtd", ,"ContractData",G33, "LongDescription",, "T")) ->  | I33: =IFERROR(RTD("cqg.rtd", ,"ContractData",G33, "PerCentNetLastTrade",, "T")/100,"") ->  | J33: 0 | K33: 32 | L33: =IFERROR(VLOOKUP(A33,Data!$I$2:$J$507,2,FALSE),"") ->  | M33: =IFERROR(RTD("cqg.rtd", ,"ContractData",L33, "PerCentNetLastTrade",, "T")/100,"") ->  | N33: =IFERROR(RANK($M33,$M$2:M$507)+COUNTIF($M$2:M33,M33)-1,"") ->  | P33: 32 | R33: =IF(Q33="","",RTD("cqg.rtd", ,"ContractData",Q33, "LongDescription",, "T")) ->  | S33: =IFERROR(RTD("cqg.rtd", ,"ContractData",Q33, "PerCentNetLastTrade",, "T")/100,"") ->  | T33: 0
A34: 33 | B34: =IFERROR(VLOOKUP(A34,Data!$H$2:$J$507,3,FALSE),"") ->  | C34: =IFERROR(RTD("cqg.rtd", ,"ContractData",B34, "PerCentNetLastTrade",, "T")/100,"") ->  | D34: =IFERROR(RANK($C34,$C$2:C$507)+COUNTIF($C$2:C34,C34)-1,"") ->  | F34: 33 | H34: =IF(G34="","",RTD("cqg.rtd", ,"ContractData",G34, "LongDescription",, "T")) ->  | I34: =IFERROR(RTD("cqg.rtd", ,"ContractData",G34, "PerCentNetLastTrade",, "T")/100,"") ->  | J34: 0 | K34: 33 | L34: =IFERROR(VLOOKUP(A34,Data!$I$2:$J$507,2,FALSE),"") ->  | M34: =IFERROR(RTD("cqg.rtd", ,"ContractData",L34, "PerCentNetLastTrade",, "T")/100,"") ->  | N34: =IFERROR(RANK($M34,$M$2:M$507)+COUNTIF($M$2:M34,M34)-1,"") ->  | P34: 33 | R34: =IF(Q34="","",RTD("cqg.rtd", ,"ContractData",Q34, "LongDescription",, "T")) ->  | S34: =IFERROR(RTD("cqg.rtd", ,"ContractData",Q34, "PerCentNetLastTrade",, "T")/100,"") ->  | T34: 0
A35: 34 | B35: =IFERROR(VLOOKUP(A35,Data!$H$2:$J$507,3,FALSE),"") ->  | C35: =IFERROR(RTD("cqg.rtd", ,"ContractData",B35, "PerCentNetLastTrade",, "T")/100,"") ->  | D35: =IFERROR(RANK($C35,$C$2:C$507)+COUNTIF($C$2:C35,C35)-1,"") ->  | F35: 34 | H35: =IF(G35="","",RTD("cqg.rtd", ,"ContractData",G35, "LongDescription",, "T")) ->  | I35: =IFERROR(RTD("cqg.rtd", ,"ContractData",G35, "PerCentNetLastTrade",, "T")/100,"") ->  | J35: 0 | K35: 34 | L35: =IFERROR(VLOOKUP(A35,Data!$I$2:$J$507,2,FALSE),"") ->  | M35: =IFERROR(RTD("cqg.rtd", ,"ContractData",L35, "PerCentNetLastTrade",, "T")/100,"") ->  | N35: =IFERROR(RANK($M35,$M$2:M$507)+COUNTIF($M$2:M35,M35)-1,"") ->  | P35: 34 | R35: =IF(Q35="","",RTD("cqg.rtd", ,"ContractData",Q35, "LongDescription",, "T")) ->  | S35: =IFERROR(RTD("cqg.rtd", ,"ContractData",Q35, "PerCentNetLastTrade",, "T")/100,"") ->  | T35: 0
A36: 35 | B36: =IFERROR(VLOOKUP(A36,Data!$H$2:$J$507,3,FALSE),"") ->  | C36: =IFERROR(RTD("cqg.rtd", ,"ContractData",B36, "PerCentNetLastTrade",, "T")/100,"") ->  | D36: =IFERROR(RANK($C36,$C$2:C$507)+COUNTIF($C$2:C36,C36)-1,"") ->  | F36: 35 | H36: =IF(G36="","",RTD("cqg.rtd", ,"ContractData",G36, "LongDescription",, "T")) ->  | I36: =IFERROR(RTD("cqg.rtd", ,"ContractData",G36, "PerCentNetLastTrade",, "T")/100,"") ->  | J36: 0 | K36: 35 | L36: =IFERROR(VLOOKUP(A36,Data!$I$2:$J$507,2,FALSE),"") ->  | M36: =IFERROR(RTD("cqg.rtd", ,"ContractData",L36, "PerCentNetLastTrade",, "T")/100,"") ->  | N36: =IFERROR(RANK($M36,$M$2:M$507)+COUNTIF($M$2:M36,M36)-1,"") ->  | P36: 35 | R36: =IF(Q36="","",RTD("cqg.rtd", ,"ContractData",Q36, "LongDescription",, "T")) ->  | S36: =IFERROR(RTD("cqg.rtd", ,"ContractData",Q36, "PerCentNetLastTrade",, "T")/100,"") ->  | T36: 0
A37: 36 | B37: =IFERROR(VLOOKUP(A37,Data!$H$2:$J$507,3,FALSE),"") ->  | C37: =IFERROR(RTD("cqg.rtd", ,"ContractData",B37, "PerCentNetLastTrade",, "T")/100,"") ->  | D37: =IFERROR(RANK($C37,$C$2:C$507)+COUNTIF($C$2:C37,C37)-1,"") ->  | F37: 36 | H37: =IF(G37="","",RTD("cqg.rtd", ,"ContractData",G37, "LongDescription",, "T")) ->  | I37: =IFERROR(RTD("cqg.rtd", ,"ContractData",G37, "PerCentNetLastTrade",, "T")/100,"") ->  | J37: 0 | K37: 36 | L37: =IFERROR(VLOOKUP(A37,Data!$I$2:$J$507,2,FALSE),"") ->  | M37: =IFERROR(RTD("cqg.rtd", ,"ContractData",L37, "PerCentNetLastTrade",, "T")/100,"") ->  | N37: =IFERROR(RANK($M37,$M$2:M$507)+COUNTIF($M$2:M37,M37)-1,"") ->  | P37: 36 | R37: =IF(Q37="","",RTD("cqg.rtd", ,"ContractData",Q37, "LongDescription",, "T")) ->  | S37: =IFERROR(RTD("cqg.rtd", ,"ContractData",Q37, "PerCentNetLastTrade",, "T")/100,"") ->  | T37: 0
A38: 37 | B38: =IFERROR(VLOOKUP(A38,Data!$H$2:$J$507,3,FALSE),"") ->  | C38: =IFERROR(RTD("cqg.rtd", ,"ContractData",B38, "PerCentNetLastTrade",, "T")/100,"") ->  | D38: =IFERROR(RANK($C38,$C$2:C$507)+COUNTIF($C$2:C38,C38)-1,"") ->  | F38: 37 | H38: =IF(G38="","",RTD("cqg.rtd", ,"ContractData",G38, "LongDescription",, "T")) ->  | I38: =IFERROR(RTD("cqg.rtd", ,"ContractData",G38, "PerCentNetLastTrade",, "T")/100,"") ->  | J38: 0 | K38: 37 | L38: =IFERROR(VLOOKUP(A38,Data!$I$2:$J$507,2,FALSE),"") ->  | M38: =IFERROR(RTD("cqg.rtd", ,"ContractData",L38, "PerCentNetLastTrade",, "T")/100,"") ->  | N38: =IFERROR(RANK($M38,$M$2:M$507)+COUNTIF($M$2:M38,M38)-1,"") ->  | P38: 37 | R38: =IF(Q38="","",RTD("cqg.rtd", ,"ContractData",Q38, "LongDescription",, "T")) ->  | S38: =IFERROR(RTD("cqg.rtd", ,"ContractData",Q38, "PerCentNetLastTrade",, "T")/100,"") ->  | T38: 0
A39: 38 | B39: =IFERROR(VLOOKUP(A39,Data!$H$2:$J$507,3,FALSE),"") ->  | C39: =IFERROR(RTD("cqg.rtd", ,"ContractData",B39, "PerCentNetLastTrade",, "T")/100,"") ->  | D39: =IFERROR(RANK($C39,$C$2:C$507)+COUNTIF($C$2:C39,C39)-1,"") ->  | F39: 38 | H39: =IF(G39="","",RTD("cqg.rtd", ,"ContractData",G39, "LongDescription",, "T")) ->  | I39: =IFERROR(RTD("cqg.rtd", ,"ContractData",G39, "PerCentNetLastTrade",, "T")/100,"") ->  | J39: =IF(I39<>"",1,0) -> 0 | K39: 38 | L39: =IFERROR(VLOOKUP(A39,Data!$I$2:$J$507,2,FALSE),"") ->  | M39: =IFERROR(RTD("cqg.rtd", ,"ContractData",L39, "PerCentNetLastTrade",, "T")/100,"") ->  | N39: =IFERROR(RANK($M39,$M$2:M$507)+COUNTIF($M$2:M39,M39)-1,"") ->  | P39: 38 | R39: =IF(Q39="","",RTD("cqg.rtd", ,"ContractData",Q39, "LongDescription",, "T")) ->  | S39: =IFERROR(RTD("cqg.rtd", ,"ContractData",Q39, "PerCentNetLastTrade",, "T")/100,"") ->  | T39: 0
A40: 39 | B40: =IFERROR(VLOOKUP(A40,Data!$H$2:$J$507,3,FALSE),"") ->  | C40: =IFERROR(RTD("cqg.rtd", ,"ContractData",B40, "PerCentNetLastTrade",, "T")/100,"") ->  | D40: =IFERROR(RANK($C40,$C$2:C$507)+COUNTIF($C$2:C40,C40)-1,"") ->  | F40: 39 | H40: =IF(G40="","",RTD("cqg.rtd", ,"ContractData",G40, "LongDescription",, "T")) ->  | I40: =IFERROR(RTD("cqg.rtd", ,"ContractData",G40, "PerCentNetLastTrade",, "T")/100,"") ->  | J40: 0 | K40: 39 | L40: =IFERROR(VLOOKUP(A40,Data!$I$2:$J$507,2,FALSE),"") ->  | M40: =IFERROR(RTD("cqg.rtd", ,"ContractData",L40, "PerCentNetLastTrade",, "T")/100,"") ->  | N40: =IFERROR(RANK($M40,$M$2:M$507)+COUNTIF($M$2:M40,M40)-1,"") ->  | P40: 39 | R40: =IF(Q40="","",RTD("cqg.rtd", ,"ContractData",Q40, "LongDescription",, "T")) ->  | S40: =IFERROR(RTD("cqg.rtd", ,"ContractData",Q40, "PerCentNetLastTrade",, "T")/100,"") ->  | T40: 0
A41: 40 | B41: =IFERROR(VLOOKUP(A41,Data!$H$2:$J$507,3,FALSE),"") ->  | C41: =IFERROR(RTD("cqg.rtd", ,"ContractData",B41, "PerCentNetLastTrade",, "T")/100,"") ->  | D41: =IFERROR(RANK($C41,$C$2:C$507)+COUNTIF($C$2:C41,C41)-1,"") ->  | F41: 40 | H41: =IF(G41="","",RTD("cqg.rtd", ,"ContractData",G41, "LongDescription",, "T")) ->  | I41: =IFERROR(RTD("cqg.rtd", ,"ContractData",G41, "PerCentNetLastTrade",, "T")/100,"") ->  | J41: 0 | K41: 40 | L41: =IFERROR(VLOOKUP(A41,Data!$I$2:$J$507,2,FALSE),"") ->  | M41: =IFERROR(RTD("cqg.rtd", ,"ContractData",L41, "PerCentNetLastTrade",, "T")/100,"") ->  | N41: =IFERROR(RANK($M41,$M$2:M$507)+COUNTIF($M$2:M41,M41)-1,"") ->  | P41: 40 | R41: =IF(Q41="","",RTD("cqg.rtd", ,"ContractData",Q41, "LongDescription",, "T")) ->  | S41: =IFERROR(RTD("cqg.rtd", ,"ContractData",Q41, "PerCentNetLastTrade",, "T")/100,"") ->  | T41: 0
A42: 41 | B42: =IFERROR(VLOOKUP(A42,Data!$H$2:$J$507,3,FALSE),"") ->  | C42: =IFERROR(RTD("cqg.rtd", ,"ContractData",B42, "PerCentNetLastTrade",, "T")/100,"") ->  | D42: =IFERROR(RANK($C42,$C$2:C$507)+COUNTIF($C$2:C42,C42)-1,"") ->  | F42: 41 | H42: =IF(G42="","",RTD("cqg.rtd", ,"ContractData",G42, "LongDescription",, "T")) ->  | I42: =IFERROR(RTD("cqg.rtd", ,"ContractData",G42, "PerCentNetLastTrade",, "T")/100,"") ->  | J42: 0 | K42: 41 | L42: =IFERROR(VLOOKUP(A42,Data!$I$2:$J$507,2,FALSE),"") ->  | M42: =IFERROR(RTD("cqg.rtd", ,"ContractData",L42, "PerCentNetLastTrade",, "T")/100,"") ->  | N42: =IFERROR(RANK($M42,$M$2:M$507)+COUNTIF($M$2:M42,M42)-1,"") ->  | P42: 41 | R42: =IF(Q42="","",RTD("cqg.rtd", ,"ContractData",Q42, "LongDescription",, "T")) ->  | S42: =IFERROR(RTD("cqg.rtd", ,"ContractData",Q42, "PerCentNetLastTrade",, "T")/100,"") ->  | T42: 0
A43: 42 | B43: =IFERROR(VLOOKUP(A43,Data!$H$2:$J$507,3,FALSE),"") ->  | C43: =IFERROR(RTD("cqg.rtd", ,"ContractData",B43, "PerCentNetLastTrade",, "T")/100,"") ->  | D43: =IFERROR(RANK($C43,$C$2:C$507)+COUNTIF($C$2:C43,C43)-1,"") ->  | F43: 42 | H43: =IF(G43="","",RTD("cqg.rtd", ,"ContractData",G43, "LongDescription",, "T")) ->  | I43: =IFERROR(RTD("cqg.rtd", ,"ContractData",G43, "PerCentNetLastTrade",, "T")/100,"") ->  | J43: 0 | K43: 42 | L43: =IFERROR(VLOOKUP(A43,Data!$I$2:$J$507,2,FALSE),"") ->  | M43: =IFERROR(RTD("cqg.rtd", ,"ContractData",L43, "PerCentNetLastTrade",, "T")/100,"") ->  | N43: =IFERROR(RANK($M43,$M$2:M$507)+COUNTIF($M$2:M43,M43)-1,"") ->  | P43: 42 | R43: =IF(Q43="","",RTD("cqg.rtd", ,"ContractData",Q43, "LongDescription",, "T")) ->  | S43: =IFERROR(RTD("cqg.rtd", ,"ContractData",Q43, "PerCentNetLastTrade",, "T")/100,"") ->  | T43: 0
A44: 43 | B44: =IFERROR(VLOOKUP(A44,Data!$H$2:$J$507,3,FALSE),"") ->  | C44: =IFERROR(RTD("cqg.rtd", ,"ContractData",B44, "PerCentNetLastTrade",, "T")/100,"") ->  | D44: =IFERROR(RANK($C44,$C$2:C$507)+COUNTIF($C$2:C44,C44)-1,"") ->  | F44: 43 | H44: =IF(G44="","",RTD("cqg.rtd", ,"ContractData",G44, "LongDescription",, "T")) ->  | I44: =IFERROR(RTD("cqg.rtd", ,"ContractData",G44, "PerCentNetLastTrade",, "T")/100,"") ->  | J44: 0 | K44: 43 | L44: =IFERROR(VLOOKUP(A44,Data!$I$2:$J$507,2,FALSE),"") ->  | M44: =IFERROR(RTD("cqg.rtd", ,"ContractData",L44, "PerCentNetLastTrade",, "T")/100,"") ->  | N44: =IFERROR(RANK($M44,$M$2:M$507)+COUNTIF($M$2:M44,M44)-1,"") ->  | P44: 43 | R44: =IF(Q44="","",RTD("cqg.rtd", ,"ContractData",Q44, "LongDescription",, "T")) ->  | S44: =IFERROR(RTD("cqg.rtd", ,"ContractData",Q44, "PerCentNetLastTrade",, "T")/100,"") ->  | T44: 0
A45: 44 | B45: =IFERROR(VLOOKUP(A45,Data!$H$2:$J$507,3,FALSE),"") ->  | C45: =IFERROR(RTD("cqg.rtd", ,"ContractData",B45, "PerCentNetLastTrade",, "T")/100,"") ->  | D45: =IFERROR(RANK($C45,$C$2:C$507)+COUNTIF($C$2:C45,C45)-1,"") ->  | F45: 44 | H45: =IF(G45="","",RTD("cqg.rtd", ,"ContractData",G45, "LongDescription",, "T")) ->  | I45: =IFERROR(RTD("cqg.rtd", ,"ContractData",G45, "PerCentNetLastTrade",, "T")/100,"") ->  | J45: 0 | K45: 44 | L45: =IFERROR(VLOOKUP(A45,Data!$I$2:$J$507,2,FALSE),"") ->  | M45: =IFERROR(RTD("cqg.rtd", ,"ContractData",L45, "PerCentNetLastTrade",, "T")/100,"") ->  | N45: =IFERROR(RANK($M45,$M$2:M$507)+COUNTIF($M$2:M45,M45)-1,"") ->  | P45: 44 | R45: =IF(Q45="","",RTD("cqg.rtd", ,"ContractData",Q45, "LongDescription",, "T")) ->  | S45: =IFERROR(RTD("cqg.rtd", ,"ContractData",Q45, "PerCentNetLastTrade",, "T")/100,"") ->  | T45: 0
A46: 45 | B46: =IFERROR(VLOOKUP(A46,Data!$H$2:$J$507,3,FALSE),"") ->  | C46: =IFERROR(RTD("cqg.rtd", ,"ContractData",B46, "PerCentNetLastTrade",, "T")/100,"") ->  | D46: =IFERROR(RANK($C46,$C$2:C$507)+COUNTIF($C$2:C46,C46)-1,"") ->  | F46: 45 | H46: =IF(G46="","",RTD("cqg.rtd", ,"ContractData",G46, "LongDescription",, "T")) ->  | I46: =IFERROR(RTD("cqg.rtd", ,"ContractData",G46, "PerCentNetLastTrade",, "T")/100,"") ->  | J46: 0 | K46: 45 | L46: =IFERROR(VLOOKUP(A46,Data!$I$2:$J$507,2,FALSE),"") ->  | M46: =IFERROR(RTD("cqg.rtd", ,"ContractData",L46, "PerCentNetLastTrade",, "T")/100,"") ->  | N46: =IFERROR(RANK($M46,$M$2:M$507)+COUNTIF($M$2:M46,M46)-1,"") ->  | P46: 45 | R46: =IF(Q46="","",RTD("cqg.rtd", ,"ContractData",Q46, "LongDescription",, "T")) ->  | S46: =IFERROR(RTD("cqg.rtd", ,"ContractData",Q46, "PerCentNetLastTrade",, "T")/100,"") ->  | T46: 0
A47: 46 | B47: =IFERROR(VLOOKUP(A47,Data!$H$2:$J$507,3,FALSE),"") ->  | C47: =IFERROR(RTD("cqg.rtd", ,"ContractData",B47, "PerCentNetLastTrade",, "T")/100,"") ->  | D47: =IFERROR(RANK($C47,$C$2:C$507)+COUNTIF($C$2:C47,C47)-1,"") ->  | F47: 46 | H47: =IF(G47="","",RTD("cqg.rtd", ,"ContractData",G47, "LongDescription",, "T")) ->  | I47: =IFERROR(RTD("cqg.rtd", ,"ContractData",G47, "PerCentNetLastTrade",, "T")/100,"") ->  | J47: 0 | K47: 46 | L47: =IFERROR(VLOOKUP(A47,Data!$I$2:$J$507,2,FALSE),"") ->  | M47: =IFERROR(RTD("cqg.rtd", ,"ContractData",L47, "PerCentNetLastTrade",, "T")/100,"") ->  | N47: =IFERROR(RANK($M47,$M$2:M$507)+COUNTIF($M$2:M47,M47)-1,"") ->  | P47: 46 | R47: =IF(Q47="","",RTD("cqg.rtd", ,"ContractData",Q47, "LongDescription",, "T")) ->  | S47: =IFERROR(RTD("cqg.rtd", ,"ContractData",Q47, "PerCentNetLastTrade",, "T")/100,"") ->  | T47: 0
A48: 47 | B48: =IFERROR(VLOOKUP(A48,Data!$H$2:$J$507,3,FALSE),"") ->  | C48: =IFERROR(RTD("cqg.rtd", ,"ContractData",B48, "PerCentNetLastTrade",, "T")/100,"") ->  | D48: =IFERROR(RANK($C48,$C$2:C$507)+COUNTIF($C$2:C48,C48)-1,"") ->  | F48: 47 | H48: =IF(G48="","",RTD("cqg.rtd", ,"ContractData",G48, "LongDescription",, "T")) ->  | I48: =IFERROR(RTD("cqg.rtd", ,"ContractData",G48, "PerCentNetLastTrade",, "T")/100,"") ->  | J48: 0 | K48: 47 | L48: =IFERROR(VLOOKUP(A48,Data!$I$2:$J$507,2,FALSE),"") ->  | M48: =IFERROR(RTD("cqg.rtd", ,"ContractData",L48, "PerCentNetLastTrade",, "T")/100,"") ->  | N48: =IFERROR(RANK($M48,$M$2:M$507)+COUNTIF($M$2:M48,M48)-1,"") ->  | P48: 47 | R48: =IF(Q48="","",RTD("cqg.rtd", ,"ContractData",Q48, "LongDescription",, "T")) ->  | S48: =IFERROR(RTD("cqg.rtd", ,"ContractData",Q48, "PerCentNetLastTrade",, "T")/100,"") ->  | T48: 0
A49: 48 | B49: =IFERROR(VLOOKUP(A49,Data!$H$2:$J$507,3,FALSE),"") ->  | C49: =IFERROR(RTD("cqg.rtd", ,"ContractData",B49, "PerCentNetLastTrade",, "T")/100,"") ->  | D49: =IFERROR(RANK($C49,$C$2:C$507)+COUNTIF($C$2:C49,C49)-1,"") ->  | F49: 48 | H49: =IF(G49="","",RTD("cqg.rtd", ,"ContractData",G49, "LongDescription",, "T")) ->  | I49: =IFERROR(RTD("cqg.rtd", ,"ContractData",G49, "PerCentNetLastTrade",, "T")/100,"") ->  | J49: 0 | K49: 48 | L49: =IFERROR(VLOOKUP(A49,Data!$I$2:$J$507,2,FALSE),"") ->  | M49: =IFERROR(RTD("cqg.rtd", ,"ContractData",L49, "PerCentNetLastTrade",, "T")/100,"") ->  | N49: =IFERROR(RANK($M49,$M$2:M$507)+COUNTIF($M$2:M49,M49)-1,"") ->  | P49: 48 | R49: =IF(Q49="","",RTD("cqg.rtd", ,"ContractData",Q49, "LongDescription",, "T")) ->  | S49: =IFERROR(RTD("cqg.rtd", ,"ContractData",Q49, "PerCentNetLastTrade",, "T")/100,"") ->  | T49: 0
A50: 49 | B50: =IFERROR(VLOOKUP(A50,Data!$H$2:$J$507,3,FALSE),"") ->  | C50: =IFERROR(RTD("cqg.rtd", ,"ContractData",B50, "PerCentNetLastTrade",, "T")/100,"") ->  | D50: =IFERROR(RANK($C50,$C$2:C$507)+COUNTIF($C$2:C50,C50)-1,"") ->  | F50: 49 | H50: =IF(G50="","",RTD("cqg.rtd", ,"ContractData",G50, "LongDescription",, "T")) ->  | I50: =IFERROR(RTD("cqg.rtd", ,"ContractData",G50, "PerCentNetLastTrade",, "T")/100,"") ->  | J50: 0 | K50: 49 | L50: =IFERROR(VLOOKUP(A50,Data!$I$2:$J$507,2,FALSE),"") ->  | M50: =IFERROR(RTD("cqg.rtd", ,"ContractData",L50, "PerCentNetLastTrade",, "T")/100,"") ->  | N50: =IFERROR(RANK($M50,$M$2:M$507)+COUNTIF($M$2:M50,M50)-1,"") ->  | P50: 49 | R50: =IF(Q50="","",RTD("cqg.rtd", ,"ContractData",Q50, "LongDescription",, "T")) ->  | S50: =IFERROR(RTD("cqg.rtd", ,"ContractData",Q50, "PerCentNetLastTrade",, "T")/100,"") ->  | T50: 0
A51: 50 | B51: =IFERROR(VLOOKUP(A51,Data!$H$2:$J$507,3,FALSE),"") ->  | C51: =IFERROR(RTD("cqg.rtd", ,"ContractData",B51, "PerCentNetLastTrade",, "T")/100,"") ->  | D51: =IFERROR(RANK($C51,$C$2:C$507)+COUNTIF($C$2:C51,C51)-1,"") ->  | F51: 50 | H51: =IF(G51="","",RTD("cqg.rtd", ,"ContractData",G51, "LongDescription",, "T")) ->  | I51: =IFERROR(RTD("cqg.rtd", ,"ContractData",G51, "PerCentNetLastTrade",, "T")/100,"") ->  | J51: 0 | K51: 50 | L51: =IFERROR(VLOOKUP(A51,Data!$I$2:$J$507,2,FALSE),"") ->  | M51: =IFERROR(RTD("cqg.rtd", ,"ContractData",L51, "PerCentNetLastTrade",, "T")/100,"") ->  | N51: =IFERROR(RANK($M51,$M$2:M$507)+COUNTIF($M$2:M51,M51)-1,"") ->  | P51: 50 | R51: =IF(Q51="","",RTD("cqg.rtd", ,"ContractData",Q51, "LongDescription",, "T")) ->  | S51: =IFERROR(RTD("cqg.rtd", ,"ContractData",Q51, "PerCentNetLastTrade",, "T")/100,"") ->  | T51: 0
A52: 51 | B52: =IFERROR(VLOOKUP(A52,Data!$H$2:$J$507,3,FALSE),"") ->  | C52: =IFERROR(RTD("cqg.rtd", ,"ContractData",B52, "PerCentNetLastTrade",, "T")/100,"") ->  | D52: =IFERROR(RANK($C52,$C$2:C$507)+COUNTIF($C$2:C52,C52)-1,"") ->  | F52: 51 | H52: =IF(G52="","",RTD("cqg.rtd", ,"ContractData",G52, "LongDescription",, "T")) ->  | I52: =IFERROR(RTD("cqg.rtd", ,"ContractData",G52, "PerCentNetLastTrade",, "T")/100,"") ->  | J52: 0 | K52: 51 | L52: =IFERROR(VLOOKUP(A52,Data!$I$2:$J$507,2,FALSE),"") ->  | M52: =IFERROR(RTD("cqg.rtd", ,"ContractData",L52, "PerCentNetLastTrade",, "T")/100,"") ->  | N52: =IFERROR(RANK($M52,$M$2:M$507)+COUNTIF($M$2:M52,M52)-1,"") ->  | P52: 51 | R52: =IF(Q52="","",RTD("cqg.rtd", ,"ContractData",Q52, "LongDescription",, "T")) ->  | S52: =IFERROR(RTD("cqg.rtd", ,"ContractData",Q52, "PerCentNetLastTrade",, "T")/100,"") ->  | T52: 0
A53: 52 | B53: =IFERROR(VLOOKUP(A53,Data!$H$2:$J$507,3,FALSE),"") ->  | C53: =IFERROR(RTD("cqg.rtd", ,"ContractData",B53, "PerCentNetLastTrade",, "T")/100,"") ->  | D53: =IFERROR(RANK($C53,$C$2:C$507)+COUNTIF($C$2:C53,C53)-1,"") ->  | F53: 52 | H53: =IF(G53="","",RTD("cqg.rtd", ,"ContractData",G53, "LongDescription",, "T")) ->  | I53: =IFERROR(RTD("cqg.rtd", ,"ContractData",G53, "PerCentNetLastTrade",, "T")/100,"") ->  | J53: 0 | K53: 52 | L53: =IFERROR(VLOOKUP(A53,Data!$I$2:$J$507,2,FALSE),"") ->  | M53: =IFERROR(RTD("cqg.rtd", ,"ContractData",L53, "PerCentNetLastTrade",, "T")/100,"") ->  | N53: =IFERROR(RANK($M53,$M$2:M$507)+COUNTIF($M$2:M53,M53)-1,"") ->  | P53: 52 | R53: =IF(Q53="","",RTD("cqg.rtd", ,"ContractData",Q53, "LongDescription",, "T")) ->  | S53: =IFERROR(RTD("cqg.rtd", ,"ContractData",Q53, "PerCentNetLastTrade",, "T")/100,"") ->  | T53: 0
A54: 53 | B54: =IFERROR(VLOOKUP(A54,Data!$H$2:$J$507,3,FALSE),"") ->  | C54: =IFERROR(RTD("cqg.rtd", ,"ContractData",B54, "PerCentNetLastTrade",, "T")/100,"") ->  | D54: =IFERROR(RANK($C54,$C$2:C$507)+COUNTIF($C$2:C54,C54)-1,"") ->  | F54: 53 | H54: =IF(G54="","",RTD("cqg.rtd", ,"ContractData",G54, "LongDescription",, "T")) ->  | I54: =IFERROR(RTD("cqg.rtd", ,"ContractData",G54, "PerCentNetLastTrade",, "T")/100,"") ->  | J54: 0 | K54: 53 | L54: =IFERROR(VLOOKUP(A54,Data!$I$2:$J$507,2,FALSE),"") ->  | M54: =IFERROR(RTD("cqg.rtd", ,"ContractData",L54, "PerCentNetLastTrade",, "T")/100,"") ->  | N54: =IFERROR(RANK($M54,$M$2:M$507)+COUNTIF($M$2:M54,M54)-1,"") ->  | P54: 53 | R54: =IF(Q54="","",RTD("cqg.rtd", ,"ContractData",Q54, "LongDescription",, "T")) ->  | S54: =IFERROR(RTD("cqg.rtd", ,"ContractData",Q54, "PerCentNetLastTrade",, "T")/100,"") ->  | T54: 0
A55: 54 | B55: =IFERROR(VLOOKUP(A55,Data!$H$2:$J$507,3,FALSE),"") ->  | C55: =IFERROR(RTD("cqg.rtd", ,"ContractData",B55, "PerCentNetLastTrade",, "T")/100,"") ->  | D55: =IFERROR(RANK($C55,$C$2:C$507)+COUNTIF($C$2:C55,C55)-1,"") ->  | F55: 54 | H55: =IF(G55="","",RTD("cqg.rtd", ,"ContractData",G55, "LongDescription",, "T")) ->  | I55: =IFERROR(RTD("cqg.rtd", ,"ContractData",G55, "PerCentNetLastTrade",, "T")/100,"") ->  | J55: 0 | K55: 54 | L55: =IFERROR(VLOOKUP(A55,Data!$I$2:$J$507,2,FALSE),"") ->  | M55: =IFERROR(RTD("cqg.rtd", ,"ContractData",L55, "PerCentNetLastTrade",, "T")/100,"") ->  | N55: =IFERROR(RANK($M55,$M$2:M$507)+COUNTIF($M$2:M55,M55)-1,"") ->  | P55: 54 | R55: =IF(Q55="","",RTD("cqg.rtd", ,"ContractData",Q55, "LongDescription",, "T")) ->  | S55: =IFERROR(RTD("cqg.rtd", ,"ContractData",Q55, "PerCentNetLastTrade",, "T")/100,"") ->  | T55: 0
A56: 55 | B56: =IFERROR(VLOOKUP(A56,Data!$H$2:$J$507,3,FALSE),"") ->  | C56: =IFERROR(RTD("cqg.rtd", ,"ContractData",B56, "PerCentNetLastTrade",, "T")/100,"") ->  | D56: =IFERROR(RANK($C56,$C$2:C$507)+COUNTIF($C$2:C56,C56)-1,"") ->  | E56: =IF(B56="","",B56) ->  | F56: 55 | H56: =IF(G56="","",RTD("cqg.rtd", ,"ContractData",G56, "LongDescription",, "T")) ->  | I56: =IFERROR(RTD("cqg.rtd", ,"ContractData",G56, "PerCentNetLastTrade",, "T")/100,"") ->  | J56: 0 | K56: 55 | L56: =IFERROR(VLOOKUP(A56,Data!$I$2:$J$507,2,FALSE),"") ->  | M56: =IFERROR(RTD("cqg.rtd", ,"ContractData",L56, "PerCentNetLastTrade",, "T")/100,"") ->  | N56: =IFERROR(RANK($M56,$M$2:M$507)+COUNTIF($M$2:M56,M56)-1,"") ->  | P56: 55 | R56: =IF(Q56="","",RTD("cqg.rtd", ,"ContractData",Q56, "LongDescription",, "T")) ->  | S56: =IFERROR(RTD("cqg.rtd", ,"ContractData",Q56, "PerCentNetLastTrade",, "T")/100,"") ->  | T56: 0
A57: 56 | B57: =IFERROR(VLOOKUP(A57,Data!$H$2:$J$507,3,FALSE),"") ->  | C57: =IFERROR(RTD("cqg.rtd", ,"ContractData",B57, "PerCentNetLastTrade",, "T")/100,"") ->  | D57: =IFERROR(RANK($C57,$C$2:C$507)+COUNTIF($C$2:C57,C57)-1,"") ->  | F57: 56 | H57: =IF(G57="","",RTD("cqg.rtd", ,"ContractData",G57, "LongDescription",, "T")) ->  | I57: =IFERROR(RTD("cqg.rtd", ,"ContractData",G57, "PerCentNetLastTrade",, "T")/100,"") ->  | J57: 0 | K57: 56 | L57: =IFERROR(VLOOKUP(A57,Data!$I$2:$J$507,2,FALSE),"") ->  | M57: =IFERROR(RTD("cqg.rtd", ,"ContractData",L57, "PerCentNetLastTrade",, "T")/100,"") ->  | N57: =IFERROR(RANK($M57,$M$2:M$507)+COUNTIF($M$2:M57,M57)-1,"") ->  | P57: 56 | R57: =IF(Q57="","",RTD("cqg.rtd", ,"ContractData",Q57, "LongDescription",, "T")) ->  | S57: =IFERROR(RTD("cqg.rtd", ,"ContractData",Q57, "PerCentNetLastTrade",, "T")/100,"") ->  | T57: 0
A58: 57 | B58: =IFERROR(VLOOKUP(A58,Data!$H$2:$J$507,3,FALSE),"") ->  | C58: =IFERROR(RTD("cqg.rtd", ,"ContractData",B58, "PerCentNetLastTrade",, "T")/100,"") ->  | D58: =IFERROR(RANK($C58,$C$2:C$507)+COUNTIF($C$2:C58,C58)-1,"") ->  | F58: 57 | H58: =IF(G58="","",RTD("cqg.rtd", ,"ContractData",G58, "LongDescription",, "T")) ->  | I58: =IFERROR(RTD("cqg.rtd", ,"ContractData",G58, "PerCentNetLastTrade",, "T")/100,"") ->  | J58: 0 | K58: 57 | L58: =IFERROR(VLOOKUP(A58,Data!$I$2:$J$507,2,FALSE),"") ->  | M58: =IFERROR(RTD("cqg.rtd", ,"ContractData",L58, "PerCentNetLastTrade",, "T")/100,"") ->  | N58: =IFERROR(RANK($M58,$M$2:M$507)+COUNTIF($M$2:M58,M58)-1,"") ->  | P58: 57 | R58: =IF(Q58="","",RTD("cqg.rtd", ,"ContractData",Q58, "LongDescription",, "T")) ->  | S58: =IFERROR(RTD("cqg.rtd", ,"ContractData",Q58, "PerCentNetLastTrade",, "T")/100,"") ->  | T58: 0
A59: 58 | B59: =IFERROR(VLOOKUP(A59,Data!$H$2:$J$507,3,FALSE),"") ->  | C59: =IFERROR(RTD("cqg.rtd", ,"ContractData",B59, "PerCentNetLastTrade",, "T")/100,"") ->  | D59: =IFERROR(RANK($C59,$C$2:C$507)+COUNTIF($C$2:C59,C59)-1,"") ->  | F59: 58 | H59: =IF(G59="","",RTD("cqg.rtd", ,"ContractData",G59, "LongDescription",, "T")) ->  | I59: =IFERROR(RTD("cqg.rtd", ,"ContractData",G59, "PerCentNetLastTrade",, "T")/100,"") ->  | J59: 0 | K59: 58 | L59: =IFERROR(VLOOKUP(A59,Data!$I$2:$J$507,2,FALSE),"") ->  | M59: =IFERROR(RTD("cqg.rtd", ,"ContractData",L59, "PerCentNetLastTrade",, "T")/100,"") ->  | N59: =IFERROR(RANK($M59,$M$2:M$507)+COUNTIF($M$2:M59,M59)-1,"") ->  | P59: 58 | R59: =IF(Q59="","",RTD("cqg.rtd", ,"ContractData",Q59, "LongDescription",, "T")) ->  | S59: =IFERROR(RTD("cqg.rtd", ,"ContractData",Q59, "PerCentNetLastTrade",, "T")/100,"") ->  | T59: 0
A60: 59 | B60: =IFERROR(VLOOKUP(A60,Data!$H$2:$J$507,3,FALSE),"") ->  | C60: =IFERROR(RTD("cqg.rtd", ,"ContractData",B60, "PerCentNetLastTrade",, "T")/100,"") ->  | D60: =IFERROR(RANK($C60,$C$2:C$507)+COUNTIF($C$2:C60,C60)-1,"") ->  | F60: 59 | H60: =IF(G60="","",RTD("cqg.rtd", ,"ContractData",G60, "LongDescription",, "T")) ->  | I60: =IFERROR(RTD("cqg.rtd", ,"ContractData",G60, "PerCentNetLastTrade",, "T")/100,"") ->  | J60: 0 | K60: 59 | L60: =IFERROR(VLOOKUP(A60,Data!$I$2:$J$507,2,FALSE),"") ->  | M60: =IFERROR(RTD("cqg.rtd", ,"ContractData",L60, "PerCentNetLastTrade",, "T")/100,"") ->  | N60: =IFERROR(RANK($M60,$M$2:M$507)+COUNTIF($M$2:M60,M60)-1,"") ->  | P60: 59 | R60: =IF(Q60="","",RTD("cqg.rtd", ,"ContractData",Q60, "LongDescription",, "T")) ->  | S60: =IFERROR(RTD("cqg.rtd", ,"ContractData",Q60, "PerCentNetLastTrade",, "T")/100,"") ->  | T60: 0
A61: 60 | B61: =IFERROR(VLOOKUP(A61,Data!$H$2:$J$507,3,FALSE),"") ->  | C61: =IFERROR(RTD("cqg.rtd", ,"ContractData",B61, "PerCentNetLastTrade",, "T")/100,"") ->  | D61: =IFERROR(RANK($C61,$C$2:C$507)+COUNTIF($C$2:C61,C61)-1,"") ->  | F61: 60 | H61: =IF(G61="","",RTD("cqg.rtd", ,"ContractData",G61, "LongDescription",, "T")) ->  | I61: =IFERROR(RTD("cqg.rtd", ,"ContractData",G61, "PerCentNetLastTrade",, "T")/100,"") ->  | J61: 0 | K61: 60 | L61: =IFERROR(VLOOKUP(A61,Data!$I$2:$J$507,2,FALSE),"") ->  | M61: =IFERROR(RTD("cqg.rtd", ,"ContractData",L61, "PerCentNetLastTrade",, "T")/100,"") ->  | N61: =IFERROR(RANK($M61,$M$2:M$507)+COUNTIF($M$2:M61,M61)-1,"") ->  | P61: 60 | R61: =IF(Q61="","",RTD("cqg.rtd", ,"ContractData",Q61, "LongDescription",, "T")) ->  | S61: =IFERROR(RTD("cqg.rtd", ,"ContractData",Q61, "PerCentNetLastTrade",, "T")/100,"") ->  | T61: 0
A62: 61 | B62: =IFERROR(VLOOKUP(A62,Data!$H$2:$J$507,3,FALSE),"") ->  | C62: =IFERROR(RTD("cqg.rtd", ,"ContractData",B62, "PerCentNetLastTrade",, "T")/100,"") ->  | D62: =IFERROR(RANK($C62,$C$2:C$507)+COUNTIF($C$2:C62,C62)-1,"") ->  | F62: 61 | H62: =IF(G62="","",RTD("cqg.rtd", ,"ContractData",G62, "LongDescription",, "T")) ->  | I62: =IFERROR(RTD("cqg.rtd", ,"ContractData",G62, "PerCentNetLastTrade",, "T")/100,"") ->  | J62: 0 | K62: 61 | L62: =IFERROR(VLOOKUP(A62,Data!$I$2:$J$507,2,FALSE),"") ->  | M62: =IFERROR(RTD("cqg.rtd", ,"ContractData",L62, "PerCentNetLastTrade",, "T")/100,"") ->  | N62: =IFERROR(RANK($M62,$M$2:M$507)+COUNTIF($M$2:M62,M62)-1,"") ->  | P62: 61 | R62: =IF(Q62="","",RTD("cqg.rtd", ,"ContractData",Q62, "LongDescription",, "T")) ->  | S62: =IFERROR(RTD("cqg.rtd", ,"ContractData",Q62, "PerCentNetLastTrade",, "T")/100,"") ->  | T62: 0
A63: 62 | B63: =IFERROR(VLOOKUP(A63,Data!$H$2:$J$507,3,FALSE),"") ->  | C63: =IFERROR(RTD("cqg.rtd", ,"ContractData",B63, "PerCentNetLastTrade",, "T")/100,"") ->  | D63: =IFERROR(RANK($C63,$C$2:C$507)+COUNTIF($C$2:C63,C63)-1,"") ->  | F63: 62 | H63: =IF(G63="","",RTD("cqg.rtd", ,"ContractData",G63, "LongDescription",, "T")) ->  | I63: =IFERROR(RTD("cqg.rtd", ,"ContractData",G63, "PerCentNetLastTrade",, "T")/100,"") ->  | J63: 0 | K63: 62 | L63: =IFERROR(VLOOKUP(A63,Data!$I$2:$J$507,2,FALSE),"") ->  | M63: =IFERROR(RTD("cqg.rtd", ,"ContractData",L63, "PerCentNetLastTrade",, "T")/100,"") ->  | N63: =IFERROR(RANK($M63,$M$2:M$507)+COUNTIF($M$2:M63,M63)-1,"") ->  | P63: 62 | R63: =IF(Q63="","",RTD("cqg.rtd", ,"ContractData",Q63, "LongDescription",, "T")) ->  | S63: =IFERROR(RTD("cqg.rtd", ,"ContractData",Q63, "PerCentNetLastTrade",, "T")/100,"") ->  | T63: 0
A64: 63 | B64: =IFERROR(VLOOKUP(A64,Data!$H$2:$J$507,3,FALSE),"") ->  | C64: =IFERROR(RTD("cqg.rtd", ,"ContractData",B64, "PerCentNetLastTrade",, "T")/100,"") ->  | D64: =IFERROR(RANK($C64,$C$2:C$507)+COUNTIF($C$2:C64,C64)-1,"") ->  | F64: 63 | H64: =IF(G64="","",RTD("cqg.rtd", ,"ContractData",G64, "LongDescription",, "T")) ->  | I64: =IFERROR(RTD("cqg.rtd", ,"ContractData",G64, "PerCentNetLastTrade",, "T")/100,"") ->  | J64: 0 | K64: 63 | L64: =IFERROR(VLOOKUP(A64,Data!$I$2:$J$507,2,FALSE),"") ->  | M64: =IFERROR(RTD("cqg.rtd", ,"ContractData",L64, "PerCentNetLastTrade",, "T")/100,"") ->  | N64: =IFERROR(RANK($M64,$M$2:M$507)+COUNTIF($M$2:M64,M64)-1,"") ->  | P64: 63 | R64: =IF(Q64="","",RTD("cqg.rtd", ,"ContractData",Q64, "LongDescription",, "T")) ->  | S64: =IFERROR(RTD("cqg.rtd", ,"ContractData",Q64, "PerCentNetLastTrade",, "T")/100,"") ->  | T64: 0
A65: 64 | B65: =IFERROR(VLOOKUP(A65,Data!$H$2:$J$507,3,FALSE),"") ->  | C65: =IFERROR(RTD("cqg.rtd", ,"ContractData",B65, "PerCentNetLastTrade",, "T")/100,"") ->  | D65: =IFERROR(RANK($C65,$C$2:C$507)+COUNTIF($C$2:C65,C65)-1,"") ->  | F65: 64 | H65: =IF(G65="","",RTD("cqg.rtd", ,"ContractData",G65, "LongDescription",, "T")) ->  | I65: =IFERROR(RTD("cqg.rtd", ,"ContractData",G65, "PerCentNetLastTrade",, "T")/100,"") ->  | J65: 0 | K65: 64 | L65: =IFERROR(VLOOKUP(A65,Data!$I$2:$J$507,2,FALSE),"") ->  | M65: =IFERROR(RTD("cqg.rtd", ,"ContractData",L65, "PerCentNetLastTrade",, "T")/100,"") ->  | N65: =IFERROR(RANK($M65,$M$2:M$507)+COUNTIF($M$2:M65,M65)-1,"") ->  | P65: 64 | R65: =IF(Q65="","",RTD("cqg.rtd", ,"ContractData",Q65, "LongDescription",, "T")) ->  | S65: =IFERROR(RTD("cqg.rtd", ,"ContractData",Q65, "PerCentNetLastTrade",, "T")/100,"") ->  | T65: 0
A66: 65 | B66: =IFERROR(VLOOKUP(A66,Data!$H$2:$J$507,3,FALSE),"") ->  | C66: =IFERROR(RTD("cqg.rtd", ,"ContractData",B66, "PerCentNetLastTrade",, "T")/100,"") ->  | D66: =IFERROR(RANK($C66,$C$2:C$507)+COUNTIF($C$2:C66,C66)-1,"") ->  | F66: 65 | H66: =IF(G66="","",RTD("cqg.rtd", ,"ContractData",G66, "LongDescription",, "T")) ->  | I66: =IFERROR(RTD("cqg.rtd", ,"ContractData",G66, "PerCentNetLastTrade",, "T")/100,"") ->  | J66: 0 | K66: 65 | L66: =IFERROR(VLOOKUP(A66,Data!$I$2:$J$507,2,FALSE),"") ->  | M66: =IFERROR(RTD("cqg.rtd", ,"ContractData",L66, "PerCentNetLastTrade",, "T")/100,"") ->  | N66: =IFERROR(RANK($M66,$M$2:M$507)+COUNTIF($M$2:M66,M66)-1,"") ->  | P66: 65 | R66: =IF(Q66="","",RTD("cqg.rtd", ,"ContractData",Q66, "LongDescription",, "T")) ->  | S66: =IFERROR(RTD("cqg.rtd", ,"ContractData",Q66, "PerCentNetLastTrade",, "T")/100,"") ->  | T66: 0
A67: 66 | B67: =IFERROR(VLOOKUP(A67,Data!$H$2:$J$507,3,FALSE),"") ->  | C67: =IFERROR(RTD("cqg.rtd", ,"ContractData",B67, "PerCentNetLastTrade",, "T")/100,"") ->  | D67: =IFERROR(RANK($C67,$C$2:C$507)+COUNTIF($C$2:C67,C67)-1,"") ->  | F67: 66 | G67: =IFERROR(VLOOKUP(F67,$D$2:$E$507,2,FALSE),"") ->  | H67: =IF(G67="","",RTD("cqg.rtd", ,"ContractData",G67, "LongDescription",, "T")) ->  | I67: =IFERROR(RTD("cqg.rtd", ,"ContractData",G67, "PerCentNetLastTrade",, "T")/100,"") ->  | J67: 0 | K67: 66 | L67: =IFERROR(VLOOKUP(A67,Data!$I$2:$J$507,2,FALSE),"") ->  | M67: =IFERROR(RTD("cqg.rtd", ,"ContractData",L67, "PerCentNetLastTrade",, "T")/100,"") ->  | N67: =IFERROR(RANK($M67,$M$2:M$507)+COUNTIF($M$2:M67,M67)-1,"") ->  | O67: =IF(L67="","",L67) ->  | P67: 66 | Q67: =IFERROR(VLOOKUP(P67,$N$2:$O$507,2,FALSE),"") ->  | R67: =IF(Q67="","",RTD("cqg.rtd", ,"ContractData",Q67, "LongDescription",, "T")) ->  | S67: =IFERROR(RTD("cqg.rtd", ,"ContractData",Q67, "PerCentNetLastTrade",, "T")/100,"") ->  | T67: =IF(S67<>"",1,0) -> 0
A68: =A67+1 -> 67 | B68: =IFERROR(VLOOKUP(A68,Data!$H$2:$J$507,3,FALSE),"") ->  | C68: =IFERROR(RTD("cqg.rtd", ,"ContractData",B68, "PerCentNetLastTrade",, "T")/100,"") ->  | D68: =IFERROR(RANK($C68,$C$2:C$507)+COUNTIF($C$2:C68,C68)-1,"") ->  | F68: =F67+1 -> 67 | H68: =IF(G68="","",RTD("cqg.rtd", ,"ContractData",G68, "LongDescription",, "T")) ->  | I68: =IFERROR(RTD("cqg.rtd", ,"ContractData",G68, "PerCentNetLastTrade",, "T")/100,"") ->  | J68: 0 | K68: =K67+1 -> 67 | L68: =IFERROR(VLOOKUP(A68,Data!$I$2:$J$507,2,FALSE),"") ->  | M68: =IFERROR(RTD("cqg.rtd", ,"ContractData",L68, "PerCentNetLastTrade",, "T")/100,"") ->  | N68: =IFERROR(RANK($M68,$M$2:M$507)+COUNTIF($M$2:M68,M68)-1,"") ->  | P68: =P67+1 -> 67 | R68: =IF(Q68="","",RTD("cqg.rtd", ,"ContractData",Q68, "LongDescription",, "T")) ->  | S68: =IFERROR(RTD("cqg.rtd", ,"ContractData",Q68, "PerCentNetLastTrade",, "T")/100,"") ->  | T68: 0
A69: 68 | B69: =IFERROR(VLOOKUP(A69,Data!$H$2:$J$507,3,FALSE),"") ->  | C69: =IFERROR(RTD("cqg.rtd", ,"ContractData",B69, "PerCentNetLastTrade",, "T")/100,"") ->  | D69: =IFERROR(RANK($C69,$C$2:C$507)+COUNTIF($C$2:C69,C69)-1,"") ->  | F69: 68 | H69: =IF(G69="","",RTD("cqg.rtd", ,"ContractData",G69, "LongDescription",, "T")) ->  | I69: =IFERROR(RTD("cqg.rtd", ,"ContractData",G69, "PerCentNetLastTrade",, "T")/100,"") ->  | J69: 0 | K69: 68 | L69: =IFERROR(VLOOKUP(A69,Data!$I$2:$J$507,2,FALSE),"") ->  | M69: =IFERROR(RTD("cqg.rtd", ,"ContractData",L69, "PerCentNetLastTrade",, "T")/100,"") ->  | N69: =IFERROR(RANK($M69,$M$2:M$507)+COUNTIF($M$2:M69,M69)-1,"") ->  | P69: 68 | R69: =IF(Q69="","",RTD("cqg.rtd", ,"ContractData",Q69, "LongDescription",, "T")) ->  | S69: =IFERROR(RTD("cqg.rtd", ,"ContractData",Q69, "PerCentNetLastTrade",, "T")/100,"") ->  | T69: 0
A70: 69 | B70: =IFERROR(VLOOKUP(A70,Data!$H$2:$J$507,3,FALSE),"") ->  | C70: =IFERROR(RTD("cqg.rtd", ,"ContractData",B70, "PerCentNetLastTrade",, "T")/100,"") ->  | D70: =IFERROR(RANK($C70,$C$2:C$507)+COUNTIF($C$2:C70,C70)-1,"") ->  | F70: 69 | H70: =IF(G70="","",RTD("cqg.rtd", ,"ContractData",G70, "LongDescription",, "T")) ->  | I70: =IFERROR(RTD("cqg.rtd", ,"ContractData",G70, "PerCentNetLastTrade",, "T")/100,"") ->  | J70: 0 | K70: 69 | L70: =IFERROR(VLOOKUP(A70,Data!$I$2:$J$507,2,FALSE),"") ->  | M70: =IFERROR(RTD("cqg.rtd", ,"ContractData",L70, "PerCentNetLastTrade",, "T")/100,"") ->  | N70: =IFERROR(RANK($M70,$M$2:M$507)+COUNTIF($M$2:M70,M70)-1,"") ->  | P70: 69 | R70: =IF(Q70="","",RTD("cqg.rtd", ,"ContractData",Q70, "LongDescription",, "T")) ->  | S70: =IFERROR(RTD("cqg.rtd", ,"ContractData",Q70, "PerCentNetLastTrade",, "T")/100,"") ->  | T70: 0
A71: 70 | B71: =IFERROR(VLOOKUP(A71,Data!$H$2:$J$507,3,FALSE),"") ->  | C71: =IFERROR(RTD("cqg.rtd", ,"ContractData",B71, "PerCentNetLastTrade",, "T")/100,"") ->  | D71: =IFERROR(RANK($C71,$C$2:C$507)+COUNTIF($C$2:C71,C71)-1,"") ->  | F71: 70 | H71: =IF(G71="","",RTD("cqg.rtd", ,"ContractData",G71, "LongDescription",, "T")) ->  | I71: =IFERROR(RTD("cqg.rtd", ,"ContractData",G71, "PerCentNetLastTrade",, "T")/100,"") ->  | J71: 0 | K71: 70 | L71: =IFERROR(VLOOKUP(A71,Data!$I$2:$J$507,2,FALSE),"") ->  | M71: =IFERROR(RTD("cqg.rtd", ,"ContractData",L71, "PerCentNetLastTrade",, "T")/100,"") ->  | N71: =IFERROR(RANK($M71,$M$2:M$507)+COUNTIF($M$2:M71,M71)-1,"") ->  | P71: 70 | R71: =IF(Q71="","",RTD("cqg.rtd", ,"ContractData",Q71, "LongDescription",, "T")) ->  | S71: =IFERROR(RTD("cqg.rtd", ,"ContractData",Q71, "PerCentNetLastTrade",, "T")/100,"") ->  | T71: 0
A72: 71 | B72: =IFERROR(VLOOKUP(A72,Data!$H$2:$J$507,3,FALSE),"") ->  | C72: =IFERROR(RTD("cqg.rtd", ,"ContractData",B72, "PerCentNetLastTrade",, "T")/100,"") ->  | D72: =IFERROR(RANK($C72,$C$2:C$507)+COUNTIF($C$2:C72,C72)-1,"") ->  | F72: 71 | H72: =IF(G72="","",RTD("cqg.rtd", ,"ContractData",G72, "LongDescription",, "T")) ->  | I72: =IFERROR(RTD("cqg.rtd", ,"ContractData",G72, "PerCentNetLastTrade",, "T")/100,"") ->  | J72: 0 | K72: 71 | L72: =IFERROR(VLOOKUP(A72,Data!$I$2:$J$507,2,FALSE),"") ->  | M72: =IFERROR(RTD("cqg.rtd", ,"ContractData",L72, "PerCentNetLastTrade",, "T")/100,"") ->  | N72: =IFERROR(RANK($M72,$M$2:M$507)+COUNTIF($M$2:M72,M72)-1,"") ->  | P72: 71 | R72: =IF(Q72="","",RTD("cqg.rtd", ,"ContractData",Q72, "LongDescription",, "T")) ->  | S72: =IFERROR(RTD("cqg.rtd", ,"ContractData",Q72, "PerCentNetLastTrade",, "T")/100,"") ->  | T72: 0
A73: 72 | B73: =IFERROR(VLOOKUP(A73,Data!$H$2:$J$507,3,FALSE),"") ->  | C73: =IFERROR(RTD("cqg.rtd", ,"ContractData",B73, "PerCentNetLastTrade",, "T")/100,"") ->  | D73: =IFERROR(RANK($C73,$C$2:C$507)+COUNTIF($C$2:C73,C73)-1,"") ->  | F73: 72 | H73: =IF(G73="","",RTD("cqg.rtd", ,"ContractData",G73, "LongDescription",, "T")) ->  | I73: =IFERROR(RTD("cqg.rtd", ,"ContractData",G73, "PerCentNetLastTrade",, "T")/100,"") ->  | J73: 0 | K73: 72 | L73: =IFERROR(VLOOKUP(A73,Data!$I$2:$J$507,2,FALSE),"") ->  | M73: =IFERROR(RTD("cqg.rtd", ,"ContractData",L73, "PerCentNetLastTrade",, "T")/100,"") ->  | N73: =IFERROR(RANK($M73,$M$2:M$507)+COUNTIF($M$2:M73,M73)-1,"") ->  | P73: 72 | R73: =IF(Q73="","",RTD("cqg.rtd", ,"ContractData",Q73, "LongDescription",, "T")) ->  | S73: =IFERROR(RTD("cqg.rtd", ,"ContractData",Q73, "PerCentNetLastTrade",, "T")/100,"") ->  | T73: 0
A74: 73 | B74: =IFERROR(VLOOKUP(A74,Data!$H$2:$J$507,3,FALSE),"") ->  | C74: =IFERROR(RTD("cqg.rtd", ,"ContractData",B74, "PerCentNetLastTrade",, "T")/100,"") ->  | D74: =IFERROR(RANK($C74,$C$2:C$507)+COUNTIF($C$2:C74,C74)-1,"") ->  | F74: 73 | H74: =IF(G74="","",RTD("cqg.rtd", ,"ContractData",G74, "LongDescription",, "T")) ->  | I74: =IFERROR(RTD("cqg.rtd", ,"ContractData",G74, "PerCentNetLastTrade",, "T")/100,"") ->  | J74: 0 | K74: 73 | L74: =IFERROR(VLOOKUP(A74,Data!$I$2:$J$507,2,FALSE),"") ->  | M74: =IFERROR(RTD("cqg.rtd", ,"ContractData",L74, "PerCentNetLastTrade",, "T")/100,"") ->  | N74: =IFERROR(RANK($M74,$M$2:M$507)+COUNTIF($M$2:M74,M74)-1,"") ->  | P74: 73 | R74: =IF(Q74="","",RTD("cqg.rtd", ,"ContractData",Q74, "LongDescription",, "T")) ->  | S74: =IFERROR(RTD("cqg.rtd", ,"ContractData",Q74, "PerCentNetLastTrade",, "T")/100,"") ->  | T74: 0
A75: 74 | B75: =IFERROR(VLOOKUP(A75,Data!$H$2:$J$507,3,FALSE),"") ->  | C75: =IFERROR(RTD("cqg.rtd", ,"ContractData",B75, "PerCentNetLastTrade",, "T")/100,"") ->  | D75: =IFERROR(RANK($C75,$C$2:C$507)+COUNTIF($C$2:C75,C75)-1,"") ->  | F75: 74 | H75: =IF(G75="","",RTD("cqg.rtd", ,"ContractData",G75, "LongDescription",, "T")) ->  | I75: =IFERROR(RTD("cqg.rtd", ,"ContractData",G75, "PerCentNetLastTrade",, "T")/100,"") ->  | J75: 0 | K75: 74 | L75: =IFERROR(VLOOKUP(A75,Data!$I$2:$J$507,2,FALSE),"") ->  | M75: =IFERROR(RTD("cqg.rtd", ,"ContractData",L75, "PerCentNetLastTrade",, "T")/100,"") ->  | N75: =IFERROR(RANK($M75,$M$2:M$507)+COUNTIF($M$2:M75,M75)-1,"") ->  | P75: 74 | R75: =IF(Q75="","",RTD("cqg.rtd", ,"ContractData",Q75, "LongDescription",, "T")) ->  | S75: =IFERROR(RTD("cqg.rtd", ,"ContractData",Q75, "PerCentNetLastTrade",, "T")/100,"") ->  | T75: 0
A76: 75 | B76: =IFERROR(VLOOKUP(A76,Data!$H$2:$J$507,3,FALSE),"") ->  | C76: =IFERROR(RTD("cqg.rtd", ,"ContractData",B76, "PerCentNetLastTrade",, "T")/100,"") ->  | D76: =IFERROR(RANK($C76,$C$2:C$507)+COUNTIF($C$2:C76,C76)-1,"") ->  | F76: 75 | H76: =IF(G76="","",RTD("cqg.rtd", ,"ContractData",G76, "LongDescription",, "T")) ->  | I76: =IFERROR(RTD("cqg.rtd", ,"ContractData",G76, "PerCentNetLastTrade",, "T")/100,"") ->  | J76: 0 | K76: 75 | L76: =IFERROR(VLOOKUP(A76,Data!$I$2:$J$507,2,FALSE),"") ->  | M76: =IFERROR(RTD("cqg.rtd", ,"ContractData",L76, "PerCentNetLastTrade",, "T")/100,"") ->  | N76: =IFERROR(RANK($M76,$M$2:M$507)+COUNTIF($M$2:M76,M76)-1,"") ->  | P76: 75 | R76: =IF(Q76="","",RTD("cqg.rtd", ,"ContractData",Q76, "LongDescription",, "T")) ->  | S76: =IFERROR(RTD("cqg.rtd", ,"ContractData",Q76, "PerCentNetLastTrade",, "T")/100,"") ->  | T76: 0
A77: 76 | B77: =IFERROR(VLOOKUP(A77,Data!$H$2:$J$507,3,FALSE),"") ->  | C77: =IFERROR(RTD("cqg.rtd", ,"ContractData",B77, "PerCentNetLastTrade",, "T")/100,"") ->  | D77: =IFERROR(RANK($C77,$C$2:C$507)+COUNTIF($C$2:C77,C77)-1,"") ->  | F77: 76 | H77: =IF(G77="","",RTD("cqg.rtd", ,"ContractData",G77, "LongDescription",, "T")) ->  | I77: =IFERROR(RTD("cqg.rtd", ,"ContractData",G77, "PerCentNetLastTrade",, "T")/100,"") ->  | J77: 0 | K77: 76 | L77: =IFERROR(VLOOKUP(A77,Data!$I$2:$J$507,2,FALSE),"") ->  | M77: =IFERROR(RTD("cqg.rtd", ,"ContractData",L77, "PerCentNetLastTrade",, "T")/100,"") ->  | N77: =IFERROR(RANK($M77,$M$2:M$507)+COUNTIF($M$2:M77,M77)-1,"") ->  | P77: 76 | R77: =IF(Q77="","",RTD("cqg.rtd", ,"ContractData",Q77, "LongDescription",, "T")) ->  | S77: =IFERROR(RTD("cqg.rtd", ,"ContractData",Q77, "PerCentNetLastTrade",, "T")/100,"") ->  | T77: 0
A78: 77 | B78: =IFERROR(VLOOKUP(A78,Data!$H$2:$J$507,3,FALSE),"") ->  | C78: =IFERROR(RTD("cqg.rtd", ,"ContractData",B78, "PerCentNetLastTrade",, "T")/100,"") ->  | D78: =IFERROR(RANK($C78,$C$2:C$507)+COUNTIF($C$2:C78,C78)-1,"") ->  | F78: 77 | H78: =IF(G78="","",RTD("cqg.rtd", ,"ContractData",G78, "LongDescription",, "T")) ->  | I78: =IFERROR(RTD("cqg.rtd", ,"ContractData",G78, "PerCentNetLastTrade",, "T")/100,"") ->  | J78: 0 | K78: 77 | L78: =IFERROR(VLOOKUP(A78,Data!$I$2:$J$507,2,FALSE),"") ->  | M78: =IFERROR(RTD("cqg.rtd", ,"ContractData",L78, "PerCentNetLastTrade",, "T")/100,"") ->  | N78: =IFERROR(RANK($M78,$M$2:M$507)+COUNTIF($M$2:M78,M78)-1,"") ->  | P78: 77 | R78: =IF(Q78="","",RTD("cqg.rtd", ,"ContractData",Q78, "LongDescription",, "T")) ->  | S78: =IFERROR(RTD("cqg.rtd", ,"ContractData",Q78, "PerCentNetLastTrade",, "T")/100,"") ->  | T78: 0
A79: 78 | B79: =IFERROR(VLOOKUP(A79,Data!$H$2:$J$507,3,FALSE),"") ->  | C79: =IFERROR(RTD("cqg.rtd", ,"ContractData",B79, "PerCentNetLastTrade",, "T")/100,"") ->  | D79: =IFERROR(RANK($C79,$C$2:C$507)+COUNTIF($C$2:C79,C79)-1,"") ->  | F79: 78 | H79: =IF(G79="","",RTD("cqg.rtd", ,"ContractData",G79, "LongDescription",, "T")) ->  | I79: =IFERROR(RTD("cqg.rtd", ,"ContractData",G79, "PerCentNetLastTrade",, "T")/100,"") ->  | J79: 0 | K79: 78 | L79: =IFERROR(VLOOKUP(A79,Data!$I$2:$J$507,2,FALSE),"") ->  | M79: =IFERROR(RTD("cqg.rtd", ,"ContractData",L79, "PerCentNetLastTrade",, "T")/100,"") ->  | N79: =IFERROR(RANK($M79,$M$2:M$507)+COUNTIF($M$2:M79,M79)-1,"") ->  | P79: 78 | R79: =IF(Q79="","",RTD("cqg.rtd", ,"ContractData",Q79, "LongDescription",, "T")) ->  | S79: =IFERROR(RTD("cqg.rtd", ,"ContractData",Q79, "PerCentNetLastTrade",, "T")/100,"") ->  | T79: 0
A80: 79 | B80: =IFERROR(VLOOKUP(A80,Data!$H$2:$J$507,3,FALSE),"") ->  | C80: =IFERROR(RTD("cqg.rtd", ,"ContractData",B80, "PerCentNetLastTrade",, "T")/100,"") ->  | D80: =IFERROR(RANK($C80,$C$2:C$507)+COUNTIF($C$2:C80,C80)-1,"") ->  | F80: 79 | H80: =IF(G80="","",RTD("cqg.rtd", ,"ContractData",G80, "LongDescription",, "T")) ->  | I80: =IFERROR(RTD("cqg.rtd", ,"ContractData",G80, "PerCentNetLastTrade",, "T")/100,"") ->  | J80: 0 | K80: 79 | L80: =IFERROR(VLOOKUP(A80,Data!$I$2:$J$507,2,FALSE),"") ->  | M80: =IFERROR(RTD("cqg.rtd", ,"ContractData",L80, "PerCentNetLastTrade",, "T")/100,"") ->  | N80: =IFERROR(RANK($M80,$M$2:M$507)+COUNTIF($M$2:M80,M80)-1,"") ->  | P80: 79 | R80: =IF(Q80="","",RTD("cqg.rtd", ,"ContractData",Q80, "LongDescription",, "T")) ->  | S80: =IFERROR(RTD("cqg.rtd", ,"ContractData",Q80, "PerCentNetLastTrade",, "T")/100,"") ->  | T80: 0
A81: 80 | B81: =IFERROR(VLOOKUP(A81,Data!$H$2:$J$507,3,FALSE),"") ->  | C81: =IFERROR(RTD("cqg.rtd", ,"ContractData",B81, "PerCentNetLastTrade",, "T")/100,"") ->  | D81: =IFERROR(RANK($C81,$C$2:C$507)+COUNTIF($C$2:C81,C81)-1,"") ->  | F81: 80 | H81: =IF(G81="","",RTD("cqg.rtd", ,"ContractData",G81, "LongDescription",, "T")) ->  | I81: =IFERROR(RTD("cqg.rtd", ,"ContractData",G81, "PerCentNetLastTrade",, "T")/100,"") ->  | J81: 0 | K81: 80 | L81: =IFERROR(VLOOKUP(A81,Data!$I$2:$J$507,2,FALSE),"") ->  | M81: =IFERROR(RTD("cqg.rtd", ,"ContractData",L81, "PerCentNetLastTrade",, "T")/100,"") ->  | N81: =IFERROR(RANK($M81,$M$2:M$507)+COUNTIF($M$2:M81,M81)-1,"") ->  | P81: 80 | R81: =IF(Q81="","",RTD("cqg.rtd", ,"ContractData",Q81, "LongDescription",, "T")) ->  | S81: =IFERROR(RTD("cqg.rtd", ,"ContractData",Q81, "PerCentNetLastTrade",, "T")/100,"") ->  | T81: 0
A82: 81 | B82: =IFERROR(VLOOKUP(A82,Data!$H$2:$J$507,3,FALSE),"") ->  | C82: =IFERROR(RTD("cqg.rtd", ,"ContractData",B82, "PerCentNetLastTrade",, "T")/100,"") ->  | D82: =IFERROR(RANK($C82,$C$2:C$507)+COUNTIF($C$2:C82,C82)-1,"") ->  | F82: 81 | H82: =IF(G82="","",RTD("cqg.rtd", ,"ContractData",G82, "LongDescription",, "T")) ->  | I82: =IFERROR(RTD("cqg.rtd", ,"ContractData",G82, "PerCentNetLastTrade",, "T")/100,"") ->  | J82: 0 | K82: 81 | L82: =IFERROR(VLOOKUP(A82,Data!$I$2:$J$507,2,FALSE),"") ->  | M82: =IFERROR(RTD("cqg.rtd", ,"ContractData",L82, "PerCentNetLastTrade",, "T")/100,"") ->  | N82: =IFERROR(RANK($M82,$M$2:M$507)+COUNTIF($M$2:M82,M82)-1,"") ->  | P82: 81 | R82: =IF(Q82="","",RTD("cqg.rtd", ,"ContractData",Q82, "LongDescription",, "T")) ->  | S82: =IFERROR(RTD("cqg.rtd", ,"ContractData",Q82, "PerCentNetLastTrade",, "T")/100,"") ->  | T82: 0
A83: 82 | B83: =IFERROR(VLOOKUP(A83,Data!$H$2:$J$507,3,FALSE),"") ->  | C83: =IFERROR(RTD("cqg.rtd", ,"ContractData",B83, "PerCentNetLastTrade",, "T")/100,"") ->  | D83: =IFERROR(RANK($C83,$C$2:C$507)+COUNTIF($C$2:C83,C83)-1,"") ->  | F83: 82 | H83: =IF(G83="","",RTD("cqg.rtd", ,"ContractData",G83, "LongDescription",, "T")) ->  | I83: =IFERROR(RTD("cqg.rtd", ,"ContractData",G83, "PerCentNetLastTrade",, "T")/100,"") ->  | J83: 0 | K83: 82 | L83: =IFERROR(VLOOKUP(A83,Data!$I$2:$J$507,2,FALSE),"") ->  | M83: =IFERROR(RTD("cqg.rtd", ,"ContractData",L83, "PerCentNetLastTrade",, "T")/100,"") ->  | N83: =IFERROR(RANK($M83,$M$2:M$507)+COUNTIF($M$2:M83,M83)-1,"") ->  | P83: 82 | R83: =IF(Q83="","",RTD("cqg.rtd", ,"ContractData",Q83, "LongDescription",, "T")) ->  | S83: =IFERROR(RTD("cqg.rtd", ,"ContractData",Q83, "PerCentNetLastTrade",, "T")/100,"") ->  | T83: 0
A84: 83 | B84: =IFERROR(VLOOKUP(A84,Data!$H$2:$J$507,3,FALSE),"") ->  | C84: =IFERROR(RTD("cqg.rtd", ,"ContractData",B84, "PerCentNetLastTrade",, "T")/100,"") ->  | D84: =IFERROR(RANK($C84,$C$2:C$507)+COUNTIF($C$2:C84,C84)-1,"") ->  | F84: 83 | H84: =IF(G84="","",RTD("cqg.rtd", ,"ContractData",G84, "LongDescription",, "T")) ->  | I84: =IFERROR(RTD("cqg.rtd", ,"ContractData",G84, "PerCentNetLastTrade",, "T")/100,"") ->  | J84: 0 | K84: 83 | L84: =IFERROR(VLOOKUP(A84,Data!$I$2:$J$507,2,FALSE),"") ->  | M84: =IFERROR(RTD("cqg.rtd", ,"ContractData",L84, "PerCentNetLastTrade",, "T")/100,"") ->  | N84: =IFERROR(RANK($M84,$M$2:M$507)+COUNTIF($M$2:M84,M84)-1,"") ->  | P84: 83 | R84: =IF(Q84="","",RTD("cqg.rtd", ,"ContractData",Q84, "LongDescription",, "T")) ->  | S84: =IFERROR(RTD("cqg.rtd", ,"ContractData",Q84, "PerCentNetLastTrade",, "T")/100,"") ->  | T84: 0
A85: 84 | B85: =IFERROR(VLOOKUP(A85,Data!$H$2:$J$507,3,FALSE),"") ->  | C85: =IFERROR(RTD("cqg.rtd", ,"ContractData",B85, "PerCentNetLastTrade",, "T")/100,"") ->  | D85: =IFERROR(RANK($C85,$C$2:C$507)+COUNTIF($C$2:C85,C85)-1,"") ->  | F85: 84 | H85: =IF(G85="","",RTD("cqg.rtd", ,"ContractData",G85, "LongDescription",, "T")) ->  | I85: =IFERROR(RTD("cqg.rtd", ,"ContractData",G85, "PerCentNetLastTrade",, "T")/100,"") ->  | J85: 0 | K85: 84 | L85: =IFERROR(VLOOKUP(A85,Data!$I$2:$J$507,2,FALSE),"") ->  | M85: =IFERROR(RTD("cqg.rtd", ,"ContractData",L85, "PerCentNetLastTrade",, "T")/100,"") ->  | N85: =IFERROR(RANK($M85,$M$2:M$507)+COUNTIF($M$2:M85,M85)-1,"") ->  | P85: 84 | R85: =IF(Q85="","",RTD("cqg.rtd", ,"ContractData",Q85, "LongDescription",, "T")) ->  | S85: =IFERROR(RTD("cqg.rtd", ,"ContractData",Q85, "PerCentNetLastTrade",, "T")/100,"") ->  | T85: 0
A86: 85 | B86: =IFERROR(VLOOKUP(A86,Data!$H$2:$J$507,3,FALSE),"") ->  | C86: =IFERROR(RTD("cqg.rtd", ,"ContractData",B86, "PerCentNetLastTrade",, "T")/100,"") ->  | D86: =IFERROR(RANK($C86,$C$2:C$507)+COUNTIF($C$2:C86,C86)-1,"") ->  | F86: 85 | H86: =IF(G86="","",RTD("cqg.rtd", ,"ContractData",G86, "LongDescription",, "T")) ->  | I86: =IFERROR(RTD("cqg.rtd", ,"ContractData",G86, "PerCentNetLastTrade",, "T")/100,"") ->  | J86: 0 | K86: 85 | L86: =IFERROR(VLOOKUP(A86,Data!$I$2:$J$507,2,FALSE),"") ->  | M86: =IFERROR(RTD("cqg.rtd", ,"ContractData",L86, "PerCentNetLastTrade",, "T")/100,"") ->  | N86: =IFERROR(RANK($M86,$M$2:M$507)+COUNTIF($M$2:M86,M86)-1,"") ->  | P86: 85 | R86: =IF(Q86="","",RTD("cqg.rtd", ,"ContractData",Q86, "LongDescription",, "T")) ->  | S86: =IFERROR(RTD("cqg.rtd", ,"ContractData",Q86, "PerCentNetLastTrade",, "T")/100,"") ->  | T86: 0
A87: 86 | B87: =IFERROR(VLOOKUP(A87,Data!$H$2:$J$507,3,FALSE),"") ->  | C87: =IFERROR(RTD("cqg.rtd", ,"ContractData",B87, "PerCentNetLastTrade",, "T")/100,"") ->  | D87: =IFERROR(RANK($C87,$C$2:C$507)+COUNTIF($C$2:C87,C87)-1,"") ->  | F87: 86 | H87: =IF(G87="","",RTD("cqg.rtd", ,"ContractData",G87, "LongDescription",, "T")) ->  | I87: =IFERROR(RTD("cqg.rtd", ,"ContractData",G87, "PerCentNetLastTrade",, "T")/100,"") ->  | J87: 0 | K87: 86 | L87: =IFERROR(VLOOKUP(A87,Data!$I$2:$J$507,2,FALSE),"") ->  | M87: =IFERROR(RTD("cqg.rtd", ,"ContractData",L87, "PerCentNetLastTrade",, "T")/100,"") ->  | N87: =IFERROR(RANK($M87,$M$2:M$507)+COUNTIF($M$2:M87,M87)-1,"") ->  | P87: 86 | R87: =IF(Q87="","",RTD("cqg.rtd", ,"ContractData",Q87, "LongDescription",, "T")) ->  | S87: =IFERROR(RTD("cqg.rtd", ,"ContractData",Q87, "PerCentNetLastTrade",, "T")/100,"") ->  | T87: 0
